Workbook

Sheet Accueil
A1: OUTIL DE PILOTAGE EQUIPE SANTE TRAVAIL
D2: 2021
D3: =TEXT(30*MONTH(datefin),"mmmm") -> février
A4: Equipe santé travail
B5: Médecin | C5: LE GARFF Pierre | E5: 173
B6: Collaborateur médecin | C6: BASSEN Rachelle | E6: 314
B7: IDEST
A9: Période du | B9: 2021-01-01 | C9: au | D9: 2021-02-28
A11: Sommaire
A13: La connaissance du secteur
B14: Répartition Adhérents
B15: Répartition salariés
B16: Adhérents & FE
A18: L'activité médicale | G18: Les Actions en milieu du travail et activités connexes
B19: Suivi Médical | G19: Nombre AMT faites dans l'année par motif
B20: Absentéisme | G20: Détails des AMT faites dans l'année
B21: Calendrier médecin | G21: Activité Connexes
B22: Calendrier collaborateur médecin
B23: Calendrier infirmier santé travail
A25: Les Actes futurs du secteur et les convocations particulières | G25: La qualité de la base de données
B26: Actes futurs global en attente sur la période | G26: Salariés sans acte futur
B27: Actes futurs sur 5 ans | G27: Salariés notés non reconvocables
B28: Actes futurs "visites occasionnelles" à convoquer | G28: Code divers intérimaires
B29: Actes futurs "Examen médical à l'embauche" à convoquer | G29: Code divers proximité
B30: Actes futurs " Entretien intermédiaire" à convoquer | G30: Contrat saisonniers à débaucher
B31: Actes futurs "VIP Initiale" à convoquer
B32: Actes futurs "VIP" à convoquer
B33: Apprentis en attente de convocation
B34: Intérimaires en attente de convocation
B35: Nouvelles adhésions en attente de convocation
B36: Adhésion proximité en attente de convocation
A47: NB : L'activité de l'infirmier santé travail correspond à l'activité réalisée pour le secteur du médecin de l'équipe.

Sheet Répartition salariés
A2: Salariés du secteur
B3: Nombre de salariés
A4: Nombre de salariés | B4: 4345 | I4: Les déterminants de suivi déclarés par l'employeur
A6: Répartition par catégorie déclarée | D6: Répartition par catégorie constatée
J7: Nombre | K7: %
I8: Autorisation conduite | J8: 432 | K8: 0.3016759777
I9: CMR | J9: 315 | K9: 0.219972067
I10: Travailleur de nuit | J10: 263 | K10: 0.1836592179
I11: Agents biologiques groupe 3 & 4 | J11: 221 | K11: 0.1543296089
I12: Manutention manuelle > 55 kg | J12: 210 | K12: 0.1466480447
I13: Montage/démontage Echafaudage | J13: 184 | K13: 0.1284916201
I14: Habilitation électrique | J14: 140 | K14: 0.09776536313
I15: Amiante | J15: 81 | K15: 0.05656424581
I16: Travailleur handicapé | J16: 63 | K16: 0.04399441341
I17: Agents biologiques groupe 2 (AB2) | J17: 33 | K17: 0.02304469274
I18: Moins de 18 ans | J18: 32 | K18: 0.02234636872
I19: Rayonnements ionisants (Cat.B) | J19: 24 | K19: 0.01675977654
I20: Risques motivés par l'employeur | J20: 16 | K20: 0.01117318436
I21: Moins de 18 ans travaux dangereux | J21: 10 | K21: 0.006983240223
I22: Plomb | J22: 8 | K22: 0.005586592179
I23: Femme enceinte et/ou allaitante | J23: 8 | K23: 0.005586592179
I24: Titulaire d'une pension d'invalidité | J24: 8 | K24: 0.005586592179
A25: Nombre de dossiers dématérialisés | C25: 2151 | D25: =C25/B4 -> 0.4950517837 | I25: Milieu Hyperbare | J25: 4 | K25: 0.002793296089
I26: Champs électromagnétiques | J26: 2 | K26: 0.001396648045
I27: Rayonnements ionisants (Cat.A) | J27: 1 | K27: 0.0006983240223
I28: Total | J28: 1432 | K28: 1
I29: NB = Un salarié peut avoir plusieurs déterminants de suivi

Sheet Répartition Adhérents
A2: Adhérents du secteur
A4: Répartition des adhérents par taille d'entreprise | F4: Répartition des adhérents par secteur d'activité
B7: Nombre d'adhérents | C7: % | G7: Nombre | H7: %
A8: Entre 0 et 9 salariés | B8: 426 | C8: 0.8435643564 | F8: Commerce ; réparation d'automobiles et de motocycles | G8: 102 | H8: 0.201980198
A9: Entre 10 et 49 salariés | B9: 70 | C9: 0.1386138614 | F9: Construction | G9: 100 | H9: 0.198019802
A10: Entre 50 et 299 salariés | B10: 8 | C10: 0.01584158416 | F10: Industrie manufacturière | G10: 51 | H10: 0.100990099
A11: Sup à 300 salariés | B11: 1 | C11: 0.00198019802 | F11: Hébergement et restauration | G11: 46 | H11: 0.09108910891
A12: Total | B12: 505 | C12: 1 | F12: Santé humaine et action sociale | G12: 40 | H12: 0.07920792079
F13: Autres activités de services | G13: 28 | H13: 0.05544554455
F14: Activités financières et d'assurance | G14: 27 | H14: 0.05346534653
F15: Activités spécialisées, scientifiques et techniques | G15: 27 | H15: 0.05346534653
F16: Activités de services administratifs et de soutien | G16: 20 | H16: 0.0396039604
F17: Activités des ménages en tant qu'employeurs ; activités indifférenciées des ménages en tant que producteurs de biens et services pour usage propre | G17: 17 | H17: 0.03366336634
F18: Arts, spectacles et activités récréatives | G18: 13 | H18: 0.02574257426
F19: Enseignement | G19: 11 | H19: 0.02178217822
F20: Transports et entreposage | G20: 10 | H20: 0.0198019802
F21: Production et distribution d'eau ; assainissement, gestion des déchets et dépollution | G21: 5 | H21: 0.009900990099
F22: Information et communication | G22: 3 | H22: 0.005940594059
F23: Activités immobilières | G23: 3 | H23: 0.005940594059
G24: 1 | H24: 0.00198019802
F25: Industries extractives | G25: 1 | H25: 0.00198019802
F26: Total | G26: 505 | H26: 1
F29: Pour avoir une connaissance plus affinée du secteur d'activité des adhérents, cliquer sur la forme à droite :

Sheet Adhérents détails
A2: Adhérents du secteur
A4: Répartition des adhérents par secteur d'activité : Code NAF niveau détaillé
D5: Nombre | E5: %
A6: Commerce ; réparation d'automobiles et de motocycles | B6: 45.11Z | C6: Commerce de voitures et de véhicules automobiles légers | D6: 2 | E6: 0.00396039604
B7: 45.19Z | C7: Commerce d'autres véhicules automobiles | D7: 1 | E7: 0.00198019802
B8: 45.20A | C8: Entretien et réparation de véhicules automobiles légers | D8: 11 | E8: 0.02178217822
B9: 45.20B | C9: Entretien et réparation d'autres véhicules automobiles | D9: 1 | E9: 0.00198019802
B10: 45.40Z | C10: Commerce et réparation de motocycles | D10: 1 | E10: 0.00198019802
B11: 46.39A | C11: Commerce de gros (commerce interentreprises) de produits surgelés | D11: 1 | E11: 0.00198019802
B12: 46.51Z | C12: Commerce de gros (commerce interentreprises) d'ordinateurs, d'équipements informatiques périphériques et de logiciels | D12: 2 | E12: 0.00396039604
B13: 46.61Z | C13: Commerce de gros (commerce interentreprises) de matériel agricole | D13: 1 | E13: 0.00198019802
B14: 46.71Z | C14: Commerce de gros (commerce interentreprises) de combustibles et de produits annexes | D14: 1 | E14: 0.00198019802
B15: 46.73A | C15: Commerce de gros (commerce interentreprises) de bois et de matériaux de construction | D15: 2 | E15: 0.00396039604
B16: 46.74A | C16: Commerce de gros (commerce interentreprises) de quincaillerie | D16: 1 | E16: 0.00198019802
B17: 46.76Z | C17: Commerce de gros (commerce interentreprises) d'autres produits intermédiaires | D17: 1 | E17: 0.00198019802
B18: 46.90Z | C18: Commerce de gros (commerce interentreprises) non spécialisé | D18: 1 | E18: 0.00198019802
B19: 47.11B | C19: Commerce d'alimentation générale | D19: 4 | E19: 0.007920792079
B20: 47.11C | C20: Supérettes | D20: 1 | E20: 0.00198019802
B21: 47.11D | C21: Supermarchés | D21: 6 | E21: 0.01188118812
B22: 47.11F | C22: Hypermarchés | D22: 1 | E22: 0.00198019802
B23: 47.21Z | C23: Commerce de détail de fruits et légumes en magasin spécialisé | D23: 1 | E23: 0.00198019802
B24: 47.22Z | C24: Commerce de détail de viandes et de produits à base de viande en magasin spécialisé | D24: 5 | E24: 0.009900990099
B25: 47.23Z | C25: Commerce de détail de poissons, crustacés et mollusques en magasin spécialisé | D25: 1 | E25: 0.00198019802
B26: 47.24Z | C26: Commerce de détail de pain, pâtisserie et confiserie en magasin spécialisé | D26: 1 | E26: 0.00198019802
B27: 47.25Z | C27: Commerce de détail de boissons en magasin spécialisé | D27: 1 | E27: 0.00198019802
B28: 47.26Z | C28: Commerce de détail de produits à base de tabac en magasin spécialisé | D28: 2 | E28: 0.00396039604
B29: 47.29Z | C29: Autres commerces de détail alimentaires en magasin spécialisé | D29: 2 | E29: 0.00396039604
B30: 47.30Z | C30: Commerce de détail de carburants en magasin spécialisé | D30: 1 | E30: 0.00198019802
B31: 47.43Z | C31: Commerce de détail de matériels audio et vidéo en magasin spécialisé | D31: 1 | E31: 0.00198019802
B32: 47.52A | C32: Commerce de détail de quincaillerie, peintures et verres en petites surfaces (moins de 400 m²) | D32: 1 | E32: 0.00198019802
B33: 47.52B | C33: Commerce de détail de quincaillerie, peintures et verres en grandes surfaces (400 m² et plus) | D33: 3 | E33: 0.005940594059
B34: 47.54Z | C34: Commerce de détail d'appareils électroménagers en magasin spécialisé | D34: 2 | E34: 0.00396039604
B35: 47.59A | C35: Commerce de détail de meubles | D35: 1 | E35: 0.00198019802
B36: 47.59B | C36: Commerce de détail d'autres équipements du foyer | D36: 1 | E36: 0.00198019802
B37: 47.62Z | C37: Commerce de détail de journaux et papeterie en magasin spécialisé | D37: 1 | E37: 0.00198019802
B38: 47.64Z | C38: Commerce de détail d'articles de sport en magasin spécialisé | D38: 2 | E38: 0.00396039604
B39: 47.71Z | C39: Commerce de détail d'habillement en magasin spécialisé | D39: 9 | E39: 0.01782178218
B40: 47.72A | C40: Commerce de détail de la chaussure | D40: 1 | E40: 0.00198019802
B41: 47.73Z | C41: Commerce de détail de produits pharmaceutiques en magasin spécialisé | D41: 8 | E41: 0.01584158416
B42: 47.74Z | C42: Commerce de détail d'articles médicaux et orthopédiques en magasin spécialisé | D42: 2 | E42: 0.00396039604
B43: 47.75Z | C43: Commerce de détail de parfumerie et de produits de beauté en magasin spécialisé | D43: 1 | E43: 0.00198019802
B44: 47.76Z | C44: Commerce de détail de fleurs, plantes, graines, engrais, animaux de compagnie et aliments pour ces animaux en magasin spécialisé | D44: 4 | E44: 0.007920792079
B45: 47.77Z | C45: Commerce de détail d'articles d'horlogerie et de bijouterie en magasin spécialisé | D45: 1 | E45: 0.00198019802
B46: 47.78A | C46: Commerces de détail d'optique | D46: 6 | E46: 0.01188118812
B47: 47.78B | C47: Commerces de détail de charbons et combustibles | D47: 1 | E47: 0.00198019802
B48: 47.79Z | C48: Commerce de détail de biens d'occasion en magasin | D48: 1 | E48: 0.00198019802
B49: 47.81Z | C49: Commerce de détail alimentaire sur éventaires et marchés | D49: 1 | E49: 0.00198019802
B50: 47.82Z | C50: Commerce de détail de textiles, d'habillement et de chaussures sur éventaires et marchés | D50: 1 | E50: 0.00198019802
B51: 47.91B | C51: Vente à distance sur catalogue spécialisé | D51: 1 | E51: 0.00198019802
B52: 47.99A | C52: Vente à domicile | D52: 1 | E52: 0.00198019802
A53: Total Commerce ; réparation d'automobiles et de motocycles | D53: 102 | E53: 0.201980198
A54: Construction | B54: 41.20A | C54: Construction de maisons individuelles | D54: 2 | E54: 0.00396039604
B55: 41.20B | C55: Construction d'autres bâtiments | D55: 2 | E55: 0.00396039604
B56: 42.21Z | C56: Construction de réseaux pour fluides | D56: 1 | E56: 0.00198019802
B57: 43.12A | C57: Travaux de terrassement courants et travaux préparatoires | D57: 5 | E57: 0.009900990099
B58: 43.21A | C58: Travaux d'installation électrique dans tous locaux | D58: 5 | E58: 0.009900990099
B59: 43.22A | C59: Travaux d'installation d'eau et de gaz en tous locaux | D59: 6 | E59: 0.01188118812
B60: 43.22B | C60: Travaux d'installation d'équipements thermiques et de climatisation | D60: 7 | E60: 0.01386138614
B61: 43.29B | C61: Autres travaux d'installation n.c.a. | D61: 1 | E61: 0.00198019802
B62: 43.31Z | C62: Travaux de plâtrerie | D62: 7 | E62: 0.01386138614
B63: 43.32A | C63: Travaux de menuiserie bois et PVC | D63: 10 | E63: 0.0198019802
B64: 43.32B | C64: Travaux de menuiserie métallique et serrurerie | D64: 2 | E64: 0.00396039604
B65: 43.33Z | C65: Travaux de revêtement des sols et des murs | D65: 3 | E65: 0.005940594059
B66: 43.34Z | C66: Travaux de peinture et vitrerie | D66: 6 | E66: 0.01188118812
B67: 43.91A | C67: Travaux de charpente | D67: 4 | E67: 0.007920792079
B68: 43.91B | C68: Travaux de couverture par éléments | D68: 7 | E68: 0.01386138614
B69: 43.99A | C69: Travaux d'étanchéification | D69: 1 | E69: 0.00198019802
B70: 43.99C | C70: Travaux de maçonnerie générale et gros œuvre de bâtiment | D70: 27 | E70: 0.05346534653
B71: 43.99D | C71: Autres travaux spécialisés de construction | D71: 2 | E71: 0.00396039604
B72: 43.99E | C72: Location avec opérateur de matériel de construction | D72: 2 | E72: 0.00396039604
A73: Total Construction | D73: 100 | E73: 0.198019802
A74: Industrie manufacturière | B74: 10.11Z | C74: Transformation et conservation de la viande de boucherie | D74: 1 | E74: 0.00198019802
B75: 10.13A | C75: Préparation industrielle de produits à base de viande | D75: 3 | E75: 0.005940594059
B76: 10.13B | C76: Charcuterie | D76: 2 | E76: 0.00396039604
B77: 10.20Z | C77: Transformation et conservation de poisson, de crustacés et de mollusques | D77: 1 | E77: 0.00198019802
B78: 10.51A | C78: Fabrication de lait liquide et de produits frais | D78: 2 | E78: 0.00396039604
B79: 10.61A | C79: Meunerie | D79: 1 | E79: 0.00198019802
B80: 10.71A | C80: Fabrication industrielle de pain et de pâtisserie fraîche | D80: 1 | E80: 0.00198019802
B81: 10.71B | C81: Cuisson de produits de boulangerie | D81: 1 | E81: 0.00198019802
B82: 10.71C | C82: Boulangerie et boulangerie-pâtisserie | D82: 13 | E82: 0.02574257426
B83: 10.72Z | C83: Fabrication de biscuits, biscottes et pâtisseries de conservation | D83: 2 | E83: 0.00396039604
B84: 10.85Z | C84: Fabrication de plats préparés | D84: 2 | E84: 0.00396039604
B85: 10.91Z | C85: Fabrication d'aliments pour animaux de ferme | D85: 1 | E85: 0.00198019802
B86: 16.10B | C86: Imprégnation du bois | D86: 2 | E86: 0.00396039604
B87: 17.29Z | C87: Fabrication d'autres articles en papier ou en carton | D87: 1 | E87: 0.00198019802
B88: 18.12Z | C88: Autre imprimerie (labeur) | D88: 1 | E88: 0.00198019802
B89: 23.63Z | C89: Fabrication de béton prêt à l'emploi | D89: 1 | E89: 0.00198019802
B90: 25.11Z | C90: Fabrication de structures métalliques et de parties de structures | D90: 1 | E90: 0.00198019802
B91: 25.12Z | C91: Fabrication de portes et fenêtres en métal | D91: 3 | E91: 0.005940594059
B92: 25.50B | C92: Découpage, emboutissage | D92: 1 | E92: 0.00198019802
B93: 25.61Z | C93: Traitement et revêtement des métaux | D93: 1 | E93: 0.00198019802
B94: 25.62B | C94: Mécanique industrielle | D94: 1 | E94: 0.00198019802
B95: 28.25Z | C95: Fabrication d'équipements aérauliques et frigorifiques industriels | D95: 1 | E95: 0.00198019802
B96: 28.29B | C96: Fabrication d'autres machines d'usage général | D96: 1 | E96: 0.00198019802
B97: 32.12Z | C97: Fabrication d'articles de joaillerie et bijouterie | D97: 1 | E97: 0.00198019802
B98: 32.40Z | C98: Fabrication de jeux et jouets | D98: 1 | E98: 0.00198019802
B99: 33.12Z | C99: Réparation de machines et équipements mécaniques | D99: 2 | E99: 0.00396039604
B100: 33.19Z | C100: Réparation d'autres équipements | D100: 1 | E100: 0.00198019802
B101: 33.20B | C101: Installation de machines et équipements mécaniques | D101: 2 | E101: 0.00396039604
A102: Total Industrie manufacturière | D102: 51 | E102: 0.100990099
A103: Hébergement et restauration | B103: 55.10Z | C103: Hôtels et hébergement similaire | D103: 3 | E103: 0.005940594059
B104: 56.10A | C104: Restauration traditionnelle | D104: 20 | E104: 0.0396039604
B105: 56.10C | C105: Restauration de type rapide | D105: 9 | E105: 0.01782178218
B106: 56.21Z | C106: Services des traiteurs | D106: 1 | E106: 0.00198019802
B107: 56.29B | C107: Autres services de restauration n.c.a. | D107: 2 | E107: 0.00396039604
B108: 56.30Z | C108: Débits de boissons | D108: 11 | E108: 0.02178217822
A109: Total Hébergement et restauration | D109: 46 | E109: 0.09108910891
A110: Santé humaine et action sociale | B110: 86.21Z | C110: Activité des médecins généralistes | D110: 5 | E110: 0.009900990099
B111: 86.22C | C111: Autres activités des médecins spécialistes | D111: 6 | E111: 0.01188118812
B112: 86.23Z | C112: Pratique dentaire | D112: 8 | E112: 0.01584158416
B113: 86.90A | C113: Ambulances | D113: 3 | E113: 0.005940594059
B114: 86.90B | C114: Laboratoires d'analyses médicales | D114: 1 | E114: 0.00198019802
B115: 86.90D | C115: Activités des infirmiers et des sages-femmes | D115: 2 | E115: 0.00396039604
B116: 86.90E | C116: Activités des professionnels de la rééducation, de l'appareillage et des pédicures-podologues | D116: 5 | E116: 0.009900990099
B117: 87.10C | C117: Hébergement médicalisé pour adultes handicapés et autre hébergement médicalisé | D117: 1 | E117: 0.00198019802
B118: 87.90B | C118: Hébergement social pour adultes et familles en difficultés et autre hébergement social | D118: 2 | E118: 0.00396039604
B119: 88.10A | C119: Aide à domicile | D119: 4 | E119: 0.007920792079
B120: 88.91A | C120: Accueil de jeunes enfants | D120: 2 | E120: 0.00396039604
B121: 88.99B | C121: Action sociale sans hébergement n.c.a. | D121: 1 | E121: 0.00198019802
A122: Total Santé humaine et action sociale | D122: 40 | E122: 0.07920792079
A123: Autres activités de services | B123: 94.99Z | C123: Autres organisations fonctionnant par adhésion volontaire | D123: 4 | E123: 0.007920792079
B124: 95.23Z | C124: Réparation de chaussures et d'articles en cuir | D124: 1 | E124: 0.00198019802
B125: 95.29Z | C125: Réparation d'autres biens personnels et domestiques | D125: 1 | E125: 0.00198019802
B126: 96.01B | C126: Blanchisserie-teinturerie de détail | D126: 1 | E126: 0.00198019802
B127: 96.02A | C127: Coiffure | D127: 14 | E127: 0.02772277228
B128: 96.02B | C128: Soins de beauté | D128: 3 | E128: 0.005940594059
B129: 96.03Z | C129: Services funéraires | D129: 3 | E129: 0.005940594059
B130: 96.09Z | C130: Autres services personnels n.c.a. | D130: 1 | E130: 0.00198019802
A131: Total Autres activités de services | D131: 28 | E131: 0.05544554455
A132: Activités financières et d'assurance | B132: 64.19Z | C132: Autres intermédiations monétaires | D132: 10 | E132: 0.0198019802
B133: 64.20Z | C133: Activités des sociétés holding | D133: 5 | E133: 0.009900990099
B134: 64.30Z | C134: Fonds de placement et entités financières similaires | D134: 1 | E134: 0.00198019802
B135: 65.11Z | C135: Assurance vie | D135: 2 | E135: 0.00396039604
B136: 65.12Z | C136: Autres assurances | D136: 1 | E136: 0.00198019802
B137: 66.19A | C137: Supports juridiques de gestion de patrimoine mobilier | D137: 2 | E137: 0.00396039604
B138: 66.22Z | C138: Activités des agents et courtiers d'assurances | D138: 6 | E138: 0.01188118812
A139: Total Activités financières et d'assurance | D139: 27 | E139: 0.05346534653
A140: Activités spécialisées, scientifiques et techniques | B140: 69.10Z | C140: Activités juridiques | D140: 5 | E140: 0.009900990099
B141: 69.20Z | C141: Activités comptables | D141: 2 | E141: 0.00396039604
B142: 70.10Z | C142: Activités des sièges sociaux | D142: 1 | E142: 0.00198019802
B143: 70.22Z | C143: Conseil pour les affaires et autres conseils de gestion | D143: 2 | E143: 0.00396039604
B144: 71.11Z | C144: Activités d'architecture | D144: 1 | E144: 0.00198019802
B145: 71.12A | C145: Activité des géomètres | D145: 2 | E145: 0.00396039604
B146: 71.12B | C146: Ingénierie, études techniques | D146: 1 | E146: 0.00198019802
B147: 71.20A | C147: Contrôle technique automobile | D147: 3 | E147: 0.005940594059
B148: 71.20B | C148: Analyses, essais et inspections techniques | D148: 1 | E148: 0.00198019802
B149: 73.11Z | C149: Activités des agences de publicité | D149: 3 | E149: 0.005940594059
B150: 73.12Z | C150: Régie publicitaire de médias | D150: 1 | E150: 0.00198019802
B151: 74.90B | C151: Activités spécialisées, scientifiques et techniques diverses | D151: 1 | E151: 0.00198019802
B152: 75.00Z | C152: Activités vétérinaires | D152: 4 | E152: 0.007920792079
A153: Total Activités spécialisées, scientifiques et techniques | D153: 27 | E153: 0.05346534653
A154: Activités de services administratifs et de soutien | B154: 77.29Z | C154: Location et location-bail d'autres biens personnels et domestiques | D154: 1 | E154: 0.00198019802
B155: 77.32Z | C155: Location et location-bail de machines et équipements pour la construction | D155: 2 | E155: 0.00396039604
B156: 77.39Z | C156: Location et location-bail d'autres machines, équipements et biens matériels n.c.a. | D156: 1 | E156: 0.00198019802
B157: 78.20Z | C157: Activités des agences de travail temporaire | D157: 1 | E157: 0.00198019802
B158: 78.30Z | C158: Autre mise à disposition de ressources humaines | D158: 4 | E158: 0.007920792079
B159: 80.10Z | C159: Activités de sécurité privée | D159: 1 | E159: 0.00198019802
B160: 81.10Z | C160: Activités combinées de soutien lié aux bâtiments | D160: 1 | E160: 0.00198019802
B161: 81.21Z | C161: Nettoyage courant des bâtiments | D161: 3 | E161: 0.005940594059
B162: 81.22Z | C162: Autres activités de nettoyage des bâtiments et nettoyage industriel | D162: 4 | E162: 0.007920792079
B163: 82.19Z | C163: Photocopie, préparation de documents et autres activités spécialisées de soutien de bureau | D163: 1 | E163: 0.00198019802
B164: 82.99Z | C164: Autres activités de soutien aux entreprises n.c.a. | D164: 1 | E164: 0.00198019802
A165: Total Activités de services administratifs et de soutien | D165: 20 | E165: 0.0396039604
A166: Activités des ménages en tant qu'employeurs ; activités indifférenciées des ménages en tant que producteurs de biens et services pour usage propre | B166: 97.00Z | C166: Activités des ménages en tant qu'employeurs de personnel domestique | D166: 17 | E166: 0.03366336634
A167: Total Activités des ménages en tant qu'employeurs ; activités indifférenciées des ménages en tant que producteurs de biens et services pour usage propre | D167: 17 | E167: 0.03366336634
A168: Arts, spectacles et activités récréatives | B168: 90.01Z | C168: Arts du spectacle vivant | D168: 3 | E168: 0.005940594059
B169: 90.03A | C169: Création artistique relevant des arts plastiques | D169: 1 | E169: 0.00198019802
B170: 93.11Z | C170: Gestion d'installations sportives | D170: 1 | E170: 0.00198019802
B171: 93.12Z | C171: Activités de clubs de sports | D171: 7 | E171: 0.01386138614
B172: 93.19Z | C172: Autres activités liées au sport | D172: 1 | E172: 0.00198019802
A173: Total Arts, spectacles et activités récréatives | D173: 13 | E173: 0.02574257426
A174: Enseignement | B174: 85.20Z | C174: Enseignement primaire | D174: 3 | E174: 0.005940594059
B175: 85.31Z | C175: Enseignement secondaire général | D175: 1 | E175: 0.00198019802
B176: 85.51Z | C176: Enseignement de disciplines sportives et d'activités de loisirs | D176: 2 | E176: 0.00396039604
B177: 85.53Z | C177: Enseignement de la conduite | D177: 4 | E177: 0.007920792079
B178: 85.59B | C178: Autres enseignements | D178: 1 | E178: 0.00198019802
A179: Total Enseignement | D179: 11 | E179: 0.02178217822
A180: Transports et entreposage | B180: 49.39A | C180: Transports routiers réguliers de voyageurs | D180: 1 | E180: 0.00198019802
B181: 49.41A | C181: Transports routiers de fret interurbains | D181: 4 | E181: 0.007920792079
B182: 49.41B | C182: Transports routiers de fret de proximité | D182: 2 | E182: 0.00396039604
B183: 52.22Z | C183: Services auxiliaires des transports par eau | D183: 1 | E183: 0.00198019802
B184: 52.29A | C184: Messagerie, fret express | D184: 1 | E184: 0.00198019802
B185: 52.29B | C185: Affrètement et organisation des transports | D185: 1 | E185: 0.00198019802
A186: Total Transports et entreposage | D186: 10 | E186: 0.0198019802
A187: Production et distribution d'eau ; assainissement, gestion des déchets et dépollution | B187: 36.00Z | C187: Captage, traitement et distribution d'eau | D187: 1 | E187: 0.00198019802
B188: 37.00Z | C188: Collecte et traitement des eaux usées | D188: 1 | E188: 0.00198019802
B189: 38.11Z | C189: Collecte des déchets non dangereux | D189: 1 | E189: 0.00198019802
B190: 38.32Z | C190: Récupération de déchets triés | D190: 2 | E190: 0.00396039604
A191: Total Production et distribution d'eau ; assainissement, gestion des déchets et dépollution | D191: 5 | E191: 0.009900990099
A192: Information et communication | B192: 62.01Z | C192: Programmation informatique | D192: 2 | E192: 0.00396039604
B193: 62.09Z | C193: Autres activités informatiques | D193: 1 | E193: 0.00198019802
A194: Total Information et communication | D194: 3 | E194: 0.005940594059
A195: Activités immobilières | B195: 68.31Z | C195: Agences immobilières | D195: 1 | E195: 0.00198019802
B196: 68.32A | C196: Administration d'immeubles et autres biens immobiliers | D196: 2 | E196: 0.00396039604
A197: Total Activités immobilières | D197: 3 | E197: 0.005940594059
D198: 1 | E198: 0.00198019802
A199: Total | D199: 1 | E199: 0.00198019802
A200: Industries extractives | B200: 08.11Z | C200: Extraction de pierres ornementales et de construction, de calcaire industriel, de gypse, de craie et d'ardoise | D200: 1 | E200: 0.00198019802
A201: Total Industries extractives | D201: 1 | E201: 0.00198019802
A202: Total | D202: 505 | E202: 1

Sheet Adhérents & FE
A2: Adhérents & Fiches d'entreprise
A4: Tableau 1 - Les fiches entreprises existantes sur le secteur | J4: Tableau 2 - Adhérents avec la date création ou de dernière mise à jour de la FE
B6: Nombre de FE
B7: 75 | J7: N° Adherent | K7: Nom Adherent | L7: Ville Adhérent | M7: Effectif instantané | N7: Date FE | O7: Création ou MAJ de la FE
J8: 44787 | K8: SARL TRANSPORTS PIERRE IHUEL | L8: CLEGUER | M8: 3 | N8: 2020-02-26 | O8: Création FE
A9: Nombre d'entreprises couvertes par une FE | J9: 46103 | K9: SARL PROBANET | L9: PLOUAY | M9: 3 | N9: 2019-12-11 | O9: Création FE
J10: 48713 | K10: SAS DAVID ET FILS | L10: HENNEBONT | M10: 9 | N10: 2019-11-28 | O10: Création FE
J11: 52857 | K11: SA CRECHE BABILOU POMME D API | L11: PLOUAY | M11: 14 | N11: 2019-10-18 | O11: Création FE
D12: Nombre d'adhérents couverts par une FE selon la taille de l'entreprise | J12: 59854 | K12: SAS CHARCUTERIE DU BLAVET | L12: KERVIGNAC | M12: 60 | N12: 2019-10-07 | O12: Mise à jour FE
E13: Nombre Adhérents | J13: 68278 | K13: SARL ALFA PLOUAY | L13: PLOUAY | M13: 8 | N13: 2019-08-26 | O13: Création FE
D14: Entre 0 et 10 salariés | E14: 43 | J14: 29878 | K14: SAS SML | L14: CAUDAN | M14: 5 | N14: 2019-07-17 | O14: Création FE
D15: Entre 11 et 49 salariés | E15: 26 | J15: 20593 | K15: SARL PLOUAY AUTOMOBILES | L15: PLOUAY | M15: 4 | N15: 2019-07-10 | O15: Création FE
D16: Entre 50 et 299 salariés | E16: 5 | J16: 31600 | K16: SARL ATLANTIC CINTRAGE | L16: KERVIGNAC | M16: 5 | N16: 2019-06-26 | O16: Création FE
D17: Sup à 300 salariés | E17: 1 | J17: 47354 | K17: SAS SICA AUTOMOBILES | L17: LANESTER CEDEX | M17: 34 | N17: 2019-06-26 | O17: Création FE
D18: Total | E18: 75 | J18: 19580 | K18: SAS REALISATION ALUMINIUM | L18: HENNEBONT | M18: 33 | N18: 2019-06-04 | O18: Mise à jour FE
J19: 71709 | K19: SARL ETS MAURICE GABILLET | L19: PLOUAY | M19: 9 | N19: 2019-05-22 | O19: Création FE
J20: 1231 | K20: SARL TRANSPORTS CARDIET FRERES | L20: LANVAUDAN | M20: 7 | N20: 2019-04-30 | O20: Création FE
B21: Nombre d'adhérent sur le secteur | D21: =B7/B22 -> 0.1485148515 | E21: adhérents du secteur | J21: 52489 | K21: SARL SOHIER CARRIOU | L21: PLOUAY | M21: 4 | N21: 2019-04-09 | O21: Création FE
B22: 505 | J22: 36072 | K22: SARL ANNIC RESTAURATION | L22: KERVIGNAC | M22: 15 | N22: 2019-04-03 | O22: Création FE
J23: 62901 | K23: SAS PEOPLE AND BABY | L23: HENNEBONT | M23: 26 | N23: 2019-01-04 | O23: Création FE
J24: 80677 | K24: SCDBP BANQUE POPULAIRE GRAND OUEST | L24: HENNEBONT | M24: 7 | N24: 2018-12-18 | O24: Création FE
A25: Nombre de salariés couverts par une FE | J25: 9229 | K25: SAS VOLVO TRUCKS CENTER BRETAGNE | L25: HENNEBONT | M25: 13 | N25: 2018-10-29 | O25: Mise à jour FE
J26: 80653 | K26: SCDBP BANQUE POPULAIRE GRAND OUEST | L26: PLOUAY | M26: 5 | N26: 2018-10-26 | O26: Création FE
J27: 56985 | K27: SASU ETABLISSEMENTS LE TINIER MORIN 35 | L27: CAUDAN | M27: 11 | N27: 2018-10-25 | O27: Mise à jour FE
D28: Salariés couverts par une FE selon la taille de l'entreprise | J28: 58694 | K28: SARL JEHRY | L28: HENNEBONT | M28: 6 | N28: 2018-09-14 | O28: Création FE
E29: Nombre de salariés | J29: 53349 | K29: SARL STYLING | L29: HENNEBONT | M29: 2 | N29: 2018-09-11 | O29: Création FE
D30: Entre 0 et 10 salariés | E30: 192 | J30: 59387 | K30: SAS PEMM | L30: HENNEBONT | M30: 12 | N30: 2018-08-29 | O30: Création FE
D31: Entre 11 et 49 salariés | E31: 628 | J31: 58412 | K31: SARL COIFFURE BELLEC | L31: HENNEBONT | M31: 2 | N31: 2018-08-28 | O31: Création FE
D32: Entre 50 et 299 salariés | E32: 585 | J32: 71192 | K32: SA LE CREDIT LYONNAIS | L32: HENNEBONT | M32: 3 | N32: 2018-07-20 | O32: Création FE
D33: Sup à 300 salariés | E33: 960 | J33: 9703 | K33: SAS GUILLEMOT | L33: PLOUAY | M33: 10 | N33: 2018-07-11 | O33: Création FE
D34: Total | E34: 2365 | J34: 64083 | K34: SAS OCEANE SERVICES ENERGIE OSE | L34: HENNEBONT | M34: 7 | N34: 2018-06-15 | O34: Création FE
J35: 27515 | K35: ASSOCIATION CAEC | L35: HENNEBONT | M35: 3 | N35: 2018-06-06 | O35: Mise à jour FE
J36: 69390 | K36: SAS BRETECHE OUEST | L36: CLEGUER | M36: 1 | N36: 2018-04-26 | O36: Création FE
B37: Nombre de salariés | J37: 29417 | K37: SARL CERIMPORT INDUSTRIES | L37: PLOUAY | M37: 6 | N37: 2018-04-26 | O37: Création FE
B38: 4345 | D38: =E34/B38 -> 0.5443037975 | E38: salariés du secteur | J38: 8205 | K38: SAS ARMOR PLATS CUISINES | L38: KERVIGNAC | M38: 47 | N38: 2018-03-26 | O38: Mise à jour FE
J39: 57506 | K39: SAS HENNEBIHAN | L39: HENNEBONT | M39: 39 | N39: 2018-03-01 | O39: Création FE
J40: 47292 | K40: SNC VINCENT | L40: HENNEBONT | M40: 5 | N40: 2018-02-19 | O40: Création FE
J41: 5311 | K41: SA CITE MARINE | L41: KERVIGNAC | M41: 960 | N41: 2018-02-14 | O41: Mise à jour FE
J42: 52896 | K42: SARL AVENIR SENIOR PLUS | L42: LANESTER | M42: 40 | N42: 2018-02-05 | O42: Création FE
J43: 49507 | K43: SARL TY PRODUCTEURS | L43: KERVIGNAC | M43: 40 | N43: 2018-01-17 | O43: Création FE
J44: 17042 | K44: EURL CHRISTOPHE MORGANT | L44: PLOUAY | M44: 1 | N44: 2018-01-05 | O44: Création FE
J45: 20363 | K45: SARL ROYER | L45: HENNEBONT | M45: 6 | N45: 2017-12-15 | O45: Mise à jour FE
J46: 15526 | K46: SAS LOY ET CIE | L46: PLOUAY | M46: 25 | N46: 2017-12-05 | O46: Création FE
J47: 2547 | K47: SA BARAZER TP | L47: PLOUAY | M47: 40 | N47: 2017-10-26 | O47: Création FE
J48: 55911 | K48: EURL BEVAN CONSTRUCTION | L48: KERVIGNAC | M48: 15 | N48: 2017-09-22 | O48: Création FE
J49: 18585 | K49: SARL ETABLISSEMENTS PHILIPPE | L49: HENNEBONT | M49: 3 | N49: 2017-07-24 | O49: Création FE
J50: 56108 | K50: SARL LA BOITE A CH VEUX | L50: HENNEBONT | M50: 7 | N50: 2017-03-03 | O50: Création FE
J51: 46225 | K51: EURL IDEA FLEURS | L51: HENNEBONT | M51: 11 | N51: 2017-02-15 | O51: Création FE
J52: 2261 | K52: SARL ARTHUR ET MARIE | L52: LANVAUDAN | M52: 3 | N52: 2017-01-04 | O52: Création FE
J53: 7128 | K53: SAS DORE SOLS | L53: PLOUAY | M53: 27 | N53: 2016-12-14 | O53: Création FE
J54: 46066 | K54: SAS SRB CONSTRUCTION | L54: HENNEBONT | M54: 87 | N54: 2016-04-13 | O54: Mise à jour FE
J55: 48265 | K55: SA AT FRANCE | L55: PLOUAY CEDEX | M55: 39 | N55: 2016-03-08 | O55: Création FE
J56: 2958 | K56: SARL BERNETIC | L56: BERNE | M56: 56 | N56: 2016-02-10 | O56: Mise à jour FE
J57: 14735 | K57: SARL LE VOUEDEC | L57: INGUINIEL | M57: 9 | N57: 2015-12-04 | O57: Création FE
J58: 35448 | K58: SARL LES VENETES | L58: CALAN | M58: 4 | N58: 2015-11-18 | O58: Création FE
J59: 27594 | K59: MADAME CELINE LE ROY | L59: PLOUAY | M59: 2 | N59: 2015-11-18 | O59: Création FE
J60: 20953 | K60: SARL GAUDIN | L60: PLOUAY | M60: 15 | N60: 2015-10-26 | O60: Création FE
J61: 44074 | K61: SARL GAUDIN POMPAGE SOLS BETON | L61: PLOUAY | M61: 3 | N61: 2015-10-26 | O61: Création FE
J62: 27065 | K62: MONSIEUR YANN GALAIS | L62: HENNEBONT | M62: 2 | N62: 2015-09-17 | O62: Création FE
J63: 7901 | K63: SARL LB TRANS | L63: BUBRY | M63: 12 | N63: 2015-09-16 | O63: Création FE
J64: 62453 | K64: SAS MADIX | L64: PLOUAY | M64: 41 | N64: 2015-07-15 | O64: Création FE
J65: 56201 | K65: SAS GARNIEL BATIMENT | L65: PLOUAY | M65: 25 | N65: 2015-07-09 | O65: Création FE
J66: 51147 | K66: SAS RAVALEMENT GARNIEL | L66: PLOUAY | M66: 12 | N66: 2015-07-09 | O66: Création FE
J67: 26223 | K67: SARL MINOTERIE LE STUNFF | L67: BUBRY | M67: 11 | N67: 2015-04-22 | O67: Création FE
J68: 47393 | K68: SARL ALBANE | L68: PLOUAY | M68: 4 | N68: 2015-03-16 | O68: Création FE
J69: 7478 | K69: OGEC DE PLOUAY | L69: PLOUAY | M69: 10 | N69: 2015-01-21 | O69: Création FE
J70: 58276 | K70: EURL ALEXIA | L70: PLOUAY | M70: 1 | N70: 2014-10-23 | O70: Création FE
J71: 10970 | K71: SARL FAP | L71: PLOUAY | M71: 3 | N71: 2014-10-13 | O71: Création FE
J72: 47439 | K72: SNC AUTO BILAN FRANCE | L72: CAUDAN | M72: 1 | N72: 2014-09-11 | O72: Création FE
J73: 56134 | K73: SAS A2S | L73: KERVIGNAC | M73: 112 | N73: 2013-10-02 | O73: Création FE
J74: 11500 | K74: SAS GARAGE DE KERPOTENCE | L74: HENNEBONT | M74: 3 | N74: 2012-11-07 | O74: Création FE
J75: 12470 | K75: SARL GARAGE LE BOLAY | L75: HENNEBONT | M75: 2 | N75: 2010-04-30 | O75: Création FE
J76: 48196 | K76: SNC LIDL 2653 HENNEBONT | L76: HENNEBONT | M76: 17 | N76: 2010-04-15 | O76: Création FE
J77: 36021 | K77: MONSIEUR ROMUALD JEGO | L77: PLOUAY | M77: 1 | N77: 2010-03-24 | O77: Création FE
J78: 45515 | K78: SARL ROGER ROUDAUT | L78: HENNEBONT | M78: 14 | N78: 2010-01-08 | O78: Création FE
J79: 10185 | K79: SA HENDIS | L79: HENNEBONT CEDEX | M79: 270 | N79: 2009-10-15 | O79: Mise à jour FE
J80: 44057 | K80: SAS CAMAIEU INTERNATIONAL | L80: HENNEBONT | M80: 4 | N80: 2009-09-04 | O80: Création FE
J81: 44505 | K81: SARL NOUVEL HAIR | L81: HENNEBONT | M81: 1 | N81: 2008-10-20 | O81: Création FE
J82: 42386 | K82: SAS PESIPETI | L82: HENNEBONT | M82: 8 | N82: 2008-05-23 | O82: Création FE

Sheet suivi médical
A2: Nature des actes médicaux
A5: Actes médicaux réalisés | G5: Actes médicaux par nature de visite | L5: Actes médicaux mensuels du secteur
G19: Actes médicaux par contrat
H20: Médecin collaborateur | I20: Médecin du travail | J20: Total
G21: Apprenti | H21: 7 | I21: 2 | J21: 9
G22: CDD | H22: 32 | I22: 3 | J22: 35
G23: CDI | H23: 172 | I23: 128 | J23: 300
G24: Intérimaire | H24: 58 | I24: 7 | J24: 65
G25: Qualification | I25: 1 | J25: 1
G26: Total | H26: 269 | I26: 141 | J26: 410 | P26: Visites non décomptées (gestion administrative de dossier)
A28: Suivi périodique ou d'embauche réalisé | G28: Dispense de visite d'embauche | Q28: Certificat médical professionnel | R28: 1
A29: lors d'une autre nature de visite principale | Q29: Saisie AT/ MP | R29: 2
G30: Dispense d'Examen Médical à l'Embauche | H30: 8 | Q30: Suite appel téléphonique | R30: 4
A31: + Examen Médical | B31: 9 | G31: Dispense de Visite d'information et de Prévention Initiale | H31: 58 | Q31: Suite à réception d'examens complémentaires | R31: 3
A32: + Visite d'Information et de Prévention | B32: 7 | G32: Total | H32: 66 | Q32: Total | R32: 10
A33: Total | B33: 16
A38: Conclusions des actes médicaux
A40: Répartition des conclusions | G40: Conclusions des actes médicaux par nature de visite | Q40: Inaptitudes & Secteur Activité (Code NAF niveau 2)
H42: Pré-Reprise | I42: Reprise | J42: Occasionnelle | K42: Examen médical | L42: Examen médical à l'embauche | M42: VIP | N42: VIP Initiale | O42: Total | R42: Nombre de salariés
G43: Apte | I43: 11 | J43: 8 | K43: 48 | L43: 49 | M43: 2 | O43: 118 | Q43: Commerce de détail, à l'exception des automobiles et des motocycles | R43: 2
G44: Apte avec aménagement du poste | I44: 2 | J44: 1 | O44: 3 | Q44: Commerce de gros, à l'exception des automobiles et des motocycles | R44: 1
G45: Apte avec restriction | L45: 1 | O45: 1 | Q45: Industries alimentaires | R45: 5
G46: Inapte au poste de travail | I46: 7 | J46: 2 | O46: 9 | Q46: Travaux de construction spécialisés | R46: 1
G47: Pas d'avis d'aptitude délivré | H47: 55 | I47: 52 | J47: 24 | K47: 1 | L47: 2 | M47: 18 | N47: 127 | O47: 279
G48: Total | H48: 55 | I48: 72 | J48: 35 | K48: 49 | L48: 52 | M48: 20 | N48: 127 | O48: 410

Sheet mr_suivi médical (hidden)
A2: Nature des actes médicaux
A5: Actes médicaux réalisés | G5: Actes médicaux par nature de visite | L5: Actes médicaux mensuels du secteur | S5: Détails actes IDEST et/ou collaborateur
T7: BASSEN Rachelle | U7: Total
S8: ARCHIVAGE SALARIES DEBAUCHES | T8: 2 | U8: 2
S9: ANCIAUX THAUVIN Laurence | T9: 1 | U9: 1
S10: LE GARFF Pierre | T10: 205 | U10: 205
S11: MEDECIN INTERIMAIRE | T11: 56 | U11: 56
S12: MEDECIN PROXIMITE | T12: 3 | U12: 3
S13: RITCHEN Sophie | T13: 1 | U13: 1
S14: TREGUER Anne | T14: 1 | U14: 1
S15: Total | T15: 269 | U15: 269
R17: BASSEN Rachelle | S17: LE GARFF Pierre | T17: Total
Q18: Apprenti | R18: 7 | S18: 2 | T18: 9
G19: Actes médicaux par contrat | Q19: CDD | R19: 32 | S19: 3 | T19: 35
H20: BASSEN Rachelle | I20: LE GARFF Pierre | J20: Total | Q20: CDI | R20: 172 | S20: 128 | T20: 300
G21: Apprenti | H21: 7 | I21: 2 | J21: 9 | Q21: Intérimaire | R21: 58 | S21: 7 | T21: 65
G22: CDD | H22: 32 | I22: 3 | J22: 35 | Q22: Qualification | S22: 1 | T22: 1
G23: CDI | H23: 172 | I23: 128 | J23: 300 | Q23: Total | R23: 269 | S23: 141 | T23: 410
G24: Intérimaire | H24: 58 | I24: 7 | J24: 65
G25: Qualification | I25: 1 | J25: 1
G26: Total | H26: 269 | I26: 141 | J26: 410 | P26: Visites non décomptées (gestion administrative de dossier)
A28: Suivi périodique ou d'embauche réalisé | G28: Dispense de visite d'embauche | Q28: Certificat médical professionnel | R28: 1
A29: lors d'une autre nature de visite principale | Q29: Saisie AT/ MP | R29: 2
G30: Dispense d'Examen Médical à l'Embauche | H30: 8 | Q30: Suite appel téléphonique | R30: 4
A31: + Examen Médical | B31: 9 | G31: Dispense de Visite d'information et de Prévention Initiale | H31: 58 | Q31: Suite à réception d'examens complémentaires | R31: 3
A32: + Visite d'Information et de Prévention | B32: 7 | G32: Total | H32: 66 | Q32: Total | R32: 10
A33: Total | B33: 16
A38: Conclusions des actes médicaux
A40: Répartition des conclusions | G40: Conclusions des actes médicaux par nature de visite | Q40: Inaptitudes & Secteur Activité (Code NAF niveau 2)
H42: Pré-Reprise | I42: Reprise | J42: Occasionnelle | K42: Examen médical | L42: Examen médical à l'embauche | M42: VIP | N42: VIP Initiale | O42: Total | R42: Nombre de salariés
G43: Apte | I43: 11 | J43: 8 | K43: 48 | L43: 49 | M43: 2 | O43: 118 | Q43: Commerce de détail, à l'exception des automobiles et des motocycles | R43: 2
G44: Apte avec aménagement du poste | I44: 2 | J44: 1 | O44: 3 | Q44: Commerce de gros, à l'exception des automobiles et des motocycles | R44: 1
G45: Apte avec restriction | L45: 1 | O45: 1 | Q45: Industries alimentaires | R45: 5
G46: Inapte au poste de travail | I46: 7 | J46: 2 | O46: 9 | Q46: Travaux de construction spécialisés | R46: 1
G47: Pas d'avis d'aptitude délivré | H47: 55 | I47: 52 | J47: 24 | K47: 1 | L47: 2 | M47: 18 | N47: 127 | O47: 279
G48: Total | H48: 55 | I48: 72 | J48: 35 | K48: 49 | L48: 52 | M48: 20 | N48: 127 | O48: 410

Sheet Absentéisme
A2: L'absentéisme
A4: Absents et excusés par contrat de travail | H4: Absents ou excusés par nature de visite | Q4: Absents et excusés mensuels
A24: L'absentéisme au sein de l'équipe santé de travail
A26: Mois | B26: Janvier | C26: Février | D26: Mars | E26: Avril | F26: Mai | G26: Juin | H26: Juillet | I26: Août | J26: Septembre | K26: Octobre | L26: Novembre | M26: Décembre | N26: TOTAL
A27: Nbre d'actes médecin du travail | B27: ='Export absent'!C14 -> 57 | C27: ='Export absent'!D14 -> 84 | D27: ='Export absent'!E14 -> 0 | E27: ='Export absent'!F14 -> 0 | F27: ='Export absent'!G14 -> 0 | G27: ='Export absent'!H14 -> 0 | H27: ='Export absent'!I14 -> 0 | I27: ='Export absent'!J14 -> 0 | J27: ='Export absent'!K14 -> 0 | K27: ='Export absent'!L14 -> 0 | L27: ='Export absent'!M14 -> 0 | M27: ='Export absent'!N14 -> 0 | N27: =SUM(B27:M27) -> 141
A28: Nbre d'actes médecin collaborateur | B28: ='Export absent'!C19 -> 159 | C28: ='Export absent'!D19 -> 110 | D28: ='Export absent'!E19 -> 0 | E28: ='Export absent'!F19 -> 0 | F28: ='Export absent'!G19 -> 0 | G28: ='Export absent'!H19 -> 0 | H28: ='Export absent'!I19 -> 0 | I28: ='Export absent'!J19 -> 0 | J28: ='Export absent'!K19 -> 0 | K28: ='Export absent'!L19 -> 0 | L28: ='Export absent'!M19 -> 0 | M28: ='Export absent'!N19 -> 0 | N28: 269
A29: Nbre d'actes infirmier | B29: ='Export absent'!C24 -> 0 | C29: ='Export absent'!D24 -> 0 | D29: ='Export absent'!E24 -> 0 | E29: ='Export absent'!F24 -> 0 | F29: ='Export absent'!G24 -> 0 | G29: ='Export absent'!H24 -> 0 | H29: ='Export absent'!I24 -> 0 | I29: ='Export absent'!J24 -> 0 | J29: ='Export absent'!K24 -> 0 | K29: ='Export absent'!L24 -> 0 | L29: ='Export absent'!M24 -> 0 | M29: ='Export absent'!N24 -> 0 | N29: 0
A30: Total actes médicaux | B30: =SUM(B27:B29) -> 216 | C30: 194 | D30: 0 | E30: 0 | F30: 0 | G30: 0 | H30: 0 | I30: 0 | J30: 0 | K30: 0 | L30: 0 | M30: 0 | N30: 410
A31: RDV Non honorés médecin du travail | B31: ='Export absent'!EA14 -> 2 | C31: ='Export absent'!EB14 -> 13 | D31: ='Export absent'!EC14 -> 0 | E31: ='Export absent'!ED14 -> 0 | F31: ='Export absent'!EE14 -> 0 | G31: ='Export absent'!EF14 -> 0 | H31: ='Export absent'!EG14 -> 0 | I31: ='Export absent'!EH14 -> 0 | J31: ='Export absent'!EI14 -> 0 | K31: ='Export absent'!EJ14 -> 0 | L31: ='Export absent'!EK14 -> 0 | M31: ='Export absent'!EL14 -> 0 | N31: 15
A32: RDV non honorés médecin collaborateur | B32: ='Export absent'!EA19 -> 24 | C32: ='Export absent'!EB19 -> 15 | D32: ='Export absent'!EC19 -> 0 | E32: ='Export absent'!ED19 -> 0 | F32: ='Export absent'!EE19 -> 0 | G32: ='Export absent'!EF19 -> 0 | H32: ='Export absent'!EG19 -> 0 | I32: ='Export absent'!EH19 -> 0 | J32: ='Export absent'!EI19 -> 0 | K32: ='Export absent'!EJ19 -> 0 | L32: ='Export absent'!EK19 -> 0 | M32: ='Export absent'!EL19 -> 0 | N32: 39
A33: RDV non honorés infirmier | B33: ='Export absent'!EA24 -> 0 | C33: ='Export absent'!EB24 -> 0 | D33: ='Export absent'!EC24 -> 0 | E33: ='Export absent'!ED24 -> 0 | F33: ='Export absent'!EE24 -> 0 | G33: ='Export absent'!EF24 -> 0 | H33: ='Export absent'!EG24 -> 0 | I33: ='Export absent'!EH24 -> 0 | J33: ='Export absent'!EI24 -> 0 | K33: ='Export absent'!EJ24 -> 0 | L33: ='Export absent'!EK24 -> 0 | M33: ='Export absent'!EL24 -> 0 | N33: 0
A34: Total RDV non honorés | B34: =SUM(B31:B33) -> 26 | C34: 28 | D34: 0 | E34: 0 | F34: 0 | G34: 0 | H34: 0 | I34: 0 | J34: 0 | K34: 0 | L34: 0 | M34: 0 | N34: 54
A35: Nbre de Pénalités médecin | B35: ='Export absent'!CE14 -> 0 | C35: ='Export absent'!CF14 -> 2 | D35: ='Export absent'!CG14 -> 0 | E35: ='Export absent'!CH14 -> 0 | F35: ='Export absent'!CI14 -> 0 | G35: ='Export absent'!CJ14 -> 0 | H35: ='Export absent'!CK14 -> 0 | I35: ='Export absent'!CL14 -> 0 | J35: ='Export absent'!CM14 -> 0 | K35: ='Export absent'!CN14 -> 0 | L35: ='Export absent'!CO14 -> 0 | M35: ='Export absent'!CP14 -> 0 | N35: 2
A36: Nbre de Pénalités médecin collaborateur | B36: ='Export absent'!CE19 -> 8 | C36: ='Export absent'!CF19 -> 3 | D36: ='Export absent'!CG19 -> 0 | E36: ='Export absent'!CH19 -> 0 | F36: ='Export absent'!CI19 -> 0 | G36: ='Export absent'!CJ19 -> 0 | H36: ='Export absent'!CK19 -> 0 | I36: ='Export absent'!CL19 -> 0 | J36: ='Export absent'!CM19 -> 0 | K36: ='Export absent'!CN19 -> 0 | L36: ='Export absent'!CO19 -> 0 | M36: ='Export absent'!CP19 -> 0 | N36: 11
A37: Nbre de Pénalités infirmier | B37: ='Export absent'!CE24 -> 0 | C37: ='Export absent'!CF24 -> 0 | D37: ='Export absent'!CG24 -> 0 | E37: ='Export absent'!CH24 -> 0 | F37: ='Export absent'!CI24 -> 0 | G37: ='Export absent'!CJ24 -> 0 | H37: ='Export absent'!CK24 -> 0 | I37: ='Export absent'!CL24 -> 0 | J37: ='Export absent'!CM24 -> 0 | K37: ='Export absent'!CN24 -> 0 | L37: ='Export absent'!CO24 -> 0 | M37: ='Export absent'!CP24 -> 0 | N37: 0
A38: Total Pénalités | B38: =SUM(B35:B37) -> 8 | C38: =SUM(C35:C37) -> 5 | D38: 0 | E38: 0 | F38: 0 | G38: 0 | H38: 0 | I38: 0 | J38: 0 | K38: 0 | L38: 0 | M38: 0 | N38: 13
A39: % pénalités équipe | B39: =B38/B34 -> 0.3076923077 | C39: =C38/C34 -> 0.1785714286 | D39: =IFERROR("",D38/D34) ->  | N39: =(N37+N35)/N34 -> 0.03703703704
A40: Absentéisme médecin | B40: =B31/(B31+B27) -> 0.03389830508 | C40: =C31/(C31+C27) -> 0.1340206186 | D40: =IFERROR(0,"=C30/(C30+C27)") -> 0 | E40: 0 | F40: 0 | G40: 0 | H40: 0 | I40: 0 | J40: 0 | K40: 0 | L40: 0 | M40: 0 | N40: =N31/(N31+N27) -> 0.09615384615
A41: Absentéisme médecin collaborateur | B41: =B32/(B32+B28) -> 0.131147541 | C41: =C32/(C32+C28) -> 0.12 | D41: =IFERROR(0,D32/(D32+D28)) -> 0 | E41: 0 | F41: 0 | G41: 0 | H41: 0 | I41: 0 | J41: 0 | K41: 0 | L41: 0 | M41: 0 | N41: =N32/(N32+N28) -> 0.1266233766
A42: Absentéisme Infirmier | B42: =P37 -> 0 | C42: =IFERROR(0,C33/(C33+C29)) -> 0 | D42: =IFERROR(0,D33/(D33+D29)) -> 0 | E42: 0 | F42: 0 | G42: 0 | H42: 0 | I42: 0 | J42: 0 | K42: 0 | L42: 0 | M42: 0 | N42: 0
A43: Absentéisme Equipe | B43: =B34/(B34+B30) -> 0.1074380165 | C43: =C34/(C34+C30) -> 0.1261261261 | D43: =IFERROR(0,D34/(D34+D30)) -> 0 | E43: 0 | F43: 0 | G43: 0 | H43: 0 | I43: 0 | J43: 0 | K43: 0 | L43: 0 | M43: 0 | N43: =N34/(N34+N30) -> 0.1163793103
A44: Total RDV absents ou excusés med | B44: ='Export absent'!BO14 -> 10 | C44: ='Export absent'!BP14 -> 25 | D44: ='Export absent'!BQ14 -> 0 | E44: ='Export absent'!BR14 -> 0 | F44: ='Export absent'!BS14 -> 0 | G44: ='Export absent'!BT14 -> 0 | H44: ='Export absent'!BU14 -> 0 | I44: ='Export absent'!BV14 -> 0 | J44: ='Export absent'!BW14 -> 0 | K44: ='Export absent'!BX14 -> 0 | L44: ='Export absent'!BY14 -> 0 | M44: ='Export absent'!BZ14 -> 0 | N44: =SUM(B44:M44) -> 35
A45: Total RDV absents ou excusés med col. | B45: ='Export absent'!BO19 -> 54 | C45: ='Export absent'!BP19 -> 37 | D45: ='Export absent'!BQ19 -> 0 | E45: ='Export absent'!BR19 -> 0 | F45: ='Export absent'!BS19 -> 0 | G45: ='Export absent'!BT19 -> 0 | H45: ='Export absent'!BU19 -> 0 | I45: ='Export absent'!BV19 -> 0 | J45: ='Export absent'!BW19 -> 0 | K45: ='Export absent'!BX19 -> 0 | L45: ='Export absent'!BY19 -> 0 | M45: ='Export absent'!BZ19 -> 0 | N45: =SUM(B45:M45) -> 91
A46: Total RDV absents ou excusés infirmier | B46: ='Export absent'!BO24 -> 0 | C46: ='Export absent'!BP24 -> 0 | D46: ='Export absent'!BQ24 -> 0 | E46: ='Export absent'!BR24 -> 0 | F46: ='Export absent'!BS24 -> 0 | G46: ='Export absent'!BT24 -> 0 | H46: ='Export absent'!BU24 -> 0 | I46: ='Export absent'!BV24 -> 0 | J46: ='Export absent'!BW24 -> 0 | K46: ='Export absent'!BX24 -> 0 | L46: ='Export absent'!BY24 -> 0 | M46: ='Export absent'!BZ24 -> 0
A47: Total RDV remplacés med | B47: =B44-B31 -> 8 | C47: =C44-C31 -> 12 | D47: 0 | E47: 0 | F47: 0 | G47: 0 | H47: 0 | I47: 0 | J47: 0 | K47: 0 | L47: 0 | M47: 0 | N47: =N44-N31 -> 20
A48: Total RDV remplacés med col. | B48: =B45-B32 -> 30 | C48: =C45-C32 -> 22 | D48: 0 | E48: 0 | F48: 0 | G48: 0 | H48: 0 | I48: 0 | J48: 0 | K48: 0 | L48: 0 | M48: 0 | N48: =N45-N32 -> 52
A49: Total RDV remplacés infirmier | B49: =B46-B33 -> 0 | C49: =C46-C33 -> 0 | D49: 0 | E49: 0 | F49: 0 | G49: 0 | H49: 0 | I49: 0 | J49: 0 | K49: 0 | L49: 0 | M49: 0 | N49: =SUM(B49:M49) -> 0
A50: Taux RDV remplacés Equipe | B50: =(B47+B48+B49)/(B44+B45+B46) -> 0.59375 | C50: =(C47+C48+C49)/(C44+C45+C46) -> 0.5483870968 | D50: =IFERROR(0,D49/D44) -> 0 | E50: 0 | F50: 0 | G50: 0 | H50: 0 | I50: 0 | J50: 0 | K50: 0 | L50: 0 | M50: 0 | N50: =(N49+N48+N47)/(N46+N45+N44) -> 0.5714285714

Sheet calendrier médecin
A2: Nombre de créneaux disponibles, de visites et d'absences non remplacés par jour sur l'année en cours | O2: =medecin -> LE GARFF Pierre
A4: 1 | H4: 2 | O4: 3 | V4: 4 | AC4: 5 | AJ4: 6 | AQ4: 7 | AX4: 8 | BE4: 9 | BL4: 10 | BS4: 11 | BZ4: 12
A5: Janvier | H5: Février | O5: Mars | V5: Avril | AC5: Mai | AJ5: Juin | AQ5: Juillet | AX5: Août | BE5: Septembre | BL5: Octobre | BS5: Novembre | BZ5: Décembre
A6: Date | B6: Créneaux | C6: Présent | D6: Excusé AMIEM | E6: Excusé | F6: Absent | H6: Date | I6: Créneaux | J6: Présent | K6: Excusé AMIEM | L6: Excusé | M6: Absent | O6: Date | P6: Créneaux | Q6: Présent | R6: Excusé AMIEM | S6: Excusé | T6: Absent | V6: Date | W6: Créneaux | X6: Présent | Y6: Excusé AMIEM | Z6: Excusé | AA6: Absent | AC6: Date | AD6: Créneaux | AE6: Présent | AF6: Excusé AMIEM | AG6: Excusé | AH6: Absent | AJ6: Date | AK6: Créneaux | AL6: Présent | AM6: Excusé AMIEM | AN6: Excusé | AO6: Absent | AQ6: Date | AR6: Créneaux | AS6: Présent | AT6: Excusé AMIEM | AU6: Excusé | AV6: Absent | AX6: Date | AY6: Créneaux | AZ6: Présent | BA6: Excusé AMIEM | BB6: Excusé | BC6: Absent | BE6: Date | BF6: Créneaux | BG6: Présent | BH6: Excusé AMIEM | BI6: Excusé | BJ6: Absent | BL6: Date | BM6: Créneaux | BN6: Présent | BO6: Excusé AMIEM | BP6: Excusé | BQ6: Absent | BS6: Date | BT6: Créneaux | BU6: Présent | BV6: Excusé AMIEM | BW6: Excusé | BX6: Absent | BZ6: Date | CA6: Créneaux | CB6: Présent | CC6: Excusé AMIEM | CD6: Excusé | CE6: Absent
A7: 2020-01-01 | B7: =IF(SUM(C7:F7) <>0,SUM(C7:F7),"") ->  | H7: 2020-02-01 | I7: =IF(SUM(J7:M7) <>0,SUM(J7:M7),"") ->  | O7: 2020-03-01 | P7: =IF(SUM(Q7:T7) <>0,SUM(Q7:T7),"") ->  | V7: 2020-04-01 | W7: =IF(SUM(X7:AA7) <>0,SUM(X7:AA7),"") ->  | AC7: 2020-05-01 | AD7: =IF(SUM(AE7:AH7) <>0,SUM(AE7:AH7),"") ->  | AJ7: 2020-06-01 | AK7: =IF(SUM(AL7:AO7) <>0,SUM(AL7:AO7),"") ->  | AQ7: 2020-07-01 | AR7: =IF(SUM(AS7:AV7) <>0,SUM(AS7:AV7),"") ->  | AX7: 2020-08-01 | AY7: =IF(SUM(AZ7:BC7) <>0,SUM(AZ7:BC7),"") ->  | BE7: 2020-09-01 | BF7: =IF(SUM(BG7:BJ7) <>0,SUM(BG7:BJ7),"") ->  | BL7: 2020-10-01 | BM7: =IF(SUM(BN7:BQ7) <>0,SUM(BN7:BQ7),"") ->  | BS7: 2020-11-01 | BT7: =IF(SUM(BU7:BX7) <>0,SUM(BU7:BX7),"") ->  | BZ7: 2020-12-01 | CA7: =IF(SUM(CB7:CE7) <>0,SUM(CB7:CE7),"") -> 
A8: 2020-01-02 | B8: =IF(SUM(C8:F8) <>0,SUM(C8:F8),"") -> 1 | D8: 1 | H8: 2020-02-02 | I8: =IF(SUM(J8:M8) <>0,SUM(J8:M8),"") ->  | O8: 2020-03-02 | P8: =IF(SUM(Q8:T8) <>0,SUM(Q8:T8),"") ->  | V8: 2020-04-02 | W8: =IF(SUM(X8:AA8) <>0,SUM(X8:AA8),"") ->  | AC8: 2020-05-02 | AD8: =IF(SUM(AE8:AH8) <>0,SUM(AE8:AH8),"") ->  | AJ8: 2020-06-02 | AK8: =IF(SUM(AL8:AO8) <>0,SUM(AL8:AO8),"") ->  | AQ8: 2020-07-02 | AR8: =IF(SUM(AS8:AV8) <>0,SUM(AS8:AV8),"") ->  | AX8: 2020-08-02 | AY8: =IF(SUM(AZ8:BC8) <>0,SUM(AZ8:BC8),"") ->  | BE8: 2020-09-02 | BF8: =IF(SUM(BG8:BJ8) <>0,SUM(BG8:BJ8),"") ->  | BL8: 2020-10-02 | BM8: =IF(SUM(BN8:BQ8) <>0,SUM(BN8:BQ8),"") ->  | BS8: 2020-11-02 | BT8: =IF(SUM(BU8:BX8) <>0,SUM(BU8:BX8),"") ->  | BZ8: 2020-12-02 | CA8: =IF(SUM(CB8:CE8) <>0,SUM(CB8:CE8),"") -> 
A9: 2020-01-03 | B9: 2 | D9: 2 | H9: 2020-02-03 | O9: 2020-03-03 | P9: =IF(SUM(Q9:T9) <>0,SUM(Q9:T9),"") -> 2 | S9: 2 | V9: 2020-04-03 | AC9: 2020-05-03 | AJ9: 2020-06-03 | AQ9: 2020-07-03 | AX9: 2020-08-03 | BE9: 2020-09-03 | BL9: 2020-10-03 | BS9: 2020-11-03 | BZ9: 2020-12-03
A10: 2020-01-04 | H10: 2020-02-04 | I10: 7 | J10: 7 | O10: 2020-03-04 | V10: 2020-04-04 | AC10: 2020-05-04 | AJ10: 2020-06-04 | AQ10: 2020-07-04 | AX10: 2020-08-04 | BE10: 2020-09-04 | BL10: 2020-10-04 | BS10: 2020-11-04 | BZ10: 2020-12-04
A11: 2020-01-05 | H11: 2020-02-05 | I11: 9 | J11: 7 | L11: 1 | M11: 1 | O11: 2020-03-05 | V11: 2020-04-05 | AC11: 2020-05-05 | AJ11: 2020-06-05 | AQ11: 2020-07-05 | AX11: 2020-08-05 | BE11: 2020-09-05 | BL11: 2020-10-05 | BS11: 2020-11-05 | BZ11: 2020-12-05
A12: 2020-01-06 | H12: 2020-02-06 | I12: 11 | J12: 10 | L12: 1 | O12: 2020-03-06 | P12: 2 | S12: 2 | V12: 2020-04-06 | AC12: 2020-05-06 | AJ12: 2020-06-06 | AQ12: 2020-07-06 | AX12: 2020-08-06 | BE12: 2020-09-06 | BL12: 2020-10-06 | BS12: 2020-11-06 | BZ12: 2020-12-06
A13: 2020-01-07 | B13: 3 | C13: 3 | H13: 2020-02-07 | O13: 2020-03-07 | V13: 2020-04-07 | AC13: 2020-05-07 | AJ13: 2020-06-07 | AQ13: 2020-07-07 | AX13: 2020-08-07 | BE13: 2020-09-07 | BL13: 2020-10-07 | BS13: 2020-11-07 | BZ13: 2020-12-07
A14: 2020-01-08 | H14: 2020-02-08 | O14: 2020-03-08 | V14: 2020-04-08 | AC14: 2020-05-08 | AJ14: 2020-06-08 | AQ14: 2020-07-08 | AX14: 2020-08-08 | BE14: 2020-09-08 | BL14: 2020-10-08 | BS14: 2020-11-08 | BZ14: 2020-12-08
A15: 2020-01-09 | B15: 14 | C15: 11 | D15: 3 | H15: 2020-02-09 | O15: 2020-03-09 | V15: 2020-04-09 | AC15: 2020-05-09 | AJ15: 2020-06-09 | AQ15: 2020-07-09 | AX15: 2020-08-09 | BE15: 2020-09-09 | BL15: 2020-10-09 | BS15: 2020-11-09 | BZ15: 2020-12-09
A16: 2020-01-10 | H16: 2020-02-10 | O16: 2020-03-10 | V16: 2020-04-10 | AC16: 2020-05-10 | AJ16: 2020-06-10 | AQ16: 2020-07-10 | AX16: 2020-08-10 | BE16: 2020-09-10 | BL16: 2020-10-10 | BS16: 2020-11-10 | BZ16: 2020-12-10
A17: 2020-01-11 | H17: 2020-02-11 | O17: 2020-03-11 | V17: 2020-04-11 | AC17: 2020-05-11 | AJ17: 2020-06-11 | AQ17: 2020-07-11 | AX17: 2020-08-11 | BE17: 2020-09-11 | BL17: 2020-10-11 | BS17: 2020-11-11 | BZ17: 2020-12-11
A18: 2020-01-12 | H18: 2020-02-12 | O18: 2020-03-12 | V18: 2020-04-12 | AC18: 2020-05-12 | AJ18: 2020-06-12 | AQ18: 2020-07-12 | AX18: 2020-08-12 | BE18: 2020-09-12 | BL18: 2020-10-12 | BS18: 2020-11-12 | BZ18: 2020-12-12
A19: 2020-01-13 | H19: 2020-02-13 | I19: 11 | J19: 9 | L19: 2 | O19: 2020-03-13 | V19: 2020-04-13 | AC19: 2020-05-13 | AJ19: 2020-06-13 | AQ19: 2020-07-13 | AX19: 2020-08-13 | BE19: 2020-09-13 | BL19: 2020-10-13 | BS19: 2020-11-13 | BZ19: 2020-12-13
A20: 2020-01-14 | H20: 2020-02-14 | O20: 2020-03-14 | V20: 2020-04-14 | AC20: 2020-05-14 | AJ20: 2020-06-14 | AQ20: 2020-07-14 | AX20: 2020-08-14 | BE20: 2020-09-14 | BL20: 2020-10-14 | BS20: 2020-11-14 | BZ20: 2020-12-14
A21: 2020-01-15 | H21: 2020-02-15 | O21: 2020-03-15 | V21: 2020-04-15 | AC21: 2020-05-15 | AJ21: 2020-06-15 | AQ21: 2020-07-15 | AX21: 2020-08-15 | BE21: 2020-09-15 | BL21: 2020-10-15 | BS21: 2020-11-15 | BZ21: 2020-12-15
A22: 2020-01-16 | B22: 11 | C22: 11 | H22: 2020-02-16 | O22: 2020-03-16 | V22: 2020-04-16 | AC22: 2020-05-16 | AJ22: 2020-06-16 | AQ22: 2020-07-16 | AX22: 2020-08-16 | BE22: 2020-09-16 | BL22: 2020-10-16 | BS22: 2020-11-16 | BZ22: 2020-12-16
A23: 2020-01-17 | H23: 2020-02-17 | O23: 2020-03-17 | V23: 2020-04-17 | AC23: 2020-05-17 | AJ23: 2020-06-17 | AQ23: 2020-07-17 | AX23: 2020-08-17 | BE23: 2020-09-17 | BL23: 2020-10-17 | BS23: 2020-11-17 | BZ23: 2020-12-17
A24: 2020-01-18 | H24: 2020-02-18 | I24: 8 | J24: 7 | L24: 1 | O24: 2020-03-18 | V24: 2020-04-18 | AC24: 2020-05-18 | AJ24: 2020-06-18 | AQ24: 2020-07-18 | AX24: 2020-08-18 | BE24: 2020-09-18 | BL24: 2020-10-18 | BS24: 2020-11-18 | BZ24: 2020-12-18
A25: 2020-01-19 | H25: 2020-02-19 | I25: 9 | J25: 7 | L25: 2 | O25: 2020-03-19 | V25: 2020-04-19 | AC25: 2020-05-19 | AJ25: 2020-06-19 | AQ25: 2020-07-19 | AX25: 2020-08-19 | BE25: 2020-09-19 | BL25: 2020-10-19 | BS25: 2020-11-19 | BZ25: 2020-12-19
A26: 2020-01-20 | H26: 2020-02-20 | I26: 12 | J26: 11 | L26: 1 | O26: 2020-03-20 | V26: 2020-04-20 | AC26: 2020-05-20 | AJ26: 2020-06-20 | AQ26: 2020-07-20 | AX26: 2020-08-20 | BE26: 2020-09-20 | BL26: 2020-10-20 | BS26: 2020-11-20 | BZ26: 2020-12-20
A27: 2020-01-21 | B27: 9 | C27: 8 | E27: 1 | H27: 2020-02-21 | O27: 2020-03-21 | V27: 2020-04-21 | AC27: 2020-05-21 | AJ27: 2020-06-21 | AQ27: 2020-07-21 | AX27: 2020-08-21 | BE27: 2020-09-21 | BL27: 2020-10-21 | BS27: 2020-11-21 | BZ27: 2020-12-21
A28: 2020-01-22 | B28: 11 | C28: 11 | H28: 2020-02-22 | O28: 2020-03-22 | V28: 2020-04-22 | AC28: 2020-05-22 | AJ28: 2020-06-22 | AQ28: 2020-07-22 | AX28: 2020-08-22 | BE28: 2020-09-22 | BL28: 2020-10-22 | BS28: 2020-11-22 | BZ28: 2020-12-22
A29: 2020-01-23 | H29: 2020-02-23 | O29: 2020-03-23 | V29: 2020-04-23 | AC29: 2020-05-23 | AJ29: 2020-06-23 | AQ29: 2020-07-23 | AX29: 2020-08-23 | BE29: 2020-09-23 | BL29: 2020-10-23 | BS29: 2020-11-23 | BZ29: 2020-12-23
A30: 2020-01-24 | H30: 2020-02-24 | O30: 2020-03-24 | V30: 2020-04-24 | AC30: 2020-05-24 | AJ30: 2020-06-24 | AQ30: 2020-07-24 | AX30: 2020-08-24 | BE30: 2020-09-24 | BL30: 2020-10-24 | BS30: 2020-11-24 | BZ30: 2020-12-24
A31: 2020-01-25 | H31: 2020-02-25 | I31: 11 | J31: 9 | L31: 1 | M31: 1 | O31: 2020-03-25 | V31: 2020-04-25 | AC31: 2020-05-25 | AJ31: 2020-06-25 | AQ31: 2020-07-25 | AX31: 2020-08-25 | BE31: 2020-09-25 | BL31: 2020-10-25 | BS31: 2020-11-25 | BZ31: 2020-12-25
A32: 2020-01-26 | H32: 2020-02-26 | I32: 5 | J32: 5 | O32: 2020-03-26 | V32: 2020-04-26 | AC32: 2020-05-26 | AJ32: 2020-06-26 | AQ32: 2020-07-26 | AX32: 2020-08-26 | BE32: 2020-09-26 | BL32: 2020-10-26 | BS32: 2020-11-26 | BZ32: 2020-12-26
A33: 2020-01-27 | H33: 2020-02-27 | I33: 14 | J33: 12 | L33: 2 | O33: 2020-03-27 | V33: 2020-04-27 | AC33: 2020-05-27 | AJ33: 2020-06-27 | AQ33: 2020-07-27 | AX33: 2020-08-27 | BE33: 2020-09-27 | BL33: 2020-10-27 | BS33: 2020-11-27 | BZ33: 2020-12-27
A34: 2020-01-28 | B34: 2 | C34: 2 | H34: 2020-02-28 | O34: 2020-03-28 | V34: 2020-04-28 | AC34: 2020-05-28 | AJ34: 2020-06-28 | AQ34: 2020-07-28 | AX34: 2020-08-28 | BE34: 2020-09-28 | BL34: 2020-10-28 | BS34: 2020-11-28 | BZ34: 2020-12-28
A35: 2020-01-29 | B35: 12 | C35: 11 | E35: 1 | H35: 2020-02-29 | O35: 2020-03-29 | V35: 2020-04-29 | AC35: 2020-05-29 | AJ35: 2020-06-29 | AQ35: 2020-07-29 | AX35: 2020-08-29 | BE35: 2020-09-29 | BL35: 2020-10-29 | BS35: 2020-11-29 | BZ35: 2020-12-29
A36: 2020-01-30 | O36: 2020-03-30 | V36: 2020-04-30 | AC36: 2020-05-30 | AJ36: 2020-06-30 | AQ36: 2020-07-30 | AX36: 2020-08-30 | BE36: 2020-09-30 | BL36: 2020-10-30 | BS36: 2020-11-30 | BZ36: 2020-12-30
A37: 2020-01-31 | O37: 2020-03-31 | AC37: 2020-05-31 | AQ37: 2020-07-31 | AX37: 2020-08-31 | BL37: 2020-10-31 | BZ37: 2020-12-31
B40: Créneaux | C40: Présent | D40: Excusé AMIEM | E40: Excusé | F40: Absent | I40: Créneaux | J40: Présent | K40: Excusé AMIEM | L40: Excusé | M40: Absent | P40: Créneaux | Q40: Présent | R40: Excusé AMIEM | S40: Excusé | T40: Absent | W40: Créneaux | X40: Présent | Y40: Excusé AMIEM | Z40: Excusé | AA40: Absent | AD40: Créneaux | AE40: Présent | AF40: Excusé AMIEM | AG40: Excusé | AH40: Absent | AK40: Créneaux | AL40: Présent | AM40: Excusé AMIEM | AN40: Excusé | AO40: Absent | AR40: Créneaux | AS40: Présent | AT40: Excusé AMIEM | AU40: Excusé | AV40: Absent | AY40: Créneaux | AZ40: Présent | BA40: Excusé AMIEM | BB40: Excusé | BC40: Absent | BF40: Créneaux | BG40: Présent | BH40: Excusé AMIEM | BI40: Excusé | BJ40: Absent | BM40: Créneaux | BN40: Présent | BO40: Excusé AMIEM | BP40: Excusé | BQ40: Absent | BT40: Créneaux | BU40: Présent | BV40: Excusé AMIEM | BW40: Excusé | BX40: Absent | CA40: Créneaux | CB40: Présent | CC40: Excusé AMIEM | CD40: Excusé | CE40: Absent
A41: Janvier | B41: =SUM(B7:B37) -> 65 | C41: =SUM(C7:C37) -> 57 | D41: =SUM(D7:D37) -> 6 | E41: =SUM(E7:E37) -> 2 | F41: =SUM(F7:F37) -> 0 | H41: Février | I41: =SUM(I7:I34) -> 97 | J41: =SUM(J7:J34) -> 84 | K41: =SUM(K7:K34) -> 0 | L41: =SUM(L7:L34) -> 11 | M41: =SUM(M7:M34) -> 2 | O41: Mars | P41: =SUM(P7:P37) -> 4 | Q41: =SUM(Q7:Q37) -> 0 | R41: =SUM(R7:R37) -> 0 | S41: =SUM(S7:S37) -> 4 | T41: =SUM(T7:T37) -> 0 | V41: Avril | W41: =SUM(W7:W36) -> 0 | X41: =SUM(X7:X36) -> 0 | Y41: =SUM(Y7:Y36) -> 0 | Z41: =SUM(Z7:Z36) -> 0 | AA41: =SUM(AA7:AA36) -> 0 | AC41: Mai | AD41: =SUM(AD7:AD37) -> 0 | AE41: =SUM(AE7:AE37) -> 0 | AF41: =SUM(AF7:AF37) -> 0 | AG41: =SUM(AG7:AG37) -> 0 | AH41: =SUM(AH7:AH37) -> 0 | AJ41: Juin | AK41: =SUM(AK7:AK36) -> 0 | AL41: =SUM(AL7:AL36) -> 0 | AM41: =SUM(AM7:AM36) -> 0 | AN41: =SUM(AN7:AN36) -> 0 | AO41: =SUM(AO7:AO36) -> 0 | AQ41: Juillet | AR41: =SUM(AR7:AR37) -> 0 | AS41: =SUM(AS7:AS37) -> 0 | AT41: =SUM(AT7:AT37) -> 0 | AU41: =SUM(AU7:AU37) -> 0 | AV41: =SUM(AV7:AV37) -> 0 | AX41: Août | AY41: =SUM(AY7:AY37) -> 0 | AZ41: =SUM(AZ7:AZ37) -> 0 | BA41: =SUM(BA7:BA37) -> 0 | BB41: =SUM(BB7:BB37) -> 0 | BC41: =SUM(BC7:BC37) -> 0 | BE41: Septembre | BF41: =SUM(BF7:BF36) -> 0 | BG41: =SUM(BG7:BG36) -> 0 | BH41: =SUM(BH7:BH36) -> 0 | BI41: =SUM(BI7:BI36) -> 0 | BJ41: =SUM(BJ7:BJ36) -> 0 | BL41: Octobre | BM41: =SUM(BM7:BM37) -> 0 | BN41: =SUM(BN7:BN37) -> 0 | BO41: =SUM(BO7:BO37) -> 0 | BP41: =SUM(BP7:BP37) -> 0 | BQ41: =SUM(BQ7:BQ37) -> 0 | BS41: Novembre | BT41: =SUM(BT7:BT36) -> 0 | BU41: =SUM(BU7:BU36) -> 0 | BV41: =SUM(BV7:BV36) -> 0 | BW41: =SUM(BW7:BW36) -> 0 | BX41: =SUM(BX7:BX36) -> 0 | BZ41: Décembre | CA41: =SUM(CA7:CA37) -> 0 | CB41: =SUM(CB7:CB37) -> 0 | CC41: =SUM(CC7:CC37) -> 0 | CD41: =SUM(CD7:CD37) -> 0 | CE41: =SUM(CE7:CE37) -> 0
B44: Créneaux | C44: Présent | D44: Excusé AMIEM | E44: Excusé | F44: Absent
A45: Année | B45: =B41+I41+P41+W41+AD41+AK41+AR41+AY41+BF41+BM41+BT41+CA41 -> 166 | C45: =C41+J41+Q41+X41+AE41+AL41+AS41+AZ41+BG41+BN41+BU41+CB41 -> 141 | D45: =D41+K41+R41+Y41+AF41+AM41+AT41+BA41+BH41+BO41+BV41+CC41 -> 6 | E45: 17 | F45: 2
A48: Créneau : N'est comptabilisé qu'une seule fois chaque créneau horaire face auquel un salarié a été positionné.

Sheet calendrier collaborateur
A2: Nombre de créneaux disponibles, de visites et d'absences non remplacés par jour sur l'année en cours | O2: =IF(colmed="","",colmed) -> BASSEN Rachelle
A4: 1 | H4: 2 | O4: 3 | V4: 4 | AC4: 5 | AJ4: 6 | AQ4: 7 | AX4: 8 | BE4: 9 | BL4: 10 | BS4: 11 | BZ4: 12
A5: Janvier | H5: Février | O5: Mars | V5: Avril | AC5: Mai | AJ5: Juin | AQ5: Juillet | AX5: Août | BE5: Septembre | BL5: Octobre | BS5: Novembre | BZ5: Décembre
A6: Date | B6: Créneaux | C6: Présent | D6: Excusé AMIEM | E6: Excusé | F6: Absent | H6: Date | I6: Créneaux | J6: Présent | K6: Excusé AMIEM | L6: Excusé | M6: Absent | O6: Date | P6: Créneaux | Q6: Présent | R6: Excusé AMIEM | S6: Excusé | T6: Absent | V6: Date | W6: Créneaux | X6: Présent | Y6: Excusé AMIEM | Z6: Excusé | AA6: Absent | AC6: Date | AD6: Créneaux | AE6: Présent | AF6: Excusé AMIEM | AG6: Excusé | AH6: Absent | AJ6: Date | AK6: Créneaux | AL6: Présent | AM6: Excusé AMIEM | AN6: Excusé | AO6: Absent | AQ6: Date | AR6: Créneaux | AS6: Présent | AT6: Excusé AMIEM | AU6: Excusé | AV6: Absent | AX6: Date | AY6: Créneaux | AZ6: Présent | BA6: Excusé AMIEM | BB6: Excusé | BC6: Absent | BE6: Date | BF6: Créneaux | BG6: Présent | BH6: Excusé AMIEM | BI6: Excusé | BJ6: Absent | BL6: Date | BM6: Créneaux | BN6: Présent | BO6: Excusé AMIEM | BP6: Excusé | BQ6: Absent | BS6: Date | BT6: Créneaux | BU6: Présent | BV6: Excusé AMIEM | BW6: Excusé | BX6: Absent | BZ6: Date | CA6: Créneaux | CB6: Présent | CC6: Excusé AMIEM | CD6: Excusé | CE6: Absent
A7: 2020-01-01 | B7: =IF(SUM(C7:F7) <>0,SUM(C7:F7),"") ->  | H7: 2020-02-01 | I7: =IF(SUM(J7:M7) <>0,SUM(J7:M7),"") ->  | O7: 2020-03-01 | P7: =IF(SUM(Q7:T7) <>0,SUM(Q7:T7),"") ->  | V7: 2020-04-01 | W7: =IF(SUM(X7:AA7) <>0,SUM(X7:AA7),"") ->  | AC7: 2020-05-01 | AD7: =IF(SUM(AE7:AH7) <>0,SUM(AE7:AH7),"") ->  | AJ7: 2020-06-01 | AK7: =IF(SUM(AL7:AO7) <>0,SUM(AL7:AO7),"") ->  | AQ7: 2020-07-01 | AR7: =IF(SUM(AS7:AV7) <>0,SUM(AS7:AV7),"") ->  | AX7: 2020-08-01 | AY7: =IF(SUM(AZ7:BC7) <>0,SUM(AZ7:BC7),"") ->  | BE7: 2020-09-01 | BF7: =IF(SUM(BG7:BJ7) <>0,SUM(BG7:BJ7),"") ->  | BL7: 2020-10-01 | BM7: =IF(SUM(BN7:BQ7) <>0,SUM(BN7:BQ7),"") ->  | BS7: 2020-11-01 | BT7: =IF(SUM(BU7:BX7) <>0,SUM(BU7:BX7),"") ->  | BZ7: 2020-12-01 | CA7: =IF(SUM(CB7:CE7) <>0,SUM(CB7:CE7),"") -> 
A8: 2020-01-02 | B8: =IF(SUM(C8:F8) <>0,SUM(C8:F8),"") -> 5 | C8: 3 | F8: 2 | H8: 2020-02-02 | I8: =IF(SUM(J8:M8) <>0,SUM(J8:M8),"") ->  | O8: 2020-03-02 | P8: =IF(SUM(Q8:T8) <>0,SUM(Q8:T8),"") -> 2 | S8: 2 | V8: 2020-04-02 | W8: =IF(SUM(X8:AA8) <>0,SUM(X8:AA8),"") ->  | AC8: 2020-05-02 | AD8: =IF(SUM(AE8:AH8) <>0,SUM(AE8:AH8),"") ->  | AJ8: 2020-06-02 | AK8: =IF(SUM(AL8:AO8) <>0,SUM(AL8:AO8),"") ->  | AQ8: 2020-07-02 | AR8: =IF(SUM(AS8:AV8) <>0,SUM(AS8:AV8),"") ->  | AX8: 2020-08-02 | AY8: =IF(SUM(AZ8:BC8) <>0,SUM(AZ8:BC8),"") ->  | BE8: 2020-09-02 | BF8: =IF(SUM(BG8:BJ8) <>0,SUM(BG8:BJ8),"") ->  | BL8: 2020-10-02 | BM8: =IF(SUM(BN8:BQ8) <>0,SUM(BN8:BQ8),"") ->  | BS8: 2020-11-02 | BT8: =IF(SUM(BU8:BX8) <>0,SUM(BU8:BX8),"") ->  | BZ8: 2020-12-02 | CA8: =IF(SUM(CB8:CE8) <>0,SUM(CB8:CE8),"") -> 
A9: 2020-01-03 | B9: 6 | C9: 4 | E9: 2 | H9: 2020-02-03 | I9: 13 | J9: 11 | L9: 2 | O9: 2020-03-03 | P9: 1 | S9: 1 | V9: 2020-04-03 | AC9: 2020-05-03 | AJ9: 2020-06-03 | AQ9: 2020-07-03 | AX9: 2020-08-03 | BE9: 2020-09-03 | BL9: 2020-10-03 | BS9: 2020-11-03 | BZ9: 2020-12-03
A10: 2020-01-04 | H10: 2020-02-04 | I10: 8 | J10: 7 | L10: 1 | O10: 2020-03-04 | P10: 3 | S10: 3 | V10: 2020-04-04 | AC10: 2020-05-04 | AJ10: 2020-06-04 | AQ10: 2020-07-04 | AX10: 2020-08-04 | BE10: 2020-09-04 | BL10: 2020-10-04 | BS10: 2020-11-04 | BZ10: 2020-12-04
A11: 2020-01-05 | H11: 2020-02-05 | I11: 7 | J11: 7 | O11: 2020-03-05 | P11: 2 | S11: 2 | V11: 2020-04-05 | AC11: 2020-05-05 | AJ11: 2020-06-05 | AQ11: 2020-07-05 | AX11: 2020-08-05 | BE11: 2020-09-05 | BL11: 2020-10-05 | BS11: 2020-11-05 | BZ11: 2020-12-05
A12: 2020-01-06 | B12: 14 | C12: 14 | H12: 2020-02-06 | I12: 15 | J12: 14 | L12: 1 | O12: 2020-03-06 | P12: 4 | S12: 4 | V12: 2020-04-06 | AC12: 2020-05-06 | AJ12: 2020-06-06 | AQ12: 2020-07-06 | AX12: 2020-08-06 | BE12: 2020-09-06 | BL12: 2020-10-06 | BS12: 2020-11-06 | BZ12: 2020-12-06
A13: 2020-01-07 | B13: 11 | C13: 11 | H13: 2020-02-07 | O13: 2020-03-07 | V13: 2020-04-07 | AC13: 2020-05-07 | AJ13: 2020-06-07 | AQ13: 2020-07-07 | AX13: 2020-08-07 | BE13: 2020-09-07 | BL13: 2020-10-07 | BS13: 2020-11-07 | BZ13: 2020-12-07
A14: 2020-01-08 | B14: 9 | C14: 6 | E14: 2 | F14: 1 | H14: 2020-02-08 | O14: 2020-03-08 | V14: 2020-04-08 | AC14: 2020-05-08 | AJ14: 2020-06-08 | AQ14: 2020-07-08 | AX14: 2020-08-08 | BE14: 2020-09-08 | BL14: 2020-10-08 | BS14: 2020-11-08 | BZ14: 2020-12-08
A15: 2020-01-09 | H15: 2020-02-09 | O15: 2020-03-09 | P15: 4 | S15: 4 | V15: 2020-04-09 | AC15: 2020-05-09 | AJ15: 2020-06-09 | AQ15: 2020-07-09 | AX15: 2020-08-09 | BE15: 2020-09-09 | BL15: 2020-10-09 | BS15: 2020-11-09 | BZ15: 2020-12-09
A16: 2020-01-10 | H16: 2020-02-10 | I16: 13 | J16: 12 | M16: 1 | O16: 2020-03-10 | P16: 1 | S16: 1 | V16: 2020-04-10 | AC16: 2020-05-10 | AJ16: 2020-06-10 | AQ16: 2020-07-10 | AX16: 2020-08-10 | BE16: 2020-09-10 | BL16: 2020-10-10 | BS16: 2020-11-10 | BZ16: 2020-12-10
A17: 2020-01-11 | H17: 2020-02-11 | O17: 2020-03-11 | P17: 1 | S17: 1 | V17: 2020-04-11 | AC17: 2020-05-11 | AJ17: 2020-06-11 | AQ17: 2020-07-11 | AX17: 2020-08-11 | BE17: 2020-09-11 | BL17: 2020-10-11 | BS17: 2020-11-11 | BZ17: 2020-12-11
A18: 2020-01-12 | H18: 2020-02-12 | I18: 7 | J18: 7 | O18: 2020-03-12 | V18: 2020-04-12 | AC18: 2020-05-12 | AJ18: 2020-06-12 | AQ18: 2020-07-12 | AX18: 2020-08-12 | BE18: 2020-09-12 | BL18: 2020-10-12 | BS18: 2020-11-12 | BZ18: 2020-12-12
A19: 2020-01-13 | B19: 13 | C19: 11 | E19: 2 | H19: 2020-02-13 | I19: 12 | J19: 10 | L19: 2 | O19: 2020-03-13 | V19: 2020-04-13 | AC19: 2020-05-13 | AJ19: 2020-06-13 | AQ19: 2020-07-13 | AX19: 2020-08-13 | BE19: 2020-09-13 | BL19: 2020-10-13 | BS19: 2020-11-13 | BZ19: 2020-12-13
A20: 2020-01-14 | B20: 9 | C20: 8 | E20: 1 | H20: 2020-02-14 | I20: 8 | J20: 8 | O20: 2020-03-14 | V20: 2020-04-14 | AC20: 2020-05-14 | AJ20: 2020-06-14 | AQ20: 2020-07-14 | AX20: 2020-08-14 | BE20: 2020-09-14 | BL20: 2020-10-14 | BS20: 2020-11-14 | BZ20: 2020-12-14
A21: 2020-01-15 | B21: 11 | C21: 10 | E21: 1 | H21: 2020-02-15 | O21: 2020-03-15 | V21: 2020-04-15 | AC21: 2020-05-15 | AJ21: 2020-06-15 | AQ21: 2020-07-15 | AX21: 2020-08-15 | BE21: 2020-09-15 | BL21: 2020-10-15 | BS21: 2020-11-15 | BZ21: 2020-12-15
A22: 2020-01-16 | B22: 13 | C22: 11 | E22: 2 | H22: 2020-02-16 | O22: 2020-03-16 | V22: 2020-04-16 | AC22: 2020-05-16 | AJ22: 2020-06-16 | AQ22: 2020-07-16 | AX22: 2020-08-16 | BE22: 2020-09-16 | BL22: 2020-10-16 | BS22: 2020-11-16 | BZ22: 2020-12-16
A23: 2020-01-17 | B23: 7 | C23: 6 | E23: 1 | H23: 2020-02-17 | I23: 14 | J23: 10 | L23: 4 | O23: 2020-03-17 | V23: 2020-04-17 | AC23: 2020-05-17 | AJ23: 2020-06-17 | AQ23: 2020-07-17 | AX23: 2020-08-17 | BE23: 2020-09-17 | BL23: 2020-10-17 | BS23: 2020-11-17 | BZ23: 2020-12-17
A24: 2020-01-18 | H24: 2020-02-18 | I24: 7 | J24: 4 | L24: 1 | M24: 2 | O24: 2020-03-18 | V24: 2020-04-18 | AC24: 2020-05-18 | AJ24: 2020-06-18 | AQ24: 2020-07-18 | AX24: 2020-08-18 | BE24: 2020-09-18 | BL24: 2020-10-18 | BS24: 2020-11-18 | BZ24: 2020-12-18
A25: 2020-01-19 | H25: 2020-02-19 | I25: 3 | J25: 3 | O25: 2020-03-19 | V25: 2020-04-19 | AC25: 2020-05-19 | AJ25: 2020-06-19 | AQ25: 2020-07-19 | AX25: 2020-08-19 | BE25: 2020-09-19 | BL25: 2020-10-19 | BS25: 2020-11-19 | BZ25: 2020-12-19
A26: 2020-01-20 | B26: 13 | C26: 12 | F26: 1 | H26: 2020-02-20 | I26: 7 | J26: 7 | O26: 2020-03-20 | V26: 2020-04-20 | AC26: 2020-05-20 | AJ26: 2020-06-20 | AQ26: 2020-07-20 | AX26: 2020-08-20 | BE26: 2020-09-20 | BL26: 2020-10-20 | BS26: 2020-11-20 | BZ26: 2020-12-20
A27: 2020-01-21 | B27: 9 | C27: 7 | E27: 1 | F27: 1 | H27: 2020-02-21 | I27: 11 | J27: 10 | L27: 1 | O27: 2020-03-21 | V27: 2020-04-21 | AC27: 2020-05-21 | AJ27: 2020-06-21 | AQ27: 2020-07-21 | AX27: 2020-08-21 | BE27: 2020-09-21 | BL27: 2020-10-21 | BS27: 2020-11-21 | BZ27: 2020-12-21
A28: 2020-01-22 | B28: 10 | C28: 8 | E28: 1 | F28: 1 | H28: 2020-02-22 | O28: 2020-03-22 | V28: 2020-04-22 | AC28: 2020-05-22 | AJ28: 2020-06-22 | AQ28: 2020-07-22 | AX28: 2020-08-22 | BE28: 2020-09-22 | BL28: 2020-10-22 | BS28: 2020-11-22 | BZ28: 2020-12-22
A29: 2020-01-23 | B29: 10 | C29: 7 | E29: 2 | F29: 1 | H29: 2020-02-23 | O29: 2020-03-23 | V29: 2020-04-23 | AC29: 2020-05-23 | AJ29: 2020-06-23 | AQ29: 2020-07-23 | AX29: 2020-08-23 | BE29: 2020-09-23 | BL29: 2020-10-23 | BS29: 2020-11-23 | BZ29: 2020-12-23
A30: 2020-01-24 | H30: 2020-02-24 | O30: 2020-03-24 | V30: 2020-04-24 | AC30: 2020-05-24 | AJ30: 2020-06-24 | AQ30: 2020-07-24 | AX30: 2020-08-24 | BE30: 2020-09-24 | BL30: 2020-10-24 | BS30: 2020-11-24 | BZ30: 2020-12-24
A31: 2020-01-25 | H31: 2020-02-25 | O31: 2020-03-25 | V31: 2020-04-25 | AC31: 2020-05-25 | AJ31: 2020-06-25 | AQ31: 2020-07-25 | AX31: 2020-08-25 | BE31: 2020-09-25 | BL31: 2020-10-25 | BS31: 2020-11-25 | BZ31: 2020-12-25
A32: 2020-01-26 | H32: 2020-02-26 | O32: 2020-03-26 | V32: 2020-04-26 | AC32: 2020-05-26 | AJ32: 2020-06-26 | AQ32: 2020-07-26 | AX32: 2020-08-26 | BE32: 2020-09-26 | BL32: 2020-10-26 | BS32: 2020-11-26 | BZ32: 2020-12-26
A33: 2020-01-27 | B33: 13 | C33: 12 | F33: 1 | H33: 2020-02-27 | O33: 2020-03-27 | V33: 2020-04-27 | AC33: 2020-05-27 | AJ33: 2020-06-27 | AQ33: 2020-07-27 | AX33: 2020-08-27 | BE33: 2020-09-27 | BL33: 2020-10-27 | BS33: 2020-11-27 | BZ33: 2020-12-27
A34: 2020-01-28 | H34: 2020-02-28 | O34: 2020-03-28 | V34: 2020-04-28 | AC34: 2020-05-28 | AJ34: 2020-06-28 | AQ34: 2020-07-28 | AX34: 2020-08-28 | BE34: 2020-09-28 | BL34: 2020-10-28 | BS34: 2020-11-28 | BZ34: 2020-12-28
A35: 2020-01-29 | B35: 9 | C35: 9 | H35: 2020-02-29 | O35: 2020-03-29 | V35: 2020-04-29 | AC35: 2020-05-29 | AJ35: 2020-06-29 | AQ35: 2020-07-29 | AX35: 2020-08-29 | BE35: 2020-09-29 | BL35: 2020-10-29 | BS35: 2020-11-29 | BZ35: 2020-12-29
A36: 2020-01-30 | B36: 13 | C36: 12 | E36: 1 | O36: 2020-03-30 | V36: 2020-04-30 | AC36: 2020-05-30 | AJ36: 2020-06-30 | AQ36: 2020-07-30 | AX36: 2020-08-30 | BE36: 2020-09-30 | BL36: 2020-10-30 | BS36: 2020-11-30 | BZ36: 2020-12-30
A37: 2020-01-31 | B37: 8 | C37: 8 | O37: 2020-03-31 | AC37: 2020-05-31 | AQ37: 2020-07-31 | AX37: 2020-08-31 | BL37: 2020-10-31 | BZ37: 2020-12-31
B40: Créneaux | C40: Présent | D40: Excusé AMIEM | E40: Excusé | F40: Absent | I40: Créneaux | J40: Présent | K40: Excusé AMIEM | L40: Excusé | M40: Absent | P40: Créneaux | Q40: Présent | R40: Excusé AMIEM | S40: Excusé | T40: Absent | W40: Créneaux | X40: Présent | Y40: Excusé AMIEM | Z40: Excusé | AA40: Absent | AD40: Créneaux | AE40: Présent | AF40: Excusé AMIEM | AG40: Excusé | AH40: Absent | AK40: Créneaux | AL40: Présent | AM40: Excusé AMIEM | AN40: Excusé | AO40: Absent | AR40: Créneaux | AS40: Présent | AT40: Excusé AMIEM | AU40: Excusé | AV40: Absent | AY40: Créneaux | AZ40: Présent | BA40: Excusé AMIEM | BB40: Excusé | BC40: Absent | BF40: Créneaux | BG40: Présent | BH40: Excusé AMIEM | BI40: Excusé | BJ40: Absent | BM40: Créneaux | BN40: Présent | BO40: Excusé AMIEM | BP40: Excusé | BQ40: Absent | BT40: Créneaux | BU40: Présent | BV40: Excusé AMIEM | BW40: Excusé | BX40: Absent | CA40: Créneaux | CB40: Présent | CC40: Excusé AMIEM | CD40: Excusé | CE40: Absent
A41: Janvier | B41: =SUM(B7:B37) -> 183 | C41: =SUM(C7:C37) -> 159 | D41: =SUM(D7:D37) -> 0 | E41: =SUM(E7:E37) -> 16 | F41: =SUM(F7:F37) -> 8 | H41: Février | I41: =SUM(I7:I34) -> 125 | J41: =SUM(J7:J34) -> 110 | K41: =SUM(K7:K34) -> 0 | L41: =SUM(L7:L34) -> 12 | M41: =SUM(M7:M34) -> 3 | O41: Mars | P41: =SUM(P7:P37) -> 18 | Q41: =SUM(Q7:Q37) -> 0 | R41: =SUM(R7:R37) -> 0 | S41: =SUM(S7:S37) -> 18 | T41: =SUM(T7:T37) -> 0 | V41: Avril | W41: =SUM(W7:W36) -> 0 | X41: =SUM(X7:X36) -> 0 | Y41: =SUM(Y7:Y36) -> 0 | Z41: =SUM(Z7:Z36) -> 0 | AA41: =SUM(AA7:AA36) -> 0 | AC41: Mai | AD41: =SUM(AD7:AD37) -> 0 | AE41: =SUM(AE7:AE37) -> 0 | AF41: =SUM(AF7:AF37) -> 0 | AG41: =SUM(AG7:AG37) -> 0 | AH41: =SUM(AH7:AH37) -> 0 | AJ41: Juin | AK41: =SUM(AK7:AK36) -> 0 | AL41: =SUM(AL7:AL36) -> 0 | AM41: =SUM(AM7:AM36) -> 0 | AN41: =SUM(AN7:AN36) -> 0 | AO41: =SUM(AO7:AO36) -> 0 | AQ41: Juillet | AR41: =SUM(AR7:AR37) -> 0 | AS41: =SUM(AS7:AS37) -> 0 | AT41: =SUM(AT7:AT37) -> 0 | AU41: =SUM(AU7:AU37) -> 0 | AV41: =SUM(AV7:AV37) -> 0 | AX41: Août | AY41: =SUM(AY7:AY37) -> 0 | AZ41: =SUM(AZ7:AZ37) -> 0 | BA41: =SUM(BA7:BA37) -> 0 | BB41: =SUM(BB7:BB37) -> 0 | BC41: =SUM(BC7:BC37) -> 0 | BE41: Septembre | BF41: =SUM(BF7:BF36) -> 0 | BG41: =SUM(BG7:BG36) -> 0 | BH41: =SUM(BH7:BH36) -> 0 | BI41: =SUM(BI7:BI36) -> 0 | BJ41: =SUM(BJ7:BJ36) -> 0 | BL41: Octobre | BM41: =SUM(BM7:BM37) -> 0 | BN41: =SUM(BN7:BN37) -> 0 | BO41: =SUM(BO7:BO37) -> 0 | BP41: =SUM(BP7:BP37) -> 0 | BQ41: =SUM(BQ7:BQ37) -> 0 | BS41: Novembre | BT41: =SUM(BT7:BT36) -> 0 | BU41: =SUM(BU7:BU36) -> 0 | BV41: =SUM(BV7:BV36) -> 0 | BW41: =SUM(BW7:BW36) -> 0 | BX41: =SUM(BX7:BX36) -> 0 | BZ41: Décembre | CA41: =SUM(CA7:CA37) -> 0 | CB41: =SUM(CB7:CB37) -> 0 | CC41: =SUM(CC7:CC37) -> 0 | CD41: =SUM(CD7:CD37) -> 0 | CE41: =SUM(CE7:CE37) -> 0
B44: Créneaux | C44: Présent | D44: Excusé AMIEM | E44: Excusé | F44: Absent
A45: Année | B45: =B41+I41+P41+W41+AD41+AK41+AR41+AY41+BF41+BM41+BT41+CA41 -> 326 | C45: =C41+J41+Q41+X41+AE41+AL41+AS41+AZ41+BG41+BN41+BU41+CB41 -> 269 | D45: 0 | E45: 46 | F45: 11
A48: Créneau : N'est comptabilisé qu'une seule fois chaque créneau horaire face auquel un salarié a été positionné.

Sheet calendrier idest
A2: Nombre de créneaux disponibles, de visites et d'absences non remplacés par jour sur l'année en cours | O2: =IF(idest="","",idest) -> 
A4: 1 | H4: 2 | O4: 3 | V4: 4 | AC4: 5 | AJ4: 6 | AQ4: 7 | AX4: 8 | BE4: 9 | BL4: 10 | BS4: 11 | BZ4: 12
A5: Janvier | H5: Février | O5: Mars | V5: Avril | AC5: Mai | AJ5: Juin | AQ5: juillet | AX5: Août | BE5: Septembre | BL5: Octobre | BS5: Novembre | BZ5: Décembre
A6: Date | B6: Créneaux | C6: Présent | D6: Excusé AMIEM | E6: Excusé | F6: Absent | H6: Date | I6: Créneaux | J6: Présent | K6: Excusé AMIEM | L6: Excusé | M6: Absent | O6: Date | P6: Créneaux | Q6: Présent | R6: Excusé AMIEM | S6: Excusé | T6: Absent | V6: Date | W6: Créneaux | X6: Présent | Y6: Excusé AMIEM | Z6: Excusé | AA6: Absent | AC6: Date | AD6: Créneaux | AE6: Présent | AF6: Excusé AMIEM | AG6: Excusé | AH6: Absent | AJ6: Date | AK6: Créneaux | AL6: Présent | AM6: Excusé AMIEM | AN6: Excusé | AO6: Absent | AQ6: Date | AR6: Créneaux | AS6: Présent | AT6: Excusé AMIEM | AU6: Excusé | AV6: Absent | AX6: Date | AY6: Créneaux | AZ6: Présent | BA6: Excusé AMIEM | BB6: Excusé | BC6: Absent | BE6: Date | BF6: Créneaux | BG6: Présent | BH6: Excusé AMIEM | BI6: Excusé | BJ6: Absent | BL6: Date | BM6: Créneaux | BN6: Présent | BO6: Excusé AMIEM | BP6: Excusé | BQ6: Absent | BS6: Date | BT6: Créneaux | BU6: Présent | BV6: Excusé AMIEM | BW6: Excusé | BX6: Absent | BZ6: Date | CA6: Créneaux | CB6: Présent | CC6: Excusé AMIEM | CD6: Excusé | CE6: Absent
A7: 2020-01-01 | B7: =IF(SUM(C7:F7) <>0,SUM(C7:F7),"") ->  | H7: 2020-02-01 | I7: =IF(SUM(J7:M7) <>0,SUM(J7:M7),"") ->  | O7: 2020-03-01 | P7: =IF(SUM(Q7:T7) <>0,SUM(Q7:T7),"") ->  | V7: 2020-04-01 | W7: =IF(SUM(X7:AA7) <>0,SUM(X7:AA7),"") ->  | AC7: 2020-05-01 | AD7: =IF(SUM(AE7:AH7) <>0,SUM(AE7:AH7),"") ->  | AJ7: 2020-06-01 | AK7: =IF(SUM(AL7:AO7) <>0,SUM(AL7:AO7),"") ->  | AQ7: 2020-07-01 | AR7: =IF(SUM(AS7:AV7) <>0,SUM(AS7:AV7),"") ->  | AX7: 2020-08-01 | AY7: =IF(SUM(AZ7:BC7) <>0,SUM(AZ7:BC7),"") ->  | BE7: 2020-09-01 | BF7: =IF(SUM(BG7:BJ7) <>0,SUM(BG7:BJ7),"") ->  | BL7: 2020-10-01 | BM7: =IF(SUM(BN7:BQ7) <>0,SUM(BN7:BQ7),"") ->  | BS7: 2020-11-01 | BT7: =IF(SUM(BU7:BX7) <>0,SUM(BU7:BX7),"") ->  | BZ7: 2020-12-01 | CA7: =IF(SUM(CB7:CE7) <>0,SUM(CB7:CE7),"") -> 
A8: 2020-01-02 | B8: =IF(SUM(C8:F8) <>0,SUM(C8:F8),"") ->  | H8: 2020-02-02 | I8: =IF(SUM(J8:M8) <>0,SUM(J8:M8),"") ->  | O8: 2020-03-02 | V8: 2020-04-02 | W8: =IF(SUM(X8:AA8) <>0,SUM(X8:AA8),"") ->  | AC8: 2020-05-02 | AD8: =IF(SUM(AE8:AH8) <>0,SUM(AE8:AH8),"") ->  | AJ8: 2020-06-02 | AK8: =IF(SUM(AL8:AO8) <>0,SUM(AL8:AO8),"") ->  | AQ8: 2020-07-02 | AR8: =IF(SUM(AS8:AV8) <>0,SUM(AS8:AV8),"") ->  | AX8: 2020-08-02 | AY8: =IF(SUM(AZ8:BC8) <>0,SUM(AZ8:BC8),"") ->  | BE8: 2020-09-02 | BF8: =IF(SUM(BG8:BJ8) <>0,SUM(BG8:BJ8),"") ->  | BL8: 2020-10-02 | BM8: =IF(SUM(BN8:BQ8) <>0,SUM(BN8:BQ8),"") ->  | BS8: 2020-11-02 | BT8: =IF(SUM(BU8:BX8) <>0,SUM(BU8:BX8),"") ->  | BZ8: 2020-12-02 | CA8: =IF(SUM(CB8:CE8) <>0,SUM(CB8:CE8),"") -> 
A9: 2020-01-03 | H9: 2020-02-03 | O9: 2020-03-03 | V9: 2020-04-03 | AC9: 2020-05-03 | AJ9: 2020-06-03 | AQ9: 2020-07-03 | AX9: 2020-08-03 | BE9: 2020-09-03 | BL9: 2020-10-03 | BS9: 2020-11-03 | BZ9: 2020-12-03
A10: 2020-01-04 | H10: 2020-02-04 | O10: 2020-03-04 | V10: 2020-04-04 | AC10: 2020-05-04 | AJ10: 2020-06-04 | AQ10: 2020-07-04 | AX10: 2020-08-04 | BE10: 2020-09-04 | BL10: 2020-10-04 | BS10: 2020-11-04 | BZ10: 2020-12-04
A11: 2020-01-05 | H11: 2020-02-05 | O11: 2020-03-05 | V11: 2020-04-05 | AC11: 2020-05-05 | AJ11: 2020-06-05 | AQ11: 2020-07-05 | AX11: 2020-08-05 | BE11: 2020-09-05 | BL11: 2020-10-05 | BS11: 2020-11-05 | BZ11: 2020-12-05
A12: 2020-01-06 | H12: 2020-02-06 | O12: 2020-03-06 | V12: 2020-04-06 | AC12: 2020-05-06 | AJ12: 2020-06-06 | AQ12: 2020-07-06 | AX12: 2020-08-06 | BE12: 2020-09-06 | BL12: 2020-10-06 | BS12: 2020-11-06 | BZ12: 2020-12-06
A13: 2020-01-07 | B13: =IF(SUM(C13:F13) <>0,SUM(C13:F13),"") ->  | H13: 2020-02-07 | O13: 2020-03-07 | P13: =IF(SUM(Q13:T13) <>0,SUM(Q13:T13),"") ->  | V13: 2020-04-07 | AC13: 2020-05-07 | AJ13: 2020-06-07 | AQ13: 2020-07-07 | AX13: 2020-08-07 | BE13: 2020-09-07 | BL13: 2020-10-07 | BS13: 2020-11-07 | BZ13: 2020-12-07
A14: 2020-01-08 | H14: 2020-02-08 | O14: 2020-03-08 | V14: 2020-04-08 | AC14: 2020-05-08 | AJ14: 2020-06-08 | AQ14: 2020-07-08 | AX14: 2020-08-08 | BE14: 2020-09-08 | BL14: 2020-10-08 | BS14: 2020-11-08 | BZ14: 2020-12-08
A15: 2020-01-09 | H15: 2020-02-09 | O15: 2020-03-09 | V15: 2020-04-09 | AC15: 2020-05-09 | AJ15: 2020-06-09 | AQ15: 2020-07-09 | AX15: 2020-08-09 | BE15: 2020-09-09 | BL15: 2020-10-09 | BS15: 2020-11-09 | BZ15: 2020-12-09
A16: 2020-01-10 | H16: 2020-02-10 | O16: 2020-03-10 | V16: 2020-04-10 | AC16: 2020-05-10 | AJ16: 2020-06-10 | AQ16: 2020-07-10 | AX16: 2020-08-10 | BE16: 2020-09-10 | BL16: 2020-10-10 | BS16: 2020-11-10 | BZ16: 2020-12-10
A17: 2020-01-11 | H17: 2020-02-11 | O17: 2020-03-11 | V17: 2020-04-11 | AC17: 2020-05-11 | AJ17: 2020-06-11 | AQ17: 2020-07-11 | AX17: 2020-08-11 | BE17: 2020-09-11 | BL17: 2020-10-11 | BS17: 2020-11-11 | BZ17: 2020-12-11
A18: 2020-01-12 | H18: 2020-02-12 | O18: 2020-03-12 | V18: 2020-04-12 | AC18: 2020-05-12 | AJ18: 2020-06-12 | AQ18: 2020-07-12 | AX18: 2020-08-12 | BE18: 2020-09-12 | BL18: 2020-10-12 | BS18: 2020-11-12 | BZ18: 2020-12-12
A19: 2020-01-13 | H19: 2020-02-13 | O19: 2020-03-13 | V19: 2020-04-13 | AC19: 2020-05-13 | AJ19: 2020-06-13 | AQ19: 2020-07-13 | AX19: 2020-08-13 | BE19: 2020-09-13 | BL19: 2020-10-13 | BS19: 2020-11-13 | BZ19: 2020-12-13
A20: 2020-01-14 | H20: 2020-02-14 | O20: 2020-03-14 | V20: 2020-04-14 | AC20: 2020-05-14 | AJ20: 2020-06-14 | AQ20: 2020-07-14 | AX20: 2020-08-14 | BE20: 2020-09-14 | BL20: 2020-10-14 | BS20: 2020-11-14 | BZ20: 2020-12-14
A21: 2020-01-15 | H21: 2020-02-15 | O21: 2020-03-15 | V21: 2020-04-15 | AC21: 2020-05-15 | AJ21: 2020-06-15 | AQ21: 2020-07-15 | AX21: 2020-08-15 | BE21: 2020-09-15 | BL21: 2020-10-15 | BS21: 2020-11-15 | BZ21: 2020-12-15
A22: 2020-01-16 | H22: 2020-02-16 | O22: 2020-03-16 | V22: 2020-04-16 | AC22: 2020-05-16 | AJ22: 2020-06-16 | AQ22: 2020-07-16 | AX22: 2020-08-16 | BE22: 2020-09-16 | BL22: 2020-10-16 | BS22: 2020-11-16 | BZ22: 2020-12-16
A23: 2020-01-17 | H23: 2020-02-17 | O23: 2020-03-17 | V23: 2020-04-17 | AC23: 2020-05-17 | AJ23: 2020-06-17 | AQ23: 2020-07-17 | AX23: 2020-08-17 | BE23: 2020-09-17 | BL23: 2020-10-17 | BS23: 2020-11-17 | BZ23: 2020-12-17
A24: 2020-01-18 | H24: 2020-02-18 | O24: 2020-03-18 | V24: 2020-04-18 | AC24: 2020-05-18 | AJ24: 2020-06-18 | AQ24: 2020-07-18 | AX24: 2020-08-18 | BE24: 2020-09-18 | BL24: 2020-10-18 | BS24: 2020-11-18 | BZ24: 2020-12-18
A25: 2020-01-19 | H25: 2020-02-19 | O25: 2020-03-19 | V25: 2020-04-19 | AC25: 2020-05-19 | AJ25: 2020-06-19 | AQ25: 2020-07-19 | AX25: 2020-08-19 | BE25: 2020-09-19 | BL25: 2020-10-19 | BS25: 2020-11-19 | BZ25: 2020-12-19
A26: 2020-01-20 | H26: 2020-02-20 | O26: 2020-03-20 | V26: 2020-04-20 | AC26: 2020-05-20 | AJ26: 2020-06-20 | AQ26: 2020-07-20 | AX26: 2020-08-20 | BE26: 2020-09-20 | BL26: 2020-10-20 | BS26: 2020-11-20 | BZ26: 2020-12-20
A27: 2020-01-21 | H27: 2020-02-21 | O27: 2020-03-21 | V27: 2020-04-21 | AC27: 2020-05-21 | AJ27: 2020-06-21 | AQ27: 2020-07-21 | AX27: 2020-08-21 | BE27: 2020-09-21 | BL27: 2020-10-21 | BS27: 2020-11-21 | BZ27: 2020-12-21
A28: 2020-01-22 | H28: 2020-02-22 | O28: 2020-03-22 | V28: 2020-04-22 | AC28: 2020-05-22 | AJ28: 2020-06-22 | AQ28: 2020-07-22 | AX28: 2020-08-22 | BE28: 2020-09-22 | BL28: 2020-10-22 | BS28: 2020-11-22 | BZ28: 2020-12-22
A29: 2020-01-23 | H29: 2020-02-23 | O29: 2020-03-23 | V29: 2020-04-23 | AC29: 2020-05-23 | AJ29: 2020-06-23 | AQ29: 2020-07-23 | AX29: 2020-08-23 | BE29: 2020-09-23 | BL29: 2020-10-23 | BS29: 2020-11-23 | BZ29: 2020-12-23
A30: 2020-01-24 | H30: 2020-02-24 | O30: 2020-03-24 | V30: 2020-04-24 | AC30: 2020-05-24 | AJ30: 2020-06-24 | AQ30: 2020-07-24 | AX30: 2020-08-24 | BE30: 2020-09-24 | BL30: 2020-10-24 | BS30: 2020-11-24 | BZ30: 2020-12-24
A31: 2020-01-25 | H31: 2020-02-25 | O31: 2020-03-25 | V31: 2020-04-25 | AC31: 2020-05-25 | AJ31: 2020-06-25 | AQ31: 2020-07-25 | AX31: 2020-08-25 | BE31: 2020-09-25 | BL31: 2020-10-25 | BS31: 2020-11-25 | BZ31: 2020-12-25
A32: 2020-01-26 | H32: 2020-02-26 | O32: 2020-03-26 | V32: 2020-04-26 | AC32: 2020-05-26 | AJ32: 2020-06-26 | AQ32: 2020-07-26 | AX32: 2020-08-26 | BE32: 2020-09-26 | BL32: 2020-10-26 | BS32: 2020-11-26 | BZ32: 2020-12-26
A33: 2020-01-27 | H33: 2020-02-27 | O33: 2020-03-27 | V33: 2020-04-27 | AC33: 2020-05-27 | AJ33: 2020-06-27 | AQ33: 2020-07-27 | AX33: 2020-08-27 | BE33: 2020-09-27 | BL33: 2020-10-27 | BS33: 2020-11-27 | BZ33: 2020-12-27
A34: 2020-01-28 | H34: 2020-02-28 | O34: 2020-03-28 | V34: 2020-04-28 | AC34: 2020-05-28 | AJ34: 2020-06-28 | AQ34: 2020-07-28 | AX34: 2020-08-28 | BE34: 2020-09-28 | BL34: 2020-10-28 | BS34: 2020-11-28 | BZ34: 2020-12-28
A35: 2020-01-29 | H35: 2020-02-29 | O35: 2020-03-29 | V35: 2020-04-29 | AC35: 2020-05-29 | AJ35: 2020-06-29 | AQ35: 2020-07-29 | AX35: 2020-08-29 | BE35: 2020-09-29 | BL35: 2020-10-29 | BS35: 2020-11-29 | BZ35: 2020-12-29
A36: 2020-01-30 | O36: 2020-03-30 | V36: 2020-04-30 | AC36: 2020-05-30 | AJ36: 2020-06-30 | AQ36: 2020-07-30 | AX36: 2020-08-30 | BE36: 2020-09-30 | BL36: 2020-10-30 | BS36: 2020-11-30 | BZ36: 2020-12-30
A37: 2020-01-31 | O37: 2020-03-31 | AC37: 2020-05-31 | AQ37: 2020-07-31 | AX37: 2020-08-31 | BL37: 2020-10-31 | BZ37: 2020-12-31
B40: Créneaux | C40: Présent | D40: Excusé AMIEM | E40: Excusé | F40: Absent | I40: Créneaux | J40: Présent | K40: Excusé AMIEM | L40: Excusé | M40: Absent | P40: Créneaux | Q40: Présent | R40: Excusé AMIEM | S40: Excusé | T40: Absent | W40: Créneaux | X40: Présent | Y40: Excusé AMIEM | Z40: Excusé | AA40: Absent | AD40: Créneaux | AE40: Présent | AF40: Excusé AMIEM | AG40: Excusé | AH40: Absent | AK40: Créneaux | AL40: Présent | AM40: Excusé AMIEM | AN40: Excusé | AO40: Absent | AR40: Créneaux | AS40: Présent | AT40: Excusé AMIEM | AU40: Excusé | AV40: Absent | AY40: Créneaux | AZ40: Présent | BA40: Excusé AMIEM | BB40: Excusé | BC40: Absent | BF40: Créneaux | BG40: Présent | BH40: Excusé AMIEM | BI40: Excusé | BJ40: Absent | BM40: Créneaux | BN40: Présent | BO40: Excusé AMIEM | BP40: Excusé | BQ40: Absent | BT40: Créneaux | BU40: Présent | BV40: Excusé AMIEM | BW40: Excusé | BX40: Absent | CA40: Créneaux | CB40: Présent | CC40: Excusé AMIEM | CD40: Excusé | CE40: Absent
A41: Janvier | B41: =SUM(B7:B37) -> 0 | C41: =SUM(C7:C37) -> 0 | D41: =SUM(D7:D37) -> 0 | E41: =SUM(E7:E37) -> 0 | F41: =SUM(F7:F37) -> 0 | H41: Février | I41: =SUM(I7:I34) -> 0 | J41: =SUM(J7:J34) -> 0 | K41: =SUM(K7:K34) -> 0 | L41: =SUM(L7:L34) -> 0 | M41: =SUM(M7:M34) -> 0 | O41: Mars | P41: =SUM(P7:P37) -> 0 | Q41: =SUM(Q7:Q37) -> 0 | R41: =SUM(R7:R37) -> 0 | S41: =SUM(S7:S37) -> 0 | T41: =SUM(T7:T37) -> 0 | V41: Avril | W41: =SUM(W7:W36) -> 0 | X41: =SUM(X7:X36) -> 0 | Y41: =SUM(Y7:Y36) -> 0 | Z41: =SUM(Z7:Z36) -> 0 | AA41: =SUM(AA7:AA36) -> 0 | AC41: Mai | AD41: =SUM(AD7:AD37) -> 0 | AE41: =SUM(AE7:AE37) -> 0 | AF41: =SUM(AF7:AF37) -> 0 | AG41: =SUM(AG7:AG37) -> 0 | AH41: =SUM(AH7:AH37) -> 0 | AJ41: Juin | AK41: =SUM(AK7:AK36) -> 0 | AL41: =SUM(AL7:AL36) -> 0 | AM41: =SUM(AM7:AM36) -> 0 | AN41: =SUM(AN7:AN36) -> 0 | AO41: =SUM(AO7:AO36) -> 0 | AQ41: Juillet | AR41: =SUM(AR7:AR37) -> 0 | AS41: =SUM(AS7:AS37) -> 0 | AT41: =SUM(AT7:AT37) -> 0 | AU41: =SUM(AU7:AU37) -> 0 | AV41: =SUM(AV7:AV37) -> 0 | AX41: Août | AY41: =SUM(AY7:AY37) -> 0 | AZ41: =SUM(AZ7:AZ37) -> 0 | BA41: =SUM(BA7:BA37) -> 0 | BB41: =SUM(BB7:BB37) -> 0 | BC41: =SUM(BC7:BC37) -> 0 | BE41: Septembre | BF41: =SUM(BF7:BF36) -> 0 | BG41: =SUM(BG7:BG36) -> 0 | BH41: =SUM(BH7:BH36) -> 0 | BI41: =SUM(BI7:BI36) -> 0 | BJ41: =SUM(BJ7:BJ36) -> 0 | BL41: Octobre | BM41: =SUM(BM7:BM37) -> 0 | BN41: =SUM(BN7:BN37) -> 0 | BO41: =SUM(BO7:BO37) -> 0 | BP41: =SUM(BP7:BP37) -> 0 | BQ41: =SUM(BQ7:BQ37) -> 0 | BS41: Novembre | BT41: =SUM(BT7:BT36) -> 0 | BU41: =SUM(BU7:BU36) -> 0 | BV41: =SUM(BV7:BV36) -> 0 | BW41: =SUM(BW7:BW36) -> 0 | BX41: =SUM(BX7:BX36) -> 0 | BZ41: Décembre | CA41: =SUM(CA7:CA37) -> 0 | CB41: =SUM(CB7:CB37) -> 0 | CC41: =SUM(CC7:CC37) -> 0 | CD41: =SUM(CD7:CD37) -> 0 | CE41: =SUM(CE7:CE37) -> 0
B44: Créneaux | C44: Présent | D44: Excusé AMIEM | E44: Excusé | F44: Absent
A45: Année | B45: =B41+I41+P41+W41+AD41+AK41+AR41+AY41+BF41+BM41+BT41+CA41 -> 0 | C45: =C41+J41+Q41+X41+AE41+AL41+AS41+AZ41+BG41+BN41+BU41+CB41 -> 0 | D45: =D41+K41+R41+Y41+AF41+AM41+AT41+BA41+BH41+BO41+BV41+CC41 -> 0 | E45: 0 | F45: 0
A48: Créneau : N'est comptabilisé qu'une seule fois chaque créneau horaire face auquel un salarié a été positionné.

Sheet AF Global
A2: Actes futurs
A4: =CONCATENATE("Salariés dont l'acte futur est ≤ ",DAY(datefin),"/",MONTH(datefin),"/",YEAR(datefin)) -> Salariés dont l'acte futur est ≤ 28/2/2021 | I4: Salariés sans acte futur *
A6: Par catégorie déclarée | E6: Par nature du prochain acte
I7: 0
A8: Catégorie déclarée | B8: Nombre de salariés | E8: LibelleNatureActeFutur | F8: Nombre de salariés
A9: SI | B9: 86 | E9: -Entretien Intermédiaire | F9: 150
A10: SIA | B10: 34 | E10: -Examen Médical | F10: 96 | J10: * ces salariés n'apparaissent pas dans les listes des convocables
A11: SIR | B11: 228 | E11: -Examen Médical à l'embauche | F11: 5 | J11: (date de l'acte futur non renseignée)
A12: SIR1 | B12: 2 | E12: -Visite d'Information et de Prévention | F12: 83
A13: Total | B13: 350 | E13: -Visite d'Information et de Prévention Initiale | F13: 8
E14: Occasionnelle Collaborateur Médecin | F14: 1
E15: Occasionnelle à la demande du Médecin du Travail | F15: 1
E16: Périodique | F16: 6
E17: Total | F17: 350
A18: =CONCATENATE("Salariés qui auraient dû bénéficier d'un acte de type périodique ou embauche avant le ",DAY(datefin),"/",MONTH(datefin),"/",YEAR(datefin)) -> Salariés qui auraient dû bénéficier d'un acte de type périodique ou embauche avant le 28/2/2021

Sheet Actes futurs sur 5 ans
A3: Totalité des actes futurs du secteur
A5: Nombre de salariés avec une nature d'acte futur type "périodique" | Q5: Nombre de salariés avec une nature d'acte futur occasionnelle
A7: Nombre de salariés dont la nature de l'acte futur entre dans le cadre d'un suivi périodique ou embauche et dont la situtation particulière n'est pas renseignée | R7: Nombre de salariés dont la nature de l'acte futur est occasionnelle et dont la situation particulière n'est pas renseignée
A8: explication : Total 2009 = Nombre de salariés qui aurait dû être vus avant le 31/12/2009 | R8: explication : Total 2009 = Nombre de salariés qui aurait dû être vus avant le 31/12/2009
A9: Tableau 1 - Actes futurs selon la catégorie déclarée | I9: Tableau 2 - Actes futurs selon la catégorie constatée | Q9: Tableau 3 - Actes futurs selon la catégorie déclarée | Z9: Tableau 4 - Actes futurs selon la catégorie constatée
A13: Année Actes Futurs | B13: Cat. non déclarée | C13: SI | D13: SIA | E13: SIR | F13: SIR1 | G13: Total | I13: Année Actes Futurs | J13: Cat. non déclarée | K13: SI | L13: SIA | M13: SIR | N13: SIR1 | O13: Total | R13: Année Actes Futurs | S13: Cat. non déclarée | T13: SI | U13: SIA | V13: SIR | W13: SIR1 | X13: Total | Z13: Année Actes Futurs | AA13: Cat. non déclarée | AB13: SI | AC13: SIA | AD13: SIR | AE13: SIR1 | AF13: Total
A14: 2008 | C14: 1 | G14: 1 | I14: 2008 | K14: 1 | O14: 1 | R14: 2020 | T14: 16 | U14: 6 | V14: 13 | X14: 35 | AF14: 0
A15: 2014 | E15: 2 | G15: 2 | I15: 2014 | M15: 2 | O15: 2 | R15: 2021 | T15: 3 | X15: 3 | Z15: Total | AA15: 0 | AB15: 0 | AC15: 0 | AD15: 0 | AE15: 0 | AF15: 0
A16: 2016 | E16: 1 | G16: 1 | I16: 2016 | M16: 1 | O16: 1 | R16: 2022 | V16: 1 | X16: 1
A17: 2017 | E17: 1 | G17: 1 | I17: 2017 | M17: 1 | O17: 1 | R17: 2023 | U17: 1 | X17: 1
A18: 2018 | E18: 1 | G18: 1 | I18: 2018 | M18: 1 | O18: 1 | R18: 2024 | T18: 3 | X18: 3
A19: 2019 | C19: 59 | D19: 11 | E19: 111 | F19: 2 | G19: 183 | I19: 2019 | J19: 1 | K19: 36 | L19: 18 | M19: 125 | N19: 3 | O19: 183 | R19: Total | S19: 0 | T19: 22 | U19: 7 | V19: 14 | W19: 0 | X19: 43
A20: 2020 | B20: 2 | C20: 292 | D20: 100 | E20: 471 | F20: 4 | G20: 869 | I20: 2020 | J20: 35 | K20: 173 | L20: 102 | M20: 551 | N20: 8 | O20: 869
A21: 2021 | C21: 379 | D21: 109 | E21: 432 | G21: 920 | I21: 2021 | J21: 7 | K21: 285 | L21: 135 | M21: 493 | O21: 920
A22: 2022 | C22: 816 | D22: 69 | E22: 98 | G22: 983 | I22: 2022 | J22: 5 | K22: 783 | L22: 95 | M22: 100 | O22: 983
A23: 2023 | C23: 698 | D23: 23 | E23: 2 | G23: 723 | I23: 2023 | J23: 1 | K23: 696 | L23: 26 | O23: 723
A24: 2024 | C24: 487 | D24: 10 | G24: 497 | I24: 2024 | J24: 19 | K24: 468 | L24: 10 | O24: 497
A25: 2025 | C25: 78 | D25: 2 | G25: 80 | I25: 2025 | J25: 2 | K25: 75 | L25: 3 | O25: 80
A26: Total | B26: 2 | C26: 2809 | D26: 324 | E26: 1119 | F26: 6 | G26: 4260 | I26: Total | J26: 70 | K26: 2516 | L26: 389 | M26: 1274 | N26: 11 | O26: 4260

Sheet A F occasionnelles à convoquer
A3: Salariés notés à revoir en occasionnelle médecin du travail ou collaborateur médecin | T3: Salariés notés à revoir en occasionnelle infirmier santé travail
A5: Salariés dont l'acte futur de nature occasionnelle est inférieur ou égal au | I5: =datefin -> 2021-02-28
A7: (1) Si Date dernière visite est "vide" = Visite ≤ 2010 ou Salarié jamais vu
A10: N° salarié | B10: Nom salarié | C10: Nom marital salarié | D10: Prénom salarié | E10: Age | F10: Date naissance | G10: N° adhérent | H10: Raison sociale | I10: Date embauche | J10: Cat. Decl. | K10: Cat. Const. | L10: Date dernière visite (1) | M10: Nature dernière visite | N10: Date dernier RDV | O10: Evènement dernier RDV | P10: Nature dernier RDV | Q10: Date acte futur | R10: Nature acte futur | T10: N° salarié | U10: Nom salarié | V10: Nom marital salarié | W10: Prénom salarié | X10: Age | Y10: Date naissance | Z10: N° adhérent | AA10: Raison sociale | AB10: Date embauche | AC10: Cat. Decl. | AD10: Cat. Const. | AE10: Date dernière visite (1) | AF10: Nature dernière visite | AG10: Date dernier RDV | AH10: Evènement dernier RDV | AI10: Nature dernier RDV | AJ10: Date acte futur | AK10: Nature acte futur
A11: 333861 | B11: NADO | D11: FABRICE | E11: 45 | F11: 1974-12-07 | G11: 5311 | H11: SA CITE MARINE | I11: 2004-02-01 | J11: SIR | K11: SIR | L11: 2020-01-07 | M11: Reprise après arrêt maladie | N11: 2020-02-04 | O11: Excusé | P11: Occasionnelle Collaborateur Médecin | Q11: 2020-02-04 | R11: Occasionnelle Collaborateur Médecin
A12: 384474 | B12: RIOU | D12: OLIVIER | E12: 33 | F12: 1986-09-08 | G12: 5311 | H12: SA CITE MARINE | I12: 2015-04-20 | J12: SI | K12: SIA | L12: 2018-02-14 | M12: Occasionnelle à la demande du Médecin du Travail | N12: 2018-02-14 | O12: Présent | P12: Occasionnelle à la demande du Médecin du Travail | Q12: 2020-02-06 | R12: Occasionnelle à la demande du Médecin du Travail

Sheet AF Ex. Med. Emb
A3: Salariés notés à revoir en " Examen médical à l'embauche "
A5: Salariés dont l'acte futur de nature "Examen médical à l'embauche" est inférieur ou égal au | J5: =datefin -> 2021-02-28
A7: (1) Si Date dernière visite est "vide" = Visite ≤ 2010 ou Salarié jamais vu
A10: N° salarié | B10: Nom salarié | C10: Nom marital salarié | D10: Prénom salarié | E10: Age | F10: Date naissance | G10: N° adhérent | H10: Raison sociale | I10: Date embauche Emp.Actuel | J10: Cat. Decl. | K10: Cat. Const. | L10: Date dernière visite (1) | M10: Nature dernière visite | N10: Date dernier RDV | O10: Evènement dernier RDV | P10: Nature dernier RDV | Q10: Date acte futur | R10: Nature acte futur
A11: 15225085 | B11: MARTINS FERREIRA | D11: JOSE MANUEL | E11: 40 | F11: 1980-08-24 | G11: 82205 | H11: EURL VM BATISTA | I11: 2020-01-06 | J11: SIR | K11: SIR | Q11: 2020-02-10 | R11: -Examen Médical à l'embauche
A12: 15225240 | B12: GUEGAN | D12: BRANDON | E12: 24 | F12: 1996-03-17 | G12: 82411 | H12: ASSOCIATION ADMR DE PLOUAY DU SCORFF AU BLAVET | I12: 2019-12-23 | J12: SIR | K12: Cat. non constatée | Q12: 2020-02-11 | R12: -Examen Médical à l'embauche
A13: 15225242 | B13: GUEGANO | D13: LENA | E13: 20 | F13: 2000-01-11 | G13: 82411 | H13: ASSOCIATION ADMR DE PLOUAY DU SCORFF AU BLAVET | I13: 2019-12-21 | J13: SIR | K13: SIR | Q13: 2020-02-11 | R13: -Examen Médical à l'embauche
A14: 15214228 | B14: LE GAL | D14: CHARLENE | E14: 20 | F14: 2000-08-07 | G14: 82411 | H14: ASSOCIATION ADMR DE PLOUAY DU SCORFF AU BLAVET | I14: 2019-12-02 | J14: SIR | K14: SIR | L14: 2019-08-20 | M14: - Visite d'Information et de Prévention Initiale IDEST | N14: 2019-08-20 | O14: Présent | P14: - Visite d'Information et de Prévention Initiale IDEST | Q14: 2020-02-11 | R14: -Examen Médical à l'embauche
A15: 15050084 | B15: DANET | C15: LAMOUR | D15: MARIE MADELEINE | E15: 57 | F15: 1963-07-07 | G15: 82411 | H15: ASSOCIATION ADMR DE PLOUAY DU SCORFF AU BLAVET | I15: 2019-10-01 | J15: SIR | K15: SIR | Q15: 2020-02-11 | R15: -Examen Médical à l'embauche

Sheet AF Ent. Intermédiaire
A3: Salariés notés à revoir en " Entretien intermédiaire "
A5: Salariés dont l'acte futur de nature "Entretien intermédiaire " est inférieur ou égal au | J5: =datefin -> 2021-02-28
A7: (1) Si Date dernière visite est "vide" = Visite ≤ 2010 ou Salarié jamais vu
A8: * périodique = nature ancienne réglementation à mettre à jour
A9: N° salarié | B9: Nom salarié | C9: Nom marital salarié | D9: Prénom salarié | E9: Age | F9: Date naissance | G9: N° adhérent | H9: Raison sociale | I9: Date embauche Emp.Actuel | J9: Cat. Decl. | K9: Cat. Const. | L9: Date dernière visite (1) | M9: Nature dernière visite | N9: Date dernier RDV | O9: Evènement dernier RDV | P9: Nature dernier RDV | Q9: Date acte futur | R9: Nature acte futur
A10: 162571 | B10: GUILLEMOT | D10: DAMIEN | E10: 33 | F10: 1987-01-17 | G10: 63203 | H10: SARL LE DANVIC | I10: 2015-09-21 | J10: SIR | K10: SIR | L10: 2017-01-05 | M10: Périodique | N10: 2017-01-05 | O10: Présent | P10: Périodique | Q10: 2019-01-05 | R10: -Entretien Intermédiaire
A11: 300719 | B11: LUCAS | D11: EMMANUEL | E11: 37 | F11: 1983-01-29 | G11: 63203 | H11: SARL LE DANVIC | I11: 2015-09-21 | J11: SIR | K11: SIR | L11: 2017-01-05 | M11: Périodique | N11: 2017-01-05 | O11: Présent | P11: Périodique | Q11: 2019-01-05 | R11: -Entretien Intermédiaire
A12: 309923 | B12: MARDASSI | D12: ALI | E12: 40 | F12: 1979-11-22 | G12: 62203 | H12: SAS ISLA MONDIAL | I12: 2015-04-28 | J12: SIR | K12: SIR | L12: 2017-01-31 | M12: Périodique | N12: 2017-01-31 | O12: Présent | P12: Périodique | Q12: 2019-01-29 | R12: -Entretien Intermédiaire
A13: 15154824 | B13: BOCQUIER | D13: RAPHAEL | E13: 38 | F13: 1982-01-03 | G13: 66076 | H13: SARL MOREAU | I13: 2002-12-01 | J13: SIR | K13: SIR | L13: 2017-02-02 | M13: Périodique | N13: 2017-02-02 | O13: Présent | P13: Périodique | Q13: 2019-02-02 | R13: -Entretien Intermédiaire
A14: 15047887 | B14: DA COSTA TEIXERRA | D14: TIAGO MANUEL | E14: 33 | F14: 1987-03-21 | G14: 46066 | H14: SAS SRB CONSTRUCTION | I14: 2011-09-01 | J14: SIR | K14: SIR | L14: 2017-02-06 | M14: Périodique | N14: 2017-02-06 | O14: Présent | P14: Périodique | Q14: 2019-02-06 | R14: -Entretien Intermédiaire
A15: 369449 | B15: PRIVE | D15: JULIEN | E15: 38 | F15: 1981-09-21 | G15: 10185 | H15: SA HENDIS | I15: 2016-09-05 | J15: SIR | K15: SIR | L15: 2017-02-27 | M15: Embauche | N15: 2017-02-27 | O15: Présent | P15: Embauche | Q15: 2019-02-27 | R15: -Entretien Intermédiaire
A16: 44950 | B16: PHILIPPE BOUVET | D16: FLORIAN | E16: 38 | F16: 1982-01-23 | G16: 31179 | H16: SARL RIVE OUEST AGENCEMENT | I16: 2013-03-11 | J16: SIR | K16: SIR | L16: 2017-02-28 | M16: Périodique | N16: 2017-02-28 | O16: Présent | P16: Périodique | Q16: 2019-02-28 | R16: -Entretien Intermédiaire
A17: 15063690 | B17: VERDIER | D17: CHRISTOPHE | E17: 60 | F17: 1960-05-29 | G17: 29666 | H17: SA SMAC | I17: 2017-03-01 | J17: SIR | K17: SIR | L17: 2017-03-07 | M17: Embauche | N17: 2017-03-07 | O17: Présent | P17: Embauche | Q17: 2019-03-07 | R17: -Entretien Intermédiaire
A18: 15159808 | B18: DI FRANCO | D18: MYLENE | E18: 31 | F18: 1989-04-29 | G18: 70474 | H18: SAS BIOLOR | I18: 2017-01-09 | J18: SIR | K18: SIR | L18: 2017-03-16 | M18: Embauche | N18: 2017-03-16 | O18: Présent | P18: Embauche | Q18: 2019-03-16 | R18: -Entretien Intermédiaire
A19: 149218 | B19: GOULVEN | D19: GLENN | E19: 39 | F19: 1981-08-25 | G19: 3793 | H19: SARL BREIZH CHAUFFAGE ET STECMI | I19: 2003-02-27 | J19: SIR | K19: SIR | L19: 2017-03-17 | M19: Périodique | N19: 2017-03-17 | O19: Présent | P19: Périodique | Q19: 2019-03-17 | R19: -Entretien Intermédiaire
A20: 15078346 | B20: LE DANTEC | D20: LOIC | E20: 54 | F20: 1965-09-20 | G20: 3793 | H20: SARL BREIZH CHAUFFAGE ET STECMI | I20: 2012-06-01 | J20: SIR | K20: SIR | L20: 2017-03-20 | M20: Périodique | N20: 2017-03-20 | O20: Présent | P20: Périodique | Q20: 2019-03-20 | R20: -Entretien Intermédiaire
A21: 85942 | B21: CREACH | D21: MARC | E21: 52 | F21: 1968-07-19 | G21: 35238 | H21: SARL CBR | I21: 2004-07-01 | J21: SI | K21: SIR | L21: 2017-03-21 | M21: Périodique | N21: 2017-03-21 | O21: Présent | P21: Périodique | Q21: 2019-03-21 | R21: -Entretien Intermédiaire
A22: 15128075 | B22: QUERE | D22: AZILIS | E22: 33 | F22: 1987-06-09 | G22: 57537 | H22: MUTUALITE FRANCAISE FINISTERE MORBIHAN | I22: 2017-03-15 | J22: SIR | K22: SIR | L22: 2017-03-29 | M22: Embauche | N22: 2017-03-29 | O22: Présent | P22: Embauche | Q22: 2019-03-29 | R22: -Entretien Intermédiaire
A23: 357702 | B23: PIACENTINO | D23: YOANN | E23: 37 | F23: 1983-07-27 | G23: 10185 | H23: SA HENDIS | I23: 2002-09-01 | J23: SIR | K23: SIR | L23: 2017-03-30 | M23: Occasionnelle à la demande de l'employeur | N23: 2017-03-30 | O23: Présent | P23: Occasionnelle à la demande de l'employeur | Q23: 2019-03-30 | R23: -Entretien Intermédiaire
A24: 237353 | B24: LE DOUSSAL | D24: STEPHANE | E24: 37 | F24: 1983-07-10 | G24: 10185 | H24: SA HENDIS | I24: 2013-01-21 | J24: SIR | K24: SIR | L24: 2017-03-30 | M24: Occasionnelle à la demande de l'employeur | N24: 2017-03-30 | O24: Présent | P24: Occasionnelle à la demande de l'employeur | Q24: 2019-03-30 | R24: -Entretien Intermédiaire
A25: 15030471 | B25: VESTIA | D25: YOHANN | E25: 30 | F25: 1990-04-25 | G25: 10185 | H25: SA HENDIS | I25: 2014-12-22 | J25: SIR | K25: SIR | L25: 2017-04-04 | M25: Occasionnelle à la demande de l'employeur | N25: 2017-04-04 | O25: Présent | P25: Occasionnelle à la demande de l'employeur | Q25: 2019-04-12 | R25: -Entretien Intermédiaire
A26: 128806 | B26: FOUQUERAY | D26: NICOLAS | E26: 37 | F26: 1983-02-23 | G26: 10185 | H26: SA HENDIS | I26: 2006-11-06 | J26: SIR | K26: SIR | L26: 2017-04-13 | M26: Occasionnelle à la demande de l'employeur | N26: 2017-04-13 | O26: Présent | P26: Occasionnelle à la demande de l'employeur | Q26: 2019-04-13 | R26: -Entretien Intermédiaire
A27: 15161706 | B27: BRION | C27: COUPANEC | D27: FRANCOISE | E27: 49 | F27: 1971-07-04 | G27: 57537 | H27: MUTUALITE FRANCAISE FINISTERE MORBIHAN | I27: 2017-04-05 | J27: SIR | K27: SIR | L27: 2017-11-29 | M27: Occasionnelle à la demande du Médecin du Travail | N27: 2017-11-29 | O27: Présent | P27: Occasionnelle à la demande du Médecin du Travail | Q27: 2019-04-28 | R27: -Entretien Intermédiaire
A28: 239154 | B28: LE FLECHER | D28: FRANCK | E28: 49 | F28: 1971-01-25 | G28: 65707 | H28: SARL GUILLOUX COUVERTURE | I28: 2017-03-06 | J28: SIR | K28: SIR | L28: 2018-07-18 | M28: Reprise après arrêt maladie | N28: 2018-07-18 | O28: Présent | P28: Reprise après arrêt maladie | Q28: 2019-05-02 | R28: -Entretien Intermédiaire
A29: 300589 | B29: LUCAS | D29: BRUNO | E29: 36 | F29: 1984-07-28 | G29: 46066 | H29: SAS SRB CONSTRUCTION | I29: 2009-11-23 | J29: SIR | K29: SIR | L29: 2018-03-26 | M29: Reprise après maladie professionnelle | N29: 2018-03-26 | O29: Excusé | P29: Reprise après maladie professionnelle | Q29: 2019-05-06 | R29: -Entretien Intermédiaire
A30: 300589 | B30: LUCAS | D30: BRUNO | E30: 36 | F30: 1984-07-28 | G30: 46066 | H30: SAS SRB CONSTRUCTION | I30: 2009-11-23 | J30: SIR | K30: SIR | L30: 2018-03-26 | M30: Reprise après maladie professionnelle | N30: 2018-03-26 | O30: Présent | P30: Reprise après maladie professionnelle | Q30: 2019-05-06 | R30: -Entretien Intermédiaire
A31: 175096 | B31: HELLO | D31: DAMIEN | E31: 33 | F31: 1987-05-25 | G31: 12246 | H31: SARL THIERRY LAVAT | I31: 2017-04-18 | J31: SIR | K31: SIR | L31: 2017-05-23 | M31: Embauche | N31: 2017-05-23 | O31: Présent | P31: Embauche | Q31: 2019-05-21 | R31: -Entretien Intermédiaire
A32: 434082 | B32: VIT | D32: ARNAUD | E32: 40 | F32: 1979-09-24 | G32: 29666 | H32: SA SMAC | I32: 2017-05-01 | J32: SIR | K32: SIR | L32: 2017-05-22 | M32: Embauche | N32: 2017-05-22 | O32: Présent | P32: Embauche | Q32: 2019-05-22 | R32: -Entretien Intermédiaire
A33: 15102339 | B33: CONAN | D33: ADRIEN | E33: 25 | F33: 1995-02-03 | G33: 63714 | H33: SASU SEA VALUE ATLANTIC | I33: 2017-01-09 | J33: SIR | K33: SIR | L33: 2017-05-23 | M33: Embauche | N33: 2017-05-23 | O33: Présent | P33: Embauche | Q33: 2019-05-23 | R33: -Entretien Intermédiaire
A34: 271825 | B34: LE RAVALLEC | D34: BERTRAND | E34: 42 | F34: 1978-08-11 | G34: 65707 | H34: SARL GUILLOUX COUVERTURE | I34: 2017-05-02 | J34: SIR | K34: SIR | L34: 2017-05-23 | M34: Embauche | N34: 2017-05-23 | O34: Présent | P34: Embauche | Q34: 2019-05-23 | R34: -Entretien Intermédiaire
A35: 163071 | B35: GUILLEMOT | D35: NICOLAS | E35: 34 | F35: 1985-09-24 | G35: 35238 | H35: SARL CBR | I35: 2010-10-16 | J35: SI | K35: SIR | L35: 2017-03-16 | M35: Périodique | N35: 2017-03-21 | O35: Excusé | P35: Périodique | Q35: 2019-05-31 | R35: -Entretien Intermédiaire
A36: 380446 | B36: RIBAUD | D36: ERWANN | E36: 44 | F36: 1975-09-16 | G36: 12343 | H36: SARL DIDIER LE BASTARD | I36: 2000-02-22 | J36: SI | K36: SIR | L36: 2017-06-02 | M36: Périodique | N36: 2017-06-02 | O36: Présent | P36: Périodique | Q36: 2019-06-03 | R36: -Entretien Intermédiaire
A37: 240661 | B37: LE FOURNER | D37: SEBASTIEN | E37: 37 | F37: 1983-08-19 | G37: 35238 | H37: SARL CBR | I37: 2005-10-03 | J37: SI | K37: SIR | L37: 2017-03-21 | M37: Périodique | N37: 2017-03-29 | O37: Excusé | P37: Périodique | Q37: 2019-06-17 | R37: -Entretien Intermédiaire
A38: 14385 | B38: BARDOUIL | D38: PATRICE | E38: 49 | F38: 1970-09-22 | G38: 80918 | H38: SARL AD TRUCKS SERVICES | I38: 2018-08-01 | J38: SIR | K38: SIR | L38: 2017-06-19 | M38: Périodique | N38: 2017-06-19 | O38: Présent | P38: Périodique | Q38: 2019-06-19 | R38: -Entretien Intermédiaire
A39: 370609 | B39: PUJAZON | D39: ALAIN | E39: 56 | F39: 1964-05-02 | G39: 29417 | H39: SARL CERIMPORT INDUSTRIES | I39: 2001-05-29 | J39: SIR | K39: SIR | L39: 2017-06-22 | M39: Périodique | N39: 2017-06-27 | O39: Excusé | P39: Périodique | Q39: 2019-06-22 | R39: -Entretien Intermédiaire
A40: 15068183 | B40: DA SILVA | D40: JORDAN | E40: 25 | F40: 1994-12-11 | G40: 29666 | H40: SA SMAC | I40: 2017-05-01 | J40: SIR | K40: SIR | L40: 2017-06-27 | M40: Embauche | N40: 2017-06-27 | O40: Présent | P40: Embauche | Q40: 2019-06-27 | R40: -Entretien Intermédiaire
A41: 215101 | B41: LAURENT | D41: DIDIER | E41: 49 | F41: 1971-05-23 | G41: 9090 | H41: MONSIEUR JEAN PIERRE GUILLOU | I41: 1998-12-31 | J41: SIR | K41: SIR | L41: 2017-07-05 | M41: Périodique | N41: 2017-07-05 | O41: Présent | P41: Périodique | Q41: 2019-07-05 | R41: -Entretien Intermédiaire
A42: 339413 | B42: NORJOUX | D42: LUDOVIC | E42: 38 | F42: 1981-09-01 | G42: 66854 | H42: SAS AGENCE ANTIPARASITAIRE DU BATIMENT | I42: 2015-04-27 | J42: SIR | K42: SIR | L42: 2017-07-05 | M42: Périodique | N42: 2017-07-05 | O42: Présent | P42: Périodique | Q42: 2019-07-05 | R42: -Entretien Intermédiaire
A43: 15165346 | B43: PENDELIAU | D43: DAMIEN | E43: 21 | F43: 1999-05-30 | G43: 46066 | H43: SAS SRB CONSTRUCTION | I43: 2017-07-03 | J43: SIR | K43: SIR | L43: 2017-07-10 | M43: Embauche | N43: 2017-07-10 | O43: Présent | P43: Embauche | Q43: 2019-07-10 | R43: -Entretien Intermédiaire
A44: 116160 | B44: EHOUARNE | D44: LAURENT | E44: 46 | F44: 1974-03-15 | G44: 66854 | H44: SAS AGENCE ANTIPARASITAIRE DU BATIMENT | I44: 2005-06-20 | J44: SIR | K44: SIR | L44: 2017-07-20 | M44: Occasionnelle à la demande du Médecin du Travail | N44: 2017-07-20 | O44: Présent | P44: Occasionnelle à la demande du Médecin du Travail | Q44: 2019-07-20 | R44: -Entretien Intermédiaire
A45: 329126 | B45: MORICE | D45: GWENAEL | E45: 44 | F45: 1975-11-12 | G45: 63714 | H45: SASU SEA VALUE ATLANTIC | I45: 2013-04-08 | J45: SIR | K45: SIR | L45: 2017-07-20 | M45: Périodique | N45: 2017-07-20 | O45: Présent | P45: Périodique | Q45: 2019-07-20 | R45: -Entretien Intermédiaire
A46: 78980 | B46: CONTE | D46: AHAMADOU BAKAYE | E46: 33 | F46: 1987-03-18 | G46: 46066 | H46: SAS SRB CONSTRUCTION | I46: 2017-10-23 | J46: SIR | K46: SIR | L46: 2017-10-19 | M46: Occasionnelle à la demande du Médecin du Travail | N46: 2017-10-19 | O46: Présent | P46: Occasionnelle à la demande du Médecin du Travail | Q46: 2019-07-25 | R46: -Entretien Intermédiaire
A47: 223416 | B47: LE BOUILLE | D47: JEAN MARC | E47: 50 | F47: 1970-08-31 | G47: 49507 | H47: SARL TY PRODUCTEURS | I47: 2017-06-13 | J47: SIR | K47: SIR | L47: 2017-07-26 | M47: Embauche | N47: 2017-07-26 | O47: Présent | P47: Embauche | Q47: 2019-07-26 | R47: -Entretien Intermédiaire
A48: 39815 | B48: BOUGER | D48: MICKAEL | E48: 36 | F48: 1984-06-09 | G48: 62203 | H48: SAS ISLA MONDIAL | I48: 2018-05-01 | J48: SIR | K48: SIR | L48: 2017-08-16 | M48: Embauche | N48: 2017-08-16 | O48: Présent | P48: Visite Intérimaire | Q48: 2019-08-16 | R48: -Entretien Intermédiaire
A49: 15024734 | B49: GUENADOU | D49: STEVEN | E49: 27 | F49: 1993-07-06 | G49: 72534 | H49: SA SEM SELLOR | I49: 2017-03-20 | J49: SI | K49: SIR | L49: 2018-01-15 | M49: Occasionnelle à la demande du Médecin du Travail | N49: 2018-01-15 | O49: Présent | P49: Occasionnelle à la demande du Médecin du Travail | Q49: 2019-08-21 | R49: -Entretien Intermédiaire
A50: 15168617 | B50: LEGER | D50: SIMON | E50: 36 | F50: 1983-11-18 | G50: 46066 | H50: SAS SRB CONSTRUCTION | I50: 2017-08-28 | J50: SIR | K50: SIR | L50: 2017-08-29 | M50: Embauche | N50: 2017-09-01 | O50: Excusé | P50: Embauche | Q50: 2019-08-29 | R50: -Entretien Intermédiaire
A51: 177058 | B51: HERBEZ | D51: DIMITRI | E51: 30 | F51: 1990-06-11 | G51: 7128 | H51: SAS DORE SOLS | I51: 2013-09-16 | J51: SIR | K51: SIR | L51: 2017-08-29 | M51: Reprise après arrêt maladie | N51: 2017-08-29 | O51: Présent | P51: Reprise après arrêt maladie | Q51: 2019-08-29 | R51: -Entretien Intermédiaire
A52: 15146662 | B52: MORVAN | D52: ERWAN | E52: 20 | F52: 1999-09-19 | G52: 14735 | H52: SARL LE VOUEDEC | I52: 2016-09-01 | J52: SIR | K52: SIR | L52: 2017-08-30 | M52: Embauche | N52: 2017-08-30 | O52: Présent | P52: Embauche | Q52: 2019-08-30 | R52: -Entretien Intermédiaire
A53: 399243 | B53: SALIC | D53: DAMIEN | E53: 38 | F53: 1982-08-05 | G53: 64095 | H53: SARL GUYOT ENVIRONNEMENT | I53: 2016-03-01 | J53: SIR | K53: SIR | L53: 2017-08-31 | M53: Occasionnelle à la demande du Médecin du Travail | N53: 2017-08-31 | O53: Présent | P53: Occasionnelle à la demande du Médecin du Travail | Q53: 2019-08-31 | R53: -Entretien Intermédiaire
A54: 15031308 | B54: MONTEIRO RIOS | D54: ANTONIO | E54: 66 | F54: 1954-04-28 | G54: 46066 | H54: SAS SRB CONSTRUCTION | I54: 2010-09-01 | J54: SIR | K54: SIR | L54: 2017-09-01 | M54: Reprise après arrêt maladie | N54: 2017-09-01 | O54: Présent | P54: Reprise après arrêt maladie | Q54: 2019-09-01 | R54: -Entretien Intermédiaire
A55: 15169183 | B55: LE DISCOT | D55: MARVIN | E55: 26 | F55: 1994-01-24 | G55: 59387 | H55: SAS PEMM | I55: 2017-07-31 | J55: SIR | K55: SIR | L55: 2017-09-04 | M55: Embauche | N55: 2017-09-08 | O55: Excusé | P55: Embauche | Q55: 2019-09-08 | R55: -Entretien Intermédiaire
A56: 224587 | B56: LE BOURLOUT | D56: ARMELLE | E56: 63 | F56: 1957-03-31 | G56: 4449 | H56: ASSOCIATION THIRION DREAN | I56: 1998-09-21 | J56: SIR | K56: SIR | L56: 2017-09-11 | M56: Périodique | N56: 2017-09-11 | O56: Présent | P56: Périodique | Q56: 2019-09-11 | R56: -Entretien Intermédiaire
A57: 26592 | B57: BESNARD | D57: ARNAUD | E57: 37 | F57: 1983-08-02 | G57: 2958 | H57: SARL BERNETIC | I57: 2011-12-14 | J57: SIR | K57: SIR | L57: 2017-09-14 | M57: Périodique | N57: 2017-09-14 | O57: Présent | P57: Périodique | Q57: 2019-09-14 | R57: -Entretien Intermédiaire
A58: 374818 | B58: RAI | D58: MOHAMMED | E58: 40 | F58: 1980-02-28 | G58: 46066 | H58: SAS SRB CONSTRUCTION | I58: 2014-07-07 | J58: SIR | K58: SIR | L58: 2017-11-15 | M58: Occasionnelle à la demande du Médecin du Travail | N58: 2017-11-15 | O58: Présent | P58: Occasionnelle à la demande du Médecin du Travail | Q58: 2019-09-18 | R58: -Entretien Intermédiaire
A59: 156989 | B59: GUERGAM | D59: LOIC | E59: 56 | F59: 1964-02-12 | G59: 57441 | H59: EURL CHAUFFAGE PLOMBERIE LE MOUELLIC | I59: 2017-03-13 | J59: SI | K59: SIR | L59: 2017-09-21 | M59: Reprise après accident du travail | N59: 2017-09-21 | O59: Présent | P59: Reprise après accident du travail | Q59: 2019-09-20 | R59: -Entretien Intermédiaire
A60: 15142995 | B60: BADIRI | D60: YOUSSOUF | E60: 31 | F60: 1989-02-17 | G60: 55911 | H60: EURL BEVAN CONSTRUCTION | I60: 2017-08-01 | J60: SIR | K60: SIR | L60: 2017-09-27 | M60: -Examen Médical à l'embauche | N60: 2017-09-27 | O60: Présent | P60: Embauche | Q60: 2019-09-25 | R60: -Entretien Intermédiaire
A61: 15157175 | B61: EVANNO | D61: AMAURY | E61: 22 | F61: 1998-03-17 | G61: 57441 | H61: EURL CHAUFFAGE PLOMBERIE LE MOUELLIC | I61: 2017-09-05 | J61: SI | K61: SIR | L61: 2017-09-21 | M61: -Visite d'Information et de Prévention Initiale | N61: 2017-09-21 | O61: Présent | P61: Embauche | Q61: 2019-09-26 | R61: -Entretien Intermédiaire
A62: 15170569 | B62: FAYDIN | D62: SEZGIN | E62: 28 | F62: 1991-12-14 | G62: 29666 | H62: SA SMAC | I62: 2018-11-12 | J62: SIR | K62: SIR | L62: 2017-10-06 | M62: -Examen Médical | N62: 2017-10-06 | O62: Présent | P62: -Visite d'Information et de Prévention Initiale | Q62: 2019-10-04 | R62: -Entretien Intermédiaire
A63: 27414 | B63: BEUZET | D63: JEAN PIERRE | E63: 56 | F63: 1963-11-13 | G63: 12246 | H63: SARL THIERRY LAVAT | I63: 2006-01-31 | J63: SIR | K63: SIR | L63: 2017-10-17 | M63: -Examen Médical | N63: 2017-10-17 | O63: Présent | P63: -Examen Médical | Q63: 2019-10-15 | R63: -Entretien Intermédiaire
A64: 297130 | B64: LOPES XAVIER | D64: NORMANDO | E64: 45 | F64: 1975-08-15 | G64: 62009 | H64: SARL ARTI DECO BATI | I64: 2015-03-31 | J64: SIR | K64: SIR | L64: 2017-12-14 | M64: Occasionnelle à la demande du Médecin du Travail | N64: 2017-12-14 | O64: Présent | P64: Occasionnelle à la demande du Médecin du Travail | Q64: 2019-10-17 | R64: -Entretien Intermédiaire
A65: 15105529 | B65: LE MAO | D65: GWENOLE | E65: 41 | F65: 1978-09-17 | G65: 63714 | H65: SASU SEA VALUE ATLANTIC | I65: 2014-06-02 | J65: SIR | K65: SIR | L65: 2017-10-17 | M65: -Visite d'Information et de Prévention | N65: 2017-10-17 | O65: Présent | P65: -Visite d'Information et de Prévention | Q65: 2019-10-17 | R65: -Entretien Intermédiaire
A66: 382385 | B66: RIEUX | D66: OLIVIER | E66: 54 | F66: 1966-03-21 | G66: 12246 | H66: SARL THIERRY LAVAT | I66: 2007-06-21 | J66: SIR | K66: SIR | L66: 2017-10-26 | M66: -Examen Médical | N66: 2017-11-22 | O66: Excusé | P66: -Examen Médical | Q66: 2019-10-24 | R66: -Entretien Intermédiaire
A67: 215848 | B67: LAVAT | D67: ALAIN | E67: 62 | F67: 1958-07-21 | G67: 12246 | H67: SARL THIERRY LAVAT | I67: 2007-07-02 | J67: SIR | K67: SIR | L67: 2017-10-26 | M67: -Examen Médical | N67: 2017-10-26 | O67: Présent | P67: -Examen Médical | Q67: 2019-10-24 | R67: -Entretien Intermédiaire
A68: 78089 | B68: CONAN | D68: CHRISTOPHE | E68: 40 | F68: 1980-06-02 | G68: 63714 | H68: SASU SEA VALUE ATLANTIC | I68: 2013-04-08 | J68: SIR | K68: SIR | L68: 2017-10-26 | M68: -Examen Médical | N68: 2017-10-26 | O68: Présent | P68: -Visite d'Information et de Prévention | Q68: 2019-10-24 | R68: -Entretien Intermédiaire
A69: 15154603 | B69: PERAN | D69: YOANN | E69: 30 | F69: 1989-12-17 | G69: 66076 | H69: SARL MOREAU | I69: 2009-08-01 | J69: SIR | K69: SIR | L69: 2017-11-16 | M69: Reprise après maladie professionnelle | N69: 2017-11-16 | O69: Présent | P69: Reprise après maladie professionnelle | Q69: 2019-11-14 | R69: -Entretien Intermédiaire
A70: 275719 | B70: LE SAEC | D70: CYRIL | E70: 35 | F70: 1984-11-19 | G70: 12246 | H70: SARL THIERRY LAVAT | I70: 2005-11-04 | J70: SIR | K70: SIR | L70: 2017-11-16 | M70: -Examen Médical | N70: 2017-11-16 | O70: Présent | P70: -Examen Médical | Q70: 2019-11-14 | R70: -Entretien Intermédiaire
A71: 15107356 | B71: TANGUY | D71: ANTHONY | E71: 25 | F71: 1995-08-26 | G71: 46217 | H71: SAS PIGEON BRETAGNE SUD | I71: 2017-09-25 | J71: SIR | K71: SIR | L71: 2017-11-14 | M71: -Visite d'Information et de Prévention Initiale | N71: 2017-11-15 | O71: Excusé AMIEM | P71: -Visite d'Information et de Prévention Initiale | Q71: 2019-11-14 | R71: -Entretien Intermédiaire
A72: 15052098 | B72: KERVAZO | D72: GUENOLE | E72: 31 | F72: 1989-03-16 | G72: 15526 | H72: SAS LOY ET CIE | I72: 2018-01-03 | J72: SIR | K72: SIR | L72: 2017-11-16 | M72: -Visite d'Information et de Prévention Initiale | N72: 2017-11-16 | O72: Présent | P72: -Visite d'Information et de Prévention Initiale | Q72: 2019-11-15 | R72: -Entretien Intermédiaire
A73: 121163 | B73: EZANNIC | D73: JEAN YVES | E73: 57 | F73: 1963-05-10 | G73: 9703 | H73: SAS GUILLEMOT | I73: 2002-02-04 | J73: SIR | K73: SIR | L73: 2017-11-16 | M73: -Examen Médical | N73: 2017-12-14 | O73: Excusé AMIEM | P73: -Examen Médical | Q73: 2019-11-16 | R73: -Entretien Intermédiaire
A74: 186640 | B74: JAFFRE | D74: GAETAN | E74: 34 | F74: 1985-10-03 | G74: 9703 | H74: SAS GUILLEMOT | I74: 2006-03-01 | J74: SIR | K74: SIR | L74: 2017-11-16 | M74: -Examen Médical | N74: 2017-11-16 | O74: Présent | P74: -Examen Médical | Q74: 2019-11-16 | R74: -Entretien Intermédiaire
A75: 121163 | B75: EZANNIC | D75: JEAN YVES | E75: 57 | F75: 1963-05-10 | G75: 9703 | H75: SAS GUILLEMOT | I75: 2002-02-04 | J75: SIR | K75: SIR | L75: 2017-11-16 | M75: -Examen Médical | N75: 2017-12-14 | O75: Excusé | P75: -Examen Médical | Q75: 2019-11-16 | R75: -Entretien Intermédiaire
A76: 274025 | B76: LE ROUX | D76: JOSE | E76: 49 | F76: 1971-04-16 | G76: 9703 | H76: SAS GUILLEMOT | I76: 2002-02-08 | J76: SIR | K76: SIR | L76: 2017-11-22 | M76: -Examen Médical | N76: 2017-11-22 | O76: Présent | P76: -Examen Médical | Q76: 2019-11-20 | R76: -Entretien Intermédiaire
A77: 240764 | B77: LE FRANC | D77: JACQUES | E77: 49 | F77: 1971-02-19 | G77: 12246 | H77: SARL THIERRY LAVAT | I77: 2003-09-03 | J77: SIR | K77: SIR | L77: 2017-11-22 | M77: -Examen Médical | N77: 2017-11-22 | O77: Présent | P77: -Examen Médical | Q77: 2019-11-20 | R77: -Entretien Intermédiaire
A78: 407560 | B78: SIVY | D78: RICHARD | E78: 51 | F78: 1969-04-04 | G78: 1552 | H78: SARL AMBULANCES DE PLOUAY | I78: 2017-08-28 | J78: SIR | K78: SIR | L78: 2017-11-22 | M78: -Examen Médical à l'embauche | N78: 2017-11-22 | O78: Présent | P78: -Visite d'Information et de Prévention Initiale | Q78: 2019-11-20 | R78: -Entretien Intermédiaire
A79: 323963 | B79: MODICOM | D79: PIERRE | E79: 39 | F79: 1980-11-11 | G79: 9703 | H79: SAS GUILLEMOT | I79: 2010-04-28 | J79: SIR | K79: SIR | L79: 2017-11-22 | M79: -Examen Médical | N79: 2017-11-22 | O79: Présent | P79: -Examen Médical | Q79: 2019-11-20 | R79: -Entretien Intermédiaire
A80: 15004073 | B80: LAURENT | D80: VIVIAN | E80: 33 | F80: 1986-10-20 | G80: 21617 | H80: MONSIEUR BRUNO SOLEILHAC | I80: 2015-09-01 | J80: SIR | K80: SIR | L80: 2017-11-28 | M80: Reprise après congés maternité | N80: 2017-11-28 | O80: Présent | P80: Reprise après congés maternité | Q80: 2019-11-21 | R80: -Entretien Intermédiaire
A81: 15023523 | B81: BILLE | D81: JONATHAN | E81: 34 | F81: 1985-09-25 | G81: 63714 | H81: SASU SEA VALUE ATLANTIC | I81: 2013-04-08 | J81: SIR | K81: SIR | L81: 2017-11-22 | M81: -Examen Médical | N81: 2017-11-22 | O81: Présent | P81: -Examen Médical | Q81: 2019-11-22 | R81: -Entretien Intermédiaire
A82: 15059251 | B82: JEGOU | D82: MAELA | E82: 31 | F82: 1988-11-14 | G82: 57537 | H82: MUTUALITE FRANCAISE FINISTERE MORBIHAN | I82: 2013-05-13 | J82: SIR | K82: SIR | L82: 2017-11-22 | M82: -Visite d'Information et de Prévention | N82: 2017-11-22 | O82: Présent | P82: -Visite d'Information et de Prévention | Q82: 2019-11-22 | R82: -Entretien Intermédiaire
A83: 217060 | B83: LE BAIL | D83: JEAN JACQUES | E83: 53 | F83: 1966-10-16 | G83: 4451 | H83: MONSIEUR REGIS CANNO | I83: 2017-11-07 | J83: SI | K83: SIR | L83: 2017-11-22 | M83: -Visite d'Information et de Prévention Initiale | N83: 2017-11-22 | O83: Présent | P83: -Visite d'Information et de Prévention Initiale | Q83: 2019-11-25 | R83: -Entretien Intermédiaire
A84: 218203 | B84: LE BEC | D84: VINCENT | E84: 31 | F84: 1988-09-14 | G84: 57990 | H84: SARL AEL | I84: 2013-07-01 | J84: SIR | K84: SIR | L84: 2017-11-21 | M84: -Visite d'Information et de Prévention | N84: 2017-11-21 | O84: Présent | P84: -Visite d'Information et de Prévention | Q84: 2019-11-25 | R84: -Entretien Intermédiaire
A85: 15001720 | B85: LE DEVEHAT | D85: ROMAIN | E85: 35 | F85: 1985-02-02 | G85: 29666 | H85: SA SMAC | I85: 2012-04-02 | J85: SIR | K85: SIR | L85: 2017-11-29 | M85: -Examen Médical | N85: 2017-11-29 | O85: Présent | P85: -Examen Médical | Q85: 2019-11-27 | R85: -Entretien Intermédiaire
A86: 13748 | B86: BARBEAU | D86: MICKAEL | E86: 32 | F86: 1988-03-25 | G86: 46066 | H86: SAS SRB CONSTRUCTION | I86: 2009-05-04 | J86: SIR | K86: SIR | L86: 2017-11-29 | M86: Occasionnelle à la demande du Médecin du Travail | N86: 2017-11-29 | O86: Présent | P86: Occasionnelle à la demande du Médecin du Travail | Q86: 2019-11-29 | R86: -Entretien Intermédiaire
A87: 163064 | B87: GUILLEMOT | D87: NICOLAS | E87: 43 | F87: 1977-07-14 | G87: 8187 | H87: SAS FDC FRANCE | I87: 2017-11-20 | J87: SIR | K87: SIR | L87: 2017-11-29 | M87: -Examen Médical à l'embauche | N87: 2017-11-29 | O87: Présent | P87: -Examen Médical à l'embauche | Q87: 2019-11-29 | R87: -Entretien Intermédiaire
A88: 15040327 | B88: BOCA | D88: VASILE SORIN | E88: 49 | F88: 1971-02-10 | G88: 46066 | H88: SAS SRB CONSTRUCTION | I88: 2017-11-20 | J88: SIR | K88: SIR | L88: 2017-12-01 | M88: -Examen Médical à l'embauche | N88: 2017-12-01 | O88: Présent | P88: -Examen Médical | Q88: 2019-12-01 | R88: -Entretien Intermédiaire
A89: 353817 | B89: PERRET | D89: ARNAUD | E89: 48 | F89: 1971-09-20 | G89: 9703 | H89: SAS GUILLEMOT | I89: 2002-02-04 | J89: SIR | K89: SIR | L89: 2019-07-02 | M89: Pré-reprise (initiative du salarié) | N89: 2019-07-02 | O89: Présent | P89: Pré-reprise (initiative du salarié) | Q89: 2019-12-03 | R89: -Entretien Intermédiaire
A90: 35982 | B90: BONNANT | D90: FABIEN | E90: 46 | F90: 1974-04-11 | G90: 9703 | H90: SAS GUILLEMOT | I90: 2004-10-04 | J90: SIR | K90: SIR | L90: 2017-12-06 | M90: -Visite d'Information et de Prévention | N90: 2017-12-06 | O90: Présent | P90: -Examen Médical | Q90: 2019-12-06 | R90: -Entretien Intermédiaire
A91: 258730 | B91: LE MAUFF | D91: CLAUDE | E91: 49 | F91: 1970-09-07 | G91: 9703 | H91: SAS GUILLEMOT | I91: 2002-03-19 | J91: SIR | K91: SIR | L91: 2018-07-09 | M91: Reprise après arrêt maladie | N91: 2018-07-09 | O91: Présent | P91: Reprise après arrêt maladie | Q91: 2019-12-06 | R91: -Entretien Intermédiaire
A92: 205181 | B92: KERZERHO | D92: ROMAIN | E92: 33 | F92: 1987-03-05 | G92: 18585 | H92: SARL ETABLISSEMENTS PHILIPPE | I92: 2003-07-17 | J92: SI | K92: SIR | L92: 2017-12-06 | M92: -Examen Médical | N92: 2017-12-06 | O92: Présent | P92: -Visite d'Information et de Prévention | Q92: 2019-12-09 | R92: -Entretien Intermédiaire
A93: 163274 | B93: GUILLEMOT | D93: YANN | E93: 45 | F93: 1975-04-01 | G93: 18585 | H93: SARL ETABLISSEMENTS PHILIPPE | I93: 1999-04-13 | J93: SI | K93: SIR | L93: 2017-12-05 | M93: -Examen Médical | N93: 2017-12-05 | O93: Présent | P93: -Visite d'Information et de Prévention | Q93: 2019-12-09 | R93: -Entretien Intermédiaire
A94: 190864 | B94: JEFFRAY | D94: HUGUES | E94: 42 | F94: 1978-01-04 | G94: 29666 | H94: SA SMAC | I94: 2006-10-02 | J94: SIR | K94: SIR | L94: 2017-12-12 | M94: Occasionnelle à la demande du Médecin du Travail | N94: 2017-12-12 | O94: Présent | P94: Occasionnelle à la demande du Médecin du Travail | Q94: 2019-12-10 | R94: -Entretien Intermédiaire
A95: 15112914 | B95: YOLDAS | D95: BASRI | E95: 32 | F95: 1987-12-14 | G95: 46066 | H95: SAS SRB CONSTRUCTION | I95: 2019-02-07 | J95: SIR | K95: SIR | L95: 2017-12-13 | M95: -Examen Médical à l'embauche | N95: 2017-12-13 | O95: Présent | P95: -Examen Médical à l'embauche | Q95: 2019-12-11 | R95: -Entretien Intermédiaire
A96: 91774 | B96: DANO | D96: LAURENCE | E96: 56 | F96: 1964-05-01 | G96: 57537 | H96: MUTUALITE FRANCAISE FINISTERE MORBIHAN | I96: 2013-05-13 | J96: SIR | K96: SIR | L96: 2017-12-14 | M96: -Visite d'Information et de Prévention | N96: 2017-12-14 | O96: Présent | P96: -Visite d'Information et de Prévention | Q96: 2019-12-14 | R96: -Entretien Intermédiaire
A97: 231382 | B97: LE COQ | D97: FABIEN | E97: 39 | F97: 1981-06-17 | G97: 64083 | H97: SAS OCEANE SERVICES ENERGIE OSE | I97: 2018-07-01 | J97: SIR | K97: SIR | L97: 2017-12-14 | M97: -Visite d'Information et de Prévention | N97: 2017-12-14 | O97: Présent | P97: -Visite d'Information et de Prévention | Q97: 2019-12-14 | R97: -Entretien Intermédiaire
A98: 216737 | B98: LE BAGOUSSE | D98: ANTHONY | E98: 36 | F98: 1984-05-10 | G98: 20953 | H98: SARL GAUDIN | I98: 2017-01-23 | J98: SIR | K98: SIR | L98: 2019-10-31 | M98: Pré-reprise (initiative du médecin conseil) | N98: 2019-10-31 | O98: Présent | P98: Pré-reprise (initiative du médecin conseil) | Q98: 2020-01-02 | R98: -Entretien Intermédiaire
A99: 35652 | B99: BONCIU | D99: MIHAITA | E99: 43 | F99: 1977-06-11 | G99: 46066 | H99: SAS SRB CONSTRUCTION | I99: 2018-01-04 | J99: SIR | K99: SIR | L99: 2018-01-05 | M99: -Examen Médical à l'embauche | N99: 2018-01-05 | O99: Présent | P99: -Examen Médical à l'embauche | Q99: 2020-01-03 | R99: -Entretien Intermédiaire
A100: 15028395 | B100: ALLAIN | D100: DAVID | E100: 34 | F100: 1986-07-10 | G100: 29666 | H100: SA SMAC | I100: 2009-12-01 | J100: SIR | K100: SIR | L100: 2018-01-08 | M100: Reprise après arrêt maladie | N100: 2018-01-08 | O100: Présent | P100: Reprise après arrêt maladie | Q100: 2020-01-08 | R100: -Entretien Intermédiaire
A101: 384572 | B101: RIOUAL | D101: HERVE | E101: 58 | F101: 1961-12-09 | G101: 2958 | H101: SARL BERNETIC | I101: 2001-03-27 | J101: SIR | K101: SIR | L101: 2018-01-09 | M101: -Visite d'Information et de Prévention | N101: 2018-01-09 | O101: Présent | P101: -Visite d'Information et de Prévention | Q101: 2020-01-09 | R101: -Entretien Intermédiaire
A102: 328054 | B102: MOREIRA | D102: ANTHONY | E102: 38 | F102: 1982-03-16 | G102: 69866 | H102: SAS SOMAK | I102: 2019-01-01 | J102: SIR | K102: SIR | L102: 2018-01-12 | M102: Reprise après accident du travail | N102: 2018-01-12 | O102: Présent | P102: Reprise après accident du travail | Q102: 2020-01-10 | R102: -Entretien Intermédiaire
A103: 295895 | B103: LOEZIC | D103: BRENWEN | E103: 32 | F103: 1988-07-08 | G103: 59347 | H103: SARL KOET INOV | I103: 2018-09-17 | J103: SIR | K103: SIR | L103: 2019-03-19 | M103: Reprise après accident du travail | N103: 2019-03-19 | O103: Présent | P103: Reprise après accident du travail | Q103: 2020-01-14 | R103: -Entretien Intermédiaire
A104: 389046 | B104: RODRIGUES | D104: LUIS FILIPE | E104: 47 | F104: 1972-12-09 | G104: 46066 | H104: SAS SRB CONSTRUCTION | I104: 2012-01-02 | J104: SIR | K104: SIR | L104: 2019-05-14 | M104: Occasionnelle à la demande du Médecin du Travail | N104: 2019-05-14 | O104: Présent | P104: Occasionnelle à la demande du Médecin du Travail | Q104: 2020-01-14 | R104: -Entretien Intermédiaire
A105: 15067996 | B105: RIO | D105: KILLIAN | E105: 26 | F105: 1993-11-26 | G105: 5311 | H105: SA CITE MARINE | I105: 2018-11-05 | J105: SIR | K105: SIR | L105: 2019-10-01 | M105: Reprise après arrêt maladie | N105: 2019-10-01 | O105: Présent | P105: Reprise après arrêt maladie | Q105: 2020-01-14 | R105: -Entretien Intermédiaire
A106: 108129 | B106: DREAN | D106: OLIVIER | E106: 53 | F106: 1967-07-23 | G106: 2958 | H106: SARL BERNETIC | I106: 2003-05-22 | J106: SIR | K106: SIR | L106: 2018-01-09 | M106: -Visite d'Information et de Prévention | N106: 2018-01-09 | O106: Présent | P106: -Visite d'Information et de Prévention | Q106: 2020-01-15 | R106: -Entretien Intermédiaire
A107: 276708 | B107: LE SCOLAN | D107: ANTHONY | E107: 45 | F107: 1975-05-14 | G107: 46217 | H107: SAS PIGEON BRETAGNE SUD | I107: 2014-01-01 | J107: SIR | K107: SIR | L107: 2019-01-17 | M107: Occasionnelle à la demande de l'employeur | N107: 2019-01-17 | O107: Présent | P107: -Examen Médical | Q107: 2020-01-16 | R107: -Entretien Intermédiaire
A108: 229706 | B108: LE CHENADEC | D108: ELOISE | E108: 37 | F108: 1983-03-14 | G108: 57537 | H108: MUTUALITE FRANCAISE FINISTERE MORBIHAN | I108: 2013-05-13 | J108: SIR | K108: SIR | L108: 2018-01-18 | M108: -Visite d'Information et de Prévention | N108: 2018-01-18 | O108: Présent | P108: -Visite d'Information et de Prévention | Q108: 2020-01-18 | R108: -Entretien Intermédiaire
A109: 314411 | B109: MASSON | D109: CECILE | E109: 36 | F109: 1984-03-30 | G109: 57537 | H109: MUTUALITE FRANCAISE FINISTERE MORBIHAN | I109: 2013-11-28 | J109: SIR | K109: SIR | L109: 2018-01-18 | M109: -Visite d'Information et de Prévention | N109: 2018-01-18 | O109: Présent | P109: -Visite d'Information et de Prévention | Q109: 2020-01-18 | R109: -Entretien Intermédiaire
A110: 15116865 | B110: ROBIC | D110: MAEL | E110: 29 | F110: 1990-12-06 | G110: 47992 | H110: SARL TELE MEN SERVICES | I110: 2016-06-21 | J110: SI | K110: SIR | L110: 2018-01-18 | M110: -Visite d'Information et de Prévention | N110: 2018-01-18 | O110: Présent | P110: -Visite d'Information et de Prévention | Q110: 2020-01-20 | R110: -Entretien Intermédiaire
A111: 15019144 | B111: LE DOUSSAL | D111: SEBASTIEN | E111: 32 | F111: 1987-09-10 | G111: 5311 | H111: SA CITE MARINE | I111: 2018-03-21 | J111: SIR | K111: SIR | L111: 2018-05-23 | M111: Occasionnelle à la demande du Médecin du Travail | N111: 2018-05-25 | O111: Excusé | P111: Occasionnelle à la demande du Médecin du Travail | Q111: 2020-01-22 | R111: -Entretien Intermédiaire
A112: 298827 | B112: LORTHOIS | D112: ADRIEN | E112: 31 | F112: 1989-07-30 | G112: 10185 | H112: SA HENDIS | I112: 2017-05-09 | J112: SIR | K112: SIR | L112: 2018-01-23 | M112: -Visite d'Information et de Prévention Initiale | N112: 2018-01-23 | O112: Présent | P112: -Visite d'Information et de Prévention Initiale | Q112: 2020-01-23 | R112: -Entretien Intermédiaire
A113: 15069044 | B113: BOUTIER | D113: MELANIE | E113: 31 | F113: 1989-03-17 | G113: 68278 | H113: SARL ALFA PLOUAY | I113: 2017-12-07 | J113: SIR | K113: SIR | L113: 2018-01-18 | M113: -Visite d'Information et de Prévention Initiale | N113: 2018-05-24 | O113: Absent | P113: Occasionnelle à la demande du Médecin du Travail | Q113: 2020-01-23 | R113: -Entretien Intermédiaire
A114: 15142964 | B114: LE NY | D114: GWENN | E114: 21 | F114: 1999-05-20 | G114: 5311 | H114: SA CITE MARINE | I114: 2017-09-25 | J114: SIR | K114: SIR | L114: 2018-01-24 | M114: -Visite d'Information et de Prévention Initiale | N114: 2018-01-24 | O114: Présent | P114: -Visite d'Information et de Prévention Initiale | Q114: 2020-01-24 | R114: -Entretien Intermédiaire
A115: 269459 | B115: LE POGAM | D115: DAMIEN | E115: 33 | F115: 1987-07-31 | G115: 2547 | H115: SA BARAZER TP | I115: 2007-09-03 | J115: SIR | K115: SIR | L115: 2018-03-28 | M115: Reprise après arrêt maladie | N115: 2018-03-28 | O115: Présent | P115: Reprise après arrêt maladie | Q115: 2020-01-27 | R115: -Entretien Intermédiaire
A116: 15087993 | B116: BACQ | D116: CHRISTOPHER | E116: 23 | F116: 1997-02-26 | G116: 63203 | H116: SARL LE DANVIC | I116: 2018-01-08 | J116: SIR | K116: SIR | L116: 2018-01-29 | M116: -Examen Médical à l'embauche | N116: 2018-01-29 | O116: Présent | P116: -Examen Médical à l'embauche | Q116: 2020-01-27 | R116: -Entretien Intermédiaire
A117: 336167 | B117: NICOL | D117: EMMANUEL | E117: 41 | F117: 1979-04-19 | G117: 5311 | H117: SA CITE MARINE | I117: 2003-11-13 | J117: SIR | K117: SIR | L117: 2018-01-30 | M117: -Visite d'Information et de Prévention | N117: 2018-01-30 | O117: Présent | P117: -Visite d'Information et de Prévention | Q117: 2020-01-28 | R117: -Entretien Intermédiaire
A118: 15103132 | B118: DANCHOT | D118: MARC | E118: 25 | F118: 1994-10-06 | G118: 5311 | H118: SA CITE MARINE | I118: 2017-05-17 | J118: SIR | K118: SIR | L118: 2018-01-31 | M118: -Visite d'Information et de Prévention Initiale | N118: 2018-01-31 | O118: Présent | P118: -Visite d'Information et de Prévention Initiale | Q118: 2020-01-29 | R118: -Entretien Intermédiaire
A119: 177855 | B119: HERTEAUX | D119: PHILIPPE | E119: 64 | F119: 1956-04-27 | G119: 1552 | H119: SARL AMBULANCES DE PLOUAY | I119: 2000-11-20 | J119: SIR | K119: SIR | L119: 2018-02-01 | M119: -Visite d'Information et de Prévention | N119: 2018-02-27 | O119: Excusé | P119: -Visite d'Information et de Prévention | Q119: 2020-01-30 | R119: -Entretien Intermédiaire
A120: 15075358 | B120: THILLOY | D120: JEAN MICHEL | E120: 53 | F120: 1966-12-17 | G120: 65707 | H120: SARL GUILLOUX COUVERTURE | I120: 2018-01-08 | J120: SIR | K120: SIR | L120: 2018-02-01 | M120: -Examen Médical à l'embauche | N120: 2018-02-01 | O120: Présent | P120: -Visite d'Information et de Prévention | Q120: 2020-01-30 | R120: -Entretien Intermédiaire
A121: 378827 | B121: KERLO | C121: RENAUDINEAU | D121: SOAZIG | E121: 47 | F121: 1972-11-18 | G121: 1552 | H121: SARL AMBULANCES DE PLOUAY | I121: 2007-01-30 | J121: SIR | K121: SIR | L121: 2018-02-08 | M121: -Visite d'Information et de Prévention | N121: 2018-02-08 | O121: Présent | P121: -Visite d'Information et de Prévention | Q121: 2020-01-30 | R121: -Entretien Intermédiaire
A122: 116339 | B122: EL MIMOUNE | D122: SAMIR | E122: 40 | F122: 1980-02-16 | G122: 46066 | H122: SAS SRB CONSTRUCTION | I122: 2013-07-08 | J122: SIR | K122: SIR | L122: 2018-01-30 | M122: -Visite d'Information et de Prévention | N122: 2018-01-30 | O122: Présent | P122: -Visite d'Information et de Prévention | Q122: 2020-01-30 | R122: -Entretien Intermédiaire
A123: 1413 | B123: GOMES AIRES | D123: ANTONIO JOAQUIM | E123: 58 | F123: 1962-07-27 | G123: 46066 | H123: SAS SRB CONSTRUCTION | I123: 2010-05-04 | J123: SIR | K123: SIR | L123: 2018-01-30 | M123: -Visite d'Information et de Prévention | N123: 2018-01-30 | O123: Présent | P123: -Visite d'Information et de Prévention | Q123: 2020-01-30 | R123: -Entretien Intermédiaire
A124: 330749 | B124: MORVAN | D124: GWENAELLE | E124: 41 | F124: 1979-05-25 | G124: 57537 | H124: MUTUALITE FRANCAISE FINISTERE MORBIHAN | I124: 2013-10-04 | J124: SIR | K124: SIR | L124: 2018-02-01 | M124: -Visite d'Information et de Prévention | N124: 2018-02-01 | O124: Présent | P124: -Visite d'Information et de Prévention | Q124: 2020-02-01 | R124: -Entretien Intermédiaire
A125: 31380 | B125: BLANCHIER | D125: PATRICIA | E125: 47 | F125: 1972-12-29 | G125: 57537 | H125: MUTUALITE FRANCAISE FINISTERE MORBIHAN | I125: 2014-05-15 | J125: SIR | K125: SIR | L125: 2018-02-01 | M125: -Visite d'Information et de Prévention | N125: 2018-02-20 | O125: Présent | P125: Non décomptée (sans visite) | Q125: 2020-02-01 | R125: -Entretien Intermédiaire
A126: 256883 | B126: LE LOUER | D126: GILLES | E126: 59 | F126: 1961-07-17 | G126: 10296 | H126: MONSIEUR RONAN HEYDON | I126: 2018-02-01 | J126: SIR | K126: SIR | L126: 2018-02-02 | M126: Reprise après arrêt maladie | N126: 2018-02-02 | O126: Présent | P126: Reprise après arrêt maladie | Q126: 2020-02-02 | R126: -Entretien Intermédiaire
A127: 232841 | B127: BERNARD | C127: LE CORVEC | D127: GAELLE | E127: 42 | F127: 1978-03-31 | G127: 52896 | H127: SARL AVENIR SENIOR PLUS | I127: 2017-11-17 | J127: SIR | K127: SIR | L127: 2018-02-05 | M127: -Examen Médical à l'embauche | N127: 2018-02-05 | O127: Présent | P127: -Examen Médical à l'embauche | Q127: 2020-02-03 | R127: -Entretien Intermédiaire
A128: 15078552 | B128: MADI | D128: ANLI | E128: 34 | F128: 1986-06-26 | G128: 5311 | H128: SA CITE MARINE | I128: 2013-12-16 | J128: SIR | K128: SIR | L128: 2018-02-05 | M128: -Visite d'Information et de Prévention | N128: 2018-02-05 | O128: Présent | P128: -Visite d'Information et de Prévention | Q128: 2020-02-03 | R128: -Entretien Intermédiaire
A129: 15087904 | B129: AUDIC | D129: JEAN MICHEL | E129: 53 | F129: 1966-10-20 | G129: 46217 | H129: SAS PIGEON BRETAGNE SUD | I129: 2019-01-14 | J129: SIR | K129: SIR | L129: 2019-10-07 | M129: Occasionnelle à la demande du Médecin du Travail | N129: 2019-10-07 | O129: Présent | P129: Occasionnelle à la demande du Médecin du Travail | Q129: 2020-02-03 | R129: -Entretien Intermédiaire
A130: 77000020 | B130: LE TESSIER | D130: ALAIN | E130: 51 | F130: 1968-09-24 | G130: 5311 | H130: SA CITE MARINE | I130: 2018-01-15 | J130: SIR | K130: SIR | L130: 2018-02-05 | M130: -Examen Médical à l'embauche | N130: 2018-02-05 | O130: Présent | P130: -Examen Médical à l'embauche | Q130: 2020-02-05 | R130: -Entretien Intermédiaire
A131: 15177788 | B131: SENE ABDOU | D131: KARIM | E131: 39 | F131: 1980-12-10 | G131: 5311 | H131: SA CITE MARINE | I131: 2018-01-16 | J131: SIR | K131: SIR | L131: 2018-02-05 | M131: -Examen Médical à l'embauche | N131: 2018-02-05 | O131: Présent | P131: -Examen Médical à l'embauche | Q131: 2020-02-05 | R131: -Entretien Intermédiaire
A132: 124695 | B132: FEVRE | D132: DAVID | E132: 37 | F132: 1983-02-17 | G132: 46217 | H132: SAS PIGEON BRETAGNE SUD | I132: 2016-07-04 | J132: SIR | K132: SIR | L132: 2018-02-08 | M132: -Visite d'Information et de Prévention | N132: 2018-02-08 | O132: Présent | P132: -Visite d'Information et de Prévention | Q132: 2020-02-06 | R132: -Entretien Intermédiaire
A133: 15100585 | B133: GUILLEMOT | D133: JEAN CHARLES | E133: 42 | F133: 1978-06-17 | G133: 57537 | H133: MUTUALITE FRANCAISE FINISTERE MORBIHAN | I133: 2014-05-26 | J133: SIR | K133: SIR | L133: 2018-02-08 | M133: -Visite d'Information et de Prévention | N133: 2018-02-08 | O133: Présent | P133: -Visite d'Information et de Prévention | Q133: 2020-02-08 | R133: -Entretien Intermédiaire
A134: 15105690 | B134: LE TERRIEN | D134: CAROLE | E134: 32 | F134: 1988-08-01 | G134: 57537 | H134: MUTUALITE FRANCAISE FINISTERE MORBIHAN | I134: 2014-08-12 | J134: SIR | K134: SIR | L134: 2018-02-08 | M134: -Visite d'Information et de Prévention | N134: 2018-02-08 | O134: Présent | P134: -Visite d'Information et de Prévention | Q134: 2020-02-08 | R134: -Entretien Intermédiaire
A135: 93602 | B135: DAVID | D135: GAETAN | E135: 41 | F135: 1978-09-22 | G135: 46066 | H135: SAS SRB CONSTRUCTION | I135: 2018-02-01 | J135: SIR | K135: SIR | L135: 2018-02-09 | M135: -Examen Médical à l'embauche | N135: 2018-02-09 | O135: Présent | P135: -Examen Médical à l'embauche | Q135: 2020-02-09 | R135: -Entretien Intermédiaire
A136: 57500131 | B136: HUBERT | D136: JONATHAN | E136: 31 | F136: 1988-10-24 | G136: 60692 | H136: EURL DAVID RAUD | I136: 2017-12-18 | J136: SI | K136: SIR | L136: 2018-02-08 | M136: -Visite d'Information et de Prévention Initiale | N136: 2018-02-08 | O136: Présent | P136: -Visite d'Information et de Prévention Initiale | Q136: 2020-02-10 | R136: -Entretien Intermédiaire
A137: 204167 | B137: KERVADEC | C137: ROLLAND | D137: ELODIE | E137: 39 | F137: 1981-01-28 | G137: 62901 | H137: SAS PEOPLE AND BABY | I137: 2018-01-02 | J137: SIA | K137: SIR | L137: 2018-02-13 | M137: -Examen Médical à l'embauche | N137: 2018-02-13 | O137: Présent | P137: -Examen Médical à l'embauche | Q137: 2020-02-10 | R137: -Entretien Intermédiaire
A138: 354908 | B138: PERRON | D138: YVON | E138: 38 | F138: 1982-04-30 | G138: 5311 | H138: SA CITE MARINE | I138: 2014-11-03 | J138: SIR | K138: SIR | L138: 2018-02-12 | M138: -Visite d'Information et de Prévention | N138: 2018-02-12 | O138: Présent | P138: -Visite d'Information et de Prévention | Q138: 2020-02-10 | R138: -Entretien Intermédiaire
A139: 358215 | B139: PICAUD | D139: MICHEL | E139: 60 | F139: 1960-02-06 | G139: 5311 | H139: SA CITE MARINE | I139: 2008-05-14 | J139: SIR | K139: SIR | L139: 2018-02-13 | M139: -Visite d'Information et de Prévention | N139: 2018-02-13 | O139: Présent | P139: -Visite d'Information et de Prévention | Q139: 2020-02-11 | R139: -Entretien Intermédiaire
A140: 15179174 | B140: THEBAUDIN | D140: PASCAL | E140: 54 | F140: 1966-08-06 | G140: 46217 | H140: SAS PIGEON BRETAGNE SUD | I140: 2018-01-17 | J140: SIR | K140: SIR | L140: 2018-02-14 | M140: -Examen Médical à l'embauche | N140: 2018-02-14 | O140: Présent | P140: -Examen Médical à l'embauche | Q140: 2020-02-12 | R140: -Entretien Intermédiaire
A141: 166505 | B141: CUZON | D141: CATHERINE | E141: 56 | F141: 1964-08-07 | G141: 52896 | H141: SARL AVENIR SENIOR PLUS | I141: 2017-06-24 | J141: SIR | K141: SIR | L141: 2018-02-21 | M141: Reprise après arrêt maladie | N141: 2018-02-21 | O141: Présent | P141: Reprise après arrêt maladie | Q141: 2020-02-12 | R141: -Entretien Intermédiaire
A142: 111657 | B142: DUCRO | D142: GWENDAL | E142: 43 | F142: 1976-10-02 | G142: 30608 | H142: EURL STEPHANE TRECANT | I142: 2016-10-10 | J142: SIR | K142: SIR | L142: 2018-02-15 | M142: -Examen Médical | N142: 2018-02-15 | O142: Présent | P142: -Examen Médical | Q142: 2020-02-13 | R142: -Entretien Intermédiaire
A143: 106592 | B143: DORIMONT | D143: YANNICK | E143: 32 | F143: 1988-04-15 | G143: 10185 | H143: SA HENDIS | I143: 2015-03-02 | J143: SIR | K143: SIR | L143: 2018-02-15 | M143: -Visite d'Information et de Prévention | N143: 2018-02-15 | O143: Présent | P143: -Visite d'Information et de Prévention | Q143: 2020-02-13 | R143: -Entretien Intermédiaire
A144: 15020170 | B144: DENDRAEL | D144: MICHAEL | E144: 42 | F144: 1978-07-08 | G144: 64095 | H144: SARL GUYOT ENVIRONNEMENT | I144: 2016-03-01 | J144: SIR | K144: SIR | L144: 2019-09-06 | M144: Reprise après arrêt maladie | N144: 2019-09-06 | O144: Présent | P144: Reprise après arrêt maladie | Q144: 2020-02-14 | R144: -Entretien Intermédiaire
A145: 254527 | B145: LE HUITOU | D145: JEAN MICHEL | E145: 56 | F145: 1964-01-29 | G145: 30608 | H145: EURL STEPHANE TRECANT | I145: 2016-01-25 | J145: SIR | K145: SIR | L145: 2018-02-16 | M145: -Examen Médical | N145: 2018-02-16 | O145: Présent | P145: -Examen Médical | Q145: 2020-02-14 | R145: -Entretien Intermédiaire
A146: 410705 | B146: STIEN | D146: JEREMY | E146: 41 | F146: 1979-02-03 | G146: 65843 | H146: SAS ELIVIE | I146: 2016-11-14 | J146: SI | K146: SIR | L146: 2018-02-15 | M146: -Visite d'Information et de Prévention | N146: 2018-02-15 | O146: Présent | P146: -Visite d'Information et de Prévention | Q146: 2020-02-15 | R146: -Entretien Intermédiaire
A147: 251108 | B147: LE GUENNAN | D147: GUILLAUME | E147: 33 | F147: 1987-01-19 | G147: 46066 | H147: SAS SRB CONSTRUCTION | I147: 2019-09-09 | J147: SI | K147: SIR | L147: 2018-02-16 | M147: -Examen Médical à l'embauche | N147: 2018-02-16 | O147: Présent | P147: -Visite d'Information et de Prévention Initiale | Q147: 2020-02-19 | R147: -Entretien Intermédiaire
A148: 72003 | B148: LOY | C148: CHRISTIEN | D148: VALERIE | E148: 49 | F148: 1971-04-03 | G148: 1552 | H148: SARL AMBULANCES DE PLOUAY | I148: 1998-11-13 | J148: SIR | K148: SIR | L148: 2018-02-01 | M148: -Visite d'Information et de Prévention | N148: 2018-02-01 | O148: Présent | P148: Périodique | Q148: 2020-02-20 | R148: -Entretien Intermédiaire
A149: 7067 | B149: ARHUERO | D149: GWENAEL | E149: 43 | F149: 1977-07-24 | G149: 5311 | H149: SA CITE MARINE | I149: 2013-09-09 | J149: SIR | K149: SIR | L149: 2018-02-15 | M149: -Visite d'Information et de Prévention | N149: 2018-02-15 | O149: Présent | P149: -Visite d'Information et de Prévention | Q149: 2020-02-20 | R149: -Entretien Intermédiaire
A150: 51175 | B150: BRUNEAU | D150: SEBASTIEN | E150: 33 | F150: 1987-03-09 | G150: 55468 | H150: SARL LE BERRIGAUD GUEGAN ELECTRICITE | I150: 2019-03-04 | J150: SIR | K150: SIR | L150: 2018-02-22 | M150: -Examen Médical à l'embauche | N150: 2018-02-22 | O150: Présent | P150: -Examen Médical à l'embauche | Q150: 2020-02-20 | R150: -Entretien Intermédiaire
A151: 247237 | B151: LE GOFF | D151: FREDERIC | E151: 46 | F151: 1974-02-27 | G151: 30608 | H151: EURL STEPHANE TRECANT | I151: 2005-11-16 | J151: SIR | K151: SIR | L151: 2018-02-22 | M151: -Examen Médical | N151: 2018-02-22 | O151: Présent | P151: -Examen Médical | Q151: 2020-02-20 | R151: -Entretien Intermédiaire
A152: 386595 | B152: ROBERT | D152: ROMUALD | E152: 43 | F152: 1977-05-07 | G152: 1552 | H152: SARL AMBULANCES DE PLOUAY | I152: 2002-06-05 | J152: SIR | K152: SIR | L152: 2018-02-22 | M152: -Visite d'Information et de Prévention | N152: 2018-02-22 | O152: Présent | P152: -Visite d'Information et de Prévention | Q152: 2020-02-20 | R152: -Entretien Intermédiaire
A153: 303140 | B153: MADEC | D153: WILLIAM | E153: 44 | F153: 1976-08-15 | G153: 1552 | H153: SARL AMBULANCES DE PLOUAY | I153: 2010-12-06 | J153: SIR | K153: SIR | L153: 2018-02-22 | M153: -Visite d'Information et de Prévention | N153: 2018-02-22 | O153: Présent | P153: -Visite d'Information et de Prévention | Q153: 2020-02-20 | R153: -Entretien Intermédiaire
A154: 301642 | B154: LUGUE | D154: SYLVAIN | E154: 40 | F154: 1979-09-30 | G154: 29417 | H154: SARL CERIMPORT INDUSTRIES | I154: 2018-09-03 | J154: SIR | K154: SIR | L154: 2018-02-13 | M154: -Examen Médical à l'embauche | N154: 2018-02-13 | O154: Présent | P154: -Examen Médical à l'embauche | Q154: 2020-02-20 | R154: -Entretien Intermédiaire
A155: 15177245 | B155: HELLO | D155: VINCENT | E155: 28 | F155: 1992-06-01 | G155: 1552 | H155: SARL AMBULANCES DE PLOUAY | I155: 2017-12-18 | J155: SIR | K155: SIR | L155: 2018-02-15 | M155: -Visite d'Information et de Prévention Initiale | N155: 2018-02-15 | O155: Présent | P155: -Visite d'Information et de Prévention | Q155: 2020-02-20 | R155: -Entretien Intermédiaire
A156: 15156265 | B156: LE CLINFF | D156: STEVEN | E156: 22 | F156: 1998-06-22 | G156: 30608 | H156: EURL STEPHANE TRECANT | I156: 2016-09-26 | J156: SIR | K156: SIR | L156: 2018-02-22 | M156: -Examen Médical | N156: 2018-02-22 | O156: Présent | P156: -Examen Médical | Q156: 2020-02-20 | R156: -Entretien Intermédiaire
A157: 374833 | B157: RAIGNER | C157: DUBOIS | D157: MELISA | E157: 43 | F157: 1977-06-02 | G157: 10185 | H157: SA HENDIS | I157: 2014-03-03 | J157: SIR | K157: SIR | L157: 2018-02-21 | M157: -Visite d'Information et de Prévention | N157: 2018-02-21 | O157: Présent | P157: -Visite d'Information et de Prévention | Q157: 2020-02-21 | R157: -Entretien Intermédiaire
A158: 300632 | B158: LUCAS | D158: CHRISTOPHE | E158: 46 | F158: 1974-03-11 | G158: 30762 | H158: SARL SAGOT LOCATION | I158: 2007-10-01 | J158: SI | K158: SIR | L158: 2018-02-20 | M158: -Visite d'Information et de Prévention | N158: 2018-02-20 | O158: Présent | P158: -Visite d'Information et de Prévention | Q158: 2020-02-24 | R158: -Entretien Intermédiaire
A159: 15126866 | B159: BRIAND | D159: TITOUAN | E159: 25 | F159: 1995-01-12 | G159: 5311 | H159: SA CITE MARINE | I159: 2015-07-27 | J159: SIR | K159: SIR | L159: 2019-03-12 | M159: Reprise après arrêt maladie | N159: 2019-03-13 | O159: Excusé AMIEM | P159: Reprise après arrêt maladie | Q159: 2020-02-25 | R159: -Entretien Intermédiaire
A160: 15150789 | B160: COQUELLE | D160: ADELAIDE | E160: 28 | F160: 1992-05-13 | G160: 22722 | H160: SA TRICIA | I160: 2018-02-19 | J160: SIR | K160: SIR | L160: 2018-02-27 | M160: -Visite d'Information et de Prévention Initiale | N160: 2018-02-27 | O160: Présent | P160: -Visite d'Information et de Prévention Initiale | Q160: 2020-02-27 | R160: -Entretien Intermédiaire
A161: 39823 | B161: BOUGER | D161: RICHARD | E161: 55 | F161: 1965-01-08 | G161: 5311 | H161: SA CITE MARINE | I161: 2010-06-01 | J161: SIR | K161: SIR | L161: 2018-02-27 | M161: -Visite d'Information et de Prévention | N161: 2018-02-27 | O161: Présent | P161: -Visite d'Information et de Prévention | Q161: 2020-02-27 | R161: -Entretien Intermédiaire

Sheet AF VIP Initiale
A3: Salariés notés à revoir en " Examen médical à l'embauche "
A5: Salariés dont l'acte futur de nature "VIP Initiale ou VIP Initiale IDEST " est inférieur ou égal au | J5: =datefin -> 2021-02-28
A7: (1) Si Date dernière visite est "vide" = Visite ≤ 2010 ou Salarié jamais vu
A9: N° salarié | B9: Nom salarié | C9: Nom marital salarié | D9: Prénom salarié | E9: Age | F9: Date naissance | G9: N° adhérent | H9: Raison sociale | I9: Date embauche Emp.Actuel | J9: Cat. Decl. | K9: Cat. Const. | L9: Date dernière visite (1) | M9: Nature dernière visite | N9: Date dernier RDV | O9: Evènement dernier RDV | P9: Nature dernier RDV | Q9: Date acte futur | R9: Nature acte futur
A10: 15205733 | B10: ZEMIA | D10: FRED | E10: 52 | F10: 1968-01-11 | G10: 82056 | H10: SCOP COOP ASSO AIDE DOMICILE BRETAGNE | I10: 2017-12-01 | J10: SI | K10: SI | Q10: 2019-04-22 | R10: -Visite d'Information et de Prévention Initiale
A11: 15208530 | B11: PAUWELS | D11: CLEMENT | E11: 30 | F11: 1989-12-27 | G11: 60279 | H11: SAS BFB FINANCE | I11: 2019-04-29 | J11: SI | K11: SI | Q11: 2019-05-21 | R11: -Visite d'Information et de Prévention Initiale
A12: 15208529 | B12: JANOSZKA | C12: ROCQUET | D12: EMILIE | E12: 38 | F12: 1982-05-18 | G12: 60279 | H12: SAS BFB FINANCE | I12: 2019-04-15 | J12: SI | K12: SI | Q12: 2019-07-15 | R12: -Visite d'Information et de Prévention Initiale
A13: 15127527 | B13: ANJUERE | D13: JONATHAN | E13: 28 | F13: 1991-12-05 | G13: 53909 | H13: SARL AMISS SECURITE PRIVEE | I13: 2019-07-22 | J13: SI | K13: Cat. non constatée | N13: 2016-11-14 | O13: Absent | P13: Visite Intérimaire | Q13: 2019-08-06 | R13: -Visite d'Information et de Prévention Initiale
A14: 15083334 | B14: GLEYEN | D14: JULIE | E14: 26 | F14: 1993-09-09 | G14: 1552 | H14: SARL AMBULANCES DE PLOUAY | I14: 2019-04-08 | J14: SI | K14: SI | L14: 2019-08-01 | M14: Occasionnelle à la demande de l'employeur | N14: 2019-08-01 | O14: Présent | P14: Occasionnelle à la demande de l'employeur | Q14: 2019-10-03 | R14: -Visite d'Information et de Prévention Initiale
A15: 15220373 | B15: GLAIS | D15: MAIWENN | E15: 23 | F15: 1997-08-16 | G15: 82411 | H15: ASSOCIATION ADMR DE PLOUAY DU SCORFF AU BLAVET | I15: 2019-11-21 | J15: SI | K15: SI | Q15: 2020-01-31 | R15: -Visite d'Information et de Prévention Initiale
A16: 15223173 | B16: RIO | D16: PAULINE | E16: 24 | F16: 1996-06-14 | G16: 42966 | H16: ASS CENTRE AERE | I16: 2019-10-01 | J16: SIA | K16: SIA | Q16: 2020-02-21 | R16: -Visite d'Information et de Prévention Initiale
A17: 15226777 | B17: LE GLOAHEC | D17: THOMAS | E17: 22 | F17: 1998-05-07 | G17: 55374 | H17: MONSIEUR THOMAS OULD CHABOUN | I17: 2020-02-01 | J17: SI | K17: Cat. non constatée | Q17: 2020-02-24 | R17: -Visite d'Information et de Prévention Initiale

Sheet AF VIP
A3: Salariés notés à revoir en " Examen médical à l'embauche "
A5: Salariés dont l'acte futur de nature "VIP Initiale ou VIP Initiale IDEST ou périodique* " est inférieur ou égal au | J5: =datefin -> 2021-02-28
A7: (1) Si Date dernière visite est "vide" = Visite ≤ 2010 ou Salarié jamais vu
A8: * périodique = nature ancienne réglementation à mettre à jour
A9: N° salarié | B9: Nom salarié | C9: Nom marital salarié | D9: Prénom salarié | E9: Age | F9: Date naissance | G9: N° adhérent | H9: Raison sociale | I9: Date embauche Emp.Actuel | J9: Cat. Decl. | K9: Cat. Const. | L9: Date dernière visite (1) | M9: Nature dernière visite | N9: Date dernier RDV | O9: Evènement dernier RDV | P9: Nature dernier RDV | Q9: Date acte futur | R9: Nature acte futur
A10: 175652 | B10: HEMON | D10: EVELYNE | E10: 51 | F10: 1968-11-25 | G10: 82411 | H10: ASSOCIATION ADMR DE PLOUAY DU SCORFF AU BLAVET | I10: 2019-04-01 | J10: SIR | K10: SIR | N10: 2012-09-17 | O10: Présent | P10: Périodique | Q10: 2014-09-15 | R10: Périodique
A11: 372643 | B11: LE GAL | C11: QUERO | D11: FLORENCE | E11: 44 | F11: 1976-07-05 | G11: 82411 | H11: ASSOCIATION ADMR DE PLOUAY DU SCORFF AU BLAVET | I11: 2019-04-01 | J11: SIR | K11: SIR | N11: 2012-12-06 | O11: Présent | P11: Périodique | Q11: 2014-12-04 | R11: Périodique
A12: 15101705 | B12: LE FLECHER | D12: TYPHAINE | E12: 24 | F12: 1996-08-16 | G12: 82411 | H12: ASSOCIATION ADMR DE PLOUAY DU SCORFF AU BLAVET | I12: 2019-04-01 | J12: SIR | K12: SIR | N12: 2014-09-11 | O12: Excusé | P12: Embauche | Q12: 2016-09-07 | R12: Périodique
A13: 159394 | B13: GUIGO | C13: XAVIER VIEIRA | D13: MAGALI | E13: 44 | F13: 1976-04-04 | G13: 82411 | H13: ASSOCIATION ADMR DE PLOUAY DU SCORFF AU BLAVET | I13: 2019-04-01 | J13: SIR | K13: SIR | L13: 2015-02-19 | M13: Embauche | N13: 2015-02-19 | O13: Présent | P13: Embauche | Q13: 2017-02-16 | R13: Périodique
A14: 51091120 | B14: LE GAL | D14: EVA | E14: 28 | F14: 1991-12-23 | G14: 82411 | H14: ASSOCIATION ADMR DE PLOUAY DU SCORFF AU BLAVET | I14: 2019-04-01 | J14: SIR | K14: SIR | L14: 2016-05-19 | M14: Embauche | N14: 2016-05-19 | O14: Présent | P14: Embauche | Q14: 2018-05-17 | R14: Périodique
A15: 137212 | B15: GAUDIN | D15: JEROME | E15: 46 | F15: 1974-08-08 | G15: 55376 | H15: SAS BISCUITERIE DE LIGNOL | I15: 2017-03-20 | J15: SI | K15: SI | L15: 2020-01-21 | M15: Pré-reprise (initiative du médecin conseil) | N15: 2020-01-21 | O15: Présent | P15: Pré-reprise (initiative du médecin conseil) | Q15: 2019-01-16 | R15: Périodique
A16: 295938 | B16: LOFFICIAL | D16: MARTINE | E16: 63 | F16: 1957-05-10 | G16: 70772 | H16: CAISSE D EPARGNE BRETAGNE PAYS DE LOIRE | I16: 2005-09-01 | J16: SIA | K16: SIA | N16: 2017-01-19 | O16: Excusé | P16: Pré-reprise (initiative du médecin conseil) | Q16: 2019-01-17 | R16: -Visite d'Information et de Prévention
A17: 37008 | B17: BORDES | D17: ANTOINE | E17: 34 | F17: 1985-09-12 | G17: 38940 | H17: EURL SOCIETE COCHON DE COAT ECUFF | I17: 2006-10-02 | J17: SI | K17: SI | N17: 2017-01-31 | O17: Absent | P17: Périodique | Q17: 2019-01-28 | R17: -Visite d'Information et de Prévention
A18: 187136 | B18: JAFFRELOT | D18: MICHEL | E18: 55 | F18: 1964-11-30 | G18: 59224 | H18: SARL PLOUAY MATERIEL | I18: 2013-12-02 | J18: SI | K18: SI | N18: 2014-02-10 | O18: Présent | P18: Embauche | Q18: 2019-02-10 | R18: -Visite d'Information et de Prévention
A19: 232575 | B19: LE CORRE | D19: SOAZIG | E19: 49 | F19: 1971-04-19 | G19: 57537 | H19: MUTUALITE FRANCAISE FINISTERE MORBIHAN | I19: 2013-05-13 | J19: SI | K19: SI | N19: 2014-02-25 | O19: Présent | P19: Périodique | Q19: 2019-02-25 | R19: -Visite d'Information et de Prévention
A20: 356003 | B20: HAUTIER | C20: PETIT | D20: MARIE FLEUR | E20: 39 | F20: 1980-11-20 | G20: 57537 | H20: MUTUALITE FRANCAISE FINISTERE MORBIHAN | I20: 2013-05-13 | J20: SI | K20: SI | N20: 2014-03-13 | O20: Présent | P20: Embauche | Q20: 2019-03-13 | R20: -Visite d'Information et de Prévention
A21: 311566 | B21: MARRY | D21: JEAN JACQUES | E21: 63 | F21: 1957-05-13 | G21: 22638 | H21: SAS TRANSPORTS KERJAN | I21: 2018-03-12 | J21: SI | K21: SI | L21: 2017-03-21 | M21: Reprise après arrêt maladie | N21: 2017-03-21 | O21: Présent | P21: Reprise après arrêt maladie | Q21: 2019-03-19 | R21: -Visite d'Information et de Prévention
A22: 248741 | B22: LE GOUE | D22: DOMINIQUE | E22: 55 | F22: 1965-06-01 | G22: 46441 | H22: MADAME ISABELLE LE GOUE | I22: 2016-03-28 | J22: SI | K22: SIA | L22: 2016-04-14 | M22: Embauche | N22: 2016-04-14 | O22: Présent | P22: Embauche | Q22: 2019-04-14 | R22: -Visite d'Information et de Prévention
A23: 106511 | B23: LE SAEC | C23: DORE | D23: STEPHANIE | E23: 47 | F23: 1973-03-25 | G23: 7128 | H23: SAS DORE SOLS | I23: 1997-03-06 | J23: SI | K23: SI | Q23: 2019-05-01 | R23: -Visite d'Information et de Prévention
A24: 119861 | B24: EVANO | D24: MICKAEL | E24: 45 | F24: 1975-01-03 | G24: 81347 | H24: SARL ETABLISSEMENTS CHRISTIAN LAMOUR | I24: 2017-11-02 | J24: SI | K24: SI | N24: 2017-11-24 | O24: Excusé | P24: -Visite d'Information et de Prévention Initiale | Q24: 2019-06-04 | R24: -Visite d'Information et de Prévention
A25: 437298 | B25: ZAWIEJA | D25: ERIC | E25: 53 | F25: 1967-08-25 | G25: 22638 | H25: SAS TRANSPORTS KERJAN | I25: 2017-07-03 | J25: SI | K25: SI | L25: 2017-01-03 | M25: Embauche | N25: 2017-01-03 | O25: Présent | P25: Embauche | Q25: 2019-06-07 | R25: -Visite d'Information et de Prévention
A26: 202303 | B26: KERJAN | D26: STEPHANE | E26: 50 | F26: 1969-12-21 | G26: 22638 | H26: SAS TRANSPORTS KERJAN | I26: 1999-03-16 | J26: SI | K26: SI | L26: 2016-03-09 | M26: Périodique | N26: 2016-03-09 | O26: Présent | P26: Périodique | Q26: 2019-06-13 | R26: -Visite d'Information et de Prévention
A27: 409658 | B27: STANGUENNEC | D27: MAURICE | E27: 70 | F27: 1950-03-12 | G27: 22638 | H27: SAS TRANSPORTS KERJAN | I27: 2008-03-19 | J27: SI | K27: SI | L27: 2016-04-14 | M27: Périodique | N27: 2016-04-14 | O27: Présent | P27: Périodique | Q27: 2019-06-13 | R27: -Visite d'Information et de Prévention
A28: 53455 | B28: BUSSON | D28: GILLES | E28: 55 | F28: 1964-11-30 | G28: 22638 | H28: SAS TRANSPORTS KERJAN | I28: 2016-12-12 | J28: SI | K28: SI | L28: 2016-12-15 | M28: Embauche | N28: 2016-12-15 | O28: Présent | P28: Embauche | Q28: 2019-06-21 | R28: -Visite d'Information et de Prévention
A29: 380092 | B29: CLERGEON | C29: RHIDANE | D29: VERONIQUE | E29: 54 | F29: 1965-12-30 | G29: 57537 | H29: MUTUALITE FRANCAISE FINISTERE MORBIHAN | I29: 2013-05-13 | J29: SI | K29: SIA | L29: 2018-08-27 | M29: Occasionnelle à la demande du salarié | N29: 2018-08-27 | O29: Présent | P29: Occasionnelle à la demande du salarié | Q29: 2019-06-24 | R29: -Visite d'Information et de Prévention
A30: 219621 | B30: LE PADELLEC | C30: LE BIGOT | D30: MYRIAM | E30: 49 | F30: 1971-05-05 | G30: 12400 | H30: SARL LBMC | I30: 2014-10-01 | J30: SI | K30: SI | N30: 2014-06-30 | O30: Présent | P30: Périodique | Q30: 2019-06-30 | R30: -Visite d'Information et de Prévention
A31: 15067649 | B31: BAHUON | D31: CATHIE | E31: 52 | F31: 1967-10-05 | G31: 59315 | H31: SA COMPAGNIE DES PORTS DU MORBIHAN | I31: 2013-06-01 | J31: SI | K31: SIA | L31: 2016-07-07 | M31: Périodique | N31: 2016-07-07 | O31: Présent | P31: Périodique | Q31: 2019-07-07 | R31: -Visite d'Information et de Prévention
A32: 327254 | B32: MORAND | D32: STEPHANE | E32: 51 | F32: 1969-04-03 | G32: 48167 | H32: SARL DECO OUEST HABITAT | I32: 2016-11-01 | J32: SI | K32: SI | L32: 2016-04-14 | M32: Embauche | N32: 2017-07-11 | O32: Excusé | P32: Périodique | Q32: 2019-07-09 | R32: -Visite d'Information et de Prévention
A33: 155641 | B33: GUEHENEC | D33: VALERIE | E33: 47 | F33: 1972-12-19 | G33: 71803 | H33: SAS GSF CELTUS | I33: 2016-01-01 | J33: SI | K33: SI | N33: 2014-08-11 | O33: Présent | P33: Embauche | Q33: 2019-08-11 | R33: -Visite d'Information et de Prévention
A34: 15202439 | B34: SHENGPENG | D34: FAN | E34: 26 | F34: 1994-01-19 | G34: 60554 | H34: ASSOC GARDE DU VOEU HENNEBONT TENNIS DE TABLE | I34: 2018-07-01 | J34: SI | K34: SI | N34: 2019-05-22 | O34: Excusé | P34: -Visite d'Information et de Prévention | Q34: 2019-09-06 | R34: -Visite d'Information et de Prévention
A35: 8135 | B35: ATTIEH | D35: KARIM | E35: 46 | F35: 1974-06-18 | G35: 22638 | H35: SAS TRANSPORTS KERJAN | I35: 2016-08-30 | J35: SI | K35: SIA | L35: 2016-09-13 | M35: Embauche | N35: 2016-09-13 | O35: Présent | P35: Embauche | Q35: 2019-09-10 | R35: -Visite d'Information et de Prévention
A36: 15021178 | B36: CAPITAINE | C36: JOUAN | D36: MORGANE | E36: 36 | F36: 1983-09-22 | G36: 70772 | H36: CAISSE D EPARGNE BRETAGNE PAYS DE LOIRE | I36: 2017-01-01 | J36: SI | K36: SI | L36: 2015-01-27 | M36: Reprise après congés maternité | N36: 2017-09-12 | O36: Excusé | P36: Entretien Infirmier | Q36: 2019-09-12 | R36: -Visite d'Information et de Prévention
A37: 51548103 | B37: YONNET | D37: MARIE ALINE | E37: 50 | F37: 1969-12-17 | G37: 2958 | H37: SARL BERNETIC | I37: 2012-03-26 | J37: SIA | K37: SIA | L37: 2016-09-15 | M37: Périodique | N37: 2016-09-22 | O37: Excusé | P37: Périodique | Q37: 2019-09-15 | R37: -Visite d'Information et de Prévention
A38: 15170311 | B38: LE MENTEC | D38: JEAN MARC | E38: 58 | F38: 1962-08-20 | G38: 22638 | H38: SAS TRANSPORTS KERJAN | I38: 2017-09-04 | J38: SI | K38: SI | L38: 2017-09-21 | M38: -Visite d'Information et de Prévention Initiale | N38: 2017-09-21 | O38: Présent | P38: -Visite d'Information et de Prévention Initiale | Q38: 2019-09-19 | R38: -Visite d'Information et de Prévention
A39: 15158985 | B39: LE QUERE | D39: JEAN YVES | E39: 65 | F39: 1955-07-12 | G39: 29417 | H39: SARL CERIMPORT INDUSTRIES | I39: 2015-10-01 | J39: SI | K39: SI | N39: 2017-10-17 | O39: Excusé | P39: Périodique | Q39: 2019-09-19 | R39: -Visite d'Information et de Prévention
A40: 15075768 | B40: CRETTE | D40: SARAH | E40: 36 | F40: 1983-10-05 | G40: 41613 | H40: SARL ARMAND LE FLOCH PRET A PORTER | I40: 2016-06-14 | J40: SI | K40: SI | N40: 2017-09-25 | O40: Excusé | P40: Entretien Infirmier | Q40: 2019-09-25 | R40: -Visite d'Information et de Prévention
A41: 204512 | B41: KERVEADOU | D41: ANDRE | E41: 58 | F41: 1962-02-08 | G41: 15526 | H41: SAS LOY ET CIE | I41: 2014-09-09 | J41: SI | K41: SI | N41: 2014-09-30 | O41: Présent | P41: Embauche | Q41: 2019-09-30 | R41: -Visite d'Information et de Prévention
A42: 277732 | B42: LE STER | D42: SABRINA | E42: 44 | F42: 1975-12-04 | G42: 2958 | H42: SARL BERNETIC | I42: 2012-01-16 | J42: SIA | K42: SIA | L42: 2016-10-05 | M42: Périodique | N42: 2016-10-05 | O42: Présent | P42: Périodique | Q42: 2019-10-05 | R42: -Visite d'Information et de Prévention
A43: 141814 | B43: GESTIN | D43: GAEL | E43: 47 | F43: 1973-07-17 | G43: 2958 | H43: SARL BERNETIC | I43: 1998-11-27 | J43: SIA | K43: SIA | L43: 2016-10-11 | M43: Périodique | N43: 2016-10-11 | O43: Présent | P43: Périodique | Q43: 2019-10-12 | R43: -Visite d'Information et de Prévention
A44: 136819 | B44: GAUBERT | C44: LE GRUSSE | D44: NATHALIE | E44: 45 | F44: 1974-11-01 | G44: 5311 | H44: SA CITE MARINE | I44: 2014-11-17 | J44: SI | K44: SI | L44: 2015-01-26 | M44: Embauche | N44: 2017-10-09 | O44: Absent | P44: -Visite d'Information et de Prévention | Q44: 2019-10-17 | R44: -Visite d'Information et de Prévention
A45: 281859 | B45: KERNEN | C45: LE YONDRE | D45: VALERIE | E45: 51 | F45: 1968-09-19 | G45: 66942 | H45: SARL SUMACAS PLOUAY | I45: 2015-03-20 | J45: SI | K45: SI | N45: 2014-10-23 | O45: Présent | P45: Reprise après maladie professionnelle | Q45: 2019-10-23 | R45: -Visite d'Information et de Prévention
A46: 15149376 | B46: GRIMAULT | D46: LILIAN | E46: 22 | F46: 1998-01-30 | G46: 50114 | H46: MONSIEUR RICHARD LE FORESTIER | I46: 2016-08-01 | J46: SI | K46: SIA | L46: 2016-10-05 | M46: Embauche | N46: 2016-10-05 | O46: Présent | P46: Embauche | Q46: 2019-10-25 | R46: -Visite d'Information et de Prévention
A47: 121657 | B47: FAGES | C47: LE GAL | D47: CAROLINE | E47: 36 | F47: 1983-11-11 | G47: 2958 | H47: SARL BERNETIC | I47: 2016-10-10 | J47: SIA | K47: SIA | L47: 2016-10-27 | M47: Embauche | N47: 2016-10-27 | O47: Présent | P47: Embauche | Q47: 2019-10-27 | R47: -Visite d'Information et de Prévention
A48: 121657 | B48: FAGES | C48: LE GAL | D48: CAROLINE | E48: 36 | F48: 1983-11-11 | G48: 2958 | H48: SARL BERNETIC | I48: 2016-10-10 | J48: SIA | K48: SIA | L48: 2016-10-27 | M48: Embauche | N48: 2016-10-27 | O48: Excusé AMIEM | P48: Embauche | Q48: 2019-10-27 | R48: -Visite d'Information et de Prévention
A49: 204543 | B49: KERVEGANT | D49: EMILIE | E49: 32 | F49: 1988-07-11 | G49: 71709 | H49: SARL ETS MAURICE GABILLET | I49: 2014-03-10 | J49: SI | K49: SI | N49: 2014-10-30 | O49: Présent | P49: Embauche | Q49: 2019-10-30 | R49: -Visite d'Information et de Prévention
A50: 15028010 | B50: EVANNO | D50: OLIVIER | E50: 46 | F50: 1974-02-15 | G50: 71709 | H50: SARL ETS MAURICE GABILLET | I50: 2009-11-16 | J50: SI | K50: SI | L50: 2018-07-24 | M50: Occasionnelle à la demande du salarié | N50: 2018-07-24 | O50: Présent | P50: Occasionnelle à la demande du salarié | Q50: 2019-11-04 | R50: -Visite d'Information et de Prévention
A51: 15083907 | B51: LE HUITOUX | D51: LUDOVIC | E51: 40 | F51: 1980-07-03 | G51: 7478 | H51: OGEC DE PLOUAY | I51: 2013-07-01 | J51: SI | K51: SIA | L51: 2017-07-11 | M51: Occasionnelle à la demande de l'employeur | N51: 2017-07-11 | O51: Présent | P51: Occasionnelle à la demande de l'employeur | Q51: 2019-11-12 | R51: -Visite d'Information et de Prévention
A52: 401566 | B52: SAUVEY | D52: SYLVAIN | E52: 46 | F52: 1974-02-28 | G52: 7901 | H52: SARL LB TRANS | I52: 2017-11-06 | J52: SI | K52: SI | L52: 2017-11-20 | M52: -Visite d'Information et de Prévention Initiale | N52: 2017-11-20 | O52: Présent | P52: -Visite d'Information et de Prévention Initiale | Q52: 2019-11-18 | R52: -Visite d'Information et de Prévention
A53: 125860 | B53: LE PALABE | C53: FLEGEAU | D53: BRIGITTE | E53: 61 | F53: 1959-01-09 | G53: 48265 | H53: SA AT FRANCE | I53: 2010-02-15 | J53: SI | K53: SIA | L53: 2016-11-24 | M53: Reprise après arrêt maladie | N53: 2016-11-24 | O53: Présent | P53: Reprise après arrêt maladie | Q53: 2019-11-21 | R53: -Visite d'Information et de Prévention
A54: 253166 | B54: LE GUYADER | D54: SYLVIE | E54: 32 | F54: 1988-01-20 | G54: 5252 | H54: SAS CHOTO | I54: 2008-09-15 | J54: SI | K54: SI | L54: 2016-11-24 | M54: Périodique | N54: 2016-11-24 | O54: Présent | P54: Périodique | Q54: 2019-11-21 | R54: -Visite d'Information et de Prévention
A55: 383409 | B55: RIO | D55: GILLES | E55: 57 | F55: 1963-08-20 | G55: 56134 | H55: SAS A2S | I55: 2012-10-01 | J55: SI | K55: SI | L55: 2017-11-23 | M55: -Visite d'Information et de Prévention | N55: 2017-11-23 | O55: Présent | P55: -Visite d'Information et de Prévention | Q55: 2019-11-21 | R55: -Visite d'Information et de Prévention
A56: 376475 | B56: RAULT | D56: LAURENT | E56: 46 | F56: 1974-01-15 | G56: 7901 | H56: SARL LB TRANS | I56: 2005-07-01 | J56: SI | K56: SI | L56: 2017-11-27 | M56: -Visite d'Information et de Prévention | N56: 2017-11-27 | O56: Présent | P56: -Visite d'Information et de Prévention | Q56: 2019-11-25 | R56: -Visite d'Information et de Prévention
A57: 55281 | B57: OTMANE | C57: CADORET | D57: ROKIA | E57: 50 | F57: 1970-01-08 | G57: 62901 | H57: SAS PEOPLE AND BABY | I57: 2016-09-28 | J57: SIA | K57: SI | L57: 2017-09-27 | M57: Reprise après accident du travail | N57: 2017-09-27 | O57: Présent | P57: Reprise après arrêt maladie | Q57: 2019-11-27 | R57: -Visite d'Information et de Prévention
A58: 18262 | B58: BEAUMONT | D58: YVES | E58: 42 | F58: 1978-03-24 | G58: 71709 | H58: SARL ETS MAURICE GABILLET | I58: 2007-07-02 | J58: SI | K58: SI | N58: 2014-12-04 | O58: Excusé | P58: Périodique | Q58: 2019-11-27 | R58: -Visite d'Information et de Prévention
A59: 268053 | B59: LE BELLER | C59: LE PENDEVEN | D59: CATHERINE | E59: 44 | F59: 1976-01-30 | G59: 61865 | H59: SAS TRANSPORTS LE BELLER | I59: 2015-04-22 | J59: SI | K59: SI | L59: 2017-12-04 | M59: -Visite d'Information et de Prévention | N59: 2017-12-04 | O59: Présent | P59: -Visite d'Information et de Prévention | Q59: 2019-12-02 | R59: -Visite d'Information et de Prévention
A60: 336834 | B60: NICOLAS | D60: JEAN MICHEL | E60: 48 | F60: 1971-11-07 | G60: 7901 | H60: SARL LB TRANS | I60: 2010-12-20 | J60: SI | K60: SI | L60: 2017-12-04 | M60: -Visite d'Information et de Prévention | N60: 2017-12-04 | O60: Présent | P60: -Visite d'Information et de Prévention | Q60: 2019-12-02 | R60: -Visite d'Information et de Prévention
A61: 375929 | B61: COROLLER | C61: RAUD | D61: CHRISTELLE | E61: 38 | F61: 1982-03-27 | G61: 62901 | H61: SAS PEOPLE AND BABY | I61: 2016-09-29 | J61: SIA | K61: SIA | L61: 2016-12-05 | M61: Entretien Infirmier | N61: 2016-12-05 | O61: Présent | P61: Entretien Infirmier | Q61: 2019-12-02 | R61: -Visite d'Information et de Prévention
A62: 15001186 | B62: LE FRAPPER | D62: PIERRE ANGE | E62: 35 | F62: 1985-08-17 | G62: 35448 | H62: SARL LES VENETES | I62: 2014-07-07 | J62: SI | K62: SI | N62: 2014-12-04 | O62: Présent | P62: Embauche | Q62: 2019-12-04 | R62: -Visite d'Information et de Prévention
A63: 92316 | B63: DARDENNE | D63: NICOLAS | E63: 37 | F63: 1983-08-04 | G63: 5311 | H63: SA CITE MARINE | I63: 2017-03-05 | J63: SIA | K63: SIA | L63: 2016-12-07 | M63: Embauche | N63: 2016-12-07 | O63: Présent | P63: Visite Intérimaire | Q63: 2019-12-08 | R63: -Visite d'Information et de Prévention
A64: 15030977 | B64: LOUSSERT | D64: DIDIER | E64: 58 | F64: 1962-06-17 | G64: 19580 | H64: SAS REALISATION ALUMINIUM | I64: 2010-03-01 | J64: SI | K64: SIA | L64: 2019-08-27 | M64: Pré-reprise (initiative du salarié) | N64: 2019-08-27 | O64: Présent | P64: Pré-reprise (initiative du salarié) | Q64: 2019-12-10 | R64: -Visite d'Information et de Prévention
A65: 15106431 | B65: SAVIDAN | D65: JEREMY | E65: 29 | F65: 1990-10-15 | G65: 5311 | H65: SA CITE MARINE | I65: 2017-04-09 | J65: SIA | K65: SIA | L65: 2017-11-02 | M65: Occasionnelle à la demande du Médecin du Travail | N65: 2017-11-02 | O65: Présent | P65: Occasionnelle à la demande du Médecin du Travail | Q65: 2019-12-13 | R65: -Visite d'Information et de Prévention
A66: 15153329 | B66: POIRIER | D66: DAMIEN | E66: 27 | F66: 1993-02-25 | G66: 2958 | H66: SARL BERNETIC | I66: 2016-02-01 | J66: SIA | K66: SIA | L66: 2017-11-02 | M66: Reprise après arrêt maladie | N66: 2017-11-02 | O66: Présent | P66: Reprise après arrêt maladie | Q66: 2019-12-15 | R66: -Visite d'Information et de Prévention
A67: 15131475 | B67: ETTAYEB | D67: MOUEZ | E67: 34 | F67: 1986-01-02 | G67: 5311 | H67: SA CITE MARINE | I67: 2017-04-17 | J67: SIA | K67: SIA | L67: 2016-12-20 | M67: Embauche | N67: 2016-12-20 | O67: Présent | P67: Embauche | Q67: 2019-12-17 | R67: -Visite d'Information et de Prévention
A68: 210834 | B68: SAPKOTA | C68: LANCEREAU | D68: KAMALA | E68: 38 | F68: 1981-12-13 | G68: 5311 | H68: SA CITE MARINE | I68: 2007-09-30 | J68: SIA | K68: SIA | L68: 2019-01-17 | M68: Occasionnelle à la demande du salarié | N68: 2019-01-17 | O68: Présent | P68: Occasionnelle à la demande du salarié | Q68: 2019-12-19 | R68: -Visite d'Information et de Prévention
A69: 154927 | B69: GUEGAN | D69: SOPHIE | E69: 47 | F69: 1972-09-16 | G69: 5311 | H69: SA CITE MARINE | I69: 2017-02-06 | J69: SIA | K69: SIA | L69: 2019-04-25 | M69: Pré-reprise (initiative du médecin conseil) | N69: 2019-04-25 | O69: Présent | P69: Pré-reprise (initiative du médecin conseil) | Q69: 2020-01-02 | R69: -Visite d'Information et de Prévention
A70: 15047854 | B70: GAHINET | D70: TIFANNY | E70: 26 | F70: 1993-10-30 | G70: 34054 | H70: SARL BLUE SERVICE | I70: 2014-04-20 | J70: SI | K70: SI | N70: 2017-11-17 | O70: Excusé | P70: -Visite d'Information et de Prévention | Q70: 2020-01-02 | R70: -Visite d'Information et de Prévention
A71: 126835 | B71: FOIRET | D71: STEPHANE | E71: 43 | F71: 1977-07-27 | G71: 2958 | H71: SARL BERNETIC | I71: 2015-09-14 | J71: SIA | K71: SIA | L71: 2017-01-05 | M71: Périodique | N71: 2017-01-05 | O71: Présent | P71: Périodique | Q71: 2020-01-06 | R71: -Visite d'Information et de Prévention
A72: 15175957 | B72: GREGOIRE | D72: PIERRE | E72: 52 | F72: 1968-02-27 | G72: 22638 | H72: SAS TRANSPORTS KERJAN | I72: 2017-12-04 | J72: SI | K72: SI | L72: 2018-01-09 | M72: -Visite d'Information et de Prévention Initiale | N72: 2018-01-09 | O72: Présent | P72: -Visite d'Information et de Prévention Initiale | Q72: 2020-01-07 | R72: -Visite d'Information et de Prévention
A73: 274495 | B73: LE ROUX | D73: STEPHANIE | E73: 44 | F73: 1976-01-02 | G73: 2958 | H73: SARL BERNETIC | I73: 2015-11-12 | J73: SIA | K73: SIA | L73: 2017-01-10 | M73: Périodique | N73: 2017-01-18 | O73: Excusé | P73: Périodique | Q73: 2020-01-11 | R73: -Visite d'Information et de Prévention
A74: 15154102 | B74: YOUINOU | D74: MAELLE | E74: 22 | F74: 1998-06-03 | G74: 5311 | H74: SA CITE MARINE | I74: 2016-12-12 | J74: SIA | K74: SIA | L74: 2019-11-20 | M74: Pré-reprise (initiative du salarié) | N74: 2019-11-20 | O74: Présent | P74: Occasionnelle à la demande de l'employeur | Q74: 2020-01-12 | R74: -Visite d'Information et de Prévention
A75: 254533 | B75: LE HUITOUX | D75: MICKAEL | E75: 46 | F75: 1974-05-04 | G75: 44787 | H75: SARL TRANSPORTS PIERRE IHUEL | I75: 2017-10-16 | J75: SI | K75: SI | L75: 2018-01-15 | M75: -Visite d'Information et de Prévention Initiale | N75: 2018-01-15 | O75: Présent | P75: -Visite d'Information et de Prévention Initiale | Q75: 2020-01-13 | R75: -Visite d'Information et de Prévention
A76: 168715 | B76: GUYOMARD | D76: FRANCK | E76: 48 | F76: 1971-12-19 | G76: 64095 | H76: SARL GUYOT ENVIRONNEMENT | I76: 2017-04-01 | J76: SI | K76: SI | L76: 2018-01-16 | M76: Occasionnelle à la demande du Médecin du Travail | N76: 2018-01-16 | O76: Présent | P76: Occasionnelle à la demande du Médecin du Travail | Q76: 2020-01-14 | R76: -Visite d'Information et de Prévention
A77: 15159915 | B77: ROUZO | D77: JEREMY | E77: 32 | F77: 1988-06-28 | G77: 1231 | H77: SARL TRANSPORTS CARDIET FRERES | I77: 2018-07-23 | J77: SI | K77: SI | L77: 2018-01-18 | M77: -Examen Médical à l'embauche | N77: 2018-01-18 | O77: Présent | P77: -Examen Médical à l'embauche | Q77: 2020-01-16 | R77: -Visite d'Information et de Prévention
A78: 15154512 | B78: VAHE | D78: CHRISTOPHE | E78: 54 | F78: 1966-08-04 | G78: 66652 | H78: ASSOCIATION AMISEP | I78: 2017-04-01 | J78: SI | K78: SIA | L78: 2017-01-19 | M78: Embauche | N78: 2017-01-19 | O78: Présent | P78: Embauche | Q78: 2020-01-20 | R78: -Visite d'Information et de Prévention
A79: 15150301 | B79: FERNEA | C79: CURILEAC | D79: MONICA | E79: 36 | F79: 1984-08-24 | G79: 5311 | H79: SA CITE MARINE | I79: 2016-09-18 | J79: SIA | K79: SIA | L79: 2016-10-17 | M79: Embauche | N79: 2020-01-13 | O79: Excusé | P79: -Visite d'Information et de Prévention | Q79: 2020-01-20 | R79: -Visite d'Information et de Prévention
A80: 236548 | B80: LE DORTZ | D80: PASCAL | E80: 50 | F80: 1970-05-21 | G80: 7901 | H80: SARL LB TRANS | I80: 2011-05-09 | J80: SI | K80: SI | L80: 2018-01-22 | M80: -Visite d'Information et de Prévention | N80: 2018-01-22 | O80: Présent | P80: -Visite d'Information et de Prévention | Q80: 2020-01-20 | R80: -Visite d'Information et de Prévention
A81: 58233 | B81: CAPOEN | D81: FREDY | E81: 53 | F81: 1967-05-28 | G81: 5311 | H81: SA CITE MARINE | I81: 2014-10-20 | J81: SIA | K81: SIA | L81: 2017-01-24 | M81: Occasionnelle à la demande de l'employeur | N81: 2017-01-24 | O81: Présent | P81: Occasionnelle à la demande de l'employeur | Q81: 2020-01-21 | R81: -Visite d'Information et de Prévention
A82: 15001155 | B82: VACHER | C82: MARTINEAU | D82: SANDRINE | E82: 51 | F82: 1969-08-17 | G82: 8205 | H82: SAS ARMOR PLATS CUISINES | I82: 2013-04-02 | J82: SIA | K82: SIA | L82: 2017-11-20 | M82: -Visite d'Information et de Prévention | N82: 2017-11-20 | O82: Présent | P82: -Visite d'Information et de Prévention | Q82: 2020-01-22 | R82: -Visite d'Information et de Prévention
A83: 72884 | B83: CLEMENCE | D83: BERNARD | E83: 50 | F83: 1969-12-24 | G83: 2958 | H83: SARL BERNETIC | I83: 2011-06-01 | J83: SI | K83: SI | L83: 2015-01-22 | M83: Périodique | N83: 2015-01-22 | O83: Présent | P83: Périodique | Q83: 2020-01-22 | R83: -Visite d'Information et de Prévention
A84: 320358 | B84: MESSAADIA | C84: LE FOURN | D84: CAROLINE | E84: 46 | F84: 1973-12-15 | G84: 5311 | H84: SA CITE MARINE | I84: 2017-02-08 | J84: SIA | K84: SIA | L84: 2017-01-25 | M84: Embauche | N84: 2017-01-25 | O84: Présent | P84: Visite Intérimaire | Q84: 2020-01-22 | R84: -Visite d'Information et de Prévention
A85: 15141695 | B85: TITOV | D85: ANDRII | E85: 47 | F85: 1973-06-28 | G85: 5311 | H85: SA CITE MARINE | I85: 2016-01-01 | J85: SIA | K85: SIA | L85: 2017-01-26 | M85: Occasionnelle à la demande de l'employeur | N85: 2017-01-26 | O85: Présent | P85: Occasionnelle à la demande de l'employeur | Q85: 2020-01-23 | R85: -Visite d'Information et de Prévention
A86: 10250 | B86: AUFFRET | D86: MAEL | E86: 40 | F86: 1979-09-11 | G86: 5311 | H86: SA CITE MARINE | I86: 2016-10-09 | J86: SIA | K86: SIA | L86: 2016-11-15 | M86: Embauche | N86: 2020-01-02 | O86: Excusé | P86: Reprise après arrêt maladie | Q86: 2020-01-23 | R86: -Visite d'Information et de Prévention
A87: 551 | B87: ABRIAL | D87: LAURENT | E87: 47 | F87: 1973-08-24 | G87: 5311 | H87: SA CITE MARINE | I87: 2015-11-16 | J87: SIA | K87: SIA | L87: 2017-01-20 | M87: Occasionnelle à la demande de l'employeur | N87: 2017-01-20 | O87: Présent | P87: Occasionnelle à la demande de l'employeur | Q87: 2020-01-24 | R87: -Visite d'Information et de Prévention
A88: 15117566 | B88: BRINDEAU | D88: THIERRY | E88: 47 | F88: 1973-07-01 | G88: 5311 | H88: SA CITE MARINE | I88: 2010-09-26 | J88: SIA | K88: SIA | L88: 2017-01-24 | M88: Occasionnelle à la demande de l'employeur | N88: 2017-01-24 | O88: Présent | P88: Occasionnelle à la demande de l'employeur | Q88: 2020-01-25 | R88: -Visite d'Information et de Prévention
A89: 15050354 | B89: MADJIDI | D89: IBRAHIM | E89: 32 | F89: 1988-06-24 | G89: 5311 | H89: SA CITE MARINE | I89: 2011-06-26 | J89: SIA | K89: SIA | L89: 2017-01-26 | M89: Occasionnelle à la demande de l'employeur | N89: 2017-01-26 | O89: Présent | P89: Occasionnelle à la demande de l'employeur | Q89: 2020-01-27 | R89: -Visite d'Information et de Prévention
A90: 249954 | B90: LE GRAS | D90: LYDIE | E90: 50 | F90: 1970-04-24 | G90: 2958 | H90: SARL BERNETIC | I90: 2000-05-26 | J90: SI | K90: SI | L90: 2015-01-27 | M90: Périodique | N90: 2015-01-27 | O90: Présent | P90: Périodique | Q90: 2020-01-27 | R90: -Visite d'Information et de Prévention
A91: 352540 | B91: PERESSE | D91: JEAN MICHEL | E91: 59 | F91: 1960-09-25 | G91: 46217 | H91: SAS PIGEON BRETAGNE SUD | I91: 2009-11-04 | J91: SI | K91: SI | L91: 2018-02-07 | M91: -Visite d'Information et de Prévention | N91: 2018-02-07 | O91: Présent | P91: -Entretien Intermédiaire | Q91: 2020-02-05 | R91: -Visite d'Information et de Prévention
A92: 127616 | B92: QUEGUINER | C92: FORGET | D92: MARTHE | E92: 40 | F92: 1980-08-27 | G92: 5311 | H92: SA CITE MARINE | I92: 2013-05-02 | J92: SIA | K92: SIA | L92: 2017-02-09 | M92: Reprise après congés maternité | N92: 2017-02-09 | O92: Présent | P92: Reprise après congés maternité | Q92: 2020-02-10 | R92: -Visite d'Information et de Prévention
A93: 15108649 | B93: TOUYER | D93: CAROLINE | E93: 33 | F93: 1987-07-29 | G93: 62203 | H93: SAS ISLA MONDIAL | I93: 2015-06-01 | J93: SI | K93: SI | L93: 2019-04-16 | M93: Pré-reprise (initiative du médecin traitant) | N93: 2019-04-16 | O93: Présent | P93: Pré-reprise (initiative du salarié) | Q93: 2020-02-13 | R93: -Visite d'Information et de Prévention
A94: 181103 | B94: LAZES | C94: HOMPS | D94: NATHALIE | E94: 46 | F94: 1974-07-09 | G94: 48442 | H94: ASS UD CONSOMMATION LOGEMENT CADRE CLCV 56 | I94: 2018-03-02 | J94: SIA | K94: SIA | L94: 2019-01-25 | M94: Occasionnelle à la demande de l'employeur | N94: 2019-01-25 | O94: Présent | P94: Occasionnelle à la demande de l'employeur | Q94: 2020-02-14 | R94: -Visite d'Information et de Prévention
A95: 15155360 | B95: GRIMBERT | C95: JEZEGOU | D95: MAGALI | E95: 50 | F95: 1969-12-11 | G95: 5311 | H95: SA CITE MARINE | I95: 2017-10-01 | J95: SIA | K95: SIA | L95: 2017-02-14 | M95: Embauche | N95: 2017-02-16 | O95: Excusé | P95: Visite Intérimaire | Q95: 2020-02-15 | R95: -Visite d'Information et de Prévention
A96: 15150233 | B96: BUDES | D96: CINDY | E96: 24 | F96: 1996-04-13 | G96: 5311 | H96: SA CITE MARINE | I96: 2017-07-02 | J96: SIA | K96: SIA | L96: 2017-02-14 | M96: Embauche | N96: 2017-02-14 | O96: Présent | P96: Visite Intérimaire | Q96: 2020-02-15 | R96: -Visite d'Information et de Prévention
A97: 292103 | B97: FOURNIER | C97: LESCOT | D97: STEPHANIE | E97: 43 | F97: 1977-08-18 | G97: 71231 | H97: SA CREDIT MUTUEL ARKEA | I97: 2017-03-07 | J97: SI | K97: SI | L97: 2018-01-08 | M97: Reprise après arrêt maladie | N97: 2018-01-08 | O97: Présent | P97: Reprise après arrêt maladie | Q97: 2020-02-17 | R97: -Visite d'Information et de Prévention
A98: 15035925 | B98: OVION | D98: MEGANE | E98: 27 | F98: 1992-10-15 | G98: 49507 | H98: SARL TY PRODUCTEURS | I98: 2016-05-02 | J98: SIA | K98: SI | L98: 2016-03-08 | M98: Embauche | N98: 2018-02-20 | O98: Excusé | P98: -Visite d'Information et de Prévention | Q98: 2020-02-18 | R98: -Visite d'Information et de Prévention
A99: 437127 | B99: ZAJAC | D99: REGIS | E99: 43 | F99: 1976-10-06 | G99: 5311 | H99: SA CITE MARINE | I99: 2003-10-23 | J99: SIA | K99: SIA | L99: 2017-09-27 | M99: Reprise après arrêt maladie | N99: 2017-09-27 | O99: Présent | P99: Reprise après arrêt maladie | Q99: 2020-02-26 | R99: -Visite d'Information et de Prévention

Sheet AMT
A2: Action en milieu de travail réalisées sur le secteur
A7: =CONCATENATE("AMT réalisées du ",DAY(datedeb),"/",MONTH(datedeb),"/",YEAR(datedeb)," au ",DAY(datefin),"/",MONTH(datefin),"/",YEAR(datefin)," selon le motif saisi") -> AMT réalisées du 1/1/2021 au 28/2/2021 selon le motif saisi | M7: Adhérents du secteur et dernière AMT (saisie dans le logiciel métier)
M28: * hormis les AMT non saisies du fait d'un suivi exclusivement sur papier : le 100 % informatique a démarré progressivement avec la mise en place du CED en 2016

Sheet détails AMT
A3: =CONCATENATE("Tableau 1 - AMT réalisées sur le secteur du ",DAY(datedeb),"/",MONTH(datedeb),"/",YEAR(datedeb)," au ",DAY(datefin),"/",MONTH(datefin),"/",YEAR(datefin)) -> Tableau 1 - AMT réalisées sur le secteur du 1/1/2021 au 28/2/2021 | H3: Tableau 2 - Adhérents du secteur avec leur date de dernière AMT
A6: N° adhérent | B6: Raison sociale | C6: Intervenant | D6: Motif AMT | E6: Date AMT | H6: N° adhérent | I6: Raison sociale | J6: Secteur d'activité | K6: Date adhésion | L6: Date dernière AMT | M6: Tranche antériorité AMT
A7: 5311 | B7: SA CITE MARINE | C7: BILLARD Aurélie | D7: Intervention d'un intervenant en prévent | E7: 2020-01-07 | H7: 31101 | I7: MONSIEUR STEPHANE LE MOUILLOUR | J7: Construction | K7: 2002-02-25 | L7: 2007-12-21 | M7: =IF(L7 = 0,"Adhérent sans aucune AMT saisie",IF(NOW() - L7 < 730.5,"AMT < 2 ans",IF(NOW() - L7 < 1826.25,"2 ans < AMT < 5 ans",IF(NOW() - L7 < 3652.5,"5 ans < AMT < 10 ans",IF(NOW() - L7 >= 3652.5,"AMT > 10 ans","Adhérent sans aucune AMT saisie"))))) -> AMT > 10 ans
A8: 5311 | B8: SA CITE MARINE | C8: BILLARD Aurélie | D8: Intervention d'un intervenant en prévent | E8: 2020-01-30 | H8: 30762 | I8: SARL SAGOT LOCATION | J8: Activités de services administratifs et de soutien | K8: 2001-12-05 | L8: 2007-12-21 | M8: AMT > 10 ans
A9: 5311 | B9: SA CITE MARINE | C9: GESREL Isabelle | D9: Gestion d'une situation collective | E9: 2020-01-28 | H9: 33508 | I9: SARL LA BERGERIE | J9: Hébergement et restauration | K9: 2003-08-18 | L9: 2007-12-21 | M9: AMT > 10 ans
A10: 5311 | B10: SA CITE MARINE | C10: LE GARFF Pierre | D10: Entretien avec l'employeur | E10: 2020-01-28 | H10: 31900 | I10: MADAME NATHALIE TOULGOAT | J10: Commerce ; réparation d'automobiles et de motocycles | K10: 2002-08-21 | L10: 2007-12-21 | M10: AMT > 10 ans
A11: 5311 | B11: SA CITE MARINE | C11: LE GARFF Pierre | D11: Etude de Poste | E11: 2020-02-18 | H11: 30516 | I11: SCM DRS LANGARD DANIEL ET LE NOZACH | J11: Santé humaine et action sociale | K11: 2001-10-16 | L11: 2007-12-21 | M11: AMT > 10 ans
A12: 5311 | B12: SA CITE MARINE | C12: LE GARFF Pierre | D12: Préparation Rapport | E12: 2020-02-06 | H12: 29711 | I12: MONSIEUR JEAN PIERRE MORIN | J12: Construction | K12: 2001-05-23 | L12: 2007-12-21 | M12: AMT > 10 ans
A13: 5311 | B13: SA CITE MARINE | C13: LE GARFF Pierre | D13: Préparation Rapport | E13: 2020-02-19 | H13: 30608 | I13: EURL STEPHANE TRECANT | J13: Construction | K13: 2001-10-30 | L13: 2007-12-21 | M13: AMT > 10 ans
A14: 5311 | B14: SA CITE MARINE | C14: SAILLER GAELLE | D14: Gestion d'une situation collective | E14: 2020-01-28 | H14: 30559 | I14: SARL SDLH | J14: Commerce ; réparation d'automobiles et de motocycles | K14: 2001-10-23 | L14: 2007-12-21 | M14: AMT > 10 ans
A15: 23214 | B15: SARL VJ CASH | C15: LE GARFF Pierre | D15: Entretien avec l'employeur | E15: 2020-02-25 | H15: 35595 | I15: MONSIEUR STEPHANE LE DEVEHAT | J15: Construction | K15: 2004-11-23 | L15: 2007-12-21 | M15: AMT > 10 ans
A16: 23214 | B16: SARL VJ CASH | C16: LE GARFF Pierre | D16: Rédaction Rapport | E16: 2020-02-25 | H16: 35134 | I16: MADAME SYLVIE LE ROY | J16: Hébergement et restauration | K16: 2004-08-13 | L16: 2007-12-21 | M16: AMT > 10 ans
A17: 44787 | B17: SARL TRANSPORTS PIERRE IHUEL | C17: LE GARFF Pierre | D17: Entretien avec l'employeur | E17: 2020-02-26 | H17: 36635 | I17: MONSIEUR JEAN FRANCOIS LE GALLOUDEC | J17: Commerce ; réparation d'automobiles et de motocycles | K17: 2005-06-27 | L17: 2007-12-21 | M17: AMT > 10 ans
A18: 44787 | B18: SARL TRANSPORTS PIERRE IHUEL | C18: LE GARFF Pierre | D18: Préparation d'intervention | E18: 2020-02-26 | H18: 36602 | I18: SARL PHARMACIE LE MONNIER | J18: Commerce ; réparation d'automobiles et de motocycles | K18: 2005-06-22 | L18: 2007-12-21 | M18: AMT > 10 ans
A19: 44787 | B19: SARL TRANSPORTS PIERRE IHUEL | C19: LE GARFF Pierre | D19: Rédaction Rapport | E19: 2020-02-26 | H19: 34875 | I19: MONSIEUR DAVID LE MAREC | J19: Activités de services administratifs et de soutien | K19: 2004-06-29 | L19: 2007-12-21 | M19: AMT > 10 ans
A20: 44787 | B20: SARL TRANSPORTS PIERRE IHUEL | C20: LE GARFF Pierre | D20: Rédaction Rapport | E20: 2020-02-26 | H20: 34720 | I20: MONSIEUR BRUNO LE JOLLY | J20: Hébergement et restauration | K20: 2004-05-27 | L20: 2007-12-21 | M20: AMT > 10 ans
A21: 46103 | B21: SARL PROBANET | C21: LE GARFF Pierre | D21: Rédaction Rapport | E21: 2020-01-07 | H21: 35004 | I21: SARL TECNICLIMA | J21: Construction | K21: 2004-07-20 | L21: 2007-12-21 | M21: AMT > 10 ans
A22: 50830 | B22: SA MATMUT | C22: BILLARD Aurélie | D22: Intervention d'un intervenant en prévent | E22: 2020-01-06 | H22: 34957 | I22: MONSIEUR PASCAL TRUHE | J22: Construction | K22: 2004-07-13 | L22: 2007-12-21 | M22: AMT > 10 ans
A23: 50830 | B23: SA MATMUT | C23: BILLARD Aurélie | D23: Intervention d'un intervenant en prévent | E23: 2020-01-07 | H23: 29519 | I23: SARL CRON | J23: Construction | K23: 2001-04-11 | L23: 2007-12-21 | M23: AMT > 10 ans
A24: 52896 | B24: SARL AVENIR SENIOR PLUS | C24: LE GARFF Pierre | D24: Gestion d'une situation individuelle | E24: 2020-02-26 | H24: 23110 | I24: DOCTEUR ALAIN VIAUD | J24: Santé humaine et action sociale | K24: 1989-10-24 | L24: 2007-12-21 | M24: AMT > 10 ans
A25: 56134 | B25: SAS A2S | C25: BILLARD Aurélie | D25: Intervention d'un intervenant en prévent | E25: 2020-02-14 | H25: 23109 | I25: MONSIEUR JEAN CARRE | J25: Hébergement et restauration | K25: 1997-08-18 | L25: 2007-12-21 | M25: AMT > 10 ans
A26: 59387 | B26: SAS PEMM | C26: COLIN Céline | D26: Intervention d'un intervenant en prévent | E26: 2020-02-25 | H26: 26374 | I26: ASSOCIATION BOUFFOU THEATRE | J26: Arts, spectacles et activités récréatives | K26: 1999-01-21 | L26: 2007-12-21 | M26: AMT > 10 ans
A27: 71192 | B27: SA LE CREDIT LYONNAIS | C27: LE GARFF Pierre | D27: Rédaction Rapport | E27: 2020-02-25 | H27: 25543 | I27: OGEC ECOLE STE THERESE | J27: Enseignement | K27: 1998-08-10 | L27: 2007-12-21 | M27: AMT > 10 ans
A28: 71231 | B28: SA CREDIT MUTUEL ARKEA | C28: COLIN Céline | D28: Intervention d'un intervenant en prévent | E28: 2020-01-20 | H28: 21617 | I28: MONSIEUR BRUNO SOLEILHAC | J28: Activités spécialisées, scientifiques et techniques | K28: 1996-02-28 | L28: 2007-12-21 | M28: AMT > 10 ans
A29: 71231 | B29: SA CREDIT MUTUEL ARKEA | C29: COLIN Céline | D29: Intervention d'un intervenant en prévent | E29: 2020-01-29 | H29: 20281 | I29: SCM ROUSSEAU AUDO | J29: Activités de services administratifs et de soutien | K29: 1991-01-04 | L29: 2007-12-21 | M29: AMT > 10 ans
H30: 22638 | I30: SAS TRANSPORTS KERJAN | J30: Transports et entreposage | K30: 1977-11-15 | L30: 2007-12-21 | M30: AMT > 10 ans
H31: 22528 | I31: MONSIEUR YANNICK TONNERRE | J31: Activités spécialisées, scientifiques et techniques | K31: 1974-02-01 | L31: 2007-12-21 | M31: AMT > 10 ans
H32: 27794 | I32: MONSIEUR FREDERIC PICAUT | K32: 2000-04-27 | L32: 2007-12-21 | M32: AMT > 10 ans
H33: 27261 | I33: SARL LOPES ENDUITS | J33: Construction | K33: 2000-01-25 | L33: 2007-12-21 | M33: AMT > 10 ans
H34: 29150 | I34: EURL LE GOUIC | J34: Construction | K34: 2001-02-07 | L34: 2007-12-21 | M34: AMT > 10 ans
H35: 28151 | I35: MONSIEUR CLAUDE LE POUEZARD | J35: Construction | K35: 2000-07-21 | L35: 2007-12-21 | M35: AMT > 10 ans
H36: 26526 | I36: SARL LAMB | J36: Commerce ; réparation d'automobiles et de motocycles | K36: 1999-02-22 | L36: 2007-12-21 | M36: AMT > 10 ans
H37: 26375 | I37: SARL AB COM RESEAUX | J37: Commerce ; réparation d'automobiles et de motocycles | K37: 1999-01-25 | L37: 2007-12-21 | M37: AMT > 10 ans
H38: 27189 | I38: EURL PLIAGE METAL SERVICE | J38: Industrie manufacturière | K38: 1999-12-31 | L38: 2007-12-21 | M38: AMT > 10 ans
H39: 27112 | I39: ASSOCATION LANESTER HAND BALL | J39: Arts, spectacles et activités récréatives | K39: 1999-12-09 | L39: 2007-12-21 | M39: AMT > 10 ans
H40: 71015 | I40: SA SAUR FRANCE SITE 055 | J40: Production et distribution d'eau ; assainissement, gestion des déchets et dépollution | K40: 2002-05-28 | L40: 2007-12-21 | M40: AMT > 10 ans
H41: 70773 | I41: CAISSE D EPARGNE BRETAGNE PAYS DE LOIRE | J41: Activités financières et d'assurance | K41: 1993-07-06 | L41: 2007-12-21 | M41: AMT > 10 ans
H42: 71803 | I42: SAS GSF CELTUS | J42: Activités de services administratifs et de soutien | K42: 1988-01-01 | L42: 2007-12-21 | M42: AMT > 10 ans
H43: 71785 | I43: ASSOCIATION GLE VENETIS | J43: Activités de services administratifs et de soutien | K43: 2000-11-30 | L43: 2007-12-21 | M43: AMT > 10 ans
H44: 70132 | I44: ASSOCIATION SAUVEGARDE 56 | J44: Santé humaine et action sociale | K44: 1983-09-01 | L44: 2007-12-21 | M44: AMT > 10 ans
H45: 41336 | I45: SARL FD EXPORT | J45: Commerce ; réparation d'automobiles et de motocycles | K45: 2007-10-18 | L45: 2007-12-21 | M45: AMT > 10 ans
H46: 70474 | I46: SAS BIOLOR | J46: Santé humaine et action sociale | K46: 1999-11-25 | L46: 2007-12-21 | M46: AMT > 10 ans
H47: 70391 | I47: SASU TOKHEIM SERVICES FRANCE | J47: Industrie manufacturière | K47: 2000-04-20 | L47: 2007-12-21 | M47: AMT > 10 ans
H48: 78394 | I48: SAS FONCIA ATLANTIQUE | J48: Activités immobilières | K48: 2001-07-18 | L48: 2007-12-21 | M48: AMT > 10 ans
H49: 78252 | I49: SARL EXPERT FERMETURES | J49: Construction | K49: 2006-10-20 | L49: 2007-12-21 | M49: AMT > 10 ans
H50: 78693 | I50: SA AXA FRANCE IARD | J50: Activités financières et d'assurance | K50: 2003-05-20 | L50: 2007-12-21 | M50: AMT > 10 ans
H51: 78487 | I51: SAS INERTA | J51: Production et distribution d'eau ; assainissement, gestion des déchets et dépollution | K51: 2002-12-04 | L51: 2007-12-21 | M51: AMT > 10 ans
H52: 72450 | I52: MAITRE CORINNE LECARPENTIER PIERRE | J52: Activités spécialisées, scientifiques et techniques | K52: 2006-04-04 | L52: 2007-12-21 | M52: AMT > 10 ans
H53: 71804 | I53: SAS GSF CELTUS | J53: Activités de services administratifs et de soutien | K53: 1993-10-04 | L53: 2007-12-21 | M53: AMT > 10 ans
H54: 73729 | I54: SARL STANHOME FRANCE | J54: Commerce ; réparation d'automobiles et de motocycles | K54: 1978-02-02 | L54: 2007-12-21 | M54: AMT > 10 ans
H55: 73604 | I55: SA SOCIETE GENERALE | J55: Activités financières et d'assurance | K55: 1976-09-01 | L55: 2007-12-21 | M55: AMT > 10 ans
H56: 40557 | I56: ASSOCIATION GYM VITALITE GYM VOLONTAIRE | J56: Arts, spectacles et activités récréatives | K56: 2007-07-10 | L56: 2007-12-21 | M56: AMT > 10 ans
H57: 37911 | I57: ASSOCIATION TOUS EN CHOEUR | J57: Autres activités de services | K57: 2006-02-24 | L57: 2007-12-21 | M57: AMT > 10 ans
H58: 37892 | I58: SARL TAN BAT | J58: Construction | K58: 2006-02-22 | L58: 2007-12-21 | M58: AMT > 10 ans
H59: 38360 | I59: SARL BIIM | J59: Activités spécialisées, scientifiques et techniques | K59: 2006-05-17 | L59: 2007-12-21 | M59: AMT > 10 ans
H60: 38251 | I60: MONSIEUR PASCAL MULOT | J60: Construction | K60: 2006-05-05 | L60: 2007-12-21 | M60: AMT > 10 ans
H61: 37210 | I61: EURL JPJI | J61: Commerce ; réparation d'automobiles et de motocycles | K61: 2005-10-18 | L61: 2007-12-21 | M61: AMT > 10 ans
H62: 36846 | I62: SARL CHAUVEL PENVERN PATRICIA | J62: Autres activités de services | K62: 2005-07-29 | L62: 2007-12-21 | M62: AMT > 10 ans
H63: 37877 | I63: SARL LES TROIS PETITS COCHONS | J63: Industrie manufacturière | K63: 2006-02-21 | L63: 2007-12-21 | M63: AMT > 10 ans
H64: 37492 | I64: SARL CAP ENDUITS | J64: Construction | K64: 2005-12-06 | L64: 2007-12-21 | M64: AMT > 10 ans
H65: 39824 | I65: MONSIEUR CHRISTOPHE LE BRIZE | J65: Industrie manufacturière | K65: 2007-03-07 | L65: 2007-12-21 | M65: AMT > 10 ans
H66: 39170 | I66: SARL FIMOREC | J66: Activités spécialisées, scientifiques et techniques | K66: 2006-10-27 | L66: 2007-12-21 | M66: AMT > 10 ans
H67: 40442 | I67: SARL LA VIEILLE FORGE | J67: Hébergement et restauration | K67: 2007-06-25 | L67: 2007-12-21 | M67: AMT > 10 ans
H68: 39883 | I68: EURL ALLO NACELLES | J68: Activités de services administratifs et de soutien | K68: 2007-03-15 | L68: 2007-12-21 | M68: AMT > 10 ans
H69: 38595 | I69: SARL LE PAIN DORE | J69: Industrie manufacturière | K69: 2006-07-03 | L69: 2007-12-21 | M69: AMT > 10 ans
H70: 38432 | I70: SARL PLOUAY MEDICAL | J70: Commerce ; réparation d'automobiles et de motocycles | K70: 2006-06-02 | L70: 2007-12-21 | M70: AMT > 10 ans
H71: 39090 | I71: MONSIEUR JEAN BAHUON | J71: Construction | K71: 2006-10-13 | L71: 2007-12-21 | M71: =IF(L71 = 0,"Adhérent sans aucune AMT saisie",IF(NOW() - L71 < 730.5,"AMT < 2 ans",IF(NOW() - L71 < 1826.25,"2 ans < AMT < 5 ans",IF(NOW() - L71 < 3652.5,"5 ans < AMT < 10 ans",IF(NOW() - L71 >= 3652.5,"AMT > 10 ans","Adhérent sans aucune AMT saisie"))))) -> AMT > 10 ans
H72: 38940 | I72: EURL SOCIETE COCHON DE COAT ECUFF | J72: Industrie manufacturière | K72: 2006-09-15 | L72: 2007-12-21 | M72: AMT > 10 ans
H73: 12343 | I73: SARL DIDIER LE BASTARD | J73: Construction | K73: 1993-09-10 | L73: 2007-12-21 | M73: AMT > 10 ans
H74: 12400 | I74: SARL LBMC | J74: Construction | K74: 1990-11-06 | L74: 2007-12-21 | M74: AMT > 10 ans
H75: 12971 | I75: SARL LE DANVIC MICHEL | J75: Construction | K75: 1991-10-02 | L75: 2007-12-21 | M75: AMT > 10 ans
H76: 10397 | I76: SARL AU JARDIN DES SENS | J76: Hébergement et restauration | K76: 1991-04-29 | L76: 2007-12-21 | M76: AMT > 10 ans
H77: 11635 | I77: SARL LA BAGUERIE BIJOUTERIE HORLOGERIE | J77: Industrie manufacturière | K77: 1984-11-27 | L77: 2007-12-21 | M77: AMT > 10 ans
H78: 12246 | I78: SARL THIERRY LAVAT | J78: Construction | K78: 1996-05-28 | L78: 2007-12-21 | M78: AMT > 10 ans
H79: 13487 | I79: MADAME ELIANE LE GOUALLEC | J79: Hébergement et restauration | K79: 1996-02-01 | L79: 2007-12-21 | M79: AMT > 10 ans
H80: 14025 | I80: MONSIEUR SERGE LE MOULLEC | J80: Hébergement et restauration | K80: 1995-10-16 | L80: 2007-12-21 | M80: AMT > 10 ans
H81: 14204 | I81: MONSIEUR THIERRY LE RIGOLEUR | J81: Activités financières et d'assurance | K81: 1995-01-24 | L81: 2007-12-21 | M81: AMT > 10 ans
H82: 12985 | I82: SCP FISCHER PEGOURIER FISCHER | J82: Activités spécialisées, scientifiques et techniques | K82: 1977-09-13 | L82: 2007-12-21 | M82: AMT > 10 ans
H83: 13248 | I83: MADAME PASCALE COEFFIC | J83: Commerce ; réparation d'automobiles et de motocycles | K83: 1986-07-16 | L83: 2007-12-21 | M83: AMT > 10 ans
H84: 13373 | I84: SA BEL HOM | J84: Commerce ; réparation d'automobiles et de motocycles | K84: 1982-11-18 | L84: 2007-12-21 | M84: AMT > 10 ans
H85: 9482 | I85: SARL BENOIT GUEGUIN | J85: Construction | K85: 1972-07-31 | L85: 2007-12-21 | M85: AMT > 10 ans
H86: 2949 | I86: SCP HUGUET OLIVIER | J86: Activités spécialisées, scientifiques et techniques | K86: 1981-09-23 | L86: 2007-12-21 | M86: AMT > 10 ans
H87: 4110 | I87: EURL BUBRY AMBULANCES | J87: Santé humaine et action sociale | K87: 1997-08-28 | L87: 2007-12-21 | M87: AMT > 10 ans
H88: 4449 | I88: ASSOCIATION THIRION DREAN | J88: Santé humaine et action sociale | K88: 1980-03-18 | L88: 2007-12-21 | M88: AMT > 10 ans
H89: 264 | I89: SARL NIGNOL JMC MENUISERIE | J89: Construction | K89: 1999-05-17 | L89: 2007-12-21 | M89: AMT > 10 ans
H90: 452 | I90: ASSOCIATION A VOTRE SERVICE | J90: Activités de services administratifs et de soutien | K90: 1999-06-09 | L90: 2007-12-21 | M90: AMT > 10 ans
H91: 1552 | I91: SARL AMBULANCES DE PLOUAY | J91: Santé humaine et action sociale | K91: 1987-04-15 | L91: 2007-12-21 | M91: AMT > 10 ans
H92: 8212 | I92: MONSIEUR CHRISTIAN FLEGEAU | J92: Construction | K92: 1996-06-07 | L92: 2007-12-21 | M92: AMT > 10 ans
H93: 8492 | I93: SAS FRANS BONHOMME | J93: Commerce ; réparation d'automobiles et de motocycles | K93: 1977-03-04 | L93: 2007-12-21 | M93: AMT > 10 ans
H94: 9321 | I94: MADAME FABIENNE GRANDVALET | J94: Santé humaine et action sociale | K94: 1997-05-12 | L94: 2007-12-21 | M94: AMT > 10 ans
H95: 7719 | I95: MONSIEUR CHRISTOPHE EPAILLARD | J95: Santé humaine et action sociale | K95: 1992-09-16 | L95: 2007-12-21 | M95: AMT > 10 ans
H96: 7921 | I96: MONSIEUR PHILIPPE EVANO | J96: Autres activités de services | K96: 1991-01-30 | L96: 2007-12-21 | M96: AMT > 10 ans
H97: 8059 | I97: MONSIEUR SERGE FAVENNEC | J97: Construction | K97: 2010-09-23 | L97: 2007-12-21 | M97: AMT > 10 ans
H98: 14602 | I98: SAS MEUBLES LE TALLEC | J98: Commerce ; réparation d'automobiles et de motocycles | K98: 1981-01-22 | L98: 2007-12-21 | M98: AMT > 10 ans
H99: 17838 | I99: OGEC DE BUBRY | J99: Enseignement | K99: 1996-06-19 | L99: 2007-12-21 | M99: AMT > 10 ans
H100: 18210 | I100: MADAME EDITH LE MAREC PASCO | J100: Commerce ; réparation d'automobiles et de motocycles | K100: 1989-08-29 | L100: 2007-12-21 | M100: AMT > 10 ans
H101: 17949 | I101: SARL OPTIQUE DU SCORFF | J101: Commerce ; réparation d'automobiles et de motocycles | K101: 1994-01-10 | L101: 2007-12-21 | M101: AMT > 10 ans
H102: 20275 | I102: MADAME NATHALIE ROUSSEAU | J102: Hébergement et restauration | K102: 1980-09-09 | L102: 2007-12-21 | M102: AMT > 10 ans
H103: 14240 | I103: MADAME NADINE LE POCHAT | J103: Hébergement et restauration | K103: 1996-10-18 | L103: 2007-12-21 | M103: AMT > 10 ans
H104: 19513 | I104: DOCTEUR DOMINIQUE RAOUL | J104: Santé humaine et action sociale | K104: 1989-01-17 | L104: 2007-12-21 | M104: AMT > 10 ans
H105: 18666 | I105: DOCTEUR JACQUES PICHOT | J105: Santé humaine et action sociale | K105: 1992-03-13 | L105: 2007-12-21 | M105: AMT > 10 ans
H106: 44505 | I106: SARL NOUVEL HAIR | J106: Autres activités de services | K106: 2008-09-16 | L106: 2008-10-20 | M106: AMT > 10 ans
H107: 44469 | I107: SARL ARMAND LE FLOC H | J107: Commerce ; réparation d'automobiles et de motocycles | K107: 2008-09-01 | L107: 2008-10-20 | M107: AMT > 10 ans
H108: 44057 | I108: SAS CAMAIEU INTERNATIONAL | J108: Commerce ; réparation d'automobiles et de motocycles | K108: 2008-08-01 | L108: 2009-09-04 | M108: AMT > 10 ans
H109: 30751 | I109: SARL CHRISTOPHE ROUSSEAU | J109: Commerce ; réparation d'automobiles et de motocycles | K109: 2001-12-04 | L109: 2010-01-22 | M109: AMT > 10 ans
H110: 36021 | I110: MONSIEUR ROMUALD JEGO | J110: Autres activités de services | K110: 2009-08-13 | L110: 2010-04-01 | M110: AMT > 10 ans
H111: 40113 | I111: EURL ACTIV SPORTS | J111: Commerce ; réparation d'automobiles et de motocycles | K111: 2007-04-20 | L111: 2010-09-14 | M111: AMT > 10 ans
H112: 10296 | I112: MONSIEUR RONAN HEYDON | J112: Construction | K112: 1987-07-17 | L112: 2011-03-30 | M112: 5 ans < AMT < 10 ans
H113: 10790 | I113: MADAME ANNIE JAFFRE | J113: Commerce ; réparation d'automobiles et de motocycles | K113: 1995-09-26 | L113: 2012-01-17 | M113: 5 ans < AMT < 10 ans
H114: 71802 | I114: SAS GSF CELTUS | J114: Activités de services administratifs et de soutien | K114: 1988-01-01 | L114: 2012-03-27 | M114: 5 ans < AMT < 10 ans
H115: 44438 | I115: SARL AZC CENTRE AUTOS | J115: Commerce ; réparation d'automobiles et de motocycles | K115: 2008-08-28 | L115: 2014-01-10 | M115: 5 ans < AMT < 10 ans
H116: 55376 | I116: SAS BISCUITERIE DE LIGNOL | J116: Industrie manufacturière | K116: 2012-08-31 | L116: 2014-07-23 | M116: 5 ans < AMT < 10 ans
H117: 47439 | I117: SNC AUTO BILAN FRANCE | J117: Activités spécialisées, scientifiques et techniques | K117: 2009-10-29 | L117: 2014-09-11 | M117: 5 ans < AMT < 10 ans
H118: 22722 | I118: SA TRICIA | J118: Commerce ; réparation d'automobiles et de motocycles | K118: 1994-08-02 | L118: 2014-09-30 | M118: 5 ans < AMT < 10 ans
H119: 33402 | I119: EURL LE MOELLIC RENOVATIONS | J119: Construction | K119: 2003-07-25 | L119: 2014-10-08 | M119: 5 ans < AMT < 10 ans
H120: 12470 | I120: SARL GARAGE LE BOLAY | J120: Commerce ; réparation d'automobiles et de motocycles | K120: 1983-12-13 | L120: 2014-10-10 | M120: 5 ans < AMT < 10 ans
H121: 10970 | I121: SARL FAP | J121: Autres activités de services | K121: 1995-07-31 | L121: 2014-10-17 | M121: 5 ans < AMT < 10 ans
H122: 58276 | I122: EURL ALEXIA | J122: Autres activités de services | K122: 2013-09-09 | L122: 2014-10-23 | M122: 5 ans < AMT < 10 ans
H123: 22359 | I123: SARL RAVAL PEINTURE | J123: Construction | K123: 1996-07-10 | L123: 2014-12-15 | M123: 5 ans < AMT < 10 ans
H124: 7478 | I124: OGEC DE PLOUAY | J124: Enseignement | K124: 1972-09-26 | L124: 2015-01-21 | M124: 5 ans < AMT < 10 ans
H125: 47393 | I125: SARL ALBANE | J125: Commerce ; réparation d'automobiles et de motocycles | K125: 2009-10-13 | L125: 2015-03-16 | M125: 5 ans < AMT < 10 ans
H126: 3793 | I126: SARL BREIZH CHAUFFAGE ET STECMI | J126: Construction | K126: 1996-11-18 | L126: 2015-04-01 | M126: 5 ans < AMT < 10 ans
H127: 53909 | I127: SARL AMISS SECURITE PRIVEE | J127: Activités de services administratifs et de soutien | K127: 2012-03-01 | L127: 2015-04-13 | M127: 5 ans < AMT < 10 ans
H128: 51147 | I128: SAS RAVALEMENT GARNIEL | J128: Construction | K128: 2012-05-30 | L128: 2015-07-09 | M128: 5 ans < AMT < 10 ans
H129: 27065 | I129: MONSIEUR YANN GALAIS | J129: Autres activités de services | K129: 1999-11-30 | L129: 2015-09-17 | M129: 5 ans < AMT < 10 ans
H130: 47734 | I130: SCM PEDECH LEVELEUX | J130: Santé humaine et action sociale | K130: 2010-01-28 | L130: 2015-09-17 | M130: 5 ans < AMT < 10 ans
H131: 61865 | I131: SAS TRANSPORTS LE BELLER | J131: Transports et entreposage | K131: 2015-04-28 | L131: 2015-09-25 | M131: 5 ans < AMT < 10 ans
H132: 44074 | I132: SARL GAUDIN POMPAGE SOLS BETON | J132: Construction | K132: 2008-07-15 | L132: 2015-10-26 | M132: 5 ans < AMT < 10 ans
H133: 27594 | I133: MADAME CELINE LE ROY | J133: Activités financières et d'assurance | K133: 2000-03-27 | L133: 2015-11-18 | M133: 5 ans < AMT < 10 ans
H134: 71166 | I134: SA COVED | J134: Production et distribution d'eau ; assainissement, gestion des déchets et dépollution | K134: 1993-10-04 | L134: 2015-12-09 | M134: 5 ans < AMT < 10 ans
H135: 60277 | I135: SARL SOC NOUVELLE EXPLOIT LAITERIE KERGUILLET | J135: Industrie manufacturière | K135: 2014-07-01 | L135: 2015-12-16 | M135: =IF(L135 = 0,"Adhérent sans aucune AMT saisie",IF(NOW() - L135 < 730.5,"AMT < 2 ans",IF(NOW() - L135 < 1826.25,"2 ans < AMT < 5 ans",IF(NOW() - L135 < 3652.5,"5 ans < AMT < 10 ans",IF(NOW() - L135 >= 3652.5,"AMT > 10 ans","Adhérent sans aucune AMT saisie"))))) -> 5 ans < AMT < 10 ans
H136: 14735 | I136: SARL LE VOUEDEC | J136: Construction | K136: 1992-04-01 | L136: 2015-12-16 | M136: 5 ans < AMT < 10 ans
H137: 56201 | I137: SAS GARNIEL BATIMENT | J137: Construction | K137: 2012-10-08 | L137: 2016-03-16 | M137: 2 ans < AMT < 5 ans
H138: 4451 | I138: MONSIEUR REGIS CANNO | J138: Commerce ; réparation d'automobiles et de motocycles | K138: 1997-09-09 | L138: 2016-05-24 | M138: 2 ans < AMT < 5 ans
H139: 32159 | I139: SARL DORE | J139: Commerce ; réparation d'automobiles et de motocycles | K139: 2002-10-14 | L139: 2016-09-16 | M139: 2 ans < AMT < 5 ans
H140: 9090 | I140: MONSIEUR JEAN PIERRE GUILLOU | J140: Construction | K140: 1988-11-18 | L140: 2016-10-12 | M140: 2 ans < AMT < 5 ans
H141: 63395 | I141: SARL LES SAVEURS PAYSANNES | J141: Commerce ; réparation d'automobiles et de motocycles | K141: 2015-10-12 | L141: 2016-11-16 | M141: 2 ans < AMT < 5 ans
H142: 34054 | I142: SARL BLUE SERVICE | J142: Activités de services administratifs et de soutien | K142: 2003-12-11 | L142: 2017-02-02 | M142: 2 ans < AMT < 5 ans
H143: 46225 | I143: EURL IDEA FLEURS | J143: Commerce ; réparation d'automobiles et de motocycles | K143: 2009-08-18 | L143: 2017-02-16 | M143: 2 ans < AMT < 5 ans
H144: 7901 | I144: SARL LB TRANS | J144: Transports et entreposage | K144: 1985-09-30 | L144: 2017-02-28 | M144: 2 ans < AMT < 5 ans
H145: 56108 | I145: SARL LA BOITE A CH VEUX | J145: Autres activités de services | K145: 2012-10-08 | L145: 2017-03-03 | M145: 2 ans < AMT < 5 ans
H146: 48196 | I146: SNC LIDL 2653 HENNEBONT | J146: Commerce ; réparation d'automobiles et de motocycles | K146: 2010-03-25 | L146: 2017-03-16 | M146: 2 ans < AMT < 5 ans
H147: 7505 | I147: OGEC ST OUEN | J147: Enseignement | K147: 1972-09-14 | L147: 2017-04-21 | M147: 2 ans < AMT < 5 ans
H148: 20953 | I148: SARL GAUDIN | J148: Construction | K148: 1997-04-03 | L148: 2017-06-19 | M148: 2 ans < AMT < 5 ans
H149: 21235 | I149: SA SPAC REALISATION DE RESEAUX | J149: Construction | K149: 1983-02-10 | L149: 2017-07-13 | M149: 2 ans < AMT < 5 ans
H150: 55468 | I150: SARL LE BERRIGAUD GUEGAN ELECTRICITE | J150: Construction | K150: 2012-06-25 | L150: 2017-09-01 | M150: 2 ans < AMT < 5 ans
H151: 18585 | I151: SARL ETABLISSEMENTS PHILIPPE | J151: Construction | K151: 1977-02-28 | L151: 2017-09-12 | M151: 2 ans < AMT < 5 ans
H152: 55911 | I152: EURL BEVAN CONSTRUCTION | J152: Construction | K152: 2012-09-11 | L152: 2017-10-05 | M152: 2 ans < AMT < 5 ans
H153: 20363 | I153: SARL ROYER | J153: Commerce ; réparation d'automobiles et de motocycles | K153: 1970-01-23 | L153: 2018-01-04 | M153: 2 ans < AMT < 5 ans
H154: 17042 | I154: EURL CHRISTOPHE MORGANT | J154: Construction | K154: 1972-11-27 | L154: 2018-01-05 | M154: 2 ans < AMT < 5 ans
H155: 66942 | I155: SARL SUMACAS PLOUAY | J155: Commerce ; réparation d'automobiles et de motocycles | K155: 2017-04-11 | L155: 2018-02-05 | M155: 2 ans < AMT < 5 ans
H156: 47559 | I156: MUTUALITE SANTE SERVICES | J156: Commerce ; réparation d'automobiles et de motocycles | K156: 2009-10-08 | L156: 2018-02-07 | M156: 2 ans < AMT < 5 ans
H157: 11500 | I157: SAS GARAGE DE KERPOTENCE | J157: Industrie manufacturière | K157: 1988-07-24 | L157: 2018-02-20 | M157: 2 ans < AMT < 5 ans
H158: 18485 | I158: DOCTEURS NATHALIE ET JEAN LUC PERRON | J158: Santé humaine et action sociale | K158: 1996-05-20 | L158: 2018-03-02 | M158: 2 ans < AMT < 5 ans
H159: 47292 | I159: SNC VINCENT | J159: Activités spécialisées, scientifiques et techniques | K159: 2009-09-11 | L159: 2018-03-07 | M159: 2 ans < AMT < 5 ans
H160: 35238 | I160: SARL CBR | J160: Construction | K160: 2004-09-10 | L160: 2018-03-26 | M160: 2 ans < AMT < 5 ans
H161: 31847 | I161: MADAME LAURENCE HERMANN | J161: Santé humaine et action sociale | K161: 2002-08-02 | L161: 2018-04-11 | M161: 2 ans < AMT < 5 ans
H162: 57537 | I162: MUTUALITE FRANCAISE FINISTERE MORBIHAN | J162: Santé humaine et action sociale | K162: 2013-05-07 | L162: 2018-04-13 | M162: 2 ans < AMT < 5 ans
H163: 49507 | I163: SARL TY PRODUCTEURS | J163: Commerce ; réparation d'automobiles et de motocycles | K163: 2011-04-15 | L163: 2018-04-18 | M163: 2 ans < AMT < 5 ans
H164: 49641 | I164: MONSIEUR LOIC GUERLAIS | J164: Activités financières et d'assurance | K164: 2010-08-03 | L164: 2018-04-27 | M164: 2 ans < AMT < 5 ans
H165: 57506 | I165: SAS HENNEBIHAN | J165: Commerce ; réparation d'automobiles et de motocycles | K165: 2013-05-06 | L165: 2018-05-22 | M165: 2 ans < AMT < 5 ans
H166: 4623 | I166: SARL CARRIERES DE KERMANDU | J166: Industries extractives | K166: 1954-03-26 | L166: 2018-05-24 | M166: 2 ans < AMT < 5 ans
H167: 69390 | I167: SAS BRETECHE OUEST | J167: Commerce ; réparation d'automobiles et de motocycles | K167: 2018-02-19 | L167: 2018-05-31 | M167: 2 ans < AMT < 5 ans
H168: 27515 | I168: ASSOCIATION CAEC | J168: Activités de services administratifs et de soutien | K168: 2000-03-15 | L168: 2018-06-06 | M168: 2 ans < AMT < 5 ans
H169: 31179 | I169: SARL RIVE OUEST AGENCEMENT | J169: Construction | K169: 2002-03-14 | L169: 2018-06-11 | M169: 2 ans < AMT < 5 ans
H170: 64083 | I170: SAS OCEANE SERVICES ENERGIE OSE | J170: Construction | K170: 2016-02-25 | L170: 2018-06-15 | M170: 2 ans < AMT < 5 ans
H171: 67910 | I171: SAS CONVIVIO RCO | J171: Hébergement et restauration | K171: 2017-11-14 | L171: 2018-07-05 | M171: 2 ans < AMT < 5 ans
H172: 29666 | I172: SA SMAC | J172: Construction | K172: 2001-05-16 | L172: 2018-07-10 | M172: 2 ans < AMT < 5 ans
H173: 9703 | I173: SAS GUILLEMOT | J173: Construction | K173: 1986-02-11 | L173: 2018-07-16 | M173: 2 ans < AMT < 5 ans
H174: 5252 | I174: SAS CHOTO | J174: Commerce ; réparation d'automobiles et de motocycles | K174: 1990-10-15 | L174: 2018-07-16 | M174: 2 ans < AMT < 5 ans
H175: 66343 | I175: SARL ROUDENN GRAFIK GROUPE | J175: Industrie manufacturière | K175: 2017-02-23 | L175: 2018-07-20 | M175: 2 ans < AMT < 5 ans
H176: 11947 | I176: SARL SOC NOUVELLE EXPLOIT LAITERIE KERGUILLET | J176: Industrie manufacturière | K176: 1982-05-24 | L176: 2018-08-13 | M176: 2 ans < AMT < 5 ans
H177: 42966 | I177: ASS CENTRE AERE | J177: Autres activités de services | K177: 2011-04-21 | L177: 2018-08-13 | M177: 2 ans < AMT < 5 ans
H178: 3163 | I178: SCP GROUPE VETERINAIRE DES DEUX VALLEES | J178: Activités spécialisées, scientifiques et techniques | K178: 1972-08-01 | L178: 2018-08-21 | M178: 2 ans < AMT < 5 ans
H179: 63220 | I179: EURL LOUNAT | J179: Santé humaine et action sociale | K179: 2015-09-21 | L179: 2018-08-27 | M179: 2 ans < AMT < 5 ans
H180: 58412 | I180: SARL COIFFURE BELLEC | J180: Autres activités de services | K180: 2013-09-13 | L180: 2018-09-04 | M180: 2 ans < AMT < 5 ans
H181: 53349 | I181: SARL STYLING | J181: Autres activités de services | K181: 2011-10-07 | L181: 2018-09-11 | M181: 2 ans < AMT < 5 ans
H182: 29417 | I182: SARL CERIMPORT INDUSTRIES | J182: Commerce ; réparation d'automobiles et de motocycles | K182: 2001-03-26 | L182: 2018-09-19 | M182: 2 ans < AMT < 5 ans
H183: 58694 | I183: SARL JEHRY | J183: Autres activités de services | K183: 2013-10-24 | L183: 2018-09-19 | M183: 2 ans < AMT < 5 ans
H184: 67928 | I184: SARL DAOUMOAL | J184: Industrie manufacturière | K184: 2017-10-05 | L184: 2018-10-08 | M184: 2 ans < AMT < 5 ans
H185: 69905 | I185: SCM DE RADIOLOGIE D HENNEBONT | J185: Activités financières et d'assurance | K185: 2018-06-15 | L185: 2018-10-10 | M185: 2 ans < AMT < 5 ans
H186: 7128 | I186: SAS DORE SOLS | J186: Construction | K186: 1994-07-25 | L186: 2018-10-10 | M186: 2 ans < AMT < 5 ans
H187: 2261 | I187: SARL ARTHUR ET MARIE | J187: Industrie manufacturière | K187: 1984-11-26 | L187: 2018-10-12 | M187: 2 ans < AMT < 5 ans
H188: 72534 | I188: SA SEM SELLOR | J188: Arts, spectacles et activités récréatives | K188: 1999-06-10 | L188: 2018-10-18 | M188: 2 ans < AMT < 5 ans
H189: 56985 | I189: SASU ETABLISSEMENTS LE TINIER MORIN 35 | J189: Commerce ; réparation d'automobiles et de motocycles | K189: 2013-02-07 | L189: 2018-10-25 | M189: 2 ans < AMT < 5 ans
H190: 80653 | I190: SCDBP BANQUE POPULAIRE GRAND OUEST | J190: Activités financières et d'assurance | K190: 2018-09-11 | L190: 2018-10-26 | M190: 2 ans < AMT < 5 ans
H191: 9229 | I191: SAS VOLVO TRUCKS CENTER BRETAGNE | J191: Commerce ; réparation d'automobiles et de motocycles | K191: 1994-01-27 | L191: 2018-10-29 | M191: 2 ans < AMT < 5 ans
H192: 8187 | I192: SAS FDC FRANCE | J192: Industrie manufacturière | K192: 1995-07-18 | L192: 2018-11-06 | M192: 2 ans < AMT < 5 ans
H193: 14011 | I193: SARL LE MOUELLIC | J193: Commerce ; réparation d'automobiles et de motocycles | K193: 1963-09-16 | L193: 2018-11-20 | M193: 2 ans < AMT < 5 ans
H194: 15526 | I194: SAS LOY ET CIE | J194: Construction | K194: 1985-04-22 | L194: 2018-12-10 | M194: 2 ans < AMT < 5 ans
H195: 80677 | I195: SCDBP BANQUE POPULAIRE GRAND OUEST | J195: Activités financières et d'assurance | K195: 2018-09-11 | L195: 2018-12-18 | M195: 2 ans < AMT < 5 ans
H196: 62901 | I196: SAS PEOPLE AND BABY | J196: Santé humaine et action sociale | K196: 2016-05-11 | L196: 2019-01-08 | M196: 2 ans < AMT < 5 ans
H197: 71227 | I197: SA CREDIT MUTUEL ARKEA | J197: Activités financières et d'assurance | K197: 1975-03-24 | L197: 2019-01-25 | M197: 2 ans < AMT < 5 ans
H198: 31968 | I198: SARL DE JESUS | J198: Construction | K198: 2002-09-11 | L198: 2019-03-26 | M198: AMT < 2 ans
H199: 65843 | I199: SAS ELIVIE | J199: Activités de services administratifs et de soutien | K199: 2016-11-03 | L199: 2019-03-26 | M199: =IF(L199 = 0,"Adhérent sans aucune AMT saisie",IF(NOW() - L199 < 730.5,"AMT < 2 ans",IF(NOW() - L199 < 1826.25,"2 ans < AMT < 5 ans",IF(NOW() - L199 < 3652.5,"5 ans < AMT < 10 ans",IF(NOW() - L199 >= 3652.5,"AMT > 10 ans","Adhérent sans aucune AMT saisie"))))) -> AMT < 2 ans
H200: 2547 | I200: SA BARAZER TP | J200: Construction | K200: 1990-07-02 | L200: 2019-04-03 | M200: AMT < 2 ans
H201: 36072 | I201: SARL ANNIC RESTAURATION | J201: Hébergement et restauration | K201: 2005-03-11 | L201: 2019-04-03 | M201: AMT < 2 ans
H202: 52489 | I202: SARL SOHIER CARRIOU | J202: Hébergement et restauration | K202: 2011-07-11 | L202: 2019-04-10 | M202: AMT < 2 ans
H203: 70772 | I203: CAISSE D EPARGNE BRETAGNE PAYS DE LOIRE | J203: Activités financières et d'assurance | K203: 1993-07-06 | L203: 2019-04-17 | M203: AMT < 2 ans
H204: 70771 | I204: CAISSE D EPARGNE BRETAGNE PAYS DE LOIRE | J204: Activités financières et d'assurance | K204: 1950-01-01 | L204: 2019-04-17 | M204: AMT < 2 ans
... 307 more rows

Sheet Activités connexes
A2: Les activités connexes
A4: =CONCATENATE("Activités connexes réalisées sur le secteur entre le ",DAY(datedeb),"/",MONTH(datedeb),"/",YEAR(datedeb)," et le ",DAY(datefin),"/",MONTH(datefin),"/",YEAR(datefin)) -> Activités connexes réalisées sur le secteur entre le 1/1/2021 et le 28/2/2021
B7: Médecin du travail | C7: Total
A8: Type d'activité | B8: Durée en heures | C8: Durée en heures
A9: Autres Activités | B9: 0.5 | C9: 0.5
A10: Courriers/Dossiers divers | B10: 9 | C10: 9
A11: Groupe de travail AMIEM | B11: 7 | C11: 7
A12: Rapport Annuel | B12: 6 | C12: 6
A13: Réunion Médecins AMIEM | B13: 8 | C13: 8
A14: Saisies Informatiques | B14: 2 | C14: 2
A15: Suivi Dossiers médicaux Equipe S.T. | B15: 0.5 | C15: 0.5
A16: Temps consacré à l'Interne | B16: 3 | C16: 3
A17: Temps organisationnel Equipe S.T. | B17: 1 | C17: 1
A18: Travail Informatique | B18: 13 | C18: 13
A19: Travail administratif | B19: 2 | C19: 2
A20: Total | B20: 52 | C20: 52

Sheet Sans actes futurs & non reconv
A3: Tableau 1 - Salariés sans acte futur | O3: Tableau 2 - Salariés non reconvocables
A6: Salariés n'ayant pas d'acte futur (ces salariés n'apparaissent pas dans les listes des convocables) | O6: Salariés pour lesquels "Reconvocable" (dans l'onglet Convoc.) est coché "Non"
O7: Ils ne ressortent pas dans les listes des convocables
A10: N° salarié | B10: Nom salarié | C10: Nom marital salarié | D10: Prénom | E10: Date naissance | F10: N° adhérent | G10: Raison sociale | H10: Date embauche | I10: Cat. Decl. | J10: Centre de visite | K10: Date acte futur | L10: Nature acte futur | M10: Périodicité | O10: N° salarié | P10: Nom salarié | Q10: Nom marital salarié | R10: Prénom salarié | S10: Date naissance | T10: N° adhérent | U10: Raison sociale | V10: Reconvocable o/n
O11: 211353 | P11: JAMAIN | Q11: LANGANEY | R11: DELPHINE | S11: 1974-05-05 | T11: 7505 | U11: OGEC ST OUEN | V11: N
O12: 436437 | P12: CRAS | Q12: YHUEL | R12: MARIE HELENE | S12: 1950-01-06 | T12: 81904 | U12: SELARL ARENS PERON CARO ET ASSOCIES | V12: N
O13: 434208 | P13: VITTOZ | R13: ROMAIN | S13: 1989-01-30 | T13: 59854 | U13: SAS CHARCUTERIE DU BLAVET | V13: N
O14: 96455 | P14: PHILOUZE | Q14: DEFIVE | R14: VALERIE | S14: 1962-07-29 | T14: 26526 | U14: SARL LAMB | V14: N
O15: 167256 | P15: LE BRIS | R15: VENAIG | S15: 1978-10-17 | T15: 69511 | U15: SARL LDO CONSEILS HENNEBONT | V15: N
O16: 271742 | P16: LE QUINTREC | R16: YVES | S16: 1981-03-17 | T16: 83773 | U16: SAS BARAGWIN | V16: N

Sheet nouvelles adhésions
A3: Nouvelles adhésions et visites non réalisées
A4: 1- Il convient de contacter l'employeur pour les salariés n'ayant ni rdv ni acte dans ce tableau pour connaitre la suite à donner.
A6: N° adhérent | B6: Raison sociale | C6: Commentaire administratif | D6: Date adhésion | E6: N° salarié | F6: Nom salarié | G6: Nom marital salarié | H6: Prénom salarié | I6: Cat. Decl. | J6: Date dernière visite | K6: Date dernier RDV | L6: Evènement dernier RDV | M6: Intervenant | N6: Date acte futur | O6: Nature acte futur
A7: 55374 | B7: MONSIEUR THOMAS OULD CHABOUN | D7: 2020-02-18 | E7: 15226777 | F7: LE GLOAHEC | H7: THOMAS | I7: SI | N7: 2020-02-24 | O7: -Visite d'Information et de Prévention Initiale
A8: 84676 | B8: SARL PLIM PAYS LORIENT INDUST MAINTENANCE | D8: 2020-02-26 | E8: 15110178 | F8: PEREIRA DOS SANTOS | H8: SERGIO | I8: SIR | N8: 2021-02-15 | O8: -Entretien Intermédiaire

Sheet apprentis
A3: Salariés Apprentis en attente de visite
A4: LE GARFF Pierre
A6: Salariés avec un contrat apprenti n'ayant pas eu d'acte médical à la date d'extraction des donnée (donnée à J-1)
A7: Etat du RDV = soit le salarié a été excusé ou absent, soit le salarié est convoqué (prévu)
A8: Pour les salariés excusés ou absents, il convient de contacter les employeurs pour les salariés n'ayant ni rdv ni acte pour connaitre la suite à donner.
A11: N° dossier | B11: NomSalarie | C11: NomEpouse | D11: Prenom | E11: DateNaissance | F11: Contrat | G11: Date Embauche | H11: N° adhérent | I11: Raison Sociale | J11: Médecin adhérent | K11: Date Visite | L11: DateRDV | M11: Etat du RDV | N11: Intervenant planning
A12: 15224777 | B12: TOURE | D12: LAMINE | E12: 2002-07-20 | F12: Apprenti | G12: 2019-09-01 | H12: 84274 | I12: SARL AUTO CONSO NRJ | J12: Médecin du travail | L12: 2020-03-05 | M12: Prévu | N12: Médecin collaborateur

Sheet Intérimaires
A3: Salariés en attente de visite dont l'origine de la demande est "INTERIM" | S3: Salariés vus dont l'origine de la demande est "INTERIM"
A4: 1- Il convient de contacter l'agence intérimaire pour les salariés n'ayant ni rdv ni acte dans ce tableau, afin de connaitre la suite à donner à la demande. | S4: 3- Il convient de même à jour les codes divers pour les salariés qui ont été absents ou excusés
A5: 2 - Il convient de même à jour les codes divers pour les salariés qui ont été absents ou excusés
A7: N° adhérent | B7: Raison sociale | C7: N° salarié | D7: Nom salarié | E7: Nom marital salarié | F7: Prénom salarié | G7: Date embauche | H7: Cat. Decl. | I7: Cat. Const. | J7: Origine demande | K7: Date demande | L7: Equipe attribuée | M7: Date dernier RDV | N7: Evènement dernier RDV | O7: Intervenant | P7: Date acte futur | Q7: Nature acte futur | S7: N° adhérent | T7: Raison sociale | U7: N° salarié | V7: Nom salarié | W7: Nom marital salarié | X7: Prénom salarié | Y7: Date embauche | Z7: Cat. Decl. | AA7: Cat. Const. | AB7: Origine demande | AC7: Date demande | AD7: Equipe attribuée | AE7: Date dernière visite | AF7: Nature dernière visite | AG7: Intervenant | AH7: Date acte futur | AI7: Nature acte futur
A8: 10595 | B8: SAS STARTPEOPLE | C8: 51000053 | D8: LEBLANC | F8: MICHEL | G8: 2019-03-11 | H8: SI | J8: INTERIM | K8: 2019-03-01 | L8: Médecin du travail | P8: 2021-12-19 | Q8: -Visite d'Information et de Prévention
A9: 42350 | B9: SAS LES VOLANTS | C9: 15070326 | D9: EL KHOUMSI | F9: ILIAS | G9: 2019-09-02 | H9: SI | J9: INTERIM | K9: 2019-09-01 | L9: Médecin du travail | P9: 2022-01-26 | Q9: -Visite d'Information et de Prévention
A10: 63975 | B10: SASU SOCALOR | C10: 15209611 | D10: DAVITALA | F10: DAVIT | G10: 2019-03-15 | H10: SIR | I10: Cat. non constatée | J10: INTERIM | K10: 2019-06-01 | L10: Médecin du travail | P10: 2019-09-27 | Q10: -Examen Médical à l'embauche
A11: 65683 | B11: SAS FLECHE INTERIM AVEN | C11: 15184905 | D11: CORNU | F11: BRENDAN | G11: 2019-10-14 | H11: SIA | I11: SI | J11: INTERIM | K11: 2019-12-01 | L11: Médecin du travail | M11: 2020-01-14 | N11: Excusé | O11: Médecin collaborateur | P11: 2022-01-11 | Q11: -Visite d'Information et de Prévention
A12: 46331 | B12: SAS RANDSTAD | C12: 15219778 | D12: GAUTIER | F12: ALEXIS | G12: 2019-11-12 | H12: SIR | I12: SIR | J12: INTERIM | K12: 2019-12-01 | L12: Médecin du travail | M12: 2020-01-21 | N12: Absent | O12: Médecin collaborateur | P12: 2022-01-18 | Q12: -Examen Médical
A13: 65683 | B13: SAS FLECHE INTERIM AVEN | C13: 162197 | D13: GUILLEMETTE | F13: LAURENT | G13: 2019-12-09 | H13: SIA | I13: SIA | J13: INTERIM | K13: 2019-12-01 | L13: Médecin du travail | M13: 2020-01-27 | N13: Absent | O13: Médecin collaborateur | P13: 2022-01-24 | Q13: -Entretien Intermédiaire

Sheet proximité
A3: Salariés en attente de visite dont l'origine de la demande est "PROXI" | S3: Salariés vus dont l'origine de la demande est "PROXI"
A4: 1- Il convient de contacter l'employeur pour les salariés n'ayant ni rdv ni acte dans ce tableau. | S4: 3 - Il convient de même à jour les codes divers pour les salariés de ce tableau.
A5: 2 - Il convient de même à jour les codes divers pour les salariés qui ont été absents ou excusés
A6: N° adhérent | B6: Raison sociale | C6: N° salarié | D6: Nom salarié | E6: Nom marital salarié | F6: Prénom salarié | G6: Date embauche | H6: Cat. Decl. | I6: Cat. Const. | J6: Origine demande | K6: Date demande | L6: Equipe attribuée | M6: Date dernier RDV | N6: Evènement dernier RDV | O6: Intervenant | P6: Date acte futur | Q6: Nature acte futur | S6: N° adhérent | T6: Raison sociale | U6: N° salarié | V6: Nom salarié | W6: Nom marital salarié | X6: Prénom salarié | Y6: Date embauche | Z6: Cat. Decl. | AA6: Cat. Const. | AB6: Origine demande | AC6: Date demande | AD6: Equipe attribuée | AE6: Date dernière visite | AF6: Nature dernière visite | AG6: Intervenant | AH6: Date acte futur | AI6: Nature acte futur

Sheet saisonniers
A2: Salariés avec contrat saisonnier dont la carrière n'a pas été clôturée en attente de visite
A4: Salariés avec contrat saisonnier dont la carrière n'est pas clôturée
A7: N° adhérent | B7: Raison sociale | C7: N° salarié | D7: Nom salarié | E7: Nom marital salarié | F7: Prénom salarié | G7: Date naissance | H7: Date embauche | I7: Contrat | J7: Date fin de contrat

Sheet Visitesmax (hidden)
A1: Tous les salariés du secteur avec leur date de dernière visite et leur date de dernier rendez-vous sur planning | Q1: Nombre de salariés par année de dernière visite
A3: (1) Si Date dernière visite est "vide" = Visite ≤ 2010 ou Salarié jamais vu
A6: N° salarié | B6: Nom salarié | C6: Nom marital salarié | D6: Prénom salarié | E6: Cat. Decl. | F6: N° adhérent | G6: Raison sociale | H6: Date embauche | I6: Date denière visite (1) | J6: Nature dernière visite | K6: Date dernier RDV | L6: Evènement dernier RDV | M6: Nature dernier RDV | N6: Année dernière visite | O6: Année max | Q6: Année | R6: Nbre de salariés
A7: 100578 | B7: DENOT | D7: KEVIN | E7: SI | F7: 56134 | G7: SAS A2S | H7: 2018-06-07 | I7: 2019-04-25 | J7: Reprise après arrêt maladie | K7: 2019-04-25 | L7: Présent | M7: Reprise après arrêt maladie | N7: 2019 | O7: =IF(N7 = "","< 2010",N7) -> 2019 | Q7: 2020 | R7: 315
A8: 100647 | B8: DENOUAL | D8: FRANCOIS | E8: SIR | F8: 54177 | G8: SARL DUPONCHEL PRESTATIONS | H8: 2012-01-23 | I8: 2018-10-26 | J8: -Examen Médical | K8: 2018-10-26 | L8: Présent | M8: -Examen Médical | N8: 2018 | O8: 2018 | Q8: 2019 | R8: 1310
A9: 10103 | B9: AUFFRET | D9: CHRISTINE | E9: SI | F9: 5311 | G9: SA CITE MARINE | H9: 2014-09-08 | I9: 2019-06-21 | J9: Occasionnelle à la demande de l'employeur | K9: 2019-06-21 | L9: Présent | M9: Occasionnelle à la demande de l'employeur | N9: 2019 | O9: 2019 | Q9: 2018 | R9: 1343
A10: 101150 | B10: DERIAN | D10: ERIC | E10: SI | F10: 56134 | G10: SAS A2S | H10: 2015-03-01 | I10: 2018-12-04 | J10: -Visite d'Information et de Prévention | K10: 2018-12-04 | L10: Présent | M10: -Visite d'Information et de Prévention Initiale | N10: 2018 | O10: 2018 | Q10: 2017 | R10: 914
A11: 101246 | B11: DERICBOURG | D11: ARNAUD | E11: SI | F11: 48196 | G11: SNC LIDL 2653 HENNEBONT | H11: 2019-05-01 | I11: 2019-02-26 | J11: Reprise après arrêt maladie | K11: 2019-02-26 | L11: Présent | M11: Reprise après arrêt maladie | N11: 2019 | O11: 2019 | Q11: 2016 | R11: 243
A12: 101319 | B12: DERO | D12: CHARLINE | E12: SI | F12: 58694 | G12: SARL JEHRY | H12: 2013-10-28 | I12: 2018-10-11 | J12: Reprise après congés maternité | K12: 2018-10-11 | L12: Présent | M12: Reprise après congés maternité | N12: 2018 | O12: 2018 | Q12: 2015 | R12: 60
A13: 101665 | B13: LE GUYADER | C13: DERRIEN | D13: LAETITIA | E13: SI | F13: 52605 | G13: MONSIEUR MIKAEL DERRIEN | H13: 2011-05-06 | I13: 2018-04-17 | J13: -Visite d'Information et de Prévention | K13: 2018-04-17 | L13: Présent | M13: -Visite d'Information et de Prévention | N13: 2018 | O13: 2018 | R13: 160
A14: 102128 | B14: DESBOIS | D14: NICOLAS | E14: SI | F14: 45515 | G14: SARL ROGER ROUDAUT | H14: 2017-10-09 | I14: 2017-12-18 | J14: -Visite d'Information et de Prévention Initiale | K14: 2017-12-18 | L14: Présent | M14: -Visite d'Information et de Prévention Initiale | N14: 2017 | O14: 2017
A15: 10250 | B15: AUFFRET | D15: MAEL | E15: SIA | F15: 5311 | G15: SA CITE MARINE | H15: 2016-10-09 | I15: 2016-11-15 | J15: Embauche | K15: 2020-01-02 | L15: Excusé | M15: Reprise après arrêt maladie | N15: 2016 | O15: 2016
A16: 102814 | B16: DESMARAIS | C16: LE GOURRIEREC | D16: SABRINA | E16: SIA | F16: 5311 | G16: SA CITE MARINE | H16: 2017-06-04 | I16: 2017-06-26 | J16: Embauche | K16: 2017-06-28 | L16: Excusé | M16: Embauche | N16: 2017 | O16: 2017
A17: 103030 | B17: DESNOYERS | D17: FRANCK | E17: SIR | F17: 46066 | G17: SAS SRB CONSTRUCTION | H17: 2011-09-05 | I17: 2019-05-16 | J17: -Examen Médical | K17: 2019-05-16 | L17: Présent | M17: -Examen Médical | N17: 2019 | O17: 2019
A18: 103170 | B18: GAUTER | C18: DESPRES | D18: NADIA | E18: SI | F18: 48713 | G18: SAS DAVID ET FILS | H18: 2014-09-02 | I18: 2017-12-01 | J18: -Visite d'Information et de Prévention Initiale | K18: 2017-12-01 | L18: Présent | M18: -Visite d'Information et de Prévention Initiale | N18: 2017 | O18: 2017
A19: 103311 | B19: DESSERT | D19: ANNIE | E19: SI | F19: 71785 | G19: ASSOCIATION GLE VENETIS | H19: 2019-05-09 | I19: 2017-04-25 | J19: Embauche | K19: 2017-04-25 | L19: Présent | M19: Visite Intérimaire | N19: 2017 | O19: 2017
A20: 103738 | B20: DEVERGNE | D20: ANTHONY | E20: SI | F20: 5311 | G20: SA CITE MARINE | H20: 2013-08-26 | I20: 2018-06-13 | J20: -Visite d'Information et de Prévention | K20: 2018-06-13 | L20: Présent | M20: -Visite d'Information et de Prévention | N20: 2018 | O20: 2018
A21: 104188 | B21: LANCELOT | C21: DI PAULI | D21: LAETITIA | E21: SI | F21: 27515 | G21: ASSOCIATION CAEC | H21: 1999-06-23 | I21: 2018-04-10 | J21: -Visite d'Information et de Prévention | K21: 2018-04-10 | L21: Présent | M21: -Visite d'Information et de Prévention | N21: 2018 | O21: 2018
A22: 104229 | B22: DIAGNE | D22: GORA | E22: SIR | F22: 5311 | G22: SA CITE MARINE | H22: 2008-11-03 | I22: 2019-07-17 | J22: -Examen Médical | K22: 2019-07-19 | L22: Excusé | M22: -Examen Médical | N22: 2019 | O22: 2019
A23: 104689 | B23: DIGOIN | D23: GAELLE | E23: SI | F23: 5311 | G23: SA CITE MARINE | H23: 2005-01-06 | I23: 2018-08-29 | J23: Occasionnelle à la demande du Médecin du Travail | K23: 2018-08-29 | L23: Présent | M23: Occasionnelle à la demande du Médecin du Travail | N23: 2018 | O23: 2018
A24: 104945 | B24: DINAM | D24: DAVID | E24: SIR | F24: 14735 | G24: SARL LE VOUEDEC | H24: 2015-01-26 | I24: 2018-10-23 | J24: -Examen Médical | K24: 2018-10-23 | L24: Présent | M24: -Examen Médical | N24: 2018 | O24: 2018
A25: 104962 | B25: DINAM | C25: BERNARD | D25: MURIELLE | E25: SIR | F25: 52857 | G25: SA CRECHE BABILOU POMME D API | H25: 2015-06-22 | I25: 2019-04-04 | J25: -Examen Médical | K25: 2019-04-04 | L25: Présent | M25: -Entretien Intermédiaire | N25: 2019 | O25: 2019
A26: 105317 | B26: DIVERRES | D26: CEDRIC | E26: SIR | F26: 19580 | G26: SAS REALISATION ALUMINIUM | H26: 2015-07-01 | I26: 2018-04-09 | J26: Reprise après accident du travail | K26: 2018-04-09 | L26: Présent | M26: Reprise après accident du travail | N26: 2018 | O26: 2018
A27: 10541 | B27: AUGRAS | D27: LUDOVIC | E27: SI | F27: 60174 | G27: ASSOCIATION CAEC | H27: 2016-07-01 | I27: 2017-02-01 | J27: Embauche | K27: 2017-02-01 | L27: Présent | M27: Embauche | N27: 2017 | O27: 2017
A28: 105416 | B28: DIZAMBOURG | D28: YANN | E28: SIR | F28: 46066 | G28: SAS SRB CONSTRUCTION | H28: 2013-02-01 | I28: 2020-02-25 | J28: Reprise après arrêt maladie | K28: 2020-02-25 | L28: Présent | M28: Reprise après arrêt maladie | N28: 2020 | O28: 2020
A29: 105513 | B29: DUMONT | C29: DMYTRYSZYN | D29: ISABELLE | E29: SIA | F29: 62901 | G29: SAS PEOPLE AND BABY | H29: 2016-03-01 | I29: 2019-12-18 | J29: Reprise après arrêt maladie | K29: 2019-12-18 | L29: Présent | M29: Reprise après arrêt maladie | N29: 2019 | O29: 2019
A30: 105551 | B30: DOARE | D30: AURELIE | E30: SIR | F30: 82411 | G30: ASSOCIATION ADMR DE PLOUAY DU SCORFF AU BLAVET | H30: 2019-04-01 | I30: 2020-02-20 | J30: -Examen Médical | K30: 2020-02-20 | L30: Présent | M30: -Examen Médical | N30: 2020 | O30: 2020
A31: 106305 | B31: DONZELLE | D31: BRUNO | E31: SIR | F31: 2547 | G31: SA BARAZER TP | H31: 2015-05-11 | I31: 2018-05-14 | J31: -Entretien Intermédiaire | K31: 2018-05-14 | L31: Présent | M31: -Entretien Intermédiaire | N31: 2018 | O31: 2018
A32: 10644 | B32: AUMEUNIER | C32: ROSTREN | D32: SANDRA | E32: SI | F32: 47292 | G32: SNC VINCENT | H32: 2019-08-16 | I32: 2019-09-30 | J32: -Visite d'Information et de Prévention Initiale | K32: 2019-09-30 | L32: Présent | M32: -Visite d'Information et de Prévention Initiale | N32: 2019 | O32: 2019
A33: 106447 | B33: LOY | D33: KARINE | E33: SIR | F33: 63220 | G33: EURL LOUNAT | H33: 2017-11-01 | I33: 2019-04-04 | J33: Reprise après congés maternité | K33: 2019-04-04 | L33: Présent | M33: Reprise après congés maternité | N33: 2019 | O33: 2019
A34: 106501 | B34: DORE | D34: SEBASTIEN | E34: SIR | F34: 7128 | G34: SAS DORE SOLS | H34: 2004-04-26 | I34: 2018-06-04 | J34: -Examen Médical | K34: 2018-06-04 | L34: Présent | M34: -Examen Médical | N34: 2018 | O34: 2018
A35: 106511 | B35: LE SAEC | C35: DORE | D35: STEPHANIE | E35: SI | F35: 7128 | G35: SAS DORE SOLS | H35: 1997-03-06 | O35: < 2010
A36: 106592 | B36: DORIMONT | D36: YANNICK | E36: SIR | F36: 10185 | G36: SA HENDIS | H36: 2015-03-02 | I36: 2018-02-15 | J36: -Visite d'Information et de Prévention | K36: 2018-02-15 | L36: Présent | M36: -Visite d'Information et de Prévention | N36: 2018 | O36: 2018
A37: 106792 | B37: DOS REIS | D37: CARLOS | E37: SIR | F37: 51147 | G37: SAS RAVALEMENT GARNIEL | H37: 2014-03-01 | I37: 2018-11-22 | J37: -Visite d'Information et de Prévention | K37: 2018-11-22 | L37: Présent | M37: -Visite d'Information et de Prévention | N37: 2018 | O37: 2018
A38: 106851 | B38: DOS SANTOS OLIVEIRA | D38: PAULO CESAR | E38: SIR | F38: 51147 | G38: SAS RAVALEMENT GARNIEL | H38: 2018-06-01 | I38: 2019-04-29 | J38: Reprise après arrêt maladie | K38: 2019-04-29 | L38: Présent | M38: Reprise après arrêt maladie | N38: 2019 | O38: 2019
A39: 106870 | B39: DOS SANTOS ALVES | D39: GILBERTO | E39: SIR | F39: 7128 | G39: SAS DORE SOLS | H39: 2012-07-09 | I39: 2018-12-03 | J39: -Entretien Intermédiaire | K39: 2018-12-03 | L39: Présent | M39: -Entretien Intermédiaire | N39: 2018 | O39: 2018
A40: 106888 | B40: DOS SANTOS RODRIGUES | D40: VASCO | E40: SIR | F40: 29666 | G40: SA SMAC | H40: 2012-12-03 | I40: 2019-07-04 | J40: -Examen Médical | K40: 2019-07-04 | L40: Présent | M40: -Examen Médical | N40: 2019 | O40: 2019
A41: 1069 | B41: AFFRE | D41: ANTHONY | E41: SIA | F41: 5311 | G41: SA CITE MARINE | H41: 2019-02-24 | I41: 2018-07-26 | J41: -Visite d'Information et de Prévention Initiale | K41: 2018-07-26 | L41: Présent | M41: -Visite d'Information et de Prévention Initiale | N41: 2018 | O41: 2018
A42: 106916 | B42: DOUADY | D42: JEAN LUC | E42: SI | F42: 63714 | G42: SASU SEA VALUE ATLANTIC | H42: 2016-09-12 | I42: 2017-07-20 | J42: Périodique | K42: 2017-07-20 | L42: Présent | M42: Périodique | N42: 2017 | O42: 2017
A43: 10762 | B43: AUREAL | D43: CHRISTIAN | E43: SIR | F43: 46217 | G43: SAS PIGEON BRETAGNE SUD | H43: 2011-05-01 | I43: 2019-05-17 | J43: -Examen Médical | K43: 2019-05-17 | L43: Présent | M43: -Examen Médical | N43: 2019 | O43: 2019
A44: 107674 | B44: DRAOUI | D44: DJAMELL | E44: SI | F44: 5311 | G44: SA CITE MARINE | H44: 2019-05-02 | I44: 2019-03-27 | J44: -Visite d'Information et de Prévention Initiale | K44: 2019-03-27 | L44: Présent | M44: -Visite d'Information et de Prévention Initiale | N44: 2019 | O44: 2019
A45: 107952 | B45: DREAN | D45: JEAN MARC | E45: SI | F45: 5311 | G45: SA CITE MARINE | H45: 2001-06-21 | I45: 2017-03-10 | J45: Périodique | K45: 2017-03-10 | L45: Présent | M45: Périodique | N45: 2017 | O45: 2017
A46: 108061 | B46: DREAN | D46: MARINA | E46: SI | F46: 5311 | G46: SA CITE MARINE | H46: 2003-12-11 | I46: 2017-04-13 | J46: Périodique | K46: 2017-04-13 | L46: Présent | M46: Périodique | N46: 2017 | O46: 2017
A47: 108129 | B47: DREAN | D47: OLIVIER | E47: SIR | F47: 2958 | G47: SARL BERNETIC | H47: 2003-05-22 | I47: 2018-01-09 | J47: -Visite d'Information et de Prévention | K47: 2018-01-09 | L47: Présent | M47: -Visite d'Information et de Prévention | N47: 2018 | O47: 2018
A48: 108430 | B48: DREANO | D48: GWENN | E48: SI | F48: 5311 | G48: SA CITE MARINE | H48: 2014-03-17 | I48: 2018-05-15 | J48: -Visite d'Information et de Prévention | K48: 2018-05-15 | L48: Présent | M48: -Visite d'Information et de Prévention | N48: 2018 | O48: 2018
A49: 108911 | B49: DREVAL | C49: GUEGAN | D49: EMILIE | E49: SI | F49: 5311 | G49: SA CITE MARINE | H49: 2017-10-01 | I49: 2018-12-12 | J49: -Visite d'Information et de Prévention | K49: 2018-12-12 | L49: Présent | M49: -Visite d'Information et de Prévention | N49: 2018 | O49: 2018
A50: 109234 | B50: DRONNIER | D50: DEBORAH | E50: SI | F50: 5311 | G50: SA CITE MARINE | H50: 2017-04-18 | I50: 2020-02-25 | J50: Reprise après arrêt maladie | K50: 2020-02-25 | L50: Présent | M50: Reprise après arrêt maladie | N50: 2020 | O50: 2020
A51: 109447 | B51: DROUGLAZET | C51: LE PODER | D51: ISABELLE | E51: SI | F51: 53776 | G51: MONSIEUR THIERRY LE PODER | H51: 2017-03-01 | I51: 2020-02-12 | J51: -Visite d'Information et de Prévention Initiale | K51: 2020-02-12 | L51: Présent | M51: -Visite d'Information et de Prévention Initiale | N51: 2020 | O51: 2020
A52: 109537 | B52: DROUIN | D52: SABRINA | E52: SI | F52: 64459 | G52: SAS BOULANGERIES BG | H52: 2016-05-07 | I52: 2019-02-15 | J52: Pré-reprise (initiative du salarié) | K52: 2019-07-03 | L52: Absent | M52: Reprise après arrêt maladie | N52: 2019 | O52: 2019
A53: 109557 | B53: DROULEZ | D53: LUDOVIC | E53: SI | F53: 5311 | G53: SA CITE MARINE | H53: 2011-08-29 | I53: 2018-04-10 | J53: -Visite d'Information et de Prévention | K53: 2018-04-10 | L53: Présent | M53: -Visite d'Information et de Prévention | N53: 2018 | O53: 2018
A54: 110000 | B54: REICH | D54: CHRISTELLE | E54: SI | F54: 59661 | G54: SARL LOLANNE | H54: 2019-05-22 | I54: 2016-09-15 | J54: Embauche | K54: 2016-09-15 | L54: Présent | M54: Embauche | N54: 2016 | O54: 2016
A55: 110763 | B55: PONTOIZEAU | C55: DUBRAS | D55: VERONIQUE | E55: SIR | F55: 49144 | G55: EURL PLUS UN PLI | H55: 2010-04-04 | I55: 2019-05-22 | J55: -Examen Médical | K55: 2019-05-22 | L55: Présent | M55: -Examen Médical | N55: 2019 | O55: 2019
A56: 111005 | B56: DUCHAUSSOY | D56: AURELIE | E56: SI | F56: 64001 | G56: MONSIEUR NICOLAS GUERIN | H56: 2016-02-01 | I56: 2017-11-24 | J56: Reprise après congés maternité | K56: 2017-11-24 | L56: Présent | M56: Reprise après congés maternité | N56: 2017 | O56: 2017
A57: 111150 | B57: DUCHENE | D57: RAPHAEL | E57: SI | F57: 51779 | G57: SARL OMEGA INFORMATIQUE | H57: 2011-03-22 | I57: 2018-04-12 | J57: -Visite d'Information et de Prévention | K57: 2018-04-12 | L57: Présent | M57: -Visite d'Information et de Prévention | N57: 2018 | O57: 2018
A58: 111450 | B58: CHRISTIEN | C58: DUCLOS | D58: NATHALIE | E58: SI | F58: 2958 | G58: SARL BERNETIC | H58: 1998-11-26 | I58: 2016-02-17 | J58: Périodique | K58: 2016-02-17 | L58: Présent | M58: Périodique | N58: 2016 | O58: 2016
A59: 111657 | B59: DUCRO | D59: GWENDAL | E59: SIR | F59: 30608 | G59: EURL STEPHANE TRECANT | H59: 2016-10-10 | I59: 2018-02-15 | J59: -Examen Médical | K59: 2018-02-15 | L59: Présent | M59: -Examen Médical | N59: 2018 | O59: 2018
A60: 11210 | B60: AVONDE | D60: JOHNNY | E60: SI | F60: 71166 | G60: SA COVED | H60: 2018-01-01 | I60: 2019-01-08 | J60: -Examen Médical | K60: 2019-01-08 | L60: Présent | M60: -Examen Médical | N60: 2019 | O60: 2019
A61: 112160 | B61: DUGAY | D61: NICOLAS | E61: SIR | F61: 55468 | G61: SARL LE BERRIGAUD GUEGAN ELECTRICITE | H61: 2012-06-27 | I61: 2018-01-17 | J61: -Visite d'Information et de Prévention | K61: 2018-01-17 | L61: Présent | M61: -Visite d'Information et de Prévention | N61: 2018 | O61: 2018
A62: 11232 | B62: AVRE | D62: SANDRA | E62: SI | F62: 14025 | G62: MONSIEUR SERGE LE MOULLEC | H62: 2013-09-12 | I62: 2017-08-01 | J62: Entretien Infirmier | K62: 2017-08-01 | L62: Présent | M62: Entretien Infirmier | N62: 2017 | O62: 2017
A63: 112547 | B63: DUIGOU | D63: GAETAN | E63: SI | F63: 57506 | G63: SAS HENNEBIHAN | H63: 2018-08-27 | I63: 2019-01-22 | J63: -Visite d'Information et de Prévention | K63: 2019-01-22 | L63: Présent | M63: -Visite d'Information et de Prévention | N63: 2019 | O63: 2019
A64: 112666 | B64: CORNU | C64: DULISCOUET | D64: JACQUELINE | E64: SI | F64: 22722 | G64: SA TRICIA | H64: 2003-08-01 | I64: 2017-02-09 | J64: Périodique | K64: 2017-02-09 | L64: Présent | M64: Périodique | N64: 2017 | O64: 2017
A65: 11279 | B65: AVRIL | D65: OLIVIER | E65: SI | F65: 46066 | G65: SAS SRB CONSTRUCTION | H65: 2019-03-28 | I65: 2019-04-25 | J65: -Visite d'Information et de Prévention Initiale | K65: 2019-04-25 | L65: Présent | M65: -Visite d'Information et de Prévention Initiale | N65: 2019 | O65: 2019
A66: 11321 | B66: LE GARREC | D66: EDITH | E66: SI | F66: 22722 | G66: SA TRICIA | H66: 2002-01-16 | I66: 2018-09-18 | J66: Reprise après arrêt maladie | K66: 2018-09-18 | L66: Présent | M66: Reprise après arrêt maladie | N66: 2018 | O66: 2018
A67: 113214 | B67: DUPENT | D67: GUILLAUME | E67: SI | F67: 60279 | G67: SAS BFB FINANCE | H67: 2016-07-11 | I67: 2019-05-20 | J67: -Visite d'Information et de Prévention | K67: 2019-05-20 | L67: Présent | M67: -Visite d'Information et de Prévention | N67: 2019 | O67: 2019
A68: 113631 | B68: DUPRE | D68: CELINE | E68: SIR | F68: 52896 | G68: SARL AVENIR SENIOR PLUS | H68: 2016-04-30 | I68: 2018-08-30 | J68: -Examen Médical | K68: 2018-08-30 | L68: Présent | M68: -Examen Médical | N68: 2018 | O68: 2018
A69: 114177 | B69: DURAND | D69: GUILLAUME | E69: SI | F69: 10185 | G69: SA HENDIS | H69: 2006-07-04 | I69: 2018-04-09 | J69: -Visite d'Information et de Prévention | K69: 2018-04-09 | L69: Présent | M69: -Visite d'Information et de Prévention | N69: 2018 | O69: 2018
A70: 11466 | B70: NORJOUX | C70: AYOUL | D70: ELISABETH | E70: SI | F70: 57506 | G70: SAS HENNEBIHAN | H70: 2013-05-06 | I70: 2017-03-14 | J70: Entretien Infirmier | K70: 2017-03-14 | L70: Présent | M70: Entretien Infirmier | N70: 2017 | O70: 2017
A71: 114706 | B71: DUROS | D71: JEAN PIERRE | E71: SI | F71: 56985 | G71: SASU ETABLISSEMENTS LE TINIER MORIN 35 | H71: 2013-02-11 | I71: 2018-04-20 | J71: Reprise après arrêt maladie | K71: 2018-04-20 | L71: Présent | M71: Reprise après arrêt maladie | N71: 2018 | O71: =IF(N71 = "","< 2010",N71) -> 2018
A72: 114914 | B72: DUTEIL | D72: CHRISTOPHE | E72: SI | F72: 53909 | G72: SARL AMISS SECURITE PRIVEE | H72: 2019-03-01 | I72: 2019-06-11 | J72: -Visite d'Information et de Prévention Initiale | K72: 2019-06-11 | L72: Présent | M72: -Visite d'Information et de Prévention Initiale | N72: 2019 | O72: 2019
A73: 114945 | B73: DUTERTRE | D73: DORIS | E73: SI | F73: 5311 | G73: SA CITE MARINE | H73: 2016-11-07 | I73: 2020-01-09 | J73: Occasionnelle à la demande du Médecin du Travail | K73: 2020-01-09 | L73: Présent | M73: Occasionnelle à la demande du Médecin du Travail | N73: 2020 | O73: 2020
A74: 115661 | B74: EBONZITH | D74: RUFIN NICAISE | E74: SIR | F74: 49507 | G74: SARL TY PRODUCTEURS | H74: 2016-11-02 | I74: 2019-07-04 | J74: -Examen Médical | K74: 2019-07-04 | L74: Présent | M74: -Examen Médical | N74: 2019 | O74: 2019
A75: 115894 | B75: EDON | D75: FREDERIC | E75: SIR | F75: 29666 | G75: SA SMAC | H75: 2005-09-01 | I75: 2017-12-07 | J75: -Entretien Intermédiaire | K75: 2017-12-07 | L75: Présent | M75: -Entretien Intermédiaire | N75: 2017 | O75: 2017
A76: 116025 | B76: EGRON | D76: AURELIE | E76: SIR | F76: 52896 | G76: SARL AVENIR SENIOR PLUS | H76: 2019-12-19 | I76: 2020-01-17 | J76: -Examen Médical à l'embauche | K76: 2020-01-17 | L76: Présent | M76: -Examen Médical à l'embauche | N76: 2020 | O76: 2020
A77: 116091 | B77: EHANNO | D77: FABRICE | E77: SIA | F77: 56134 | G77: SAS A2S | H77: 2015-03-01 | I77: 2018-03-02 | J77: Reprise après arrêt maladie | K77: 2018-03-02 | L77: Présent | M77: Reprise après arrêt maladie | N77: 2018 | O77: 2018
A78: 116092 | B78: EHANNO | D78: FRANCK | E78: SI | F78: 10185 | G78: SA HENDIS | H78: 2003-02-10 | I78: 2018-02-19 | J78: -Visite d'Information et de Prévention | K78: 2018-02-19 | L78: Présent | M78: -Visite d'Information et de Prévention | N78: 2018 | O78: 2018
A79: 116096 | B79: TANGUY | C79: EHANNO | D79: FRANCOISE | E79: SI | F79: 10185 | G79: SA HENDIS | H79: 2003-02-20 | I79: 2018-03-19 | J79: -Visite d'Information et de Prévention | K79: 2018-03-19 | L79: Présent | M79: -Visite d'Information et de Prévention | N79: 2018 | O79: 2018
A80: 116149 | B80: EHATT | D80: CLAUDE | E80: SIR | F80: 68548 | G80: MADAME ELIANE LE FUR | H80: 2017-01-03 | I80: 2018-09-18 | J80: -Visite d'Information et de Prévention | K80: 2018-09-18 | L80: Présent | M80: -Visite d'Information et de Prévention | N80: 2018 | O80: 2018
A81: 116160 | B81: EHOUARNE | D81: LAURENT | E81: SIR | F81: 66854 | G81: SAS AGENCE ANTIPARASITAIRE DU BATIMENT | H81: 2005-06-20 | I81: 2017-07-20 | J81: Occasionnelle à la demande du Médecin du Travail | K81: 2017-07-20 | L81: Présent | M81: Occasionnelle à la demande du Médecin du Travail | N81: 2017 | O81: 2017
A82: 116170 | B82: EHOUARNE | D82: OLIVIER | E82: SIA | F82: 1552 | G82: SARL AMBULANCES DE PLOUAY | H82: 2018-11-02 | I82: 2019-06-05 | J82: -Visite d'Information et de Prévention Initiale | K82: 2019-06-05 | L82: Présent | M82: -Visite d'Information et de Prévention Initiale | N82: 2019 | O82: 2019
A83: 116190 | B83: EHRHARDT | D83: MATHIEU | E83: SI | F83: 42966 | G83: ASS CENTRE AERE | H83: 2016-01-06 | I83: 2017-04-12 | J83: Périodique | K83: 2017-04-12 | L83: Présent | M83: Périodique | N83: 2017 | O83: 2017
A84: 116279 | B84: FAHMI | C84: EL GROUM | D84: HASNA | E84: SI | F84: 60174 | G84: ASSOCIATION CAEC | H84: 2018-05-14 | I84: 2018-05-14 | J84: -Visite d'Information et de Prévention | K84: 2018-05-14 | L84: Présent | M84: -Visite d'Information et de Prévention Initiale | N84: 2018 | O84: 2018
A85: 116332 | B85: EL MAMOUN | C85: SOUKAMI | D85: MARIAM | E85: SI | F85: 452 | G85: ASSOCIATION A VOTRE SERVICE | H85: 2014-07-04 | I85: 2019-02-06 | J85: -Visite d'Information et de Prévention | K85: 2019-02-06 | L85: Présent | M85: -Visite d'Information et de Prévention | N85: 2019 | O85: 2019
A86: 116339 | B86: EL MIMOUNE | D86: SAMIR | E86: SIR | F86: 46066 | G86: SAS SRB CONSTRUCTION | H86: 2013-07-08 | I86: 2018-01-30 | J86: -Visite d'Information et de Prévention | K86: 2018-01-30 | L86: Présent | M86: -Visite d'Information et de Prévention | N86: 2018 | O86: 2018
A87: 11644 | B87: BABARIT | D87: DAVID | E87: SIR | F87: 15526 | G87: SAS LOY ET CIE | H87: 2003-02-04 | I87: 2019-01-17 | J87: Reprise après accident du travail | K87: 2019-01-17 | L87: Présent | M87: Reprise après accident du travail | N87: 2019 | O87: 2019
A88: 116497 | B88: ELEDUT | D88: ISABELLE | E88: SI | F88: 26223 | G88: SARL MINOTERIE LE STUNFF | H88: 2003-05-16 | I88: 2016-03-09 | J88: Périodique | K88: 2016-03-09 | L88: Présent | M88: Périodique | N88: 2016 | O88: 2016
A89: 116681 | B89: ELIOT | D89: TIMOTHEE | E89: SI | F89: 57868 | G89: SA BANQUE CIC OUEST | H89: 2016-09-30 | I89: 2017-10-18 | J89: -Visite d'Information et de Prévention | K89: 2017-10-18 | L89: Présent | M89: -Visite d'Information et de Prévention | N89: 2017 | O89: 2017
A90: 116803 | B90: ELTER | D90: DANIEL | E90: SI | F90: 22359 | G90: SARL RAVAL PEINTURE | H90: 2003-06-01 | I90: 2018-02-20 | J90: -Visite d'Information et de Prévention | K90: 2018-02-20 | L90: Présent | M90: -Visite d'Information et de Prévention | N90: 2018 | O90: 2018
A91: 117041 | B91: EMERY | D91: STEPHANE | E91: SI | F91: 10185 | G91: SA HENDIS | H91: 2003-02-11 | I91: 2018-02-08 | J91: -Visite d'Information et de Prévention | K91: 2018-02-08 | L91: Présent | M91: -Visite d'Information et de Prévention | N91: 2018 | O91: 2018
A92: 117135 | B92: ENERIZ | D92: ANTHONY | E92: SIR | F92: 58780 | G92: SAS MCI | H92: 2015-05-18 | I92: 2019-09-11 | J92: -Examen Médical | K92: 2019-09-11 | L92: Présent | M92: -Examen Médical | N92: 2019 | O92: 2019
A93: 117196 | B93: ENIZAN | D93: MORGANE | E93: SI | F93: 47292 | G93: SNC VINCENT | H93: 2020-01-06 | O93: < 2010
A94: 11724 | B94: BABIN | D94: MANUEL | E94: SIR | F94: 57537 | G94: MUTUALITE FRANCAISE FINISTERE MORBIHAN | H94: 2019-11-13 | I94: 2019-01-03 | J94: -Examen Médical à l'embauche | K94: 2019-01-03 | L94: Présent | M94: -Examen Médical à l'embauche | N94: 2019 | O94: 2019
A95: 117512 | B95: LELAY | C95: EONNET | D95: PIERRETTE | E95: SI | F95: 61076 | G95: SARL LA MI DO RE | H95: 2018-02-01 | I95: 2018-04-19 | J95: -Visite d'Information et de Prévention Initiale | K95: 2018-04-19 | L95: Présent | M95: -Visite d'Information et de Prévention Initiale | N95: 2018 | O95: 2018
A96: 11754 | B96: BABLEE | D96: GUILLAUME | E96: SIR | F96: 70391 | G96: SASU TOKHEIM SERVICES FRANCE | H96: 2000-10-23 | I96: 2019-07-09 | J96: -Examen Médical | K96: 2019-07-09 | L96: Présent | M96: -Examen Médical | N96: 2019 | O96: 2019
A97: 11811 | B97: BACH | C97: CORLAY | D97: CELINE | E97: SI | F97: 82056 | G97: SCOP COOP ASSO AIDE DOMICILE BRETAGNE | H97: 2019-03-04 | K97: 2018-07-03 | L97: Excusé | M97: -Visite d'Information et de Prévention Initiale | O97: < 2010
A98: 118273 | B98: DA SILVA ESTEVES | D98: FABIO | E98: SIR | F98: 55911 | G98: EURL BEVAN CONSTRUCTION | H98: 2019-03-05 | I98: 2019-04-10 | J98: -Examen Médical à l'embauche | K98: 2019-04-10 | L98: Présent | M98: -Examen Médical à l'embauche | N98: 2019 | O98: 2019
A99: 118278 | B99: ESTEVES ARAUJO | D99: ROBERTO | E99: SIR | F99: 55911 | G99: EURL BEVAN CONSTRUCTION | H99: 2019-10-08 | I99: 2019-11-13 | J99: -Examen Médical à l'embauche | K99: 2019-11-13 | L99: Présent | M99: -Examen Médical à l'embauche | N99: 2019 | O99: 2019
A100: 118730 | B100: ETIENNE | D100: MELANIE | E100: SIR | F100: 5311 | G100: SA CITE MARINE | H100: 2017-11-27 | I100: 2020-02-25 | J100: Reprise après arrêt maladie | K100: 2020-02-25 | L100: Présent | M100: -Examen Médical | N100: 2020 | O100: 2020
A101: 119459 | B101: EVANNO | D101: DAVID | E101: SIR | F101: 56134 | G101: SAS A2S | H101: 2015-03-01 | I101: 2019-12-18 | J101: -Examen Médical | K101: 2019-12-18 | L101: Présent | M101: -Examen Médical | N101: 2019 | O101: 2019
A102: 119490 | B102: LE PAIH | C102: EVANNO | D102: FLORENCE | E102: SI | F102: 56134 | G102: SAS A2S | H102: 2012-10-09 | I102: 2016-09-12 | J102: Entretien Infirmier | K102: 2016-09-12 | L102: Présent | M102: Entretien Infirmier | N102: 2016 | O102: 2016
A103: 119499 | B103: EVANNO | C103: BERTHOU | D103: FRANCOISE | E103: SI | F103: 66171 | G103: SAS BONYX | H103: 1998-11-04 | I103: 2016-11-28 | J103: Entretien Infirmier | K103: 2016-11-28 | L103: Présent | M103: Entretien Infirmier | N103: 2016 | O103: 2016
A104: 119519 | B104: EVANNO | D104: GUY MARCEL | E104: SIR | F104: 47354 | G104: SAS SICA AUTOMOBILES | H104: 2009-09-18 | I104: 2019-05-23 | J104: -Examen Médical | K104: 2019-05-23 | L104: Présent | M104: -Examen Médical | N104: 2019 | O104: 2019
A105: 119545 | B105: EVANNO | D105: JEAN LUC | E105: SIR | F105: 63201 | G105: SAS BELLESOEUR | H105: 2019-06-11 | I105: 2019-02-22 | J105: -Examen Médical à l'embauche | K105: 2019-02-22 | L105: Présent | M105: -Examen Médical à l'embauche | N105: 2019 | O105: 2019
A106: 119554 | B106: EVANNO | D106: JEAN NOEL | E106: SI | F106: 8205 | G106: SAS ARMOR PLATS CUISINES | H106: 2000-07-26 | I106: 2018-01-23 | J106: -Visite d'Information et de Prévention | K106: 2018-01-23 | L106: Présent | M106: -Visite d'Information et de Prévention | N106: 2018 | O106: 2018
A107: 119595 | B107: EVANNO | D107: MARIE | E107: SI | F107: 71231 | G107: SA CREDIT MUTUEL ARKEA | H107: 2015-04-13 | I107: 2016-06-09 | J107: Périodique | K107: 2016-06-09 | L107: Présent | M107: Périodique | N107: 2016 | O107: 2016
A108: 119698 | B108: EVANNO | D108: THIERRY | E108: SIR | F108: 62203 | G108: SAS ISLA MONDIAL | H108: 2015-04-28 | I108: 2018-10-30 | J108: -Examen Médical | K108: 2018-10-30 | L108: Présent | M108: -Examen Médical | N108: 2018 | O108: 2018
A109: 119748 | B109: FOLLIC | C109: EVANO | D109: CHANTAL | E109: SI | F109: 13487 | G109: MADAME ELIANE LE GOUALLEC | H109: 2000-09-25 | I109: 2018-03-20 | J109: -Visite d'Information et de Prévention | K109: 2018-03-20 | L109: Présent | M109: -Visite d'Information et de Prévention | N109: 2018 | O109: 2018
A110: 119779 | B110: EVANO | D110: ERIC | E110: SI | F110: 10185 | G110: SA HENDIS | H110: 2007-01-01 | I110: 2018-01-11 | J110: -Visite d'Information et de Prévention | K110: 2018-01-11 | L110: Présent | M110: -Visite d'Information et de Prévention | N110: 2018 | O110: 2018
A111: 119861 | B111: EVANO | D111: MICKAEL | E111: SI | F111: 81347 | G111: SARL ETABLISSEMENTS CHRISTIAN LAMOUR | H111: 2017-11-02 | K111: 2017-11-24 | L111: Excusé | M111: -Visite d'Information et de Prévention Initiale | O111: < 2010
A112: 119901 | B112: EVANO | D112: SEBASTIEN | E112: SI | F112: 20593 | G112: SARL PLOUAY AUTOMOBILES | H112: 2013-08-13 | I112: 2019-05-15 | J112: Occasionnelle à la demande du Médecin du Travail | K112: 2019-05-15 | L112: Présent | M112: Occasionnelle à la demande du Médecin du Travail | N112: 2019 | O112: 2019
A113: 120011 | B113: EVEN | D113: ANNICK | E113: SIR | F113: 52896 | G113: SARL AVENIR SENIOR PLUS | H113: 2017-10-01 | I113: 2017-09-05 | J113: Périodique | K113: 2017-09-05 | L113: Présent | M113: Périodique | N113: 2017 | O113: 2017
A114: 120029 | B114: EVEN | D114: AURELIE | E114: SI | F114: 44469 | G114: SARL ARMAND LE FLOC H | H114: 2016-11-21 | I114: 2017-01-19 | J114: Embauche | K114: 2017-01-20 | L114: Excusé | M114: Embauche | N114: 2017 | O114: 2017
A115: 120032 | B115: EVEN | D115: BEATRICE | E115: SIR | F115: 52896 | G115: SARL AVENIR SENIOR PLUS | H115: 2018-03-02 | I115: 2018-11-29 | J115: Reprise après arrêt maladie | K115: 2018-11-29 | L115: Présent | M115: Reprise après arrêt maladie | N115: 2018 | O115: 2018
A116: 120158 | B116: EVEN | D116: GUILLAUME | E116: SI | F116: 49507 | G116: SARL TY PRODUCTEURS | H116: 2015-11-02 | I116: 2018-02-15 | J116: -Visite d'Information et de Prévention | K116: 2018-02-16 | L116: Excusé | M116: -Visite d'Information et de Prévention | N116: 2018 | O116: 2018
A117: 120300 | B117: EVEN | D117: PHILIPPE | E117: SI | F117: 56509 | G117: EURL MARIEVINC | H117: 2012-12-14 | I117: 2017-10-11 | J117: -Visite d'Information et de Prévention | K117: 2017-10-11 | L117: Présent | M117: -Visite d'Information et de Prévention | N117: 2017 | O117: 2017
A118: 120311 | B118: EVEN | D118: ROBERT | E118: SIR | F118: 47354 | G118: SAS SICA AUTOMOBILES | H118: 2009-09-18 | I118: 2019-05-15 | J118: -Examen Médical | K118: 2019-05-15 | L118: Présent | M118: -Examen Médical | N118: 2019 | O118: 2019
A119: 120331 | B119: MONNIER | C119: MONNIER ANNIC | D119: SANDRINE | E119: SIR | F119: 68718 | G119: MADAME LUCIE PERROT | H119: 2020-02-15 | K119: 2019-06-18 | L119: Excusé | M119: -Examen Médical | O119: < 2010
A120: 120397 | B120: EVENAS | D120: CHRISTOPHE | E120: SIR | F120: 63201 | G120: SAS BELLESOEUR | H120: 2015-10-05 | I120: 2018-05-28 | J120: Occasionnelle à la demande du Médecin du Travail | K120: 2018-05-28 | L120: Présent | M120: Occasionnelle à la demande du Médecin du Travail | N120: 2018 | O120: 2018
A121: 120843 | B121: EVENO | D121: YANN | E121: SI | F121: 63714 | G121: SASU SEA VALUE ATLANTIC | H121: 2017-09-11 | I121: 2019-02-18 | J121: Reprise après arrêt maladie | K121: 2019-02-18 | L121: Présent | M121: Reprise après arrêt maladie | N121: 2019 | O121: 2019
A122: 120873 | B122: EVENOT | C122: LE CLECH | D122: SOLENE | E122: SI | F122: 59661 | G122: SARL LOLANNE | H122: 2015-03-05 | I122: 2017-11-21 | J122: Reprise après congés maternité | K122: 2017-11-21 | L122: Présent | M122: Reprise après congés maternité | N122: 2017 | O122: 2017
A123: 120957 | B123: HORLACHER | C123: EVO | D123: NELLY | E123: SI | F123: 60174 | G123: ASSOCIATION CAEC | H123: 2018-03-15 | I123: 2019-03-07 | J123: -Visite d'Information et de Prévention Initiale | K123: 2019-03-07 | L123: Présent | M123: -Visite d'Information et de Prévention Initiale | N123: 2019 | O123: 2019
A124: 120976 | B124: EVRARD | D124: ANTHONY | E124: SIR | F124: 21235 | G124: SA SPAC REALISATION DE RESEAUX | H124: 2007-09-24 | I124: 2019-09-18 | J124: -Examen Médical | K124: 2019-09-18 | L124: Présent | M124: -Examen Médical | N124: 2019 | O124: 2019
A125: 121104 | B125: EZAN | D125: ISABELLE | E125: SI | F125: 5311 | G125: SA CITE MARINE | H125: 2016-07-04 | I125: 2019-04-15 | J125: Pré-reprise (initiative du médecin conseil) | K125: 2019-04-15 | L125: Présent | M125: Pré-reprise (initiative du médecin conseil) | N125: 2019 | O125: 2019
A126: 121141 | B126: EZANIC | D126: PAULINE | E126: SI | F126: 71231 | G126: SA CREDIT MUTUEL ARKEA | H126: 2018-01-02 | I126: 2019-11-13 | J126: Reprise après arrêt maladie | K126: 2019-11-13 | L126: Présent | M126: Reprise après arrêt maladie | N126: 2019 | O126: 2019
A127: 121163 | B127: EZANNIC | D127: JEAN YVES | E127: SIR | F127: 9703 | G127: SAS GUILLEMOT | H127: 2002-02-04 | I127: 2017-11-16 | J127: -Examen Médical | K127: 2017-12-14 | L127: Excusé AMIEM | M127: -Examen Médical | N127: 2017 | O127: 2017
A128: 121282 | B128: EZANNO | D128: REGIS | E128: SI | F128: 83425 | G128: SNC LE BRAS | H128: 2019-09-01 | I128: 2017-11-23 | J128: -Visite d'Information et de Prévention Initiale | K128: 2017-11-23 | L128: Présent | M128: -Visite d'Information et de Prévention Initiale | N128: 2017 | O128: 2017
A129: 121595 | B129: FACHE | D129: GREGORY | E129: SI | F129: 58412 | G129: SARL COIFFURE BELLEC | H129: 2013-07-05 | I129: 2018-01-03 | J129: -Visite d'Information et de Prévention | K129: 2018-01-03 | L129: Présent | M129: -Visite d'Information et de Prévention | N129: 2018 | O129: 2018
A130: 121624 | B130: FACRY | D130: WILLY | E130: SI | F130: 80577 | G130: SASU FAC TECH TERRASSEMENT | H130: 2018-07-01 | I130: 2020-01-16 | J130: -Visite d'Information et de Prévention | K130: 2020-01-16 | L130: Présent | M130: -Visite d'Information et de Prévention Initiale | N130: 2020 | O130: 2020
A131: 121657 | B131: FAGES | C131: LE GAL | D131: CAROLINE | E131: SIA | F131: 2958 | G131: SARL BERNETIC | H131: 2016-10-10 | I131: 2016-10-27 | J131: Embauche | K131: 2016-10-27 | L131: Présent | M131: Embauche | N131: 2016 | O131: 2016
A132: 121963 | B132: DI FRANCO | C132: FALISCHIA | D132: DORIANE | E132: SI | F132: 57506 | G132: SAS HENNEBIHAN | H132: 2013-09-16 | I132: 2017-03-22 | J132: Entretien Infirmier | K132: 2017-03-22 | L132: Présent | M132: Entretien Infirmier | N132: 2017 | O132: 2017
A133: 122026 | B133: LE MOULLEC | C133: FALQUERHO | D133: LYDIE | E133: SI | F133: 43343 | G133: EURL PHARMACIE DES REMPARTS | H133: 2008-06-10 | I133: 2019-03-27 | J133: -Visite d'Information et de Prévention | K133: 2019-03-27 | L133: Présent | M133: -Visite d'Information et de Prévention | N133: 2019 | O133: 2019
A134: 122043 | B134: LE DORTZ | C134: FALQUERHO | D134: SYLVIE | E134: SI | F134: 62955 | G134: MADAME LAVOLE LE GAL ISABELLE | H134: 2015-08-07 | I134: 2019-04-05 | J134: Reprise après maladie professionnelle | K134: 2019-04-05 | L134: Présent | M134: Reprise après maladie professionnelle | N134: 2019 | O134: 2019
A135: 122980 | B135: FAVENNEC | D135: SEBASTIEN | E135: SIR | F135: 46066 | G135: SAS SRB CONSTRUCTION | H135: 2013-05-31 | I135: 2019-05-16 | J135: -Examen Médical | K135: 2019-05-16 | L135: Présent | M135: -Examen Médical | N135: 2019 | O135: =IF(N135 = "","< 2010",N135) -> 2019
A136: 123325 | B136: FEIGEAN | D136: ANGELIQUE | E136: SI | F136: 37877 | G136: SARL LES TROIS PETITS COCHONS | H136: 2018-01-02 | K136: 2019-04-09 | L136: Excusé | M136: -Visite d'Information et de Prévention Initiale | O136: < 2010
A137: 123333 | B137: FEIGEAN | D137: ROSELINE | E137: SI | F137: 37877 | G137: SARL LES TROIS PETITS COCHONS | H137: 2007-10-01 | K137: 2019-04-16 | L137: Excusé | M137: -Visite d'Information et de Prévention | O137: < 2010
A138: 123355 | B138: FEILLANT | D138: PATRICIA | E138: SI | F138: 23214 | G138: SARL VJ CASH | H138: 2014-12-01 | I138: 2020-02-19 | J138: Pré-reprise (initiative du médecin conseil) | K138: 2020-02-19 | L138: Présent | M138: Pré-reprise (initiative du médecin conseil) | N138: 2020 | O138: 2020
A139: 123557 | B139: FEO | D139: VALERIE | E139: SIA | F139: 5311 | G139: SA CITE MARINE | H139: 2007-04-10 | I139: 2020-02-06 | J139: Reprise après maladie professionnelle | K139: 2020-02-06 | L139: Présent | M139: Reprise après maladie professionnelle | N139: 2020 | O139: 2020
A140: 123871 | B140: FERNANDEZ | D140: MARIELLE | E140: SI | F140: 72450 | G140: MAITRE CORINNE LECARPENTIER PIERRE | H140: 2004-03-01 | I140: 2019-09-16 | J140: -Visite d'Information et de Prévention | K140: 2019-09-16 | L140: Présent | M140: -Visite d'Information et de Prévention | N140: 2019 | O140: 2019
A141: 12405 | B141: BAHUON | D141: GWENAELLE | E141: SI | F141: 19580 | G141: SAS REALISATION ALUMINIUM | H141: 2016-01-04 | I141: 2019-01-15 | J141: -Visite d'Information et de Prévention | K141: 2019-01-15 | L141: Présent | M141: -Visite d'Information et de Prévention | N141: 2019 | O141: 2019
A142: 12416 | B142: BAUDOUIN | C142: BAHUON | D142: JOCELYNE | E142: SI | F142: 38432 | G142: SARL PLOUAY MEDICAL | H142: 2013-03-01 | I142: 2019-10-17 | J142: - Visite d'Information et de Prévention Initiale IDEST | K142: 2019-10-17 | L142: Présent | M142: -Visite d'Information et de Prévention Initiale | N142: 2019 | O142: 2019
A143: 12417 | B143: BAHUON | D143: JOEL | E143: SI | F143: 38432 | G143: SARL PLOUAY MEDICAL | H143: 2006-05-15 | I143: 2020-01-16 | J143: Occasionnelle à la demande du Médecin du Travail | K143: 2020-01-16 | L143: Présent | M143: Occasionnelle Collaborateur Médecin | N143: 2020 | O143: 2020
A144: 12419 | B144: BAHUON | D144: JOSIANE | E144: SI | F144: 38432 | G144: SARL PLOUAY MEDICAL | H144: 2004-04-01 | I144: 2017-03-29 | J144: Périodique | K144: 2017-03-29 | L144: Présent | M144: Périodique | N144: 2017 | O144: 2017
A145: 12421 | B145: BAHUON | D145: KEVIN | E145: SI | F145: 39090 | G145: MONSIEUR JEAN BAHUON | H145: 2012-12-20 | I145: 2018-03-20 | J145: -Visite d'Information et de Prévention | K145: 2018-03-20 | L145: Présent | M145: -Visite d'Information et de Prévention | N145: 2018 | O145: 2018
A146: 124240 | B146: MARTINS FERREIRA | D146: CARLOS | E146: SIR | F146: 45867 | G146: EURL LE GAL CHRISTOPHE | H146: 2012-06-01 | I146: 2018-07-05 | J146: -Visite d'Information et de Prévention | K146: 2018-07-05 | L146: Présent | M146: -Visite d'Information et de Prévention | N146: 2018 | O146: 2018
A147: 124304 | B147: FERREIRA RUA | D147: MARIA DE FATIMA | E147: SI | F147: 39824 | G147: MONSIEUR CHRISTOPHE LE BRIZE | H147: 2018-11-09 | I147: 2019-04-23 | J147: -Visite d'Information et de Prévention Initiale | K147: 2019-04-23 | L147: Présent | M147: -Visite d'Information et de Prévention Initiale | N147: 2019 | O147: 2019
A148: 12434 | B148: BAHUON | D148: RONAN | E148: SIR | F148: 8187 | G148: SAS FDC FRANCE | H148: 2004-01-26 | I148: 2019-10-09 | J148: -Examen Médical | K148: 2019-10-09 | L148: Présent | M148: -Entretien Intermédiaire | N148: 2019 | O148: 2019
A149: 12435 | B149: BAHUON | C149: JOUBIOUX | D149: SOAZIC | E149: SI | F149: 12985 | G149: SCP FISCHER PEGOURIER FISCHER | H149: 2017-02-15 | I149: 2017-03-14 | J149: Embauche | K149: 2017-03-14 | L149: Présent | M149: Embauche | N149: 2017 | O149: 2017
A150: 124608 | B150: FEUILLET | D150: MARIE CLAUDE | E150: SI | F150: 56134 | G150: SAS A2S | H150: 2012-10-01 | I150: 2017-07-10 | J150: Entretien Infirmier | K150: 2017-07-10 | L150: Présent | M150: Entretien Infirmier | N150: 2017 | O150: 2017
A151: 124695 | B151: FEVRE | D151: DAVID | E151: SIR | F151: 46217 | G151: SAS PIGEON BRETAGNE SUD | H151: 2016-07-04 | I151: 2018-02-08 | J151: -Visite d'Information et de Prévention | K151: 2018-02-08 | L151: Présent | M151: -Visite d'Information et de Prévention | N151: 2018 | O151: 2018
A152: 125002 | B152: FIDALGO | D152: GRAZIELLA | E152: SI | F152: 5311 | G152: SA CITE MARINE | H152: 2002-03-05 | I152: 2017-03-10 | J152: Périodique | K152: 2017-03-10 | L152: Présent | M152: Périodique | N152: 2017 | O152: 2017
A153: 12547 | B153: GOURDEN | C153: BAILLON | D153: CHANTAL | E153: SI | F153: 5311 | G153: SA CITE MARINE | H153: 2008-12-10 | I153: 2019-04-08 | J153: Occasionnelle à la demande du salarié | K153: 2019-04-08 | L153: Présent | M153: Occasionnelle à la demande du salarié | N153: 2019 | O153: 2019
A154: 125530 | B154: FITAMANT | D154: YOANN | E154: SIR | F154: 2958 | G154: SARL BERNETIC | H154: 2015-01-05 | I154: 2018-09-27 | J154: -Entretien Intermédiaire | K154: 2018-09-27 | L154: Présent | M154: -Entretien Intermédiaire | N154: 2018 | O154: 2018
A155: 12567 | B155: BAILLOT | D155: EVE | E155: SI | F155: 44058 | G155: SARL PHARMACIE D HENNEBONT | H155: 2008-09-19 | I155: 2018-01-18 | J155: -Visite d'Information et de Prévention | K155: 2018-01-18 | L155: Présent | M155: -Visite d'Information et de Prévention | N155: 2018 | O155: 2018
A156: 125789 | B156: FLAUX | D156: GWENN | E156: SI | F156: 5311 | G156: SA CITE MARINE | H156: 2019-11-12 | I156: 2019-11-25 | J156: -Visite d'Information et de Prévention Initiale | K156: 2019-11-25 | L156: Présent | M156: -Visite d'Information et de Prévention Initiale | N156: 2019 | O156: 2019
A157: 125860 | B157: LE PALABE | C157: FLEGEAU | D157: BRIGITTE | E157: SI | F157: 48265 | G157: SA AT FRANCE | H157: 2010-02-15 | I157: 2016-11-24 | J157: Reprise après arrêt maladie | K157: 2016-11-24 | L157: Présent | M157: Reprise après arrêt maladie | N157: 2016 | O157: 2016
A158: 125861 | B158: FLEGEAU | C158: ROYER | D158: CATHERINE | E158: SI | F158: 18210 | G158: MADAME EDITH LE MAREC PASCO | H158: 2016-09-06 | I158: 2017-04-04 | J158: Embauche | K158: 2017-04-04 | L158: Présent | M158: Embauche | N158: 2017 | O158: 2017
A159: 125908 | B159: BORDES | C159: FLEGEAU | D159: LAURENCE | E159: SIR | F159: 52857 | G159: SA CRECHE BABILOU POMME D API | H159: 2018-03-01 | I159: 2018-03-21 | J159: -Examen Médical à l'embauche | K159: 2018-03-21 | L159: Présent | M159: -Examen Médical à l'embauche | N159: 2018 | O159: 2018
A160: 125999 | B160: FLEJEO | D160: QUENTIN | E160: SIR | F160: 10185 | G160: SA HENDIS | H160: 2013-04-01 | I160: 2018-03-13 | J160: -Visite d'Information et de Prévention | K160: 2018-03-13 | L160: Présent | M160: -Visite d'Information et de Prévention | N160: 2018 | O160: 2018
A161: 126002 | B161: FLEGEO | D161: STEPHANE | E161: SIR | F161: 81079 | G161: SAS GARNIEL CONSTRUCTION | H161: 2018-10-01 | I161: 2017-11-16 | J161: Reprise après arrêt maladie | K161: 2017-11-16 | L161: Présent | M161: Reprise après arrêt maladie | N161: 2017 | O161: 2017
A162: 126067 | B162: FLEJOU | D162: LAURENCE | E162: SI | F162: 5311 | G162: SA CITE MARINE | H162: 2012-11-05 | I162: 2019-01-29 | J162: Pré-reprise (initiative du salarié) | K162: 2019-01-29 | L162: Présent | M162: Pré-reprise (initiative du salarié) | N162: 2019 | O162: 2019
A163: 126180 | B163: BIENVENU | C163: FLEURY | D163: CHRISTELLE | E163: SI | F163: 10185 | G163: SA HENDIS | H163: 2007-03-03 | I163: 2018-02-15 | J163: -Visite d'Information et de Prévention | K163: 2018-02-15 | L163: Présent | M163: -Visite d'Information et de Prévention | N163: 2018 | O163: 2018
A164: 126229 | B164: FLEURY | D164: GAELLE | E164: SI | F164: 44058 | G164: SARL PHARMACIE D HENNEBONT | H164: 2013-12-02 | I164: 2018-01-08 | J164: -Visite d'Information et de Prévention | K164: 2018-01-08 | L164: Présent | M164: -Visite d'Information et de Prévention | N164: 2018 | O164: 2018
A165: 126471 | B165: FLOCH | D165: JEREMY | E165: SIR | F165: 56201 | G165: SAS GARNIEL BATIMENT | H165: 2019-02-18 | I165: 2019-04-04 | J165: -Visite d'Information et de Prévention Initiale | K165: 2019-04-04 | L165: Présent | M165: -Visite d'Information et de Prévention Initiale | N165: 2019 | O165: 2019
A166: 126565 | B166: PERRON | C166: FLOCON | D166: MARIE ANNICK | E166: SIR | F166: 82411 | G166: ASSOCIATION ADMR DE PLOUAY DU SCORFF AU BLAVET | H166: 2019-04-01 | I166: 2020-02-27 | J166: -Examen Médical | K166: 2020-02-27 | L166: Présent | M166: -Examen Médical | N166: 2020 | O166: 2020
A167: 126641 | B167: AUTIN | C167: FLOHIC | D167: STEPHANIE | E167: SI | F167: 71227 | G167: SA CREDIT MUTUEL ARKEA | H167: 2016-02-02 | I167: 2016-04-12 | J167: Embauche | K167: 2016-04-12 | L167: Présent | M167: Embauche | N167: 2016 | O167: 2016
A168: 126835 | B168: FOIRET | D168: STEPHANE | E168: SIA | F168: 2958 | G168: SARL BERNETIC | H168: 2015-09-14 | I168: 2017-01-05 | J168: Périodique | K168: 2017-01-05 | L168: Présent | M168: Périodique | N168: 2017 | O168: 2017
A169: 126961 | B169: FOLLIC | D169: DAVID | E169: SI | F169: 58780 | G169: SAS MCI | H169: 2014-01-21 | I169: 2019-09-16 | J169: -Visite d'Information et de Prévention | K169: 2019-09-16 | L169: Présent | M169: -Visite d'Information et de Prévention | N169: 2019 | O169: 2019
A170: 127124 | B170: FONTAINE | D170: DELPHINE | E170: SIA | F170: 5311 | G170: SA CITE MARINE | H170: 2019-05-19 | I170: 2018-09-10 | J170: -Visite d'Information et de Prévention Initiale | K170: 2018-09-10 | L170: Présent | M170: -Visite d'Information et de Prévention Initiale | N170: 2018 | O170: 2018
A171: 127281 | B171: FONTAINE | D171: STEPHANE | E171: SI | F171: 5311 | G171: SA CITE MARINE | H171: 2019-07-01 | I171: 2019-07-17 | J171: -Visite d'Information et de Prévention Initiale | K171: 2019-07-17 | L171: Présent | M171: -Visite d'Information et de Prévention Initiale | N171: 2019 | O171: 2019
A172: 127295 | B172: FONTAINE | D172: VALERE | E172: SIA | F172: 5311 | G172: SA CITE MARINE | H172: 2011-01-02 | I172: 2020-02-18 | J172: Reprise après arrêt maladie | K172: 2020-02-18 | L172: Présent | M172: Reprise après arrêt maladie | N172: 2020 | O172: 2020
A173: 12742 | B173: HAZEVIS | C173: BAL | D173: ISABELLE | E173: SI | F173: 82056 | G173: SCOP COOP ASSO AIDE DOMICILE BRETAGNE | H173: 2018-11-01 | I173: 2019-07-15 | J173: -Visite d'Information et de Prévention Initiale | K173: 2019-07-15 | L173: Présent | M173: -Visite d'Information et de Prévention Initiale | N173: 2019 | O173: 2019
A174: 127616 | B174: QUEGUINER | C174: FORGET | D174: MARTHE | E174: SIA | F174: 5311 | G174: SA CITE MARINE | H174: 2013-05-02 | I174: 2017-02-09 | J174: Reprise après congés maternité | K174: 2017-02-09 | L174: Présent | M174: Reprise après congés maternité | N174: 2017 | O174: 2017
A175: 127665 | B175: FORLOT | D175: YOANN | E175: SIR | F175: 82159 | G175: SARL IZZI CARS | H175: 2018-02-10 | I175: 2019-03-25 | J175: -Examen Médical à l'embauche | K175: 2019-03-25 | L175: Présent | M175: -Examen Médical à l'embauche | N175: 2019 | O175: 2019
A176: 127806 | B176: FORTIER | D176: ISABELLE | E176: SIR | F176: 63220 | G176: EURL LOUNAT | H176: 2019-12-23 | I176: 2020-02-21 | J176: -Examen Médical à l'embauche | K176: 2020-02-21 | L176: Présent | M176: -Examen Médical à l'embauche | N176: 2020 | O176: 2020
A177: 127817 | B177: FORTIER | D177: TONY | E177: SI | F177: 60560 | G177: SNC KERNOSA | H177: 2015-02-01 | I177: 2017-11-15 | J177: -Visite d'Information et de Prévention | K177: 2017-11-15 | L177: Présent | M177: -Visite d'Information et de Prévention | N177: 2017 | O177: 2017
A178: 127858 | B178: FORTIN | D178: GILLES | E178: SI | F178: 57506 | G178: SAS HENNEBIHAN | H178: 2016-10-24 | I178: 2017-03-30 | J178: Embauche | K178: 2017-03-30 | L178: Présent | M178: Embauche | N178: 2017 | O178: 2017
A179: 128161 | B179: FOUCAUD | D179: ELOUAN | E179: SIR | F179: 55911 | G179: EURL BEVAN CONSTRUCTION | H179: 2018-11-20 | I179: 2018-12-12 | J179: -Examen Médical à l'embauche | K179: 2018-12-12 | L179: Présent | M179: -Examen Médical à l'embauche | N179: 2018 | O179: 2018
A180: 128504 | B180: FOUILLE | D180: GWENAEL | E180: SI | F180: 2958 | G180: SARL BERNETIC | H180: 1998-11-27 | I180: 2016-06-14 | J180: Périodique | K180: 2016-06-14 | L180: Présent | M180: Périodique | N180: 2016 | O180: 2016
A181: 128561 | B181: FOUILLEN | D181: BRIGITTE | E181: SI | F181: 71227 | G181: SA CREDIT MUTUEL ARKEA | H181: 2003-12-19 | I181: 2020-02-13 | J181: Pré-reprise (initiative du salarié) | K181: 2020-02-13 | L181: Présent | M181: Pré-reprise (initiative du salarié) | N181: 2020 | O181: 2020
A182: 128722 | B182: FOULGOC | D182: RONAN | E182: SI | F182: 52493 | G182: SAS SODEXO ENTREPRISES | H182: 2011-06-27 | I182: 2017-06-15 | J182: Entretien Infirmier | K182: 2017-06-15 | L182: Présent | M182: Entretien Infirmier | N182: 2017 | O182: 2017
A183: 128806 | B183: FOUQUERAY | D183: NICOLAS | E183: SIR | F183: 10185 | G183: SA HENDIS | H183: 2006-11-06 | I183: 2017-04-13 | J183: Occasionnelle à la demande de l'employeur | K183: 2017-04-13 | L183: Présent | M183: Occasionnelle à la demande de l'employeur | N183: 2017 | O183: 2017
A184: 128864 | B184: FOUQUET | D184: THIERRY | E184: SIA | F184: 5311 | G184: SA CITE MARINE | H184: 2013-09-29 | I184: 2017-12-07 | J184: -Visite d'Information et de Prévention | K184: 2017-12-07 | L184: Présent | M184: -Visite d'Information et de Prévention | N184: 2017 | O184: 2017
A185: 128955 | B185: FOURCHAULT | D185: ERIC | E185: SIR | F185: 5311 | G185: SA CITE MARINE | H185: 2016-10-24 | I185: 2019-05-28 | J185: -Examen Médical | K185: 2019-05-28 | L185: Présent | M185: -Examen Médical | N185: 2019 | O185: 2019
A186: 128989 | B186: AUBINET | C186: FOURDAN | D186: JENNIFER | E186: SI | F186: 48265 | G186: SA AT FRANCE | H186: 2016-09-26 | I186: 2020-02-06 | J186: Pré-reprise (initiative du médecin conseil) | K186: 2020-02-06 | L186: Présent | M186: Pré-reprise (initiative du médecin conseil) | N186: 2020 | O186: 2020
A187: 129416 | B187: FOURNY | C187: PERROT | D187: SEVERINE | E187: SI | F187: 12985 | G187: SCP FISCHER PEGOURIER FISCHER | H187: 2005-02-14 | I187: 2017-06-08 | J187: Entretien Infirmier | K187: 2017-06-08 | L187: Présent | M187: Entretien Infirmier | N187: 2017 | O187: 2017
A188: 129872 | B188: DA CONCEICAO FRANCISCO | D188: RICARDO | E188: SIR | F188: 51147 | G188: SAS RAVALEMENT GARNIEL | H188: 2019-06-24 | I188: 2019-03-25 | J188: -Examen Médical | K188: 2019-03-25 | L188: Présent | M188: -Examen Médical à l'embauche | N188: 2019 | O188: 2019
A189: 130101 | B189: FRANCOIS | D189: ROGER | E189: SIR | F189: 56201 | G189: SAS GARNIEL BATIMENT | H189: 2019-06-01 | I189: 2019-06-28 | J189: -Examen Médical à l'embauche | K189: 2019-06-28 | L189: Présent | M189: -Examen Médical à l'embauche | N189: 2019 | O189: 2019
A190: 130131 | B190: FRANCOIS | C190: LE NOZAHIC | D190: VERONIQUE | E190: SI | F190: 36072 | G190: SARL ANNIC RESTAURATION | H190: 2019-06-24 | I190: 2019-11-19 | J190: -Visite d'Information et de Prévention Initiale | K190: 2019-11-19 | L190: Présent | M190: -Visite d'Information et de Prévention Initiale | N190: 2019 | O190: 2019
A191: 131074 | B191: FRESSARD | C191: GUZMAN | D191: BARBARA | E191: SI | F191: 5311 | G191: SA CITE MARINE | H191: 2013-09-30 | I191: 2019-06-06 | J191: Occasionnelle à la demande du Médecin du Travail | K191: 2019-06-06 | L191: Présent | M191: Occasionnelle à la demande du Médecin du Travail | N191: 2019 | O191: 2019
A192: 131192 | B192: FREYMANN | D192: LUDOVIC | E192: SI | F192: 48713 | G192: SAS DAVID ET FILS | H192: 2016-04-19 | I192: 2017-11-22 | J192: -Visite d'Information et de Prévention | K192: 2017-11-22 | L192: Présent | M192: -Visite d'Information et de Prévention | N192: 2017 | O192: 2017
A193: 131200 | B193: FRIANT | D193: GUILLAUME | E193: SI | F193: 5311 | G193: SA CITE MARINE | H193: 2019-12-04 | I193: 2019-12-11 | J193: -Visite d'Information et de Prévention Initiale | K193: 2019-12-11 | L193: Présent | M193: -Visite d'Information et de Prévention Initiale | N193: 2019 | O193: 2019
A194: 131229 | B194: FRIBOURG | D194: PETER | E194: SI | F194: 64095 | G194: SARL GUYOT ENVIRONNEMENT | H194: 2019-04-10 | I194: 2019-04-29 | J194: -Visite d'Information et de Prévention Initiale | K194: 2019-04-29 | L194: Présent | M194: -Visite d'Information et de Prévention Initiale | N194: 2019 | O194: 2019
A195: 131285 | B195: FRICQZ | D195: LAETITIA | E195: SIR | F195: 18485 | G195: DOCTEURS NATHALIE ET JEAN LUC PERRON | H195: 2020-01-06 | I195: 2019-05-15 | J195: -Examen Médical à l'embauche | K195: 2019-05-15 | L195: Présent | M195: -Examen Médical à l'embauche | N195: 2019 | O195: 2019
A196: 131327 | B196: FRIGUEL | D196: BRIGITTE | E196: SIR | F196: 68716 | G196: MADAME MARIE MAURISSEAU | H196: 2017-04-28 | I196: 2018-07-10 | J196: -Examen Médical | K196: 2018-07-10 | L196: Présent | M196: -Examen Médical | N196: 2018 | O196: 2018
A197: 131601 | B197: FROMENT | D197: LAURENCE | E197: SIR | F197: 82411 | G197: ASSOCIATION ADMR DE PLOUAY DU SCORFF AU BLAVET | H197: 2019-04-01 | I197: 2016-06-07 | J197: Périodique | K197: 2016-06-07 | L197: Présent | M197: Périodique | N197: 2016 | O197: 2016
A198: 131613 | B198: CASTELNERAC | C198: FROMENTIN | D198: ANNE GAELLE | E198: SI | F198: 10185 | G198: SA HENDIS | H198: 2005-09-01 | I198: 2018-02-15 | J198: -Visite d'Information et de Prévention | K198: 2018-02-15 | L198: Présent | M198: -Visite d'Information et de Prévention | N198: 2018 | O198: 2018
A199: 131630 | B199: FROMENTIN | D199: RICHARD | E199: SI | F199: 10185 | G199: SA HENDIS | H199: 2003-03-12 | I199: 2019-09-04 | J199: -Visite d'Information et de Prévention | K199: 2019-09-04 | L199: Présent | M199: -Visite d'Information et de Prévention | N199: 2019 | O199: =IF(N199 = "","< 2010",N199) -> 2019
A200: 131706 | B200: PERRIN | D200: CATHERINE | E200: SIR | F200: 57537 | G200: MUTUALITE FRANCAISE FINISTERE MORBIHAN | H200: 2015-03-09 | I200: 2018-03-06 | J200: -Visite d'Information et de Prévention | K200: 2018-03-06 | L200: Présent | M200: -Visite d'Information et de Prévention | N200: 2018 | O200: 2018
A201: 131713 | B201: FROUFE SANTANA | D201: MARIO JOSE | E201: SI | F201: 31968 | G201: SARL DE JESUS | H201: 2010-08-01 | I201: 2020-01-09 | J201: Pré-reprise (initiative du salarié) | K201: 2020-01-09 | L201: Présent | M201: Pré-reprise (initiative du salarié) | N201: 2020 | O201: 2020
A202: 131789 | B202: L'HELGOUAL'CH | D202: CHRISTINE | E202: SIA | F202: 5311 | G202: SA CITE MARINE | H202: 2019-06-11 | I202: 2019-07-01 | J202: -Visite d'Information et de Prévention Initiale | K202: 2019-07-01 | L202: Présent | M202: -Visite d'Information et de Prévention Initiale | N202: 2019 | O202: 2019
A203: 131799 | B203: FUCHS | D203: MARIE | E203: SI | F203: 14011 | G203: SARL LE MOUELLIC | H203: 2019-05-14 | I203: 2016-08-08 | J203: Reprise après arrêt maladie | K203: 2016-08-08 | L203: Présent | M203: Reprise après arrêt maladie | N203: 2016 | O203: 2016
... 4148 more rows

Sheet Tableaux pour graphiques
A1: Actes médicaux mensuels | P1: Salariés présents, absents ou excusés | V1: Nombre de salariés absents ou excusés par nature de visite | AE1: Absents et excusés mensuels | AT1: AMT réalisées pendant la période selon le motif saisi | BA1: Adhérents du secteur et dernière AMT | BU1: Adhérents et FE | CC1: Conclusions médicales
V2: (podium des 5 natures les plus impactées) | BD2: Catégorie déclarée | BH2: Catégorie constatée | BP2: Nombre | BQ2: %
B3: Janvier | C3: Février | D3: Mars | E3: Avril | F3: Mai | G3: Juin | H3: Juillet | I3: Août | J3: Septembre | K3: Octobre | L3: Novembre | M3: Décembre | N3: Total | R3: Présent | S3: 346 | X3: -Examen Médical à l'embauche | Y3: 9 | AF3: Janvier | AG3: Février | AH3: Mars | AI3: Avril | AJ3: Mai | AK3: Juin | AL3: Juillet | AM3: Août | AN3: Septembre | AO3: Octobre | AP3: Novembre | AQ3: Décembre | AR3: Total | AW3: 2020 | BA3: Étiquettes de lignes | BB3: Nombre de N° adhérent | BO3: Autorisation conduite | BP3: 432 | BQ3: 0.3016759777 | BV3: Nombre Adhérents | BY3: Vert | BZ3: 33 | CC3: Apte | CD3: 102 | CI3: Nombre de salariés
A4: Médecin collaborateur | B4: 159 | C4: 110 | N4: 269 | R4: Absent | S4: 6 | X4: -Visite d'Information et de Prévention Initiale | Y4: 7 | AA4: 38 | AE4: Médecin Collaborateur | AF4: 24 | AG4: 15 | AR4: 39 | AV4: Aide rédaction Document Unique | BA4: AMT < 2 ans | BB4: 84 | BE4: Nombre de salariés | BF4: % | BI4: Nombre de salariés | BJ4: % | BO4: CMR | BP4: 315 | BQ4: 0.219972067 | BU4: Entre 0 et 10 salariés | BV4: 43 | BY4: Orange | BZ4: 33 | CC4: Apte avec aménagement du poste | CD4: 3 | CH4: Commerce de détail, à l'exception des automobiles et des motocycles | CI4: 2
A5: Médecin du travail | B5: 57 | C5: 84 | N5: 141 | R5: Excusé | S5: 32 | X5: -Examen Médical | Y5: 7 | AA5: =X3 -> -Examen Médical à l'embauche | AB5: 9 | AE5: Médecin du travail | AF5: 2 | AG5: 13 | AR5: 15 | AV5: Aménagement de Poste | AW5: 2 | BA5: 2 ans < AMT < 5 ans | BB5: 34 | BD5: Cat. non déclarée | BE5: 2 | BF5: 0.0004602991945 | BH5: Cat. non constatée | BI5: 70 | BJ5: 0.01611047181 | BO5: Travailleur de nuit | BP5: 263 | BQ5: 0.1836592179 | BU5: Entre 11 et 49 salariés | BV5: 26 | BY5: Rouge | BZ5: 33 | CC5: Apte avec restriction | CD5: 1 | CH5: Commerce de gros, à l'exception des automobiles et des motocycles | CI5: 1
A6: Total | B6: 216 | C6: 194 | D6: 0 | E6: 0 | F6: 0 | G6: 0 | H6: 0 | I6: 0 | J6: 0 | K6: 0 | L6: 0 | M6: 0 | N6: 410 | R6: Total | S6: =SUM(S3:S5) -> 384 | X6: Reprise après arrêt maladie | Y6: 7 | AA6: -Visite d'Information et de Prévention Initiale | AB6: 7 | AE6: Total | AF6: 26 | AG6: 28 | AH6: 0 | AI6: 0 | AJ6: 0 | AK6: 0 | AL6: 0 | AM6: 0 | AN6: 0 | AO6: 0 | AP6: 0 | AQ6: 0 | AR6: 54 | AV6: Analyse FDS | BA6: 5 ans < AMT < 10 ans | BB6: 15 | BD6: SI | BE6: 2854 | BF6: 0.6568469505 | BH6: SI | BI6: 2557 | BJ6: 0.5884925201 | BO6: Agents biologiques groupe 3 & 4 | BP6: 221 | BQ6: 0.1543296089 | BU6: Entre 50 et 299 salariés | BV6: 5 | BY6: Invisible | BZ6: =SUM(BZ3:BZ5) -> 99 | CC6: Inapte - Emploi Préjudiciable Santé | CH6: Industries alimentaires | CI6: 5
X7: Occasionnelle Collaborateur Médecin | Y7: 2 | AA7: -Examen Médical | AB7: 7 | AV7: Avis donné à un P.R.A.M | BA7: AMT > 10 ans | BB7: 103 | BD7: SIA | BE7: 336 | BF7: 0.07733026467 | BH7: SIA | BI7: 404 | BJ7: 0.09298043728 | BO7: Manutention manuelle > 55 kg | BP7: 210 | BQ7: 0.1466480447 | BU7: Sup à 300 salariés | BV7: 1 | CC7: Inapte au poste de travail | CD7: 9 | CH7: Travaux de construction spécialisés | CI7: 1
X8: Reprise après accident du travail | Y8: 2 | AA8: Reprise après arrêt maladie | AB8: 7 | AV8: Conseil Modifications Equipements | BA8: Adhérent sans aucune AMT saisie | BB8: 269 | BD8: SIR | BE8: 1147 | BF8: 0.263981588 | BH8: SIR | BI8: 1303 | BJ8: 0.2998849252 | BO8: Montage/démontage Echafaudage | BP8: 184 | BQ8: 0.1284916201 | BU8: Total | BV8: 75 | BY8: valeur aiguille | BZ8: =(BV8/BU11)*100 -> 14.85148515 | CC8: Inapte au poste, apte à un autre
X9: Reprise après congés maternité | Y9: 2 | AA9: Occasionnelle Collaborateur Médecin | AB9: 2 | AV9: Conseil Nouv. Techniques de Production | BA9: Total général | BB9: 505 | BD9: SIR1 | BE9: 6 | BF9: 0.001380897583 | BH9: SIR1 | BI9: 11 | BJ9: 0.00253164557 | BO9: Habilitation électrique | BP9: 140 | BQ9: 0.09776536313 | BY9: largeur aiguille | BZ9: 1 | CC9: Pas d'avis d'aptitude délivré | CD9: 231
X10: Pré-reprise (initiative du salarié) | Y10: 1 | AA10: Autres | AB10: =AA4-(AB5+AB6+AB7+AB8+AB9) -> 6 | AV10: Conseil Organisation du Travail | BD10: Total | BE10: 4345 | BF10: 1 | BH10: Total | BI10: 4345 | BJ10: 1 | BO10: Amiante | BP10: 81 | BQ10: 0.05656424581 | BU10: Nombre d'adhérent sur le secteur | BY10: invisible | BZ10: =SUM(BZ3:BZ6)-(SUM(BZ8:BZ9)) -> 182.1485149 | CC10: Total | CD10: 346
X11: -Visite d'Information et de Prévention | Y11: 1 | AV11: Conseil Projet de Construction | BO11: Travailleur handicapé | BP11: 63 | BQ11: 0.04399441341 | BU11: 505
X12: Total | Y12: 38 | AV12: Création ou modification de la FE | AW12: 2 | BO12: Agents biologiques groupe 2 (AB2) | BP12: 33 | BQ12: 0.02304469274 | BY12: Valeur invisible 1
A13: Pré-Reprise | B13: 55 | K13: Médecin collaborateur | L13: Médecin du travail | M13: Total | AV13: Enquête suite AT | BO13: Moins de 18 ans | BP13: 32 | BQ13: 0.02234636872 | BY13: Aiguille
A14: Reprise | B14: 70 | J14: Pré-Reprise | K14: 15 | L14: 40 | M14: 55 | AV14: Enquête suite MP | BO14: Rayonnements ionisants (Cat.B) | BP14: 24 | BQ14: 0.01675977654 | BY14: Valeur invisible 2
A15: Occasionnelle | B15: 34 | J15: Reprise | K15: 38 | L15: 34 | M15: 72 | AV15: Enquêtes Autres | BO15: Risques motivés par l'employeur | BP15: 16 | BQ15: 0.01117318436
A16: Examen médical | B16: 47 | J16: Occasionnelle | K16: 10 | L16: 25 | M16: 35 | AV16: Entretien avec l'employeur | AW16: 3 | BO16: Moins de 18 ans travaux dangereux | BP16: 10 | BQ16: 0.006983240223 | BU16: Salariés et FE
A17: Examen médical à l'embauche | B17: 40 | J17: Examen médical | K17: 29 | L17: 20 | M17: 49 | AV17: Etude de Métrologie | BO17: Plomb | BP17: 8 | BQ17: 0.005586592179 | BY17: Vert | BZ17: 33
A18: VIP | B18: 17 | J18: Examen médical à l'embauche | K18: 42 | L18: 10 | M18: 52 | AV18: Etude de Poste | AW18: 8 | BO18: Femme enceinte et/ou allaitante | BP18: 8 | BQ18: 0.005586592179 | BV18: Nombre de salariés | BY18: Orange | BZ18: 33
A19: VIP Initiale | B19: 83 | J19: VIP | K19: 17 | L19: 3 | M19: 20 | AV19: Formation/Sensibilisation en Entreprise | BO19: Titulaire d'une pension d'invalidité | BP19: 8 | BQ19: 0.005586592179 | BU19: Entre 0 et 10 salariés | BV19: 192 | BY19: Rouge | BZ19: 33
A20: Total | B20: 346 | J20: VIP Initiale | K20: 118 | L20: 9 | M20: 127 | AV20: Gestion d'une situation collective | AW20: 2 | BO20: Milieu Hyperbare | BP20: 4 | BQ20: 0.002793296089 | BU20: Entre 11 et 49 salariés | BV20: 628 | BY20: Invisible | BZ20: =SUM(BZ17:BZ19) -> 99
J21: Total | K21: 269 | L21: 141 | M21: 410 | AV21: Gestion d'une situation individuelle | AW21: 1 | BO21: Champs électromagnétiques | BP21: 2 | BQ21: 0.001396648045 | BU21: Entre 50 et 299 salariés | BV21: 585
AV22: Intervention d'un intervenant en prévent | AW22: 8 | BO22: Rayonnements ionisants (Cat.A) | BP22: 1 | BQ22: 0.0006983240223 | BU22: Sup à 300 salariés | BV22: 960 | BY22: valeur aiguille | BZ22: =BV23/BU26 -> 0.5443037975
AV23: Metrologie | BO23: Total | BP23: 1432 | BQ23: 1 | BU23: Total | BV23: 2365 | BY23: largeur aiguille | BZ23: 1
AV24: Plan d'activité | BY24: invisible
AV25: Rédaction Rapport | AW25: 5 | BU25: Nombre de salariés
AV26: Réunion CHSCT | BU26: 4345 | BY26: Valeur invisible 1
AV27: Sollicitation de l'Employeur | BY27: Aiguille | BZ27: =BZ22 -> 0.5443037975
AV28: Visite Atelier | BY28: Valeur invisible 2
AV29: Visite Bureau
AV30: Visite Chantier
AV31: Visite Entreprise
AV32: Préparation Rapport | AW32: 2
AV33: Préparation d'intervention | AW33: 1
AV34: Total | AW34: 23

Sheet listes (hidden)
A1: Médecins | C1: Codes médecins | E1: Collaborateurs médecins | G1: Codes collaborateurs médecins | I1: IDEST | K1: Codes IDEST
A2: ALBEZARD Lissette | C2: 164 | E2: BASSEN Rachelle | G2: 314 | I2: LE TEUFF Solenn | K2: 424
A3: ANCIAUX THAUVIN Laurence | C3: 179 | E3: BLANCHO Agnès | G3: 181 | I3: BEDECARRATS Isabelle | K3: 417
A4: ANFRE Guillemette | C4: 100 | E4: COTTA BREGENT Louise Anne | G4: 198 | I4: BODINIER Joël | K4: 423
A5: ARTHAUD Jean Michel | C5: 118 | E5: DUBOIS Valérie | G5: 197 | I5: COULANDEAU Julie | K5: 429
A6: BIHAN TRAN Françoise | C6: 134 | E6: GUEHENNEUX Emmanuelle | G6: 185 | I6: DOUBLET Anne Sophie | K6: 430
A7: BOISSIERE Jean Claude | C7: 30 | E7: HANEY TEILLAUD Brigitte | G7: 184 | I7: GESREL Isabelle | K7: 407
A8: BOURDERIOUX Elise | C8: 170 | E8: JOUSSEAUME Loic | G8: 302 | I8: HENO Julie | K8: 404
A9: CAMUS Françoise | C9: 98 | E9: LE FELL GUNEPIN Véronique | G9: 303 | I9: KERANDEL Sophie | K9: 431
A10: CHABOT Ann Sophie | C10: 158 | E10: LE NEILLON Anne | G10: 313 | I10: LARRIBE Marie Noëlle | K10: 418
A11: DAURES Dominique | C11: 63 | E11: LEGLISE CAIGNEC Catherine | G11: 180 | I11: LAVIGNE Gwénola | K11: 416
A12: DUPRE Yves-Marie | C12: 52 | E12: LEMOIGNON Armelle | G12: 186 | I12: LE BRAS Laurence | K12: 400
A13: ESTEVE Gisèle | C13: 79 | E13: LIONS Yveline | G13: 304 | I13: LE HOUEROU Véronique | K13: 432
A14: GAUTIER Ferdinand | C14: 132 | E14: LUCAS Clarisse | G14: 183 | I14: LE TULZO Véronique | K14: 425
A15: GOULLIN Benoit | C15: 110 | I15: LEROUX Fabien | K15: 411
A16: HAMEAU Jean Michel | C16: 78 | I16: MAI Sandrine | K16: 422
A17: HAMOUD Catherine | C17: 2 | I17: OLIVES Karine | K17: 433
A18: HUET PAILHES Pierre | C18: 174 | I18: PERAN Marie | K18: 428
A19: JUGUET Alain | C19: 34 | I19: PERRON Valérie | K19: 419
A20: LARIVIERE Evelyne | C20: 316 | I20: PIERI Valérie | K20: 434
A21: LARNICOL Elisabeth | C21: 172 | I21: QUERET Rozenn | K21: 401
A22: LAVALLEE Barbara | C22: 171 | I22: THOUVENIN Sandra | K22: 426
A23: LE GALL MJ | C23: 307
A24: LE GARFF Pierre | C24: 173
A25: LE GUERN GUILLOU Régine | C25: 95
A26: LEBLANC Marie-Astrid | C26: 150
A27: LELIEVRE Bruno | C27: 49
A28: LEMAITRE HUCHET Carol | C28: 131
A29: LHERMITTE Pascal | C29: 88
A30: LORCY Damienne | C30: 154
A31: LORRE Marc | C31: 54
A32: LOZACHMEUR Bruno | C32: 60
A33: MALOYER Christine | C33: 157
A34: PERSONNE Marguerite | C34: 80
A35: POINTEAU Delphine | C35: 92
A36: PROTAT Bruno | C36: 147
A37: RITCHEN Sophie | C37: 142
A38: ROOS Joëlle | C38: 130
A39: ROOS-KADOURI Frédérique | C39: 152
A40: TRAMBLAY Michel | C40: 18
A41: TREGUER Anne | C41: 104

Sheet Export absent (hidden)
B1: TEMPS MÉDICAL PERDU
A4: DateCumul | B4: 2020-01-01
A5: DateDebut | B5: =datedeb -> 2021-01-01
A6: DateFin | B6: 2020-01-31
A8: temps médical perdu par libellé motif
A11: VISITES | Q11: ABSENTS | AG11: EXCUSES | AW11: EXCUSES AMIEM MEDECINS | BM11: ABSENTS ET EXCUSES | CC11: ABSENTS NON REMPLACES MEDECINS | CS11: EXCUSES NON REMPLACES MEDECINS | DI11: EXCUSES AMIEM NON REMPLACES MEDECINS | DY11: ABSENTS ET EXCUSES NON REMPLACES MEDECINS
C12: Janvier | D12: Février | E12: Mars | F12: Avril | G12: Mai | H12: Juin | I12: Juillet | J12: Août | K12: Septembre | L12: Octobre | M12: Novembre | N12: Décembre | O12: Total | S12: Janvier | T12: Février | U12: Mars | V12: Avril | W12: Mai | X12: Juin | Y12: Juillet | Z12: Août | AA12: Septembre | AB12: Octobre | AC12: Novembre | AD12: Décembre | AE12: Total | AI12: Janvier | AJ12: Février | AK12: Mars | AL12: Avril | AM12: Mai | AN12: Juin | AO12: Juillet | AP12: Août | AQ12: Septembre | AR12: Octobre | AS12: Novembre | AT12: Décembre | AU12: Total | AY12: Janvier | AZ12: Février | BA12: Mars | BB12: Avril | BC12: Mai | BD12: Juin | BE12: Juillet | BF12: Août | BG12: Septembre | BH12: Octobre | BI12: Novembre | BJ12: Décembre | BK12: Total | BO12: Janvier | BP12: Février | BQ12: Mars | BR12: Avril | BS12: Mai | BT12: Juin | BU12: Juillet | BV12: Août | BW12: Septembre | BX12: Octobre | BY12: Novembre | BZ12: Décembre | CA12: Total | CE12: Janvier | CF12: Février | CG12: Mars | CH12: Avril | CI12: Mai | CJ12: Juin | CK12: Juillet | CL12: Août | CM12: Septembre | CN12: Octobre | CO12: Novembre | CP12: Décembre | CQ12: Total | CU12: Janvier | CV12: Février | CW12: Mars | CX12: Avril | CY12: Mai | CZ12: Juin | DA12: Juillet | DB12: Août | DC12: Septembre | DD12: Octobre | DE12: Novembre | DF12: Décembre | DG12: Total | DK12: Janvier | DL12: Février | DM12: Mars | DN12: Avril | DO12: Mai | DP12: Juin | DQ12: Juillet | DR12: Août | DS12: Septembre | DT12: Octobre | DU12: Novembre | DV12: Décembre | DW12: Total | EA12: Janvier | EB12: Février | EC12: Mars | ED12: Avril | EE12: Mai | EF12: Juin | EG12: Juillet | EH12: Août | EI12: Septembre | EJ12: Octobre | EK12: Novembre | EL12: Décembre | EM12: Total
A13: 173 | B13: LE GARFF Pierre | C13: 57 | D13: 84 | O13: 141 | Q13: 173 | R13: LE GARFF Pierre | T13: 2 | AE13: 2 | AG13: 173 | AH13: LE GARFF Pierre | AI13: 10 | AJ13: 23 | AU13: 33 | AW13: 173 | AX13: LE GARFF Pierre | AY13: 6 | BK13: 6 | BM13: 173 | BN13: LE GARFF Pierre | BO13: 10 | BP13: 25 | CA13: 35 | CC13: 173 | CD13: LE GARFF Pierre | CF13: 2 | CQ13: 2 | CS13: 173 | CT13: LE GARFF Pierre | CU13: 2 | CV13: 11 | DG13: 13 | DI13: 173 | DJ13: LE GARFF Pierre | DK13: 6 | DW13: 6 | DY13: 173 | DZ13: LE GARFF Pierre | EA13: 2 | EB13: 13 | EM13: 15
A14: Total | C14: 57 | D14: 84 | E14: 0 | F14: 0 | G14: 0 | H14: 0 | I14: 0 | J14: 0 | K14: 0 | L14: 0 | M14: 0 | N14: 0 | O14: 141 | Q14: Total | S14: 0 | T14: 2 | U14: 0 | V14: 0 | W14: 0 | X14: 0 | Y14: 0 | Z14: 0 | AA14: 0 | AB14: 0 | AC14: 0 | AD14: 0 | AE14: 2 | AG14: Total | AI14: 10 | AJ14: 23 | AK14: 0 | AL14: 0 | AM14: 0 | AN14: 0 | AO14: 0 | AP14: 0 | AQ14: 0 | AR14: 0 | AS14: 0 | AT14: 0 | AU14: 33 | AW14: Total | AY14: 6 | AZ14: 0 | BA14: 0 | BB14: 0 | BC14: 0 | BD14: 0 | BE14: 0 | BF14: 0 | BG14: 0 | BH14: 0 | BI14: 0 | BJ14: 0 | BK14: 6 | BM14: Total | BO14: 10 | BP14: 25 | BQ14: 0 | BR14: 0 | BS14: 0 | BT14: 0 | BU14: 0 | BV14: 0 | BW14: 0 | BX14: 0 | BY14: 0 | BZ14: 0 | CA14: 35 | CC14: Total | CE14: 0 | CF14: 2 | CG14: 0 | CH14: 0 | CI14: 0 | CJ14: 0 | CK14: 0 | CL14: 0 | CM14: 0 | CN14: 0 | CO14: 0 | CP14: 0 | CQ14: 2 | CS14: Total | CU14: 2 | CV14: 11 | CW14: 0 | CX14: 0 | CY14: 0 | CZ14: 0 | DA14: 0 | DB14: 0 | DC14: 0 | DD14: 0 | DE14: 0 | DF14: 0 | DG14: 13 | DI14: Total | DK14: 6 | DL14: 0 | DM14: 0 | DN14: 0 | DO14: 0 | DP14: 0 | DQ14: 0 | DR14: 0 | DS14: 0 | DT14: 0 | DU14: 0 | DV14: 0 | DW14: 6 | DY14: Total | EA14: 2 | EB14: 13 | EC14: 0 | ED14: 0 | EE14: 0 | EF14: 0 | EG14: 0 | EH14: 0 | EI14: 0 | EJ14: 0 | EK14: 0 | EL14: 0 | EM14: 15
A15: 2020-03-01T15:52:46 | Q15: 2020-02-29T23:45:26 | AG15: 2020-02-29T23:45:26 | AW15: 2020-02-29T23:45:26 | BM15: 2020-02-29T23:45:26 | CC15: 2020-02-29T23:45:26 | CS15: 2020-02-29T23:45:26 | DI15: 2020-02-29T23:45:26 | DY15: 2020-02-29T23:45:26
C17: Janvier | D17: Février | E17: Mars | F17: Avril | G17: Mai | H17: Juin | I17: Juillet | J17: Août | K17: Septembre | L17: Octobre | M17: Novembre | N17: Décembre | O17: Total | S17: Janvier | T17: Février | U17: Mars | V17: Avril | W17: Mai | X17: Juin | Y17: Juillet | Z17: Août | AA17: Septembre | AB17: Octobre | AC17: Novembre | AD17: Décembre | AE17: Total | AI17: Janvier | AJ17: Février | AK17: Mars | AL17: Avril | AM17: Mai | AN17: Juin | AO17: Juillet | AP17: Août | AQ17: Septembre | AR17: Octobre | AS17: Novembre | AT17: Décembre | AU17: Total | AY17: Janvier | AZ17: Février | BA17: Mars | BB17: Avril | BC17: Mai | BD17: Juin | BE17: Juillet | BF17: Août | BG17: Septembre | BH17: Octobre | BI17: Novembre | BJ17: Décembre | BK17: Total | BO17: Janvier | BP17: Février | BQ17: Mars | BR17: Avril | BS17: Mai | BT17: Juin | BU17: Juillet | BV17: Août | BW17: Septembre | BX17: Octobre | BY17: Novembre | BZ17: Décembre | CA17: Total | CE17: Janvier | CF17: Février | CG17: Mars | CH17: Avril | CI17: Mai | CJ17: Juin | CK17: Juillet | CL17: Août | CM17: Septembre | CN17: Octobre | CO17: Novembre | CP17: Décembre | CQ17: Total | CU17: Janvier | CV17: Février | CW17: Mars | CX17: Avril | CY17: Mai | CZ17: Juin | DA17: Juillet | DB17: Août | DC17: Septembre | DD17: Octobre | DE17: Novembre | DF17: Décembre | DG17: Total | DK17: Janvier | DL17: Février | DM17: Mars | DN17: Avril | DO17: Mai | DP17: Juin | DQ17: Juillet | DR17: Août | DS17: Septembre | DT17: Octobre | DU17: Novembre | DV17: Décembre | DW17: Total | EA17: Janvier | EB17: Février | EC17: Mars | ED17: Avril | EE17: Mai | EF17: Juin | EG17: Juillet | EH17: Août | EI17: Septembre | EJ17: Octobre | EK17: Novembre | EL17: Décembre | EM17: Total
A18: 314 | B18: BASSEN Rachelle | C18: 159 | D18: 110 | O18: 269 | Q18: 314 | R18: BASSEN Rachelle | S18: 8 | T18: 3 | AE18: 11 | AG18: 314 | AH18: BASSEN Rachelle | AI18: 46 | AJ18: 34 | AU18: 80 | BK18: 0 | BM18: 314 | BN18: BASSEN Rachelle | BO18: 54 | BP18: 37 | CA18: 91 | CC18: 314 | CD18: BASSEN Rachelle | CE18: 8 | CF18: 3 | CQ18: 11 | CS18: 314 | CT18: BASSEN Rachelle | CU18: 16 | CV18: 12 | DG18: 28 | DW18: 0 | DY18: 314 | DZ18: BASSEN Rachelle | EA18: 24 | EB18: 15 | EM18: 39
A19: Total | C19: 159 | D19: 110 | E19: 0 | F19: 0 | G19: 0 | H19: 0 | I19: 0 | J19: 0 | K19: 0 | L19: 0 | M19: 0 | N19: 0 | O19: 269 | Q19: Total | S19: 8 | T19: 3 | U19: 0 | V19: 0 | W19: 0 | X19: 0 | Y19: 0 | Z19: 0 | AA19: 0 | AB19: 0 | AC19: 0 | AD19: 0 | AE19: 11 | AG19: Total | AI19: 46 | AJ19: 34 | AK19: 0 | AL19: 0 | AM19: 0 | AN19: 0 | AO19: 0 | AP19: 0 | AQ19: 0 | AR19: 0 | AS19: 0 | AT19: 0 | AU19: 80 | AW19: Total | AY19: 0 | AZ19: 0 | BA19: 0 | BB19: 0 | BC19: 0 | BD19: 0 | BE19: 0 | BF19: 0 | BG19: 0 | BH19: 0 | BI19: 0 | BJ19: 0 | BK19: 0 | BM19: Total | BO19: 54 | BP19: 37 | BQ19: 0 | BR19: 0 | BS19: 0 | BT19: 0 | BU19: 0 | BV19: 0 | BW19: 0 | BX19: 0 | BY19: 0 | BZ19: 0 | CA19: 91 | CC19: Total | CE19: 8 | CF19: 3 | CG19: 0 | CH19: 0 | CI19: 0 | CJ19: 0 | CK19: 0 | CL19: 0 | CM19: 0 | CN19: 0 | CO19: 0 | CP19: 0 | CQ19: 11 | CS19: Total | CU19: 16 | CV19: 12 | CW19: 0 | CX19: 0 | CY19: 0 | CZ19: 0 | DA19: 0 | DB19: 0 | DC19: 0 | DD19: 0 | DE19: 0 | DF19: 0 | DG19: 28 | DI19: Total | DK19: 0 | DL19: 0 | DM19: 0 | DN19: 0 | DO19: 0 | DP19: 0 | DQ19: 0 | DR19: 0 | DS19: 0 | DT19: 0 | DU19: 0 | DV19: 0 | DW19: 0 | DY19: Total | EA19: 24 | EB19: 15 | EC19: 0 | ED19: 0 | EE19: 0 | EF19: 0 | EG19: 0 | EH19: 0 | EI19: 0 | EJ19: 0 | EK19: 0 | EL19: 0 | EM19: 39
A20: 2020-03-01T15:52:46 | Q20: 2020-02-29T23:45:26 | AG20: 2020-02-29T23:45:26 | AW20: 2020-02-29T23:45:26 | BM20: 2020-02-29T23:45:26 | CC20: 2020-02-29T23:45:26 | CS20: 2020-02-29T23:45:26 | DI20: 2020-02-29T23:45:26 | DY20: 2020-02-29T23:45:26
C22: Janvier | D22: Février | E22: Mars | F22: Avril | G22: Mai | H22: Juin | I22: Juillet | J22: Août | K22: Septembre | L22: Octobre | M22: Novembre | N22: Décembre | O22: Total | S22: Janvier | T22: Février | U22: Mars | V22: Avril | W22: Mai | X22: Juin | Y22: Juillet | Z22: Août | AA22: Septembre | AB22: Octobre | AC22: Novembre | AD22: Décembre | AE22: Total | AI22: Janvier | AJ22: Février | AK22: Mars | AL22: Avril | AM22: Mai | AN22: Juin | AO22: Juillet | AP22: Août | AQ22: Septembre | AR22: Octobre | AS22: Novembre | AT22: Décembre | AU22: Total | AY22: Janvier | AZ22: Février | BA22: Mars | BB22: Avril | BC22: Mai | BD22: Juin | BE22: Juillet | BF22: Août | BG22: Septembre | BH22: Octobre | BI22: Novembre | BJ22: Décembre | BK22: Total | BO22: Janvier | BP22: Février | BQ22: Mars | BR22: Avril | BS22: Mai | BT22: Juin | BU22: Juillet | BV22: Août | BW22: Septembre | BX22: Octobre | BY22: Novembre | BZ22: Décembre | CA22: Total | CE22: Janvier | CF22: Février | CG22: Mars | CH22: Avril | CI22: Mai | CJ22: Juin | CK22: Juillet | CL22: Août | CM22: Septembre | CN22: Octobre | CO22: Novembre | CP22: Décembre | CQ22: Total | CU22: Janvier | CV22: Février | CW22: Mars | CX22: Avril | CY22: Mai | CZ22: Juin | DA22: Juillet | DB22: Août | DC22: Septembre | DD22: Octobre | DE22: Novembre | DF22: Décembre | DG22: Total | DK22: Janvier | DL22: Février | DM22: Mars | DN22: Avril | DO22: Mai | DP22: Juin | DQ22: Juillet | DR22: Août | DS22: Septembre | DT22: Octobre | DU22: Novembre | DV22: Décembre | DW22: Total | EA22: Janvier | EB22: Février | EC22: Mars | ED22: Avril | EE22: Mai | EF22: Juin | EG22: Juillet | EH22: Août | EI22: Septembre | EJ22: Octobre | EK22: Novembre | EL22: Décembre | EM22: Total
O23: 0 | AE23: 0 | AU23: 0 | BK23: 0 | CA23: 0 | CQ23: 0 | DG23: 0 | DW23: 0 | EM23: 0
A24: Total | C24: 0 | D24: 0 | E24: 0 | F24: 0 | G24: 0 | H24: 0 | I24: 0 | J24: 0 | K24: 0 | L24: 0 | M24: 0 | N24: 0 | O24: 0 | Q24: Total | S24: 0 | T24: 0 | U24: 0 | V24: 0 | W24: 0 | X24: 0 | Y24: 0 | Z24: 0 | AA24: 0 | AB24: 0 | AC24: 0 | AD24: 0 | AE24: 0 | AG24: Total | AI24: 0 | AJ24: 0 | AK24: 0 | AL24: 0 | AM24: 0 | AN24: 0 | AO24: 0 | AP24: 0 | AQ24: 0 | AR24: 0 | AS24: 0 | AT24: 0 | AU24: 0 | AW24: Total | AY24: 0 | AZ24: 0 | BA24: 0 | BB24: 0 | BC24: 0 | BD24: 0 | BE24: 0 | BF24: 0 | BG24: 0 | BH24: 0 | BI24: 0 | BJ24: 0 | BK24: 0 | BM24: Total | BO24: 0 | BP24: 0 | BQ24: 0 | BR24: 0 | BS24: 0 | BT24: 0 | BU24: 0 | BV24: 0 | BW24: 0 | BX24: 0 | BY24: 0 | BZ24: 0 | CA24: 0 | CC24: Total | CE24: 0 | CF24: 0 | CG24: 0 | CH24: 0 | CI24: 0 | CJ24: 0 | CK24: 0 | CL24: 0 | CM24: 0 | CN24: 0 | CO24: 0 | CP24: 0 | CQ24: 0 | CS24: Total | CU24: 0 | CV24: 0 | CW24: 0 | CX24: 0 | CY24: 0 | CZ24: 0 | DA24: 0 | DB24: 0 | DC24: 0 | DD24: 0 | DE24: 0 | DF24: 0 | DG24: 0 | DI24: Total | DK24: 0 | DL24: 0 | DM24: 0 | DN24: 0 | DO24: 0 | DP24: 0 | DQ24: 0 | DR24: 0 | DS24: 0 | DT24: 0 | DU24: 0 | DV24: 0 | DW24: 0 | DY24: Total | EA24: 0 | EB24: 0 | EC24: 0 | ED24: 0 | EE24: 0 | EF24: 0 | EG24: 0 | EH24: 0 | EI24: 0 | EJ24: 0 | EK24: 0 | EL24: 0 | EM24: 0
A25: 2020-03-01T15:52:46 | Q25: 2020-02-29T23:45:26 | AG25: 2020-02-29T23:45:26 | AW25: 2020-02-29T23:45:26 | BM25: 2020-02-29T23:45:26 | CC25: 2020-02-29T23:45:26 | CS25: 2020-02-29T23:45:26 | DI25: 2020-02-29T23:45:26 | DY25: 2020-02-29T23:45:26
A27: Total Visites Equipe | C27: =C14+C19+C24 -> 216 | D27: =D14+D19+D24 -> 194 | E27: 0 | F27: 0 | G27: 0 | H27: 0 | I27: 0 | J27: 0 | K27: 0 | L27: 0 | M27: 0 | N27: 0 | O27: 410 | Q27: Total Absents Equipe | S27: =S14+S19+S24 -> 8 | T27: =T14+T19+T24 -> 5 | U27: 0 | V27: 0 | W27: 0 | X27: 0 | Y27: 0 | Z27: 0 | AA27: 0 | AB27: 0 | AC27: 0 | AD27: 0 | AE27: 13 | AG27: Total Excusés Equipe | AI27: =AI14+AI19+AI24 -> 56 | AJ27: =AJ14+AJ19+AJ24 -> 57 | AK27: 0 | AL27: 0 | AM27: 0 | AN27: 0 | AO27: 0 | AP27: 0 | AQ27: 0 | AR27: 0 | AS27: 0 | AT27: 0 | AU27: 113 | AW27: Total Excusés AMIEM Equipe | AY27: =AY14+AY19+AY24 -> 6 | AZ27: =AZ14+AZ19+AZ24 -> 0 | BA27: 0 | BB27: 0 | BC27: 0 | BD27: 0 | BE27: 0 | BF27: 0 | BG27: 0 | BH27: 0 | BI27: 0 | BJ27: 0 | BK27: 6 | BM27: Total Absents et excusés Equipe | BO27: =BO14+BO19+BO24 -> 64 | BP27: =BP14+BP19+BP24 -> 62 | BQ27: 0 | BR27: 0 | BS27: 0 | BT27: 0 | BU27: 0 | BV27: 0 | BW27: 0 | BX27: 0 | BY27: 0 | BZ27: 0 | CA27: 126 | CC27: Total Absentsnon remplacés Equipe | CE27: =CE14+CE19+CE24 -> 8 | CF27: =CF14+CF19+CF24 -> 5 | CG27: 0 | CH27: 0 | CI27: 0 | CJ27: 0 | CK27: 0 | CL27: 0 | CM27: 0 | CN27: 0 | CO27: 0 | CP27: 0 | CQ27: 13 | CS27: Total excusés non remplacés Equipe | CU27: =CU14+CU19+CU24 -> 18 | CV27: =CV14+CV19+CV24 -> 23 | CW27: 0 | CX27: 0 | CY27: 0 | CZ27: 0 | DA27: 0 | DB27: 0 | DC27: 0 | DD27: 0 | DE27: 0 | DF27: 0 | DG27: 41 | DI27: Total excusé AMIEM non remplacés Equipe | DK27: =DK14+DK19+DK24 -> 6 | DL27: =DL14+DL19+DL24 -> 0 | DM27: 0 | DN27: 0 | DO27: 0 | DP27: 0 | DQ27: 0 | DR27: 0 | DS27: 0 | DT27: 0 | DU27: 0 | DV27: 0 | DW27: 6 | DY27: Total absents et excusés non remplacés Equipe | EA27: =EA14+EA19+EA24 -> 26 | EB27: =EB14+EB19+EB24 -> 28 | EC27: 0 | ED27: 0 | EE27: 0 | EF27: =EF14+EF19+EF24 -> 0 | EG27: 0 | EH27: 0 | EI27: 0 | EJ27: 0 | EK27: 0 | EL27: 0 | EM27: 54
EG31: Apprenti | EH31: 1 | EJ31: Apprenti | EK31: =EH31 -> 1
A32: CDI | B32: 301 | I32: Embauche | J32: 179 | EG32: CDD | EH32: 3 | EJ32: CDD | EK32: =EH32+EH33+EH34+EH38+EH39+EH40+EH41 -> 3
A33: Intérimaire | B33: 64 | I33: Reprise | J33: 72 | EG33: CDD\Saisonnier court | EJ33: CDI | EK33: =EH35 -> 34
A34: CDD | B34: 35 | I34: Périodique | J34: 69 | EG34: CDD\Saisonnier long | EJ34: Intérimaire | EK34: =EH36+EH37 -> 16
A35: Apprenti | B35: 9 | I35: Pré-reprise | J35: 55 | EG35: CDI | EH35: 34
A36: Qualification | B36: 1 | I36: Occasionnelle | J36: 35 | EG36: CDI Intérimaire
A37: Total | B37: 410 | I37: Total | J37: 410 | EG37: Intérimaire | EH37: 16
A38: 2020-03-01T15:52:46 | I38: 2020-03-01T15:52:46 | EG38: Qualification
EG39: Retour à l'emploi
EG40: Stagiaire
EG41: Travail Intermittent
EG43: Total | EH43: 54
EG44: 2020-02-29T23:45:26
EJ45: Nature | EK45: Nombre
EG46: Embauche | EJ46: Embauche | EK46: =EH46+EH47+EH48+EH49 -> 31
EG47: - Visite d'Information et de Prévention Initiale IDEST | EJ47: Périodique | EK47: =EH50+EH51+EH52+EH53+EH54+EH55 -> 8
EG48: -Visite d'Information et de Prévention Initiale | EH48: 19 | EJ48: Reprise | EK48: =EH65+EH66+EH67+EH68 -> 11
EG49: -Examen Médical à l'embauche | EH49: 12 | EJ49: Pré-reprise | EK49: =EH62+EH63+EH64 -> 1
EG50: -Entretien Intermédiaire | EJ50: Occasionnelle | EK50: =EH56+EH57+EH58+EH59+EH60+EH61 -> 3
EG51: - Entretien Intermédiaire IDEST | EJ51: Autres | EK51: =EH69+EH70+EH71 -> 0
EG52: -Visite d'Information et de Prévention | EH52: 1
EG53: - Visite d'Information et de Prévention IDEST
EG54: -Examen Médical | EH54: 7
EG55: Périodique
EG56: Occasionnelle à la demande de l'employeur
EG57: Occasionnelle à la demande du Médecin du Travail
EG58: Occasionnelle à la demande du salarié
EG59: Occasionnelle autre
EG60: Occasionnelle Collaborateur Médecin | EH60: 3
EG61: Occasionnelle IDEST
EG62: Pré-reprise (initiative du médecin conseil)
EG63: Pré-reprise (initiative du médecin traitant)
EG64: Pré-reprise (initiative du salarié) | EH64: 1
EG65: Reprise après accident du travail | EH65: 2
EG66: Reprise après arrêt maladie | EH66: 7
EG67: Reprise après congés maternité | EH67: 2
EG68: Reprise après maladie professionnelle
EG69: Supplémentaire
EG70: Surveillance moins de 18 ans
EG71: Urgence
EG72: Visite Intérimaire
EG73: Non décomptée (sans visite)
EG74: Total | EH74: 54
